Workbook

Sheet Fabriksroer (hidden)
A1: Fabriksroer (3400) | AA1: Ident | AB1: =Choices!A1*10+Choices!D1*1 -> 42 | AJ1: Til adresseformel
D2: Landsplan | G2: ="Kreds "&Kredsudvælgelse!$A$2&"" -> Kreds 199 | N2: Betingelser | AJ2: =ISTEXT(P4) -> TRUE | AK2: FALSE | AL2: FALSE | AM2: FALSE | AN2: FALSE | AO2: FALSE
A3: Tegn (fra højre der skal væk så navnet passer med navnet i forespørgslen) | B3: Divisor, til snit | C3: Fabriksroer | D3: =IF($AB$1=44,Landsgennemsnit!DX3,"") ->  | E3: Top 10 | F3: Bedste 1/3 | G3: =K8 ->  | H3: Top 10 | I3: Bedste 1/3 | K3: Divisor 1 | L3: Divisor 2 | N3: =H3 -> Top 10 | O3: =IF(O4="","",IF(ISERROR(HLOOKUP(O4,Forespørgsel1[#Headers],1,FALSE))=TRUE,"Ikke fundet i forespørgslen","")) ->  | P3: =IF(P4="","",IF(ISERROR(HLOOKUP(P4,Forespørgsel1[#Headers],1,FALSE))=TRUE,"Ikke fundet i forespørgslen","")) ->  | Q3: =IF(Q4="","",IF(ISERROR(HLOOKUP(Q4,Forespørgsel1[#Headers],1,FALSE))=TRUE,"Ikke fundet i forespørgslen","")) ->  | R3: =IF(R4="","",IF(ISERROR(HLOOKUP(R4,Forespørgsel1[#Headers],1,FALSE))=TRUE,"Ikke fundet i forespørgslen","")) ->  | S3: =IF(S4="","",IF(ISERROR(HLOOKUP(S4,Forespørgsel1[#Headers],1,FALSE))=TRUE,"Ikke fundet i forespørgslen","")) ->  | T3: =IF(T4="","",IF(ISERROR(HLOOKUP(T4,Forespørgsel1[#Headers],1,FALSE))=TRUE,"Ikke fundet i forespørgslen","")) ->  | U3: =IF(U4="","",IF(ISERROR(HLOOKUP(U4,Forespørgsel1[#Headers],1,FALSE))=TRUE,"Ikke fundet i forespørgslen","")) ->  | V3: Find grænse for bedste 1/3manuelt udfra data: | AJ3: Række top 10 | AK3: 7
A4: 0 | B4: 0 | C4: Ha i alt, driftsgren | D4: =IF($AB$1=44,Landsgennemsnit!DX4,"") ->  | E4: =IF($AB$1=44,Landsgennemsnit!DY4,"") ->  | F4: =IF($AB$1=44,Landsgennemsnit!DZ4,"") ->  | G4: =IF($AB$1=44,IFERROR(IF(ISTEXT($B4)=TRUE,DSUM(Forespørgsel1[#All],""&LEFT($C4,LEN($C4)-$A4)&"",$O$4:INDIRECT(ADDRESS($AK$3,$AK$4)))/DSUM(Forespørgsel1[#All],""&$B4&"",$O$4:INDIRECT(ADDRESS($AK$3,$AK$4))),IF($B4=0,DAVERAGE(Forespørgsel1[#All],""&LEFT($C4,LEN($C4)-$A4)&"",$O$4:INDIRECT(ADDRESS($AK$3,$AK$4))),IF($B4=1,DSUM(Forespørgsel1[#All],""&LEFT($C4,LEN($C4)-$A4)&"",$O$4:INDIRECT(ADDRESS($AK$3,$AK$4)))/DSUM(Forespørgsel1[#All],""&$K$4&"",$O$4:INDIRECT(ADDRESS($AK$3,$AK$4))),DSUM(Forespørgsel1[#All],""&LEFT($C4,LEN($C4)-$A4)&"",$O$4:INDIRECT(ADDRESS($AK$3,$AK$4)))/DSUM(Forespørgsel1[#All],""&$L$4&"",$O$4:INDIRECT(ADDRESS($AK$3,$AK$4)))))),"fejl"),"") ->  | H4: =IF($AB$1=44,IFERROR(IF(ISTEXT($B4)=TRUE,DSUM(Forespørgsel1[#All],""&LEFT($C4,LEN($C4)-$A4)&"",$N$4:INDIRECT(ADDRESS($AK$3,$AK$4)))/DSUM(Forespørgsel1[#All],""&$B4&"",$N$4:INDIRECT(ADDRESS($AK$3,$AK$4))),IF($B4=0,DAVERAGE(Forespørgsel1[#All],""&LEFT($C4,LEN($C4)-$A4)&"",$N$4:INDIRECT(ADDRESS($AK$3,$AK$4))),IF($B4=1,DSUM(Forespørgsel1[#All],""&LEFT($C4,LEN($C4)-$A4)&"",$N$4:INDIRECT(ADDRESS($AK$3,$AK$4)))/DSUM(Forespørgsel1[#All],""&$K$4&"",$N$4:INDIRECT(ADDRESS($AK$3,$AK$4))),IF($B4=2,DSUM(Forespørgsel1[#All],""&LEFT($C4,LEN($C4)-$A4)&"",$N$4:INDIRECT(ADDRESS($AK$3,$AK$4)))/DSUM(Forespørgsel1[#All],""&$L$4&"",$N$4:INDIRECT(ADDRESS($AK$3,$AK$4))))))),"fejl"),"") ->  | I4: =IF($AB$1=44,IFERROR(IF(ISTEXT($B4)=TRUE,DSUM(Forespørgsel1[#All],""&LEFT($C4,LEN($C4)-$A4)&"",$N$10:INDIRECT(ADDRESS($AK$5,$AK$4)))/DSUM(Forespørgsel1[#All],""&$B4&"",$N$10:INDIRECT(ADDRESS($AK$5,$AK$4))),IF($B4=0,DAVERAGE(Forespørgsel1[#All],""&LEFT($C4,LEN($C4)-$A4)&"",$N$10:INDIRECT(ADDRESS($AK$5,$AK$4))),IF($B4=1,DSUM(Forespørgsel1[#All],""&LEFT($C4,LEN($C4)-$A4)&"",$N$10:INDIRECT(ADDRESS($AK$5,$AK$4)))/DSUM(Forespørgsel1[#All],""&$K$4&"",$N$10:INDIRECT(ADDRESS($AK$5,$AK$4))),IF($B4=2,DSUM(Forespørgsel1[#All],""&LEFT($C4,LEN($C4)-$A4)&"",$N$10:INDIRECT(ADDRESS($AK$5,$AK$4)))/DSUM(Forespørgsel1[#All],""&$L$4&"",$N$10:INDIRECT(ADDRESS($AK$5,$AK$4))))))),""),"") ->  | K4: Ha i alt, driftsgren | N4: Rest til jordleje før EU-støtte pr. ha | O4: Prodgren | P4: Godkendt | V4: Rest til jordleje før EU-støtte pr. ha | AJ4: Kolonne (begge) | AK4: =COLUMNS(A3:O3)+COUNTIF(AJ2:AO2,TRUE) -> 16
A5: 0 | B5: 0 | D5: =IF($AB$1=44,Landsgennemsnit!DX5,"") ->  | E5: =IF($AB$1=44,Landsgennemsnit!DY5,"") ->  | F5: =IF($AB$1=44,Landsgennemsnit!DZ5,"") ->  | I5: =IF($AB$1=44,IFERROR(IF(ISTEXT($B5)=TRUE,DSUM(Forespørgsel1[#All],""&LEFT($C5,LEN($C5)-$A5)&"",$N$10:INDIRECT(ADDRESS($AK$5,$AK$4)))/DSUM(Forespørgsel1[#All],""&$B5&"",$N$10:INDIRECT(ADDRESS($AK$5,$AK$4))),IF($B5=0,DAVERAGE(Forespørgsel1[#All],""&LEFT($C5,LEN($C5)-$A5)&"",$N$10:INDIRECT(ADDRESS($AK$5,$AK$4))),IF($B5=1,DSUM(Forespørgsel1[#All],""&LEFT($C5,LEN($C5)-$A5)&"",$N$10:INDIRECT(ADDRESS($AK$5,$AK$4)))/DSUM(Forespørgsel1[#All],""&$K$4&"",$N$10:INDIRECT(ADDRESS($AK$5,$AK$4))),IF($B5=2,DSUM(Forespørgsel1[#All],""&LEFT($C5,LEN($C5)-$A5)&"",$N$10:INDIRECT(ADDRESS($AK$5,$AK$4)))/DSUM(Forespørgsel1[#All],""&$L$4&"",$N$10:INDIRECT(ADDRESS($AK$5,$AK$4))))))),""),"") ->  | N5: =IF($AB$1=44,IF(K8<=5,"For få relevante observationer",">"&DMAX(Forespørgsel1[#All],""&$M$17&"",$N$53:INDIRECT(ADDRESS($AK$58,$AK$4)))),"") ->  | O5: ="=3400" -> =3400 | P5: TRUE | V5: >3500 | AJ5: Række bedste 1/3 | AK5: 13
A6: 0 | B6: 0 | C6: Forpagtet andel af areal | D6: =IF($AB$1=44,Landsgennemsnit!DX6,"") ->  | E6: =IF($AB$1=44,Landsgennemsnit!DY6,"") ->  | F6: =IF($AB$1=44,Landsgennemsnit!DZ6,"") ->  | G6: =IF($AB$1=44,IFERROR(IF(ISTEXT($B6)=TRUE,DSUM(Forespørgsel1[#All],""&LEFT($C6,LEN($C6)-$A6)&"",$O$4:INDIRECT(ADDRESS($AK$3,$AK$4)))/DSUM(Forespørgsel1[#All],""&$B6&"",$O$4:INDIRECT(ADDRESS($AK$3,$AK$4))),IF($B6=0,DAVERAGE(Forespørgsel1[#All],""&LEFT($C6,LEN($C6)-$A6)&"",$O$4:INDIRECT(ADDRESS($AK$3,$AK$4))),IF($B6=1,DSUM(Forespørgsel1[#All],""&LEFT($C6,LEN($C6)-$A6)&"",$O$4:INDIRECT(ADDRESS($AK$3,$AK$4)))/DSUM(Forespørgsel1[#All],""&$K$4&"",$O$4:INDIRECT(ADDRESS($AK$3,$AK$4))),DSUM(Forespørgsel1[#All],""&LEFT($C6,LEN($C6)-$A6)&"",$O$4:INDIRECT(ADDRESS($AK$3,$AK$4)))/DSUM(Forespørgsel1[#All],""&$L$4&"",$O$4:INDIRECT(ADDRESS($AK$3,$AK$4)))))),"fejl"),"") ->  | H6: =IF($AB$1=44,IFERROR(IF(ISTEXT($B6)=TRUE,DSUM(Forespørgsel1[#All],""&LEFT($C6,LEN($C6)-$A6)&"",$N$4:INDIRECT(ADDRESS($AK$3,$AK$4)))/DSUM(Forespørgsel1[#All],""&$B6&"",$N$4:INDIRECT(ADDRESS($AK$3,$AK$4))),IF($B6=0,DAVERAGE(Forespørgsel1[#All],""&LEFT($C6,LEN($C6)-$A6)&"",$N$4:INDIRECT(ADDRESS($AK$3,$AK$4))),IF($B6=1,DSUM(Forespørgsel1[#All],""&LEFT($C6,LEN($C6)-$A6)&"",$N$4:INDIRECT(ADDRESS($AK$3,$AK$4)))/DSUM(Forespørgsel1[#All],""&$K$4&"",$N$4:INDIRECT(ADDRESS($AK$3,$AK$4))),IF($B6=2,DSUM(Forespørgsel1[#All],""&LEFT($C6,LEN($C6)-$A6)&"",$N$4:INDIRECT(ADDRESS($AK$3,$AK$4)))/DSUM(Forespørgsel1[#All],""&$L$4&"",$N$4:INDIRECT(ADDRESS($AK$3,$AK$4))))))),""),"") ->  | I6: =IF($AB$1=44,IFERROR(IF(ISTEXT($B6)=TRUE,DSUM(Forespørgsel1[#All],""&LEFT($C6,LEN($C6)-$A6)&"",$N$10:INDIRECT(ADDRESS($AK$5,$AK$4)))/DSUM(Forespørgsel1[#All],""&$B6&"",$N$10:INDIRECT(ADDRESS($AK$5,$AK$4))),IF($B6=0,DAVERAGE(Forespørgsel1[#All],""&LEFT($C6,LEN($C6)-$A6)&"",$N$10:INDIRECT(ADDRESS($AK$5,$AK$4))),IF($B6=1,DSUM(Forespørgsel1[#All],""&LEFT($C6,LEN($C6)-$A6)&"",$N$10:INDIRECT(ADDRESS($AK$5,$AK$4)))/DSUM(Forespørgsel1[#All],""&$K$4&"",$N$10:INDIRECT(ADDRESS($AK$5,$AK$4))),IF($B6=2,DSUM(Forespørgsel1[#All],""&LEFT($C6,LEN($C6)-$A6)&"",$N$10:INDIRECT(ADDRESS($AK$5,$AK$4)))/DSUM(Forespørgsel1[#All],""&$L$4&"",$N$10:INDIRECT(ADDRESS($AK$5,$AK$4))))))),""),"") ->  | N6: =$N$5 ->  | O6: =$O$5 -> =3400 | P6: TRUE
B7: 0 | C7: Udbytte pr. ha fabriksroer, ton polsukker | D7: =IF($AB$1=44,Landsgennemsnit!DX7,"") ->  | E7: =IF($AB$1=44,Landsgennemsnit!DY7,"") ->  | F7: =IF($AB$1=44,Landsgennemsnit!DZ7,"") ->  | G7: =IF($AB$1=44,IFERROR(IF(ISTEXT($B7)=TRUE,DSUM(Forespørgsel1[#All],""&LEFT($C7,LEN($C7)-$A7)&"",$O$4:INDIRECT(ADDRESS($AK$3,$AK$4)))/DSUM(Forespørgsel1[#All],""&$B7&"",$O$4:INDIRECT(ADDRESS($AK$3,$AK$4))),IF($B7=0,DAVERAGE(Forespørgsel1[#All],""&LEFT($C7,LEN($C7)-$A7)&"",$O$4:INDIRECT(ADDRESS($AK$3,$AK$4))),IF($B7=1,DSUM(Forespørgsel1[#All],""&LEFT($C7,LEN($C7)-$A7)&"",$O$4:INDIRECT(ADDRESS($AK$3,$AK$4)))/DSUM(Forespørgsel1[#All],""&$K$4&"",$O$4:INDIRECT(ADDRESS($AK$3,$AK$4))),DSUM(Forespørgsel1[#All],""&LEFT($C7,LEN($C7)-$A7)&"",$O$4:INDIRECT(ADDRESS($AK$3,$AK$4)))/DSUM(Forespørgsel1[#All],""&$L$4&"",$O$4:INDIRECT(ADDRESS($AK$3,$AK$4)))))),"fejl"),"") ->  | H7: =IF($AB$1=44,IFERROR(IF(ISTEXT($B7)=TRUE,DSUM(Forespørgsel1[#All],""&LEFT($C7,LEN($C7)-$A7)&"",$N$4:INDIRECT(ADDRESS($AK$3,$AK$4)))/DSUM(Forespørgsel1[#All],""&$B7&"",$N$4:INDIRECT(ADDRESS($AK$3,$AK$4))),IF($B7=0,DAVERAGE(Forespørgsel1[#All],""&LEFT($C7,LEN($C7)-$A7)&"",$N$4:INDIRECT(ADDRESS($AK$3,$AK$4))),IF($B7=1,DSUM(Forespørgsel1[#All],""&LEFT($C7,LEN($C7)-$A7)&"",$N$4:INDIRECT(ADDRESS($AK$3,$AK$4)))/DSUM(Forespørgsel1[#All],""&$K$4&"",$N$4:INDIRECT(ADDRESS($AK$3,$AK$4))),IF($B7=2,DSUM(Forespørgsel1[#All],""&LEFT($C7,LEN($C7)-$A7)&"",$N$4:INDIRECT(ADDRESS($AK$3,$AK$4)))/DSUM(Forespørgsel1[#All],""&$L$4&"",$N$4:INDIRECT(ADDRESS($AK$3,$AK$4))))))),""),"") ->  | I7: =IF($AB$1=44,IFERROR(IF(ISTEXT($B7)=TRUE,DSUM(Forespørgsel1[#All],""&LEFT($C7,LEN($C7)-$A7)&"",$N$10:INDIRECT(ADDRESS($AK$5,$AK$4)))/DSUM(Forespørgsel1[#All],""&$B7&"",$N$10:INDIRECT(ADDRESS($AK$5,$AK$4))),IF($B7=0,DAVERAGE(Forespørgsel1[#All],""&LEFT($C7,LEN($C7)-$A7)&"",$N$10:INDIRECT(ADDRESS($AK$5,$AK$4))),IF($B7=1,DSUM(Forespørgsel1[#All],""&LEFT($C7,LEN($C7)-$A7)&"",$N$10:INDIRECT(ADDRESS($AK$5,$AK$4)))/DSUM(Forespørgsel1[#All],""&$K$4&"",$N$10:INDIRECT(ADDRESS($AK$5,$AK$4))),IF($B7=2,DSUM(Forespørgsel1[#All],""&LEFT($C7,LEN($C7)-$A7)&"",$N$10:INDIRECT(ADDRESS($AK$5,$AK$4)))/DSUM(Forespørgsel1[#All],""&$L$4&"",$N$10:INDIRECT(ADDRESS($AK$5,$AK$4))))))),""),"") ->  | K7: Samlet antal inkluderet under betingelserne | N7: =$N$5 ->  | O7: =$O$5 -> =3400 | P7: TRUE
D8: =IF($AB$1=44,Landsgennemsnit!DX8,"") ->  | E8: =IF($AB$1=44,Landsgennemsnit!DY8,"") ->  | F8: =IF($AB$1=44,Landsgennemsnit!DZ8,"") ->  | H8: =IF($AB$1=44,IFERROR(IF(ISTEXT($B8)=TRUE,DSUM(Forespørgsel1[#All],""&LEFT($C8,LEN($C8)-$A8)&"",$N$4:INDIRECT(ADDRESS($AK$3,$AK$4)))/DSUM(Forespørgsel1[#All],""&$B8&"",$N$4:INDIRECT(ADDRESS($AK$3,$AK$4))),IF($B8=0,DAVERAGE(Forespørgsel1[#All],""&LEFT($C8,LEN($C8)-$A8)&"",$N$4:INDIRECT(ADDRESS($AK$3,$AK$4))),IF($B8=1,DSUM(Forespørgsel1[#All],""&LEFT($C8,LEN($C8)-$A8)&"",$N$4:INDIRECT(ADDRESS($AK$3,$AK$4)))/DSUM(Forespørgsel1[#All],""&$K$4&"",$N$4:INDIRECT(ADDRESS($AK$3,$AK$4))),IF($B8=2,DSUM(Forespørgsel1[#All],""&LEFT($C8,LEN($C8)-$A8)&"",$N$4:INDIRECT(ADDRESS($AK$3,$AK$4)))/DSUM(Forespørgsel1[#All],""&$L$4&"",$N$4:INDIRECT(ADDRESS($AK$3,$AK$4))))))),""),"") ->  | I8: =IF($AB$1=44,IFERROR(IF(ISTEXT($B8)=TRUE,DSUM(Forespørgsel1[#All],""&LEFT($C8,LEN($C8)-$A8)&"",$N$10:INDIRECT(ADDRESS($AK$5,$AK$4)))/DSUM(Forespørgsel1[#All],""&$B8&"",$N$10:INDIRECT(ADDRESS($AK$5,$AK$4))),IF($B8=0,DAVERAGE(Forespørgsel1[#All],""&LEFT($C8,LEN($C8)-$A8)&"",$N$10:INDIRECT(ADDRESS($AK$5,$AK$4))),IF($B8=1,DSUM(Forespørgsel1[#All],""&LEFT($C8,LEN($C8)-$A8)&"",$N$10:INDIRECT(ADDRESS($AK$5,$AK$4)))/DSUM(Forespørgsel1[#All],""&$K$4&"",$N$10:INDIRECT(ADDRESS($AK$5,$AK$4))),IF($B8=2,DSUM(Forespørgsel1[#All],""&LEFT($C8,LEN($C8)-$A8)&"",$N$10:INDIRECT(ADDRESS($AK$5,$AK$4)))/DSUM(Forespørgsel1[#All],""&$L$4&"",$N$10:INDIRECT(ADDRESS($AK$5,$AK$4))))))),""),"") ->  | K8: =IF($AB$1=44,DCOUNT(Forespørgsel1[#All],""&N4&"",IF(P4=0,O4:O7,IF(Q4=0,O4:P7,IF(R4=0,O4:Q7,IF(S4=0,O4:R7,IF(T4=0,O4:S7,IF(U4=0,O4:T7,""))))))),"") -> 
A9: 0 | B9: 0 | C9: Jordbundsforhold | D9: =IF($AB$1=44,Landsgennemsnit!DX9,"") ->  | E9: =IF($AB$1=44,Landsgennemsnit!DY9,"") ->  | F9: =IF($AB$1=44,Landsgennemsnit!DZ9,"") ->  | H9: =IF($AB$1=44,IFERROR(IF(ISTEXT($B9)=TRUE,DSUM(Forespørgsel1[#All],""&LEFT($C9,LEN($C9)-$A9)&"",$N$4:INDIRECT(ADDRESS($AK$3,$AK$4)))/DSUM(Forespørgsel1[#All],""&$B9&"",$N$4:INDIRECT(ADDRESS($AK$3,$AK$4))),IF($B9=0,DAVERAGE(Forespørgsel1[#All],""&LEFT($C9,LEN($C9)-$A9)&"",$N$4:INDIRECT(ADDRESS($AK$3,$AK$4))),IF($B9=1,DSUM(Forespørgsel1[#All],""&LEFT($C9,LEN($C9)-$A9)&"",$N$4:INDIRECT(ADDRESS($AK$3,$AK$4)))/DSUM(Forespørgsel1[#All],""&$K$4&"",$N$4:INDIRECT(ADDRESS($AK$3,$AK$4))),IF($B9=2,DSUM(Forespørgsel1[#All],""&LEFT($C9,LEN($C9)-$A9)&"",$N$4:INDIRECT(ADDRESS($AK$3,$AK$4)))/DSUM(Forespørgsel1[#All],""&$L$4&"",$N$4:INDIRECT(ADDRESS($AK$3,$AK$4))))))),""),"") ->  | I9: =IF($AB$1=44,IFERROR(IF(ISTEXT($B9)=TRUE,DSUM(Forespørgsel1[#All],""&LEFT($C9,LEN($C9)-$A9)&"",$N$10:INDIRECT(ADDRESS($AK$5,$AK$4)))/DSUM(Forespørgsel1[#All],""&$B9&"",$N$10:INDIRECT(ADDRESS($AK$5,$AK$4))),IF($B9=0,DAVERAGE(Forespørgsel1[#All],""&LEFT($C9,LEN($C9)-$A9)&"",$N$10:INDIRECT(ADDRESS($AK$5,$AK$4))),IF($B9=1,DSUM(Forespørgsel1[#All],""&LEFT($C9,LEN($C9)-$A9)&"",$N$10:INDIRECT(ADDRESS($AK$5,$AK$4)))/DSUM(Forespørgsel1[#All],""&$K$4&"",$N$10:INDIRECT(ADDRESS($AK$5,$AK$4))),IF($B9=2,DSUM(Forespørgsel1[#All],""&LEFT($C9,LEN($C9)-$A9)&"",$N$10:INDIRECT(ADDRESS($AK$5,$AK$4)))/DSUM(Forespørgsel1[#All],""&$L$4&"",$N$10:INDIRECT(ADDRESS($AK$5,$AK$4))))))),""),"") ->  | N9: Bedste 1/3
A10: 0 | B10: 0 | C10: Andel med JB 5-6 og 7-9 | D10: =IF($AB$1=44,Landsgennemsnit!DX10,"") ->  | E10: =IF($AB$1=44,Landsgennemsnit!DY10,"") ->  | F10: =IF($AB$1=44,Landsgennemsnit!DZ10,"") ->  | G10: =IF($AB$1=44,IFERROR(IF(ISTEXT($B10)=TRUE,DSUM(Forespørgsel1[#All],""&LEFT($C10,LEN($C10)-$A10)&"",$O$4:INDIRECT(ADDRESS($AK$3,$AK$4)))/DSUM(Forespørgsel1[#All],""&$B10&"",$O$4:INDIRECT(ADDRESS($AK$3,$AK$4))),IF($B10=0,DAVERAGE(Forespørgsel1[#All],""&LEFT($C10,LEN($C10)-$A10)&"",$O$4:INDIRECT(ADDRESS($AK$3,$AK$4))),IF($B10=1,DSUM(Forespørgsel1[#All],""&LEFT($C10,LEN($C10)-$A10)&"",$O$4:INDIRECT(ADDRESS($AK$3,$AK$4)))/DSUM(Forespørgsel1[#All],""&$K$4&"",$O$4:INDIRECT(ADDRESS($AK$3,$AK$4))),DSUM(Forespørgsel1[#All],""&LEFT($C10,LEN($C10)-$A10)&"",$O$4:INDIRECT(ADDRESS($AK$3,$AK$4)))/DSUM(Forespørgsel1[#All],""&$L$4&"",$O$4:INDIRECT(ADDRESS($AK$3,$AK$4)))))),"fejl"),"") ->  | H10: =IF($AB$1=44,IFERROR(IF(ISTEXT($B10)=TRUE,DSUM(Forespørgsel1[#All],""&LEFT($C10,LEN($C10)-$A10)&"",$N$4:INDIRECT(ADDRESS($AK$3,$AK$4)))/DSUM(Forespørgsel1[#All],""&$B10&"",$N$4:INDIRECT(ADDRESS($AK$3,$AK$4))),IF($B10=0,DAVERAGE(Forespørgsel1[#All],""&LEFT($C10,LEN($C10)-$A10)&"",$N$4:INDIRECT(ADDRESS($AK$3,$AK$4))),IF($B10=1,DSUM(Forespørgsel1[#All],""&LEFT($C10,LEN($C10)-$A10)&"",$N$4:INDIRECT(ADDRESS($AK$3,$AK$4)))/DSUM(Forespørgsel1[#All],""&$K$4&"",$N$4:INDIRECT(ADDRESS($AK$3,$AK$4))),IF($B10=2,DSUM(Forespørgsel1[#All],""&LEFT($C10,LEN($C10)-$A10)&"",$N$4:INDIRECT(ADDRESS($AK$3,$AK$4)))/DSUM(Forespørgsel1[#All],""&$L$4&"",$N$4:INDIRECT(ADDRESS($AK$3,$AK$4))))))),""),"") ->  | I10: =IF($AB$1=44,IFERROR(IF(ISTEXT($B10)=TRUE,DSUM(Forespørgsel1[#All],""&LEFT($C10,LEN($C10)-$A10)&"",$N$10:INDIRECT(ADDRESS($AK$5,$AK$4)))/DSUM(Forespørgsel1[#All],""&$B10&"",$N$10:INDIRECT(ADDRESS($AK$5,$AK$4))),IF($B10=0,DAVERAGE(Forespørgsel1[#All],""&LEFT($C10,LEN($C10)-$A10)&"",$N$10:INDIRECT(ADDRESS($AK$5,$AK$4))),IF($B10=1,DSUM(Forespørgsel1[#All],""&LEFT($C10,LEN($C10)-$A10)&"",$N$10:INDIRECT(ADDRESS($AK$5,$AK$4)))/DSUM(Forespørgsel1[#All],""&$K$4&"",$N$10:INDIRECT(ADDRESS($AK$5,$AK$4))),IF($B10=2,DSUM(Forespørgsel1[#All],""&LEFT($C10,LEN($C10)-$A10)&"",$N$10:INDIRECT(ADDRESS($AK$5,$AK$4)))/DSUM(Forespørgsel1[#All],""&$L$4&"",$N$10:INDIRECT(ADDRESS($AK$5,$AK$4))))))),""),"") ->  | N10: =N4 -> Rest til jordleje før EU-støtte pr. ha | O10: Prodgren | P10: Godkendt
A11: 0 | D11: =IF($AB$1=44,Landsgennemsnit!DX11,"") ->  | E11: =IF($AB$1=44,Landsgennemsnit!DY11,"") ->  | F11: =IF($AB$1=44,Landsgennemsnit!DZ11,"") ->  | H11: =IF($AB$1=44,IFERROR(IF(ISTEXT($B11)=TRUE,DSUM(Forespørgsel1[#All],""&LEFT($C11,LEN($C11)-$A11)&"",$N$4:INDIRECT(ADDRESS($AK$3,$AK$4)))/DSUM(Forespørgsel1[#All],""&$B11&"",$N$4:INDIRECT(ADDRESS($AK$3,$AK$4))),IF($B11=0,DAVERAGE(Forespørgsel1[#All],""&LEFT($C11,LEN($C11)-$A11)&"",$N$4:INDIRECT(ADDRESS($AK$3,$AK$4))),IF($B11=1,DSUM(Forespørgsel1[#All],""&LEFT($C11,LEN($C11)-$A11)&"",$N$4:INDIRECT(ADDRESS($AK$3,$AK$4)))/DSUM(Forespørgsel1[#All],""&$K$4&"",$N$4:INDIRECT(ADDRESS($AK$3,$AK$4))),IF($B11=2,DSUM(Forespørgsel1[#All],""&LEFT($C11,LEN($C11)-$A11)&"",$N$4:INDIRECT(ADDRESS($AK$3,$AK$4)))/DSUM(Forespørgsel1[#All],""&$L$4&"",$N$4:INDIRECT(ADDRESS($AK$3,$AK$4))))))),""),"") ->  | I11: =IF($AB$1=44,IFERROR(IF(ISTEXT($B11)=TRUE,DSUM(Forespørgsel1[#All],""&LEFT($C11,LEN($C11)-$A11)&"",$N$10:INDIRECT(ADDRESS($AK$5,$AK$4)))/DSUM(Forespørgsel1[#All],""&$B11&"",$N$10:INDIRECT(ADDRESS($AK$5,$AK$4))),IF($B11=0,DAVERAGE(Forespørgsel1[#All],""&LEFT($C11,LEN($C11)-$A11)&"",$N$10:INDIRECT(ADDRESS($AK$5,$AK$4))),IF($B11=1,DSUM(Forespørgsel1[#All],""&LEFT($C11,LEN($C11)-$A11)&"",$N$10:INDIRECT(ADDRESS($AK$5,$AK$4)))/DSUM(Forespørgsel1[#All],""&$K$4&"",$N$10:INDIRECT(ADDRESS($AK$5,$AK$4))),IF($B11=2,DSUM(Forespørgsel1[#All],""&LEFT($C11,LEN($C11)-$A11)&"",$N$10:INDIRECT(ADDRESS($AK$5,$AK$4)))/DSUM(Forespørgsel1[#All],""&$L$4&"",$N$10:INDIRECT(ADDRESS($AK$5,$AK$4))))))),""),"") ->  | N11: =IF($AB$1=44,IF(K8/3<=5,"For få relevante observationer",V5),"") ->  | O11: =$O$5 -> =3400 | P11: TRUE
A12: 7 | B12: Ha i alt, driftsgren | C12: Rest til jordleje før EU-støtte pr. ha | D12: =IF($AB$1=44,Landsgennemsnit!DX12,"") ->  | E12: =IF($AB$1=44,Landsgennemsnit!DY12,"") ->  | F12: =IF($AB$1=44,Landsgennemsnit!DZ12,"") ->  | G12: =IF($AB$1=44,IFERROR(IF(ISTEXT($B12)=TRUE,DSUM(Forespørgsel1[#All],""&LEFT($C12,LEN($C12)-$A12)&"",$O$4:INDIRECT(ADDRESS($AK$3,$AK$4)))/DSUM(Forespørgsel1[#All],""&$B12&"",$O$4:INDIRECT(ADDRESS($AK$3,$AK$4))),IF($B12=0,DAVERAGE(Forespørgsel1[#All],""&LEFT($C12,LEN($C12)-$A12)&"",$O$4:INDIRECT(ADDRESS($AK$3,$AK$4))),IF($B12=1,DSUM(Forespørgsel1[#All],""&LEFT($C12,LEN($C12)-$A12)&"",$O$4:INDIRECT(ADDRESS($AK$3,$AK$4)))/DSUM(Forespørgsel1[#All],""&$K$4&"",$O$4:INDIRECT(ADDRESS($AK$3,$AK$4))),DSUM(Forespørgsel1[#All],""&LEFT($C12,LEN($C12)-$A12)&"",$O$4:INDIRECT(ADDRESS($AK$3,$AK$4)))/DSUM(Forespørgsel1[#All],""&$L$4&"",$O$4:INDIRECT(ADDRESS($AK$3,$AK$4)))))),"fejl"),"") ->  | H12: =IF($AB$1=44,IFERROR(IF(ISTEXT($B12)=TRUE,DSUM(Forespørgsel1[#All],""&LEFT($C12,LEN($C12)-$A12)&"",$N$4:INDIRECT(ADDRESS($AK$3,$AK$4)))/DSUM(Forespørgsel1[#All],""&$B12&"",$N$4:INDIRECT(ADDRESS($AK$3,$AK$4))),IF($B12=0,DAVERAGE(Forespørgsel1[#All],""&LEFT($C12,LEN($C12)-$A12)&"",$N$4:INDIRECT(ADDRESS($AK$3,$AK$4))),IF($B12=1,DSUM(Forespørgsel1[#All],""&LEFT($C12,LEN($C12)-$A12)&"",$N$4:INDIRECT(ADDRESS($AK$3,$AK$4)))/DSUM(Forespørgsel1[#All],""&$K$4&"",$N$4:INDIRECT(ADDRESS($AK$3,$AK$4))),IF($B12=2,DSUM(Forespørgsel1[#All],""&LEFT($C12,LEN($C12)-$A12)&"",$N$4:INDIRECT(ADDRESS($AK$3,$AK$4)))/DSUM(Forespørgsel1[#All],""&$L$4&"",$N$4:INDIRECT(ADDRESS($AK$3,$AK$4))))))),""),"") ->  | I12: =IF($AB$1=44,IFERROR(IF(ISTEXT($B12)=TRUE,DSUM(Forespørgsel1[#All],""&LEFT($C12,LEN($C12)-$A12)&"",$N$10:INDIRECT(ADDRESS($AK$5,$AK$4)))/DSUM(Forespørgsel1[#All],""&$B12&"",$N$10:INDIRECT(ADDRESS($AK$5,$AK$4))),IF($B12=0,DAVERAGE(Forespørgsel1[#All],""&LEFT($C12,LEN($C12)-$A12)&"",$N$10:INDIRECT(ADDRESS($AK$5,$AK$4))),IF($B12=1,DSUM(Forespørgsel1[#All],""&LEFT($C12,LEN($C12)-$A12)&"",$N$10:INDIRECT(ADDRESS($AK$5,$AK$4)))/DSUM(Forespørgsel1[#All],""&$K$4&"",$N$10:INDIRECT(ADDRESS($AK$5,$AK$4))),IF($B12=2,DSUM(Forespørgsel1[#All],""&LEFT($C12,LEN($C12)-$A12)&"",$N$10:INDIRECT(ADDRESS($AK$5,$AK$4)))/DSUM(Forespørgsel1[#All],""&$L$4&"",$N$10:INDIRECT(ADDRESS($AK$5,$AK$4))))))),""),"") ->  | N12: =N11 ->  | O12: =$O$5 -> =3400 | P12: TRUE
A13: 7 | B13: Ha i alt, driftsgren | C13: Rest til jordleje efter EU-støtte pr. ha | D13: =IF($AB$1=44,Landsgennemsnit!DX13,"") ->  | E13: =IF($AB$1=44,Landsgennemsnit!DY13,"") ->  | F13: =IF($AB$1=44,Landsgennemsnit!DZ13,"") ->  | G13: =IF($AB$1=44,IFERROR(IF(ISTEXT($B13)=TRUE,DSUM(Forespørgsel1[#All],""&LEFT($C13,LEN($C13)-$A13)&"",$O$4:INDIRECT(ADDRESS($AK$3,$AK$4)))/DSUM(Forespørgsel1[#All],""&$B13&"",$O$4:INDIRECT(ADDRESS($AK$3,$AK$4))),IF($B13=0,DAVERAGE(Forespørgsel1[#All],""&LEFT($C13,LEN($C13)-$A13)&"",$O$4:INDIRECT(ADDRESS($AK$3,$AK$4))),IF($B13=1,DSUM(Forespørgsel1[#All],""&LEFT($C13,LEN($C13)-$A13)&"",$O$4:INDIRECT(ADDRESS($AK$3,$AK$4)))/DSUM(Forespørgsel1[#All],""&$K$4&"",$O$4:INDIRECT(ADDRESS($AK$3,$AK$4))),DSUM(Forespørgsel1[#All],""&LEFT($C13,LEN($C13)-$A13)&"",$O$4:INDIRECT(ADDRESS($AK$3,$AK$4)))/DSUM(Forespørgsel1[#All],""&$L$4&"",$O$4:INDIRECT(ADDRESS($AK$3,$AK$4)))))),"fejl"),"") ->  | H13: =IF($AB$1=44,IFERROR(IF(ISTEXT($B13)=TRUE,DSUM(Forespørgsel1[#All],""&LEFT($C13,LEN($C13)-$A13)&"",$N$4:INDIRECT(ADDRESS($AK$3,$AK$4)))/DSUM(Forespørgsel1[#All],""&$B13&"",$N$4:INDIRECT(ADDRESS($AK$3,$AK$4))),IF($B13=0,DAVERAGE(Forespørgsel1[#All],""&LEFT($C13,LEN($C13)-$A13)&"",$N$4:INDIRECT(ADDRESS($AK$3,$AK$4))),IF($B13=1,DSUM(Forespørgsel1[#All],""&LEFT($C13,LEN($C13)-$A13)&"",$N$4:INDIRECT(ADDRESS($AK$3,$AK$4)))/DSUM(Forespørgsel1[#All],""&$K$4&"",$N$4:INDIRECT(ADDRESS($AK$3,$AK$4))),IF($B13=2,DSUM(Forespørgsel1[#All],""&LEFT($C13,LEN($C13)-$A13)&"",$N$4:INDIRECT(ADDRESS($AK$3,$AK$4)))/DSUM(Forespørgsel1[#All],""&$L$4&"",$N$4:INDIRECT(ADDRESS($AK$3,$AK$4))))))),""),"") ->  | I13: =IF($AB$1=44,IFERROR(IF(ISTEXT($B13)=TRUE,DSUM(Forespørgsel1[#All],""&LEFT($C13,LEN($C13)-$A13)&"",$N$10:INDIRECT(ADDRESS($AK$5,$AK$4)))/DSUM(Forespørgsel1[#All],""&$B13&"",$N$10:INDIRECT(ADDRESS($AK$5,$AK$4))),IF($B13=0,DAVERAGE(Forespørgsel1[#All],""&LEFT($C13,LEN($C13)-$A13)&"",$N$10:INDIRECT(ADDRESS($AK$5,$AK$4))),IF($B13=1,DSUM(Forespørgsel1[#All],""&LEFT($C13,LEN($C13)-$A13)&"",$N$10:INDIRECT(ADDRESS($AK$5,$AK$4)))/DSUM(Forespørgsel1[#All],""&$K$4&"",$N$10:INDIRECT(ADDRESS($AK$5,$AK$4))),IF($B13=2,DSUM(Forespørgsel1[#All],""&LEFT($C13,LEN($C13)-$A13)&"",$N$10:INDIRECT(ADDRESS($AK$5,$AK$4)))/DSUM(Forespørgsel1[#All],""&$L$4&"",$N$10:INDIRECT(ADDRESS($AK$5,$AK$4))))))),""),"") ->  | N13: =N11 ->  | O13: =$O$5 -> =3400 | P13: TRUE
A14: 7 | B14: Ha i alt, driftsgren | C14: Maskinomk. inkl. arbejde pr. ha | D14: =IF($AB$1=44,Landsgennemsnit!DX14,"") ->  | E14: =IF($AB$1=44,Landsgennemsnit!DY14,"") ->  | F14: =IF($AB$1=44,Landsgennemsnit!DZ14,"") ->  | G14: =IF($AB$1=44,IFERROR(IF(ISTEXT($B14)=TRUE,DSUM(Forespørgsel1[#All],""&LEFT($C14,LEN($C14)-$A14)&"",$O$4:INDIRECT(ADDRESS($AK$3,$AK$4)))/DSUM(Forespørgsel1[#All],""&$B14&"",$O$4:INDIRECT(ADDRESS($AK$3,$AK$4))),IF($B14=0,DAVERAGE(Forespørgsel1[#All],""&LEFT($C14,LEN($C14)-$A14)&"",$O$4:INDIRECT(ADDRESS($AK$3,$AK$4))),IF($B14=1,DSUM(Forespørgsel1[#All],""&LEFT($C14,LEN($C14)-$A14)&"",$O$4:INDIRECT(ADDRESS($AK$3,$AK$4)))/DSUM(Forespørgsel1[#All],""&$K$4&"",$O$4:INDIRECT(ADDRESS($AK$3,$AK$4))),DSUM(Forespørgsel1[#All],""&LEFT($C14,LEN($C14)-$A14)&"",$O$4:INDIRECT(ADDRESS($AK$3,$AK$4)))/DSUM(Forespørgsel1[#All],""&$L$4&"",$O$4:INDIRECT(ADDRESS($AK$3,$AK$4)))))),"fejl"),"") ->  | H14: =IF($AB$1=44,IFERROR(IF(ISTEXT($B14)=TRUE,DSUM(Forespørgsel1[#All],""&LEFT($C14,LEN($C14)-$A14)&"",$N$4:INDIRECT(ADDRESS($AK$3,$AK$4)))/DSUM(Forespørgsel1[#All],""&$B14&"",$N$4:INDIRECT(ADDRESS($AK$3,$AK$4))),IF($B14=0,DAVERAGE(Forespørgsel1[#All],""&LEFT($C14,LEN($C14)-$A14)&"",$N$4:INDIRECT(ADDRESS($AK$3,$AK$4))),IF($B14=1,DSUM(Forespørgsel1[#All],""&LEFT($C14,LEN($C14)-$A14)&"",$N$4:INDIRECT(ADDRESS($AK$3,$AK$4)))/DSUM(Forespørgsel1[#All],""&$K$4&"",$N$4:INDIRECT(ADDRESS($AK$3,$AK$4))),IF($B14=2,DSUM(Forespørgsel1[#All],""&LEFT($C14,LEN($C14)-$A14)&"",$N$4:INDIRECT(ADDRESS($AK$3,$AK$4)))/DSUM(Forespørgsel1[#All],""&$L$4&"",$N$4:INDIRECT(ADDRESS($AK$3,$AK$4))))))),""),"") ->  | I14: =IF($AB$1=44,IFERROR(IF(ISTEXT($B14)=TRUE,DSUM(Forespørgsel1[#All],""&LEFT($C14,LEN($C14)-$A14)&"",$N$10:INDIRECT(ADDRESS($AK$5,$AK$4)))/DSUM(Forespørgsel1[#All],""&$B14&"",$N$10:INDIRECT(ADDRESS($AK$5,$AK$4))),IF($B14=0,DAVERAGE(Forespørgsel1[#All],""&LEFT($C14,LEN($C14)-$A14)&"",$N$10:INDIRECT(ADDRESS($AK$5,$AK$4))),IF($B14=1,DSUM(Forespørgsel1[#All],""&LEFT($C14,LEN($C14)-$A14)&"",$N$10:INDIRECT(ADDRESS($AK$5,$AK$4)))/DSUM(Forespørgsel1[#All],""&$K$4&"",$N$10:INDIRECT(ADDRESS($AK$5,$AK$4))),IF($B14=2,DSUM(Forespørgsel1[#All],""&LEFT($C14,LEN($C14)-$A14)&"",$N$10:INDIRECT(ADDRESS($AK$5,$AK$4)))/DSUM(Forespørgsel1[#All],""&$L$4&"",$N$10:INDIRECT(ADDRESS($AK$5,$AK$4))))))),""),"") -> 
B15: Ha i alt, driftsgren | C15: Øvrige omkostninger ha | D15: =IF($AB$1=44,Landsgennemsnit!DX15,"") ->  | E15: =IF($AB$1=44,Landsgennemsnit!DY15,"") ->  | F15: =IF($AB$1=44,Landsgennemsnit!DZ15,"") ->  | G15: =IF($AB$1=44,IFERROR(IF(ISTEXT($B15)=TRUE,DSUM(Forespørgsel1[#All],""&LEFT($C15,LEN($C15)-$A15)&"",$O$4:INDIRECT(ADDRESS($AK$3,$AK$4)))/DSUM(Forespørgsel1[#All],""&$B15&"",$O$4:INDIRECT(ADDRESS($AK$3,$AK$4))),IF($B15=0,DAVERAGE(Forespørgsel1[#All],""&LEFT($C15,LEN($C15)-$A15)&"",$O$4:INDIRECT(ADDRESS($AK$3,$AK$4))),IF($B15=1,DSUM(Forespørgsel1[#All],""&LEFT($C15,LEN($C15)-$A15)&"",$O$4:INDIRECT(ADDRESS($AK$3,$AK$4)))/DSUM(Forespørgsel1[#All],""&$K$4&"",$O$4:INDIRECT(ADDRESS($AK$3,$AK$4))),DSUM(Forespørgsel1[#All],""&LEFT($C15,LEN($C15)-$A15)&"",$O$4:INDIRECT(ADDRESS($AK$3,$AK$4)))/DSUM(Forespørgsel1[#All],""&$L$4&"",$O$4:INDIRECT(ADDRESS($AK$3,$AK$4)))))),"fejl"),"") ->  | H15: =IF($AB$1=44,IFERROR(IF(ISTEXT($B15)=TRUE,DSUM(Forespørgsel1[#All],""&LEFT($C15,LEN($C15)-$A15)&"",$N$4:INDIRECT(ADDRESS($AK$3,$AK$4)))/DSUM(Forespørgsel1[#All],""&$B15&"",$N$4:INDIRECT(ADDRESS($AK$3,$AK$4))),IF($B15=0,DAVERAGE(Forespørgsel1[#All],""&LEFT($C15,LEN($C15)-$A15)&"",$N$4:INDIRECT(ADDRESS($AK$3,$AK$4))),IF($B15=1,DSUM(Forespørgsel1[#All],""&LEFT($C15,LEN($C15)-$A15)&"",$N$4:INDIRECT(ADDRESS($AK$3,$AK$4)))/DSUM(Forespørgsel1[#All],""&$K$4&"",$N$4:INDIRECT(ADDRESS($AK$3,$AK$4))),IF($B15=2,DSUM(Forespørgsel1[#All],""&LEFT($C15,LEN($C15)-$A15)&"",$N$4:INDIRECT(ADDRESS($AK$3,$AK$4)))/DSUM(Forespørgsel1[#All],""&$L$4&"",$N$4:INDIRECT(ADDRESS($AK$3,$AK$4))))))),""),"") ->  | I15: =IF($AB$1=44,IFERROR(IF(ISTEXT($B15)=TRUE,DSUM(Forespørgsel1[#All],""&LEFT($C15,LEN($C15)-$A15)&"",$N$10:INDIRECT(ADDRESS($AK$5,$AK$4)))/DSUM(Forespørgsel1[#All],""&$B15&"",$N$10:INDIRECT(ADDRESS($AK$5,$AK$4))),IF($B15=0,DAVERAGE(Forespørgsel1[#All],""&LEFT($C15,LEN($C15)-$A15)&"",$N$10:INDIRECT(ADDRESS($AK$5,$AK$4))),IF($B15=1,DSUM(Forespørgsel1[#All],""&LEFT($C15,LEN($C15)-$A15)&"",$N$10:INDIRECT(ADDRESS($AK$5,$AK$4)))/DSUM(Forespørgsel1[#All],""&$K$4&"",$N$10:INDIRECT(ADDRESS($AK$5,$AK$4))),IF($B15=2,DSUM(Forespørgsel1[#All],""&LEFT($C15,LEN($C15)-$A15)&"",$N$10:INDIRECT(ADDRESS($AK$5,$AK$4)))/DSUM(Forespørgsel1[#All],""&$L$4&"",$N$10:INDIRECT(ADDRESS($AK$5,$AK$4))))))),""),"") ->  | N15: De største værdier
A16: 7 | B16: Ha i alt, driftsgren | C16: Jordleje fratrukket EU-støtte pr. ha | D16: =IF($AB$1=44,Landsgennemsnit!DX16,"") ->  | E16: =IF($AB$1=44,Landsgennemsnit!DY16,"") ->  | F16: =IF($AB$1=44,Landsgennemsnit!DZ16,"") ->  | G16: =IF($AB$1=44,IFERROR(IF(ISTEXT($B16)=TRUE,DSUM(Forespørgsel1[#All],""&LEFT($C16,LEN($C16)-$A16)&"",$O$4:INDIRECT(ADDRESS($AK$3,$AK$4)))/DSUM(Forespørgsel1[#All],""&$B16&"",$O$4:INDIRECT(ADDRESS($AK$3,$AK$4))),IF($B16=0,DAVERAGE(Forespørgsel1[#All],""&LEFT($C16,LEN($C16)-$A16)&"",$O$4:INDIRECT(ADDRESS($AK$3,$AK$4))),IF($B16=1,DSUM(Forespørgsel1[#All],""&LEFT($C16,LEN($C16)-$A16)&"",$O$4:INDIRECT(ADDRESS($AK$3,$AK$4)))/DSUM(Forespørgsel1[#All],""&$K$4&"",$O$4:INDIRECT(ADDRESS($AK$3,$AK$4))),DSUM(Forespørgsel1[#All],""&LEFT($C16,LEN($C16)-$A16)&"",$O$4:INDIRECT(ADDRESS($AK$3,$AK$4)))/DSUM(Forespørgsel1[#All],""&$L$4&"",$O$4:INDIRECT(ADDRESS($AK$3,$AK$4)))))),"fejl"),"") ->  | H16: =IF($AB$1=44,IFERROR(IF(ISTEXT($B16)=TRUE,DSUM(Forespørgsel1[#All],""&LEFT($C16,LEN($C16)-$A16)&"",$N$4:INDIRECT(ADDRESS($AK$3,$AK$4)))/DSUM(Forespørgsel1[#All],""&$B16&"",$N$4:INDIRECT(ADDRESS($AK$3,$AK$4))),IF($B16=0,DAVERAGE(Forespørgsel1[#All],""&LEFT($C16,LEN($C16)-$A16)&"",$N$4:INDIRECT(ADDRESS($AK$3,$AK$4))),IF($B16=1,DSUM(Forespørgsel1[#All],""&LEFT($C16,LEN($C16)-$A16)&"",$N$4:INDIRECT(ADDRESS($AK$3,$AK$4)))/DSUM(Forespørgsel1[#All],""&$K$4&"",$N$4:INDIRECT(ADDRESS($AK$3,$AK$4))),IF($B16=2,DSUM(Forespørgsel1[#All],""&LEFT($C16,LEN($C16)-$A16)&"",$N$4:INDIRECT(ADDRESS($AK$3,$AK$4)))/DSUM(Forespørgsel1[#All],""&$L$4&"",$N$4:INDIRECT(ADDRESS($AK$3,$AK$4))))))),""),"") ->  | I16: =IF($AB$1=44,IFERROR(IF(ISTEXT($B16)=TRUE,DSUM(Forespørgsel1[#All],""&LEFT($C16,LEN($C16)-$A16)&"",$N$10:INDIRECT(ADDRESS($AK$5,$AK$4)))/DSUM(Forespørgsel1[#All],""&$B16&"",$N$10:INDIRECT(ADDRESS($AK$5,$AK$4))),IF($B16=0,DAVERAGE(Forespørgsel1[#All],""&LEFT($C16,LEN($C16)-$A16)&"",$N$10:INDIRECT(ADDRESS($AK$5,$AK$4))),IF($B16=1,DSUM(Forespørgsel1[#All],""&LEFT($C16,LEN($C16)-$A16)&"",$N$10:INDIRECT(ADDRESS($AK$5,$AK$4)))/DSUM(Forespørgsel1[#All],""&$K$4&"",$N$10:INDIRECT(ADDRESS($AK$5,$AK$4))),IF($B16=2,DSUM(Forespørgsel1[#All],""&LEFT($C16,LEN($C16)-$A16)&"",$N$10:INDIRECT(ADDRESS($AK$5,$AK$4)))/DSUM(Forespørgsel1[#All],""&$L$4&"",$N$10:INDIRECT(ADDRESS($AK$5,$AK$4))))))),""),"") ->  | M16: De 5 største værdier:
D17: =IF($AB$1=44,Landsgennemsnit!DX17,"") ->  | E17: =IF($AB$1=44,Landsgennemsnit!DY17,"") ->  | F17: =IF($AB$1=44,Landsgennemsnit!DZ17,"") ->  | H17: =IF($AB$1=44,IFERROR(IF(ISTEXT($B17)=TRUE,DSUM(Forespørgsel1[#All],""&LEFT($C17,LEN($C17)-$A17)&"",$N$4:INDIRECT(ADDRESS($AK$3,$AK$4)))/DSUM(Forespørgsel1[#All],""&$B17&"",$N$4:INDIRECT(ADDRESS($AK$3,$AK$4))),IF($B17=0,DAVERAGE(Forespørgsel1[#All],""&LEFT($C17,LEN($C17)-$A17)&"",$N$4:INDIRECT(ADDRESS($AK$3,$AK$4))),IF($B17=1,DSUM(Forespørgsel1[#All],""&LEFT($C17,LEN($C17)-$A17)&"",$N$4:INDIRECT(ADDRESS($AK$3,$AK$4)))/DSUM(Forespørgsel1[#All],""&$K$4&"",$N$4:INDIRECT(ADDRESS($AK$3,$AK$4))),IF($B17=2,DSUM(Forespørgsel1[#All],""&LEFT($C17,LEN($C17)-$A17)&"",$N$4:INDIRECT(ADDRESS($AK$3,$AK$4)))/DSUM(Forespørgsel1[#All],""&$L$4&"",$N$4:INDIRECT(ADDRESS($AK$3,$AK$4))))))),""),"") ->  | I17: =IF($AB$1=44,IFERROR(IF(ISTEXT($B17)=TRUE,DSUM(Forespørgsel1[#All],""&LEFT($C17,LEN($C17)-$A17)&"",$N$10:INDIRECT(ADDRESS($AK$5,$AK$4)))/DSUM(Forespørgsel1[#All],""&$B17&"",$N$10:INDIRECT(ADDRESS($AK$5,$AK$4))),IF($B17=0,DAVERAGE(Forespørgsel1[#All],""&LEFT($C17,LEN($C17)-$A17)&"",$N$10:INDIRECT(ADDRESS($AK$5,$AK$4))),IF($B17=1,DSUM(Forespørgsel1[#All],""&LEFT($C17,LEN($C17)-$A17)&"",$N$10:INDIRECT(ADDRESS($AK$5,$AK$4)))/DSUM(Forespørgsel1[#All],""&$K$4&"",$N$10:INDIRECT(ADDRESS($AK$5,$AK$4))),IF($B17=2,DSUM(Forespørgsel1[#All],""&LEFT($C17,LEN($C17)-$A17)&"",$N$10:INDIRECT(ADDRESS($AK$5,$AK$4)))/DSUM(Forespørgsel1[#All],""&$L$4&"",$N$10:INDIRECT(ADDRESS($AK$5,$AK$4))))))),""),"") ->  | L17: Ejd i top 5 | M17: =O17 -> Rest til jordleje før EU-støtte pr. ha | N17: Prodgren | O17: =$N$4 -> Rest til jordleje før EU-støtte pr. ha | P17: =IF(P$4="","",P$4) -> Godkendt
C18: Jordværdi (ejet jord), kr. pr ha | D18: =IF($AB$1=44,Landsgennemsnit!DX18,"") ->  | E18: =IF($AB$1=44,Landsgennemsnit!DY18,"") ->  | F18: =IF($AB$1=44,Landsgennemsnit!DZ18,"") ->  | G18: =IF($AB$1=44,IFERROR(IF(ISTEXT($B18)=TRUE,DSUM(Forespørgsel1[#All],""&LEFT($C18,LEN($C18)-$A18)&"",$O$4:INDIRECT(ADDRESS($AK$3,$AK$4)))/DSUM(Forespørgsel1[#All],""&$B18&"",$O$4:INDIRECT(ADDRESS($AK$3,$AK$4))),IF($B18=0,DAVERAGE(Forespørgsel1[#All],""&LEFT($C18,LEN($C18)-$A18)&"",$O$4:INDIRECT(ADDRESS($AK$3,$AK$4))),IF($B18=1,DSUM(Forespørgsel1[#All],""&LEFT($C18,LEN($C18)-$A18)&"",$O$4:INDIRECT(ADDRESS($AK$3,$AK$4)))/DSUM(Forespørgsel1[#All],""&$K$4&"",$O$4:INDIRECT(ADDRESS($AK$3,$AK$4))),DSUM(Forespørgsel1[#All],""&LEFT($C18,LEN($C18)-$A18)&"",$O$4:INDIRECT(ADDRESS($AK$3,$AK$4)))/DSUM(Forespørgsel1[#All],""&$L$4&"",$O$4:INDIRECT(ADDRESS($AK$3,$AK$4)))))),"fejl"),"") ->  | H18: =IF($AB$1=44,IFERROR(IF(ISTEXT($B18)=TRUE,DSUM(Forespørgsel1[#All],""&LEFT($C18,LEN($C18)-$A18)&"",$N$4:INDIRECT(ADDRESS($AK$3,$AK$4)))/DSUM(Forespørgsel1[#All],""&$B18&"",$N$4:INDIRECT(ADDRESS($AK$3,$AK$4))),IF($B18=0,DAVERAGE(Forespørgsel1[#All],""&LEFT($C18,LEN($C18)-$A18)&"",$N$4:INDIRECT(ADDRESS($AK$3,$AK$4))),IF($B18=1,DSUM(Forespørgsel1[#All],""&LEFT($C18,LEN($C18)-$A18)&"",$N$4:INDIRECT(ADDRESS($AK$3,$AK$4)))/DSUM(Forespørgsel1[#All],""&$K$4&"",$N$4:INDIRECT(ADDRESS($AK$3,$AK$4))),IF($B18=2,DSUM(Forespørgsel1[#All],""&LEFT($C18,LEN($C18)-$A18)&"",$N$4:INDIRECT(ADDRESS($AK$3,$AK$4)))/DSUM(Forespørgsel1[#All],""&$L$4&"",$N$4:INDIRECT(ADDRESS($AK$3,$AK$4))))))),""),"") ->  | I18: =IF($AB$1=44,IFERROR(IF(ISTEXT($B18)=TRUE,DSUM(Forespørgsel1[#All],""&LEFT($C18,LEN($C18)-$A18)&"",$N$10:INDIRECT(ADDRESS($AK$5,$AK$4)))/DSUM(Forespørgsel1[#All],""&$B18&"",$N$10:INDIRECT(ADDRESS($AK$5,$AK$4))),IF($B18=0,DAVERAGE(Forespørgsel1[#All],""&LEFT($C18,LEN($C18)-$A18)&"",$N$10:INDIRECT(ADDRESS($AK$5,$AK$4))),IF($B18=1,DSUM(Forespørgsel1[#All],""&LEFT($C18,LEN($C18)-$A18)&"",$N$10:INDIRECT(ADDRESS($AK$5,$AK$4)))/DSUM(Forespørgsel1[#All],""&$K$4&"",$N$10:INDIRECT(ADDRESS($AK$5,$AK$4))),IF($B18=2,DSUM(Forespørgsel1[#All],""&LEFT($C18,LEN($C18)-$A18)&"",$N$10:INDIRECT(ADDRESS($AK$5,$AK$4)))/DSUM(Forespørgsel1[#All],""&$L$4&"",$N$10:INDIRECT(ADDRESS($AK$5,$AK$4))))))),""),"") ->  | L18: =IF($AB$1=44,SUMIFS(Forespørgsel1[[#All],[Ejd_Nr]],Forespørgsel1[[#All],[Andel rug i pct.]],M18),"") ->  | M18: =IF($AB$1=44,DMAX(Forespørgsel1[#All],""&$M$17&"",$O$4:INDIRECT(ADDRESS($AK$3,$AK$4))),"") ->  | N18: =$O$5 -> =3400 | O18: ="<"&M18&"" -> < | P18: =P5 -> TRUE | Q18: =IF(Q$4>0,Q5,"") -> 
B19: Ha i alt, driftsgren | C19: Bundet kapital - Inventar | D19: =IF($AB$1=44,Landsgennemsnit!DX19,"") ->  | E19: =IF($AB$1=44,Landsgennemsnit!DY19,"") ->  | F19: =IF($AB$1=44,Landsgennemsnit!DZ19,"") ->  | G19: =IF($AB$1=44,IFERROR(IF(ISTEXT($B19)=TRUE,DSUM(Forespørgsel1[#All],""&LEFT($C19,LEN($C19)-$A19)&"",$O$4:INDIRECT(ADDRESS($AK$3,$AK$4)))/DSUM(Forespørgsel1[#All],""&$B19&"",$O$4:INDIRECT(ADDRESS($AK$3,$AK$4))),IF($B19=0,DAVERAGE(Forespørgsel1[#All],""&LEFT($C19,LEN($C19)-$A19)&"",$O$4:INDIRECT(ADDRESS($AK$3,$AK$4))),IF($B19=1,DSUM(Forespørgsel1[#All],""&LEFT($C19,LEN($C19)-$A19)&"",$O$4:INDIRECT(ADDRESS($AK$3,$AK$4)))/DSUM(Forespørgsel1[#All],""&$K$4&"",$O$4:INDIRECT(ADDRESS($AK$3,$AK$4))),DSUM(Forespørgsel1[#All],""&LEFT($C19,LEN($C19)-$A19)&"",$O$4:INDIRECT(ADDRESS($AK$3,$AK$4)))/DSUM(Forespørgsel1[#All],""&$L$4&"",$O$4:INDIRECT(ADDRESS($AK$3,$AK$4)))))),"fejl"),"") ->  | H19: =IF($AB$1=44,IFERROR(IF(ISTEXT($B19)=TRUE,DSUM(Forespørgsel1[#All],""&LEFT($C19,LEN($C19)-$A19)&"",$N$4:INDIRECT(ADDRESS($AK$3,$AK$4)))/DSUM(Forespørgsel1[#All],""&$B19&"",$N$4:INDIRECT(ADDRESS($AK$3,$AK$4))),IF($B19=0,DAVERAGE(Forespørgsel1[#All],""&LEFT($C19,LEN($C19)-$A19)&"",$N$4:INDIRECT(ADDRESS($AK$3,$AK$4))),IF($B19=1,DSUM(Forespørgsel1[#All],""&LEFT($C19,LEN($C19)-$A19)&"",$N$4:INDIRECT(ADDRESS($AK$3,$AK$4)))/DSUM(Forespørgsel1[#All],""&$K$4&"",$N$4:INDIRECT(ADDRESS($AK$3,$AK$4))),IF($B19=2,DSUM(Forespørgsel1[#All],""&LEFT($C19,LEN($C19)-$A19)&"",$N$4:INDIRECT(ADDRESS($AK$3,$AK$4)))/DSUM(Forespørgsel1[#All],""&$L$4&"",$N$4:INDIRECT(ADDRESS($AK$3,$AK$4))))))),""),"") ->  | I19: =IF($AB$1=44,IFERROR(IF(ISTEXT($B19)=TRUE,DSUM(Forespørgsel1[#All],""&LEFT($C19,LEN($C19)-$A19)&"",$N$10:INDIRECT(ADDRESS($AK$5,$AK$4)))/DSUM(Forespørgsel1[#All],""&$B19&"",$N$10:INDIRECT(ADDRESS($AK$5,$AK$4))),IF($B19=0,DAVERAGE(Forespørgsel1[#All],""&LEFT($C19,LEN($C19)-$A19)&"",$N$10:INDIRECT(ADDRESS($AK$5,$AK$4))),IF($B19=1,DSUM(Forespørgsel1[#All],""&LEFT($C19,LEN($C19)-$A19)&"",$N$10:INDIRECT(ADDRESS($AK$5,$AK$4)))/DSUM(Forespørgsel1[#All],""&$K$4&"",$N$10:INDIRECT(ADDRESS($AK$5,$AK$4))),IF($B19=2,DSUM(Forespørgsel1[#All],""&LEFT($C19,LEN($C19)-$A19)&"",$N$10:INDIRECT(ADDRESS($AK$5,$AK$4)))/DSUM(Forespørgsel1[#All],""&$L$4&"",$N$10:INDIRECT(ADDRESS($AK$5,$AK$4))))))),""),"") ->  | N19: =$O$5 -> =3400 | O19: =O18 -> < | P19: =P6 -> TRUE
C20: Anvendt rentesats, pct. | D20: =IF($AB$1=44,Landsgennemsnit!DX20,"") ->  | E20: =IF($AB$1=44,Landsgennemsnit!DY20,"") ->  | F20: =IF($AB$1=44,Landsgennemsnit!DZ20,"") ->  | G20: =IF($AB$1=44,IFERROR(IF(ISTEXT($B20)=TRUE,DSUM(Forespørgsel1[#All],""&LEFT($C20,LEN($C20)-$A20)&"",$O$4:INDIRECT(ADDRESS($AK$3,$AK$4)))/DSUM(Forespørgsel1[#All],""&$B20&"",$O$4:INDIRECT(ADDRESS($AK$3,$AK$4))),IF($B20=0,DAVERAGE(Forespørgsel1[#All],""&LEFT($C20,LEN($C20)-$A20)&"",$O$4:INDIRECT(ADDRESS($AK$3,$AK$4))),IF($B20=1,DSUM(Forespørgsel1[#All],""&LEFT($C20,LEN($C20)-$A20)&"",$O$4:INDIRECT(ADDRESS($AK$3,$AK$4)))/DSUM(Forespørgsel1[#All],""&$K$4&"",$O$4:INDIRECT(ADDRESS($AK$3,$AK$4))),DSUM(Forespørgsel1[#All],""&LEFT($C20,LEN($C20)-$A20)&"",$O$4:INDIRECT(ADDRESS($AK$3,$AK$4)))/DSUM(Forespørgsel1[#All],""&$L$4&"",$O$4:INDIRECT(ADDRESS($AK$3,$AK$4)))))),"fejl"),"") ->  | H20: =IF($AB$1=44,IFERROR(IF(ISTEXT($B20)=TRUE,DSUM(Forespørgsel1[#All],""&LEFT($C20,LEN($C20)-$A20)&"",$N$4:INDIRECT(ADDRESS($AK$3,$AK$4)))/DSUM(Forespørgsel1[#All],""&$B20&"",$N$4:INDIRECT(ADDRESS($AK$3,$AK$4))),IF($B20=0,DAVERAGE(Forespørgsel1[#All],""&LEFT($C20,LEN($C20)-$A20)&"",$N$4:INDIRECT(ADDRESS($AK$3,$AK$4))),IF($B20=1,DSUM(Forespørgsel1[#All],""&LEFT($C20,LEN($C20)-$A20)&"",$N$4:INDIRECT(ADDRESS($AK$3,$AK$4)))/DSUM(Forespørgsel1[#All],""&$K$4&"",$N$4:INDIRECT(ADDRESS($AK$3,$AK$4))),IF($B20=2,DSUM(Forespørgsel1[#All],""&LEFT($C20,LEN($C20)-$A20)&"",$N$4:INDIRECT(ADDRESS($AK$3,$AK$4)))/DSUM(Forespørgsel1[#All],""&$L$4&"",$N$4:INDIRECT(ADDRESS($AK$3,$AK$4))))))),""),"") ->  | I20: =IF($AB$1=44,IFERROR(IF(ISTEXT($B20)=TRUE,DSUM(Forespørgsel1[#All],""&LEFT($C20,LEN($C20)-$A20)&"",$N$10:INDIRECT(ADDRESS($AK$5,$AK$4)))/DSUM(Forespørgsel1[#All],""&$B20&"",$N$10:INDIRECT(ADDRESS($AK$5,$AK$4))),IF($B20=0,DAVERAGE(Forespørgsel1[#All],""&LEFT($C20,LEN($C20)-$A20)&"",$N$10:INDIRECT(ADDRESS($AK$5,$AK$4))),IF($B20=1,DSUM(Forespørgsel1[#All],""&LEFT($C20,LEN($C20)-$A20)&"",$N$10:INDIRECT(ADDRESS($AK$5,$AK$4)))/DSUM(Forespørgsel1[#All],""&$K$4&"",$N$10:INDIRECT(ADDRESS($AK$5,$AK$4))),IF($B20=2,DSUM(Forespørgsel1[#All],""&LEFT($C20,LEN($C20)-$A20)&"",$N$10:INDIRECT(ADDRESS($AK$5,$AK$4)))/DSUM(Forespørgsel1[#All],""&$L$4&"",$N$10:INDIRECT(ADDRESS($AK$5,$AK$4))))))),""),"") ->  | N20: =$O$5 -> =3400 | O20: =O18 -> < | P20: =P7 -> TRUE
B21: Ha i alt, driftsgren | C21: Resultatkorr. (2% på jord og 4% på resten) | D21: =IF($AB$1=44,Landsgennemsnit!DX21,"") ->  | E21: =IF($AB$1=44,Landsgennemsnit!DY21,"") ->  | F21: =IF($AB$1=44,Landsgennemsnit!DZ21,"") ->  | G21: =IF($AB$1=44,IFERROR(IF(ISTEXT($B21)=TRUE,DSUM(Forespørgsel1[#All],""&LEFT($C21,LEN($C21)-$A21)&"",$O$4:INDIRECT(ADDRESS($AK$3,$AK$4)))/DSUM(Forespørgsel1[#All],""&$B21&"",$O$4:INDIRECT(ADDRESS($AK$3,$AK$4))),IF($B21=0,DAVERAGE(Forespørgsel1[#All],""&LEFT($C21,LEN($C21)-$A21)&"",$O$4:INDIRECT(ADDRESS($AK$3,$AK$4))),IF($B21=1,DSUM(Forespørgsel1[#All],""&LEFT($C21,LEN($C21)-$A21)&"",$O$4:INDIRECT(ADDRESS($AK$3,$AK$4)))/DSUM(Forespørgsel1[#All],""&$K$4&"",$O$4:INDIRECT(ADDRESS($AK$3,$AK$4))),DSUM(Forespørgsel1[#All],""&LEFT($C21,LEN($C21)-$A21)&"",$O$4:INDIRECT(ADDRESS($AK$3,$AK$4)))/DSUM(Forespørgsel1[#All],""&$L$4&"",$O$4:INDIRECT(ADDRESS($AK$3,$AK$4)))))),"fejl"),"") ->  | H21: =IF($AB$1=44,IFERROR(IF(ISTEXT($B21)=TRUE,DSUM(Forespørgsel1[#All],""&LEFT($C21,LEN($C21)-$A21)&"",$N$4:INDIRECT(ADDRESS($AK$3,$AK$4)))/DSUM(Forespørgsel1[#All],""&$B21&"",$N$4:INDIRECT(ADDRESS($AK$3,$AK$4))),IF($B21=0,DAVERAGE(Forespørgsel1[#All],""&LEFT($C21,LEN($C21)-$A21)&"",$N$4:INDIRECT(ADDRESS($AK$3,$AK$4))),IF($B21=1,DSUM(Forespørgsel1[#All],""&LEFT($C21,LEN($C21)-$A21)&"",$N$4:INDIRECT(ADDRESS($AK$3,$AK$4)))/DSUM(Forespørgsel1[#All],""&$K$4&"",$N$4:INDIRECT(ADDRESS($AK$3,$AK$4))),IF($B21=2,DSUM(Forespørgsel1[#All],""&LEFT($C21,LEN($C21)-$A21)&"",$N$4:INDIRECT(ADDRESS($AK$3,$AK$4)))/DSUM(Forespørgsel1[#All],""&$L$4&"",$N$4:INDIRECT(ADDRESS($AK$3,$AK$4))))))),""),"") ->  | I21: =IF($AB$1=44,IFERROR(IF(ISTEXT($B21)=TRUE,DSUM(Forespørgsel1[#All],""&LEFT($C21,LEN($C21)-$A21)&"",$N$10:INDIRECT(ADDRESS($AK$5,$AK$4)))/DSUM(Forespørgsel1[#All],""&$B21&"",$N$10:INDIRECT(ADDRESS($AK$5,$AK$4))),IF($B21=0,DAVERAGE(Forespørgsel1[#All],""&LEFT($C21,LEN($C21)-$A21)&"",$N$10:INDIRECT(ADDRESS($AK$5,$AK$4))),IF($B21=1,DSUM(Forespørgsel1[#All],""&LEFT($C21,LEN($C21)-$A21)&"",$N$10:INDIRECT(ADDRESS($AK$5,$AK$4)))/DSUM(Forespørgsel1[#All],""&$K$4&"",$N$10:INDIRECT(ADDRESS($AK$5,$AK$4))),IF($B21=2,DSUM(Forespørgsel1[#All],""&LEFT($C21,LEN($C21)-$A21)&"",$N$10:INDIRECT(ADDRESS($AK$5,$AK$4)))/DSUM(Forespørgsel1[#All],""&$L$4&"",$N$10:INDIRECT(ADDRESS($AK$5,$AK$4))))))),""),"") ->  | N21: Prodgren | O21: =$N$4 -> Rest til jordleje før EU-støtte pr. ha | P21: =IF(P$4="","",P$4) -> Godkendt
C22: Afkastningsgrad | D22: =IF($AB$1=44,Landsgennemsnit!DX22,"") ->  | E22: =IF($AB$1=44,Landsgennemsnit!DY22,"") ->  | F22: =IF($AB$1=44,Landsgennemsnit!DZ22,"") ->  | G22: =IF($AB$1=44,IFERROR(IF(ISTEXT($B22)=TRUE,DSUM(Forespørgsel1[#All],""&LEFT($C22,LEN($C22)-$A22)&"",$O$4:INDIRECT(ADDRESS($AK$3,$AK$4)))/DSUM(Forespørgsel1[#All],""&$B22&"",$O$4:INDIRECT(ADDRESS($AK$3,$AK$4))),IF($B22=0,DAVERAGE(Forespørgsel1[#All],""&LEFT($C22,LEN($C22)-$A22)&"",$O$4:INDIRECT(ADDRESS($AK$3,$AK$4))),IF($B22=1,DSUM(Forespørgsel1[#All],""&LEFT($C22,LEN($C22)-$A22)&"",$O$4:INDIRECT(ADDRESS($AK$3,$AK$4)))/DSUM(Forespørgsel1[#All],""&$K$4&"",$O$4:INDIRECT(ADDRESS($AK$3,$AK$4))),DSUM(Forespørgsel1[#All],""&LEFT($C22,LEN($C22)-$A22)&"",$O$4:INDIRECT(ADDRESS($AK$3,$AK$4)))/DSUM(Forespørgsel1[#All],""&$L$4&"",$O$4:INDIRECT(ADDRESS($AK$3,$AK$4)))))),"fejl"),"") ->  | H22: =IF($AB$1=44,IFERROR(IF(ISTEXT($B22)=TRUE,DSUM(Forespørgsel1[#All],""&LEFT($C22,LEN($C22)-$A22)&"",$N$4:INDIRECT(ADDRESS($AK$3,$AK$4)))/DSUM(Forespørgsel1[#All],""&$B22&"",$N$4:INDIRECT(ADDRESS($AK$3,$AK$4))),IF($B22=0,DAVERAGE(Forespørgsel1[#All],""&LEFT($C22,LEN($C22)-$A22)&"",$N$4:INDIRECT(ADDRESS($AK$3,$AK$4))),IF($B22=1,DSUM(Forespørgsel1[#All],""&LEFT($C22,LEN($C22)-$A22)&"",$N$4:INDIRECT(ADDRESS($AK$3,$AK$4)))/DSUM(Forespørgsel1[#All],""&$K$4&"",$N$4:INDIRECT(ADDRESS($AK$3,$AK$4))),IF($B22=2,DSUM(Forespørgsel1[#All],""&LEFT($C22,LEN($C22)-$A22)&"",$N$4:INDIRECT(ADDRESS($AK$3,$AK$4)))/DSUM(Forespørgsel1[#All],""&$L$4&"",$N$4:INDIRECT(ADDRESS($AK$3,$AK$4))))))),""),"") ->  | I22: =IF($AB$1=44,IFERROR(IF(ISTEXT($B22)=TRUE,DSUM(Forespørgsel1[#All],""&LEFT($C22,LEN($C22)-$A22)&"",$N$10:INDIRECT(ADDRESS($AK$5,$AK$4)))/DSUM(Forespørgsel1[#All],""&$B22&"",$N$10:INDIRECT(ADDRESS($AK$5,$AK$4))),IF($B22=0,DAVERAGE(Forespørgsel1[#All],""&LEFT($C22,LEN($C22)-$A22)&"",$N$10:INDIRECT(ADDRESS($AK$5,$AK$4))),IF($B22=1,DSUM(Forespørgsel1[#All],""&LEFT($C22,LEN($C22)-$A22)&"",$N$10:INDIRECT(ADDRESS($AK$5,$AK$4)))/DSUM(Forespørgsel1[#All],""&$K$4&"",$N$10:INDIRECT(ADDRESS($AK$5,$AK$4))),IF($B22=2,DSUM(Forespørgsel1[#All],""&LEFT($C22,LEN($C22)-$A22)&"",$N$10:INDIRECT(ADDRESS($AK$5,$AK$4)))/DSUM(Forespørgsel1[#All],""&$L$4&"",$N$10:INDIRECT(ADDRESS($AK$5,$AK$4))))))),""),"") ->  | L22: =IF($AB$1=44,SUMIFS(Forespørgsel1[[#All],[Ejd_Nr]],Forespørgsel1[[#All],[Andel rug i pct.]],M22),"") ->  | M22: =IF($AB$1=44,DMAX(Forespørgsel1[#All],""&$M$17&"",$N17:INDIRECT(ADDRESS($AK22,$AK$4))),"") ->  | N22: =$O$5 -> =3400 | O22: ="<"&M22&"" -> < | P22: =P5 -> TRUE | AJ22: Række | AK22: =ROW(AJ22)-2 -> 20
D23: =IF($AB$1=44,Landsgennemsnit!DX23,"") ->  | E23: =IF($AB$1=44,Landsgennemsnit!DY23,"") ->  | F23: =IF($AB$1=44,Landsgennemsnit!DZ23,"") ->  | H23: =IF($AB$1=44,IFERROR(IF(ISTEXT($B23)=TRUE,DSUM(Forespørgsel1[#All],""&LEFT($C23,LEN($C23)-$A23)&"",$N$4:INDIRECT(ADDRESS($AK$3,$AK$4)))/DSUM(Forespørgsel1[#All],""&$B23&"",$N$4:INDIRECT(ADDRESS($AK$3,$AK$4))),IF($B23=0,DAVERAGE(Forespørgsel1[#All],""&LEFT($C23,LEN($C23)-$A23)&"",$N$4:INDIRECT(ADDRESS($AK$3,$AK$4))),IF($B23=1,DSUM(Forespørgsel1[#All],""&LEFT($C23,LEN($C23)-$A23)&"",$N$4:INDIRECT(ADDRESS($AK$3,$AK$4)))/DSUM(Forespørgsel1[#All],""&$K$4&"",$N$4:INDIRECT(ADDRESS($AK$3,$AK$4))),IF($B23=2,DSUM(Forespørgsel1[#All],""&LEFT($C23,LEN($C23)-$A23)&"",$N$4:INDIRECT(ADDRESS($AK$3,$AK$4)))/DSUM(Forespørgsel1[#All],""&$L$4&"",$N$4:INDIRECT(ADDRESS($AK$3,$AK$4))))))),""),"") ->  | I23: =IF($AB$1=44,IFERROR(IF(ISTEXT($B23)=TRUE,DSUM(Forespørgsel1[#All],""&LEFT($C23,LEN($C23)-$A23)&"",$N$10:INDIRECT(ADDRESS($AK$5,$AK$4)))/DSUM(Forespørgsel1[#All],""&$B23&"",$N$10:INDIRECT(ADDRESS($AK$5,$AK$4))),IF($B23=0,DAVERAGE(Forespørgsel1[#All],""&LEFT($C23,LEN($C23)-$A23)&"",$N$10:INDIRECT(ADDRESS($AK$5,$AK$4))),IF($B23=1,DSUM(Forespørgsel1[#All],""&LEFT($C23,LEN($C23)-$A23)&"",$N$10:INDIRECT(ADDRESS($AK$5,$AK$4)))/DSUM(Forespørgsel1[#All],""&$K$4&"",$N$10:INDIRECT(ADDRESS($AK$5,$AK$4))),IF($B23=2,DSUM(Forespørgsel1[#All],""&LEFT($C23,LEN($C23)-$A23)&"",$N$10:INDIRECT(ADDRESS($AK$5,$AK$4)))/DSUM(Forespørgsel1[#All],""&$L$4&"",$N$10:INDIRECT(ADDRESS($AK$5,$AK$4))))))),""),"") ->  | N23: =$N$20 -> =3400 | O23: =O22 -> < | P23: =P6 -> TRUE
C24: Specifikation af resultat | D24: =IF($AB$1=44,Landsgennemsnit!DX24,"") ->  | E24: =IF($AB$1=44,Landsgennemsnit!DY24,"") ->  | F24: =IF($AB$1=44,Landsgennemsnit!DZ24,"") ->  | H24: =IF($AB$1=44,IFERROR(IF(ISTEXT($B24)=TRUE,DSUM(Forespørgsel1[#All],""&LEFT($C24,LEN($C24)-$A24)&"",$N$4:INDIRECT(ADDRESS($AK$3,$AK$4)))/DSUM(Forespørgsel1[#All],""&$B24&"",$N$4:INDIRECT(ADDRESS($AK$3,$AK$4))),IF($B24=0,DAVERAGE(Forespørgsel1[#All],""&LEFT($C24,LEN($C24)-$A24)&"",$N$4:INDIRECT(ADDRESS($AK$3,$AK$4))),IF($B24=1,DSUM(Forespørgsel1[#All],""&LEFT($C24,LEN($C24)-$A24)&"",$N$4:INDIRECT(ADDRESS($AK$3,$AK$4)))/DSUM(Forespørgsel1[#All],""&$K$4&"",$N$4:INDIRECT(ADDRESS($AK$3,$AK$4))),IF($B24=2,DSUM(Forespørgsel1[#All],""&LEFT($C24,LEN($C24)-$A24)&"",$N$4:INDIRECT(ADDRESS($AK$3,$AK$4)))/DSUM(Forespørgsel1[#All],""&$L$4&"",$N$4:INDIRECT(ADDRESS($AK$3,$AK$4))))))),""),"") ->  | I24: =IF($AB$1=44,IFERROR(IF(ISTEXT($B24)=TRUE,DSUM(Forespørgsel1[#All],""&LEFT($C24,LEN($C24)-$A24)&"",$N$10:INDIRECT(ADDRESS($AK$5,$AK$4)))/DSUM(Forespørgsel1[#All],""&$B24&"",$N$10:INDIRECT(ADDRESS($AK$5,$AK$4))),IF($B24=0,DAVERAGE(Forespørgsel1[#All],""&LEFT($C24,LEN($C24)-$A24)&"",$N$10:INDIRECT(ADDRESS($AK$5,$AK$4))),IF($B24=1,DSUM(Forespørgsel1[#All],""&LEFT($C24,LEN($C24)-$A24)&"",$N$10:INDIRECT(ADDRESS($AK$5,$AK$4)))/DSUM(Forespørgsel1[#All],""&$K$4&"",$N$10:INDIRECT(ADDRESS($AK$5,$AK$4))),IF($B24=2,DSUM(Forespørgsel1[#All],""&LEFT($C24,LEN($C24)-$A24)&"",$N$10:INDIRECT(ADDRESS($AK$5,$AK$4)))/DSUM(Forespørgsel1[#All],""&$L$4&"",$N$10:INDIRECT(ADDRESS($AK$5,$AK$4))))))),""),"") ->  | N24: =$N$20 -> =3400 | O24: =O22 -> < | P24: =P7 -> TRUE
A25: 0 | B25: Ha i alt, driftsgren | C25: Salgsafgrøder | D25: =IF($AB$1=44,Landsgennemsnit!DX25,"") ->  | E25: =IF($AB$1=44,Landsgennemsnit!DY25,"") ->  | F25: =IF($AB$1=44,Landsgennemsnit!DZ25,"") ->  | G25: =IF($AB$1=44,IFERROR(IF(ISTEXT($B25)=TRUE,DSUM(Forespørgsel1[#All],""&LEFT($C25,LEN($C25)-$A25)&"",$O$4:INDIRECT(ADDRESS($AK$3,$AK$4)))/DSUM(Forespørgsel1[#All],""&$B25&"",$O$4:INDIRECT(ADDRESS($AK$3,$AK$4))),IF($B25=0,DAVERAGE(Forespørgsel1[#All],""&LEFT($C25,LEN($C25)-$A25)&"",$O$4:INDIRECT(ADDRESS($AK$3,$AK$4))),IF($B25=1,DSUM(Forespørgsel1[#All],""&LEFT($C25,LEN($C25)-$A25)&"",$O$4:INDIRECT(ADDRESS($AK$3,$AK$4)))/DSUM(Forespørgsel1[#All],""&$K$4&"",$O$4:INDIRECT(ADDRESS($AK$3,$AK$4))),DSUM(Forespørgsel1[#All],""&LEFT($C25,LEN($C25)-$A25)&"",$O$4:INDIRECT(ADDRESS($AK$3,$AK$4)))/DSUM(Forespørgsel1[#All],""&$L$4&"",$O$4:INDIRECT(ADDRESS($AK$3,$AK$4)))))),"fejl"),"") ->  | H25: =IF($AB$1=44,IFERROR(IF(ISTEXT($B25)=TRUE,DSUM(Forespørgsel1[#All],""&LEFT($C25,LEN($C25)-$A25)&"",$N$4:INDIRECT(ADDRESS($AK$3,$AK$4)))/DSUM(Forespørgsel1[#All],""&$B25&"",$N$4:INDIRECT(ADDRESS($AK$3,$AK$4))),IF($B25=0,DAVERAGE(Forespørgsel1[#All],""&LEFT($C25,LEN($C25)-$A25)&"",$N$4:INDIRECT(ADDRESS($AK$3,$AK$4))),IF($B25=1,DSUM(Forespørgsel1[#All],""&LEFT($C25,LEN($C25)-$A25)&"",$N$4:INDIRECT(ADDRESS($AK$3,$AK$4)))/DSUM(Forespørgsel1[#All],""&$K$4&"",$N$4:INDIRECT(ADDRESS($AK$3,$AK$4))),IF($B25=2,DSUM(Forespørgsel1[#All],""&LEFT($C25,LEN($C25)-$A25)&"",$N$4:INDIRECT(ADDRESS($AK$3,$AK$4)))/DSUM(Forespørgsel1[#All],""&$L$4&"",$N$4:INDIRECT(ADDRESS($AK$3,$AK$4))))))),""),"") ->  | I25: =IF($AB$1=44,IFERROR(IF(ISTEXT($B25)=TRUE,DSUM(Forespørgsel1[#All],""&LEFT($C25,LEN($C25)-$A25)&"",$N$10:INDIRECT(ADDRESS($AK$5,$AK$4)))/DSUM(Forespørgsel1[#All],""&$B25&"",$N$10:INDIRECT(ADDRESS($AK$5,$AK$4))),IF($B25=0,DAVERAGE(Forespørgsel1[#All],""&LEFT($C25,LEN($C25)-$A25)&"",$N$10:INDIRECT(ADDRESS($AK$5,$AK$4))),IF($B25=1,DSUM(Forespørgsel1[#All],""&LEFT($C25,LEN($C25)-$A25)&"",$N$10:INDIRECT(ADDRESS($AK$5,$AK$4)))/DSUM(Forespørgsel1[#All],""&$K$4&"",$N$10:INDIRECT(ADDRESS($AK$5,$AK$4))),IF($B25=2,DSUM(Forespørgsel1[#All],""&LEFT($C25,LEN($C25)-$A25)&"",$N$10:INDIRECT(ADDRESS($AK$5,$AK$4)))/DSUM(Forespørgsel1[#All],""&$L$4&"",$N$10:INDIRECT(ADDRESS($AK$5,$AK$4))))))),""),"") ->  | N25: Prodgren | O25: =$N$4 -> Rest til jordleje før EU-støtte pr. ha | P25: =IF(P$4="","",P$4) -> Godkendt
B26: Ha i alt, driftsgren | C26: Maskinstationsindtægter | D26: =IF($AB$1=44,Landsgennemsnit!DX26,"") ->  | E26: =IF($AB$1=44,Landsgennemsnit!DY26,"") ->  | F26: =IF($AB$1=44,Landsgennemsnit!DZ26,"") ->  | G26: =IF($AB$1=44,IFERROR(IF(ISTEXT($B26)=TRUE,DSUM(Forespørgsel1[#All],""&LEFT($C26,LEN($C26)-$A26)&"",$O$4:INDIRECT(ADDRESS($AK$3,$AK$4)))/DSUM(Forespørgsel1[#All],""&$B26&"",$O$4:INDIRECT(ADDRESS($AK$3,$AK$4))),IF($B26=0,DAVERAGE(Forespørgsel1[#All],""&LEFT($C26,LEN($C26)-$A26)&"",$O$4:INDIRECT(ADDRESS($AK$3,$AK$4))),IF($B26=1,DSUM(Forespørgsel1[#All],""&LEFT($C26,LEN($C26)-$A26)&"",$O$4:INDIRECT(ADDRESS($AK$3,$AK$4)))/DSUM(Forespørgsel1[#All],""&$K$4&"",$O$4:INDIRECT(ADDRESS($AK$3,$AK$4))),DSUM(Forespørgsel1[#All],""&LEFT($C26,LEN($C26)-$A26)&"",$O$4:INDIRECT(ADDRESS($AK$3,$AK$4)))/DSUM(Forespørgsel1[#All],""&$L$4&"",$O$4:INDIRECT(ADDRESS($AK$3,$AK$4)))))),"fejl"),"") ->  | H26: =IF($AB$1=44,IFERROR(IF(ISTEXT($B26)=TRUE,DSUM(Forespørgsel1[#All],""&LEFT($C26,LEN($C26)-$A26)&"",$N$4:INDIRECT(ADDRESS($AK$3,$AK$4)))/DSUM(Forespørgsel1[#All],""&$B26&"",$N$4:INDIRECT(ADDRESS($AK$3,$AK$4))),IF($B26=0,DAVERAGE(Forespørgsel1[#All],""&LEFT($C26,LEN($C26)-$A26)&"",$N$4:INDIRECT(ADDRESS($AK$3,$AK$4))),IF($B26=1,DSUM(Forespørgsel1[#All],""&LEFT($C26,LEN($C26)-$A26)&"",$N$4:INDIRECT(ADDRESS($AK$3,$AK$4)))/DSUM(Forespørgsel1[#All],""&$K$4&"",$N$4:INDIRECT(ADDRESS($AK$3,$AK$4))),IF($B26=2,DSUM(Forespørgsel1[#All],""&LEFT($C26,LEN($C26)-$A26)&"",$N$4:INDIRECT(ADDRESS($AK$3,$AK$4)))/DSUM(Forespørgsel1[#All],""&$L$4&"",$N$4:INDIRECT(ADDRESS($AK$3,$AK$4))))))),""),"") ->  | I26: =IF($AB$1=44,IFERROR(IF(ISTEXT($B26)=TRUE,DSUM(Forespørgsel1[#All],""&LEFT($C26,LEN($C26)-$A26)&"",$N$10:INDIRECT(ADDRESS($AK$5,$AK$4)))/DSUM(Forespørgsel1[#All],""&$B26&"",$N$10:INDIRECT(ADDRESS($AK$5,$AK$4))),IF($B26=0,DAVERAGE(Forespørgsel1[#All],""&LEFT($C26,LEN($C26)-$A26)&"",$N$10:INDIRECT(ADDRESS($AK$5,$AK$4))),IF($B26=1,DSUM(Forespørgsel1[#All],""&LEFT($C26,LEN($C26)-$A26)&"",$N$10:INDIRECT(ADDRESS($AK$5,$AK$4)))/DSUM(Forespørgsel1[#All],""&$K$4&"",$N$10:INDIRECT(ADDRESS($AK$5,$AK$4))),IF($B26=2,DSUM(Forespørgsel1[#All],""&LEFT($C26,LEN($C26)-$A26)&"",$N$10:INDIRECT(ADDRESS($AK$5,$AK$4)))/DSUM(Forespørgsel1[#All],""&$L$4&"",$N$10:INDIRECT(ADDRESS($AK$5,$AK$4))))))),""),"") ->  | L26: =IF($AB$1=44,SUMIFS(Forespørgsel1[[#All],[Ejd_Nr]],Forespørgsel1[[#All],[Andel rug i pct.]],M26),"") ->  | M26: =IF($AB$1=44,DMAX(Forespørgsel1[#All],""&$M$17&"",$N21:INDIRECT(ADDRESS($AK26,$AK$4))),"") ->  | N26: =$O$5 -> =3400 | O26: ="<"&M26&"" -> < | P26: =P5 -> TRUE | AJ26: Række | AK26: =ROW(AJ26)-2 -> 24
B27: Ha i alt, driftsgren | C27: Diverse indtægter | D27: =IF($AB$1=44,Landsgennemsnit!DX27,"") ->  | E27: =IF($AB$1=44,Landsgennemsnit!DY27,"") ->  | F27: =IF($AB$1=44,Landsgennemsnit!DZ27,"") ->  | G27: =IF($AB$1=44,IFERROR(IF(ISTEXT($B27)=TRUE,DSUM(Forespørgsel1[#All],""&LEFT($C27,LEN($C27)-$A27)&"",$O$4:INDIRECT(ADDRESS($AK$3,$AK$4)))/DSUM(Forespørgsel1[#All],""&$B27&"",$O$4:INDIRECT(ADDRESS($AK$3,$AK$4))),IF($B27=0,DAVERAGE(Forespørgsel1[#All],""&LEFT($C27,LEN($C27)-$A27)&"",$O$4:INDIRECT(ADDRESS($AK$3,$AK$4))),IF($B27=1,DSUM(Forespørgsel1[#All],""&LEFT($C27,LEN($C27)-$A27)&"",$O$4:INDIRECT(ADDRESS($AK$3,$AK$4)))/DSUM(Forespørgsel1[#All],""&$K$4&"",$O$4:INDIRECT(ADDRESS($AK$3,$AK$4))),DSUM(Forespørgsel1[#All],""&LEFT($C27,LEN($C27)-$A27)&"",$O$4:INDIRECT(ADDRESS($AK$3,$AK$4)))/DSUM(Forespørgsel1[#All],""&$L$4&"",$O$4:INDIRECT(ADDRESS($AK$3,$AK$4)))))),"fejl"),"") ->  | H27: =IF($AB$1=44,IFERROR(IF(ISTEXT($B27)=TRUE,DSUM(Forespørgsel1[#All],""&LEFT($C27,LEN($C27)-$A27)&"",$N$4:INDIRECT(ADDRESS($AK$3,$AK$4)))/DSUM(Forespørgsel1[#All],""&$B27&"",$N$4:INDIRECT(ADDRESS($AK$3,$AK$4))),IF($B27=0,DAVERAGE(Forespørgsel1[#All],""&LEFT($C27,LEN($C27)-$A27)&"",$N$4:INDIRECT(ADDRESS($AK$3,$AK$4))),IF($B27=1,DSUM(Forespørgsel1[#All],""&LEFT($C27,LEN($C27)-$A27)&"",$N$4:INDIRECT(ADDRESS($AK$3,$AK$4)))/DSUM(Forespørgsel1[#All],""&$K$4&"",$N$4:INDIRECT(ADDRESS($AK$3,$AK$4))),IF($B27=2,DSUM(Forespørgsel1[#All],""&LEFT($C27,LEN($C27)-$A27)&"",$N$4:INDIRECT(ADDRESS($AK$3,$AK$4)))/DSUM(Forespørgsel1[#All],""&$L$4&"",$N$4:INDIRECT(ADDRESS($AK$3,$AK$4))))))),""),"") ->  | I27: =IF($AB$1=44,IFERROR(IF(ISTEXT($B27)=TRUE,DSUM(Forespørgsel1[#All],""&LEFT($C27,LEN($C27)-$A27)&"",$N$10:INDIRECT(ADDRESS($AK$5,$AK$4)))/DSUM(Forespørgsel1[#All],""&$B27&"",$N$10:INDIRECT(ADDRESS($AK$5,$AK$4))),IF($B27=0,DAVERAGE(Forespørgsel1[#All],""&LEFT($C27,LEN($C27)-$A27)&"",$N$10:INDIRECT(ADDRESS($AK$5,$AK$4))),IF($B27=1,DSUM(Forespørgsel1[#All],""&LEFT($C27,LEN($C27)-$A27)&"",$N$10:INDIRECT(ADDRESS($AK$5,$AK$4)))/DSUM(Forespørgsel1[#All],""&$K$4&"",$N$10:INDIRECT(ADDRESS($AK$5,$AK$4))),IF($B27=2,DSUM(Forespørgsel1[#All],""&LEFT($C27,LEN($C27)-$A27)&"",$N$10:INDIRECT(ADDRESS($AK$5,$AK$4)))/DSUM(Forespørgsel1[#All],""&$L$4&"",$N$10:INDIRECT(ADDRESS($AK$5,$AK$4))))))),""),"") ->  | N27: =$N$20 -> =3400 | O27: =O26 -> < | P27: =P6 -> TRUE
B28: Ha i alt, driftsgren | C28: Bruttoudbytte i alt | D28: =IF($AB$1=44,Landsgennemsnit!DX28,"") ->  | E28: =IF($AB$1=44,Landsgennemsnit!DY28,"") ->  | F28: =IF($AB$1=44,Landsgennemsnit!DZ28,"") ->  | G28: =IF($AB$1=44,IFERROR(IF(ISTEXT($B28)=TRUE,DSUM(Forespørgsel1[#All],""&LEFT($C28,LEN($C28)-$A28)&"",$O$4:INDIRECT(ADDRESS($AK$3,$AK$4)))/DSUM(Forespørgsel1[#All],""&$B28&"",$O$4:INDIRECT(ADDRESS($AK$3,$AK$4))),IF($B28=0,DAVERAGE(Forespørgsel1[#All],""&LEFT($C28,LEN($C28)-$A28)&"",$O$4:INDIRECT(ADDRESS($AK$3,$AK$4))),IF($B28=1,DSUM(Forespørgsel1[#All],""&LEFT($C28,LEN($C28)-$A28)&"",$O$4:INDIRECT(ADDRESS($AK$3,$AK$4)))/DSUM(Forespørgsel1[#All],""&$K$4&"",$O$4:INDIRECT(ADDRESS($AK$3,$AK$4))),DSUM(Forespørgsel1[#All],""&LEFT($C28,LEN($C28)-$A28)&"",$O$4:INDIRECT(ADDRESS($AK$3,$AK$4)))/DSUM(Forespørgsel1[#All],""&$L$4&"",$O$4:INDIRECT(ADDRESS($AK$3,$AK$4)))))),"fejl"),"") ->  | H28: =IF($AB$1=44,IFERROR(IF(ISTEXT($B28)=TRUE,DSUM(Forespørgsel1[#All],""&LEFT($C28,LEN($C28)-$A28)&"",$N$4:INDIRECT(ADDRESS($AK$3,$AK$4)))/DSUM(Forespørgsel1[#All],""&$B28&"",$N$4:INDIRECT(ADDRESS($AK$3,$AK$4))),IF($B28=0,DAVERAGE(Forespørgsel1[#All],""&LEFT($C28,LEN($C28)-$A28)&"",$N$4:INDIRECT(ADDRESS($AK$3,$AK$4))),IF($B28=1,DSUM(Forespørgsel1[#All],""&LEFT($C28,LEN($C28)-$A28)&"",$N$4:INDIRECT(ADDRESS($AK$3,$AK$4)))/DSUM(Forespørgsel1[#All],""&$K$4&"",$N$4:INDIRECT(ADDRESS($AK$3,$AK$4))),IF($B28=2,DSUM(Forespørgsel1[#All],""&LEFT($C28,LEN($C28)-$A28)&"",$N$4:INDIRECT(ADDRESS($AK$3,$AK$4)))/DSUM(Forespørgsel1[#All],""&$L$4&"",$N$4:INDIRECT(ADDRESS($AK$3,$AK$4))))))),""),"") ->  | I28: =IF($AB$1=44,IFERROR(IF(ISTEXT($B28)=TRUE,DSUM(Forespørgsel1[#All],""&LEFT($C28,LEN($C28)-$A28)&"",$N$10:INDIRECT(ADDRESS($AK$5,$AK$4)))/DSUM(Forespørgsel1[#All],""&$B28&"",$N$10:INDIRECT(ADDRESS($AK$5,$AK$4))),IF($B28=0,DAVERAGE(Forespørgsel1[#All],""&LEFT($C28,LEN($C28)-$A28)&"",$N$10:INDIRECT(ADDRESS($AK$5,$AK$4))),IF($B28=1,DSUM(Forespørgsel1[#All],""&LEFT($C28,LEN($C28)-$A28)&"",$N$10:INDIRECT(ADDRESS($AK$5,$AK$4)))/DSUM(Forespørgsel1[#All],""&$K$4&"",$N$10:INDIRECT(ADDRESS($AK$5,$AK$4))),IF($B28=2,DSUM(Forespørgsel1[#All],""&LEFT($C28,LEN($C28)-$A28)&"",$N$10:INDIRECT(ADDRESS($AK$5,$AK$4)))/DSUM(Forespørgsel1[#All],""&$L$4&"",$N$10:INDIRECT(ADDRESS($AK$5,$AK$4))))))),""),"") ->  | N28: =$N$20 -> =3400 | O28: =O26 -> < | P28: =P7 -> TRUE
D29: =IF($AB$1=44,Landsgennemsnit!DX29,"") ->  | E29: =IF($AB$1=44,Landsgennemsnit!DY29,"") ->  | F29: =IF($AB$1=44,Landsgennemsnit!DZ29,"") ->  | H29: =IF($AB$1=44,IFERROR(IF(ISTEXT($B29)=TRUE,DSUM(Forespørgsel1[#All],""&LEFT($C29,LEN($C29)-$A29)&"",$N$4:INDIRECT(ADDRESS($AK$3,$AK$4)))/DSUM(Forespørgsel1[#All],""&$B29&"",$N$4:INDIRECT(ADDRESS($AK$3,$AK$4))),IF($B29=0,DAVERAGE(Forespørgsel1[#All],""&LEFT($C29,LEN($C29)-$A29)&"",$N$4:INDIRECT(ADDRESS($AK$3,$AK$4))),IF($B29=1,DSUM(Forespørgsel1[#All],""&LEFT($C29,LEN($C29)-$A29)&"",$N$4:INDIRECT(ADDRESS($AK$3,$AK$4)))/DSUM(Forespørgsel1[#All],""&$K$4&"",$N$4:INDIRECT(ADDRESS($AK$3,$AK$4))),IF($B29=2,DSUM(Forespørgsel1[#All],""&LEFT($C29,LEN($C29)-$A29)&"",$N$4:INDIRECT(ADDRESS($AK$3,$AK$4)))/DSUM(Forespørgsel1[#All],""&$L$4&"",$N$4:INDIRECT(ADDRESS($AK$3,$AK$4))))))),""),"") ->  | I29: =IF($AB$1=44,IFERROR(IF(ISTEXT($B29)=TRUE,DSUM(Forespørgsel1[#All],""&LEFT($C29,LEN($C29)-$A29)&"",$N$10:INDIRECT(ADDRESS($AK$5,$AK$4)))/DSUM(Forespørgsel1[#All],""&$B29&"",$N$10:INDIRECT(ADDRESS($AK$5,$AK$4))),IF($B29=0,DAVERAGE(Forespørgsel1[#All],""&LEFT($C29,LEN($C29)-$A29)&"",$N$10:INDIRECT(ADDRESS($AK$5,$AK$4))),IF($B29=1,DSUM(Forespørgsel1[#All],""&LEFT($C29,LEN($C29)-$A29)&"",$N$10:INDIRECT(ADDRESS($AK$5,$AK$4)))/DSUM(Forespørgsel1[#All],""&$K$4&"",$N$10:INDIRECT(ADDRESS($AK$5,$AK$4))),IF($B29=2,DSUM(Forespørgsel1[#All],""&LEFT($C29,LEN($C29)-$A29)&"",$N$10:INDIRECT(ADDRESS($AK$5,$AK$4)))/DSUM(Forespørgsel1[#All],""&$L$4&"",$N$10:INDIRECT(ADDRESS($AK$5,$AK$4))))))),""),"") ->  | N29: Prodgren | O29: =$N$4 -> Rest til jordleje før EU-støtte pr. ha | P29: =IF(P$4="","",P$4) -> Godkendt
B30: Ha i alt, driftsgren | C30: Udsæd | D30: =IF($AB$1=44,Landsgennemsnit!DX30,"") ->  | E30: =IF($AB$1=44,Landsgennemsnit!DY30,"") ->  | F30: =IF($AB$1=44,Landsgennemsnit!DZ30,"") ->  | G30: =IF($AB$1=44,IFERROR(IF(ISTEXT($B30)=TRUE,DSUM(Forespørgsel1[#All],""&LEFT($C30,LEN($C30)-$A30)&"",$O$4:INDIRECT(ADDRESS($AK$3,$AK$4)))/DSUM(Forespørgsel1[#All],""&$B30&"",$O$4:INDIRECT(ADDRESS($AK$3,$AK$4))),IF($B30=0,DAVERAGE(Forespørgsel1[#All],""&LEFT($C30,LEN($C30)-$A30)&"",$O$4:INDIRECT(ADDRESS($AK$3,$AK$4))),IF($B30=1,DSUM(Forespørgsel1[#All],""&LEFT($C30,LEN($C30)-$A30)&"",$O$4:INDIRECT(ADDRESS($AK$3,$AK$4)))/DSUM(Forespørgsel1[#All],""&$K$4&"",$O$4:INDIRECT(ADDRESS($AK$3,$AK$4))),DSUM(Forespørgsel1[#All],""&LEFT($C30,LEN($C30)-$A30)&"",$O$4:INDIRECT(ADDRESS($AK$3,$AK$4)))/DSUM(Forespørgsel1[#All],""&$L$4&"",$O$4:INDIRECT(ADDRESS($AK$3,$AK$4)))))),"fejl"),"") ->  | H30: =IF($AB$1=44,IFERROR(IF(ISTEXT($B30)=TRUE,DSUM(Forespørgsel1[#All],""&LEFT($C30,LEN($C30)-$A30)&"",$N$4:INDIRECT(ADDRESS($AK$3,$AK$4)))/DSUM(Forespørgsel1[#All],""&$B30&"",$N$4:INDIRECT(ADDRESS($AK$3,$AK$4))),IF($B30=0,DAVERAGE(Forespørgsel1[#All],""&LEFT($C30,LEN($C30)-$A30)&"",$N$4:INDIRECT(ADDRESS($AK$3,$AK$4))),IF($B30=1,DSUM(Forespørgsel1[#All],""&LEFT($C30,LEN($C30)-$A30)&"",$N$4:INDIRECT(ADDRESS($AK$3,$AK$4)))/DSUM(Forespørgsel1[#All],""&$K$4&"",$N$4:INDIRECT(ADDRESS($AK$3,$AK$4))),IF($B30=2,DSUM(Forespørgsel1[#All],""&LEFT($C30,LEN($C30)-$A30)&"",$N$4:INDIRECT(ADDRESS($AK$3,$AK$4)))/DSUM(Forespørgsel1[#All],""&$L$4&"",$N$4:INDIRECT(ADDRESS($AK$3,$AK$4))))))),""),"") ->  | I30: =IF($AB$1=44,IFERROR(IF(ISTEXT($B30)=TRUE,DSUM(Forespørgsel1[#All],""&LEFT($C30,LEN($C30)-$A30)&"",$N$10:INDIRECT(ADDRESS($AK$5,$AK$4)))/DSUM(Forespørgsel1[#All],""&$B30&"",$N$10:INDIRECT(ADDRESS($AK$5,$AK$4))),IF($B30=0,DAVERAGE(Forespørgsel1[#All],""&LEFT($C30,LEN($C30)-$A30)&"",$N$10:INDIRECT(ADDRESS($AK$5,$AK$4))),IF($B30=1,DSUM(Forespørgsel1[#All],""&LEFT($C30,LEN($C30)-$A30)&"",$N$10:INDIRECT(ADDRESS($AK$5,$AK$4)))/DSUM(Forespørgsel1[#All],""&$K$4&"",$N$10:INDIRECT(ADDRESS($AK$5,$AK$4))),IF($B30=2,DSUM(Forespørgsel1[#All],""&LEFT($C30,LEN($C30)-$A30)&"",$N$10:INDIRECT(ADDRESS($AK$5,$AK$4)))/DSUM(Forespørgsel1[#All],""&$L$4&"",$N$10:INDIRECT(ADDRESS($AK$5,$AK$4))))))),""),"") ->  | L30: =IF($AB$1=44,SUMIFS(Forespørgsel1[[#All],[Ejd_Nr]],Forespørgsel1[[#All],[Andel rug i pct.]],M30),"") ->  | M30: =IF($AB$1=44,DMAX(Forespørgsel1[#All],""&$M$17&"",$N25:INDIRECT(ADDRESS($AK30,$AK$4))),"") ->  | N30: =$O$5 -> =3400 | O30: ="<"&M30&"" -> < | P30: =P5 -> TRUE | AJ30: Række | AK30: =ROW(AJ30)-2 -> 28
B31: Ha i alt, driftsgren | C31: Gødning | D31: =IF($AB$1=44,Landsgennemsnit!DX31,"") ->  | E31: =IF($AB$1=44,Landsgennemsnit!DY31,"") ->  | F31: =IF($AB$1=44,Landsgennemsnit!DZ31,"") ->  | G31: =IF($AB$1=44,IFERROR(IF(ISTEXT($B31)=TRUE,DSUM(Forespørgsel1[#All],""&LEFT($C31,LEN($C31)-$A31)&"",$O$4:INDIRECT(ADDRESS($AK$3,$AK$4)))/DSUM(Forespørgsel1[#All],""&$B31&"",$O$4:INDIRECT(ADDRESS($AK$3,$AK$4))),IF($B31=0,DAVERAGE(Forespørgsel1[#All],""&LEFT($C31,LEN($C31)-$A31)&"",$O$4:INDIRECT(ADDRESS($AK$3,$AK$4))),IF($B31=1,DSUM(Forespørgsel1[#All],""&LEFT($C31,LEN($C31)-$A31)&"",$O$4:INDIRECT(ADDRESS($AK$3,$AK$4)))/DSUM(Forespørgsel1[#All],""&$K$4&"",$O$4:INDIRECT(ADDRESS($AK$3,$AK$4))),DSUM(Forespørgsel1[#All],""&LEFT($C31,LEN($C31)-$A31)&"",$O$4:INDIRECT(ADDRESS($AK$3,$AK$4)))/DSUM(Forespørgsel1[#All],""&$L$4&"",$O$4:INDIRECT(ADDRESS($AK$3,$AK$4)))))),"fejl"),"") ->  | H31: =IF($AB$1=44,IFERROR(IF(ISTEXT($B31)=TRUE,DSUM(Forespørgsel1[#All],""&LEFT($C31,LEN($C31)-$A31)&"",$N$4:INDIRECT(ADDRESS($AK$3,$AK$4)))/DSUM(Forespørgsel1[#All],""&$B31&"",$N$4:INDIRECT(ADDRESS($AK$3,$AK$4))),IF($B31=0,DAVERAGE(Forespørgsel1[#All],""&LEFT($C31,LEN($C31)-$A31)&"",$N$4:INDIRECT(ADDRESS($AK$3,$AK$4))),IF($B31=1,DSUM(Forespørgsel1[#All],""&LEFT($C31,LEN($C31)-$A31)&"",$N$4:INDIRECT(ADDRESS($AK$3,$AK$4)))/DSUM(Forespørgsel1[#All],""&$K$4&"",$N$4:INDIRECT(ADDRESS($AK$3,$AK$4))),IF($B31=2,DSUM(Forespørgsel1[#All],""&LEFT($C31,LEN($C31)-$A31)&"",$N$4:INDIRECT(ADDRESS($AK$3,$AK$4)))/DSUM(Forespørgsel1[#All],""&$L$4&"",$N$4:INDIRECT(ADDRESS($AK$3,$AK$4))))))),""),"") ->  | I31: =IF($AB$1=44,IFERROR(IF(ISTEXT($B31)=TRUE,DSUM(Forespørgsel1[#All],""&LEFT($C31,LEN($C31)-$A31)&"",$N$10:INDIRECT(ADDRESS($AK$5,$AK$4)))/DSUM(Forespørgsel1[#All],""&$B31&"",$N$10:INDIRECT(ADDRESS($AK$5,$AK$4))),IF($B31=0,DAVERAGE(Forespørgsel1[#All],""&LEFT($C31,LEN($C31)-$A31)&"",$N$10:INDIRECT(ADDRESS($AK$5,$AK$4))),IF($B31=1,DSUM(Forespørgsel1[#All],""&LEFT($C31,LEN($C31)-$A31)&"",$N$10:INDIRECT(ADDRESS($AK$5,$AK$4)))/DSUM(Forespørgsel1[#All],""&$K$4&"",$N$10:INDIRECT(ADDRESS($AK$5,$AK$4))),IF($B31=2,DSUM(Forespørgsel1[#All],""&LEFT($C31,LEN($C31)-$A31)&"",$N$10:INDIRECT(ADDRESS($AK$5,$AK$4)))/DSUM(Forespørgsel1[#All],""&$L$4&"",$N$10:INDIRECT(ADDRESS($AK$5,$AK$4))))))),""),"") ->  | N31: =$N$20 -> =3400 | O31: =O30 -> < | P31: =P6 -> TRUE
B32: Ha i alt, driftsgren | C32: Planteværn | D32: =IF($AB$1=44,Landsgennemsnit!DX32,"") ->  | E32: =IF($AB$1=44,Landsgennemsnit!DY32,"") ->  | F32: =IF($AB$1=44,Landsgennemsnit!DZ32,"") ->  | G32: =IF($AB$1=44,IFERROR(IF(ISTEXT($B32)=TRUE,DSUM(Forespørgsel1[#All],""&LEFT($C32,LEN($C32)-$A32)&"",$O$4:INDIRECT(ADDRESS($AK$3,$AK$4)))/DSUM(Forespørgsel1[#All],""&$B32&"",$O$4:INDIRECT(ADDRESS($AK$3,$AK$4))),IF($B32=0,DAVERAGE(Forespørgsel1[#All],""&LEFT($C32,LEN($C32)-$A32)&"",$O$4:INDIRECT(ADDRESS($AK$3,$AK$4))),IF($B32=1,DSUM(Forespørgsel1[#All],""&LEFT($C32,LEN($C32)-$A32)&"",$O$4:INDIRECT(ADDRESS($AK$3,$AK$4)))/DSUM(Forespørgsel1[#All],""&$K$4&"",$O$4:INDIRECT(ADDRESS($AK$3,$AK$4))),DSUM(Forespørgsel1[#All],""&LEFT($C32,LEN($C32)-$A32)&"",$O$4:INDIRECT(ADDRESS($AK$3,$AK$4)))/DSUM(Forespørgsel1[#All],""&$L$4&"",$O$4:INDIRECT(ADDRESS($AK$3,$AK$4)))))),"fejl"),"") ->  | H32: =IF($AB$1=44,IFERROR(IF(ISTEXT($B32)=TRUE,DSUM(Forespørgsel1[#All],""&LEFT($C32,LEN($C32)-$A32)&"",$N$4:INDIRECT(ADDRESS($AK$3,$AK$4)))/DSUM(Forespørgsel1[#All],""&$B32&"",$N$4:INDIRECT(ADDRESS($AK$3,$AK$4))),IF($B32=0,DAVERAGE(Forespørgsel1[#All],""&LEFT($C32,LEN($C32)-$A32)&"",$N$4:INDIRECT(ADDRESS($AK$3,$AK$4))),IF($B32=1,DSUM(Forespørgsel1[#All],""&LEFT($C32,LEN($C32)-$A32)&"",$N$4:INDIRECT(ADDRESS($AK$3,$AK$4)))/DSUM(Forespørgsel1[#All],""&$K$4&"",$N$4:INDIRECT(ADDRESS($AK$3,$AK$4))),IF($B32=2,DSUM(Forespørgsel1[#All],""&LEFT($C32,LEN($C32)-$A32)&"",$N$4:INDIRECT(ADDRESS($AK$3,$AK$4)))/DSUM(Forespørgsel1[#All],""&$L$4&"",$N$4:INDIRECT(ADDRESS($AK$3,$AK$4))))))),""),"") ->  | I32: =IF($AB$1=44,IFERROR(IF(ISTEXT($B32)=TRUE,DSUM(Forespørgsel1[#All],""&LEFT($C32,LEN($C32)-$A32)&"",$N$10:INDIRECT(ADDRESS($AK$5,$AK$4)))/DSUM(Forespørgsel1[#All],""&$B32&"",$N$10:INDIRECT(ADDRESS($AK$5,$AK$4))),IF($B32=0,DAVERAGE(Forespørgsel1[#All],""&LEFT($C32,LEN($C32)-$A32)&"",$N$10:INDIRECT(ADDRESS($AK$5,$AK$4))),IF($B32=1,DSUM(Forespørgsel1[#All],""&LEFT($C32,LEN($C32)-$A32)&"",$N$10:INDIRECT(ADDRESS($AK$5,$AK$4)))/DSUM(Forespørgsel1[#All],""&$K$4&"",$N$10:INDIRECT(ADDRESS($AK$5,$AK$4))),IF($B32=2,DSUM(Forespørgsel1[#All],""&LEFT($C32,LEN($C32)-$A32)&"",$N$10:INDIRECT(ADDRESS($AK$5,$AK$4)))/DSUM(Forespørgsel1[#All],""&$L$4&"",$N$10:INDIRECT(ADDRESS($AK$5,$AK$4))))))),""),"") ->  | N32: =$N$20 -> =3400 | O32: =O30 -> < | P32: =P7 -> TRUE
B33: Ha i alt, driftsgren | C33: Diverse vedrørende mark | D33: =IF($AB$1=44,Landsgennemsnit!DX33,"") ->  | E33: =IF($AB$1=44,Landsgennemsnit!DY33,"") ->  | F33: =IF($AB$1=44,Landsgennemsnit!DZ33,"") ->  | G33: =IF($AB$1=44,IFERROR(IF(ISTEXT($B33)=TRUE,DSUM(Forespørgsel1[#All],""&LEFT($C33,LEN($C33)-$A33)&"",$O$4:INDIRECT(ADDRESS($AK$3,$AK$4)))/DSUM(Forespørgsel1[#All],""&$B33&"",$O$4:INDIRECT(ADDRESS($AK$3,$AK$4))),IF($B33=0,DAVERAGE(Forespørgsel1[#All],""&LEFT($C33,LEN($C33)-$A33)&"",$O$4:INDIRECT(ADDRESS($AK$3,$AK$4))),IF($B33=1,DSUM(Forespørgsel1[#All],""&LEFT($C33,LEN($C33)-$A33)&"",$O$4:INDIRECT(ADDRESS($AK$3,$AK$4)))/DSUM(Forespørgsel1[#All],""&$K$4&"",$O$4:INDIRECT(ADDRESS($AK$3,$AK$4))),DSUM(Forespørgsel1[#All],""&LEFT($C33,LEN($C33)-$A33)&"",$O$4:INDIRECT(ADDRESS($AK$3,$AK$4)))/DSUM(Forespørgsel1[#All],""&$L$4&"",$O$4:INDIRECT(ADDRESS($AK$3,$AK$4)))))),"fejl"),"") ->  | H33: =IF($AB$1=44,IFERROR(IF(ISTEXT($B33)=TRUE,DSUM(Forespørgsel1[#All],""&LEFT($C33,LEN($C33)-$A33)&"",$N$4:INDIRECT(ADDRESS($AK$3,$AK$4)))/DSUM(Forespørgsel1[#All],""&$B33&"",$N$4:INDIRECT(ADDRESS($AK$3,$AK$4))),IF($B33=0,DAVERAGE(Forespørgsel1[#All],""&LEFT($C33,LEN($C33)-$A33)&"",$N$4:INDIRECT(ADDRESS($AK$3,$AK$4))),IF($B33=1,DSUM(Forespørgsel1[#All],""&LEFT($C33,LEN($C33)-$A33)&"",$N$4:INDIRECT(ADDRESS($AK$3,$AK$4)))/DSUM(Forespørgsel1[#All],""&$K$4&"",$N$4:INDIRECT(ADDRESS($AK$3,$AK$4))),IF($B33=2,DSUM(Forespørgsel1[#All],""&LEFT($C33,LEN($C33)-$A33)&"",$N$4:INDIRECT(ADDRESS($AK$3,$AK$4)))/DSUM(Forespørgsel1[#All],""&$L$4&"",$N$4:INDIRECT(ADDRESS($AK$3,$AK$4))))))),""),"") ->  | I33: =IF($AB$1=44,IFERROR(IF(ISTEXT($B33)=TRUE,DSUM(Forespørgsel1[#All],""&LEFT($C33,LEN($C33)-$A33)&"",$N$10:INDIRECT(ADDRESS($AK$5,$AK$4)))/DSUM(Forespørgsel1[#All],""&$B33&"",$N$10:INDIRECT(ADDRESS($AK$5,$AK$4))),IF($B33=0,DAVERAGE(Forespørgsel1[#All],""&LEFT($C33,LEN($C33)-$A33)&"",$N$10:INDIRECT(ADDRESS($AK$5,$AK$4))),IF($B33=1,DSUM(Forespørgsel1[#All],""&LEFT($C33,LEN($C33)-$A33)&"",$N$10:INDIRECT(ADDRESS($AK$5,$AK$4)))/DSUM(Forespørgsel1[#All],""&$K$4&"",$N$10:INDIRECT(ADDRESS($AK$5,$AK$4))),IF($B33=2,DSUM(Forespørgsel1[#All],""&LEFT($C33,LEN($C33)-$A33)&"",$N$10:INDIRECT(ADDRESS($AK$5,$AK$4)))/DSUM(Forespørgsel1[#All],""&$L$4&"",$N$10:INDIRECT(ADDRESS($AK$5,$AK$4))))))),""),"") ->  | N33: Prodgren | O33: =$N$4 -> Rest til jordleje før EU-støtte pr. ha | P33: =IF(P$4="","",P$4) -> Godkendt
B34: Ha i alt, driftsgren | C34: Stykomkostninger i alt | D34: =IF($AB$1=44,Landsgennemsnit!DX34,"") ->  | E34: =IF($AB$1=44,Landsgennemsnit!DY34,"") ->  | F34: =IF($AB$1=44,Landsgennemsnit!DZ34,"") ->  | G34: =IF($AB$1=44,IFERROR(IF(ISTEXT($B34)=TRUE,DSUM(Forespørgsel1[#All],""&LEFT($C34,LEN($C34)-$A34)&"",$O$4:INDIRECT(ADDRESS($AK$3,$AK$4)))/DSUM(Forespørgsel1[#All],""&$B34&"",$O$4:INDIRECT(ADDRESS($AK$3,$AK$4))),IF($B34=0,DAVERAGE(Forespørgsel1[#All],""&LEFT($C34,LEN($C34)-$A34)&"",$O$4:INDIRECT(ADDRESS($AK$3,$AK$4))),IF($B34=1,DSUM(Forespørgsel1[#All],""&LEFT($C34,LEN($C34)-$A34)&"",$O$4:INDIRECT(ADDRESS($AK$3,$AK$4)))/DSUM(Forespørgsel1[#All],""&$K$4&"",$O$4:INDIRECT(ADDRESS($AK$3,$AK$4))),DSUM(Forespørgsel1[#All],""&LEFT($C34,LEN($C34)-$A34)&"",$O$4:INDIRECT(ADDRESS($AK$3,$AK$4)))/DSUM(Forespørgsel1[#All],""&$L$4&"",$O$4:INDIRECT(ADDRESS($AK$3,$AK$4)))))),"fejl"),"") ->  | H34: =IF($AB$1=44,IFERROR(IF(ISTEXT($B34)=TRUE,DSUM(Forespørgsel1[#All],""&LEFT($C34,LEN($C34)-$A34)&"",$N$4:INDIRECT(ADDRESS($AK$3,$AK$4)))/DSUM(Forespørgsel1[#All],""&$B34&"",$N$4:INDIRECT(ADDRESS($AK$3,$AK$4))),IF($B34=0,DAVERAGE(Forespørgsel1[#All],""&LEFT($C34,LEN($C34)-$A34)&"",$N$4:INDIRECT(ADDRESS($AK$3,$AK$4))),IF($B34=1,DSUM(Forespørgsel1[#All],""&LEFT($C34,LEN($C34)-$A34)&"",$N$4:INDIRECT(ADDRESS($AK$3,$AK$4)))/DSUM(Forespørgsel1[#All],""&$K$4&"",$N$4:INDIRECT(ADDRESS($AK$3,$AK$4))),IF($B34=2,DSUM(Forespørgsel1[#All],""&LEFT($C34,LEN($C34)-$A34)&"",$N$4:INDIRECT(ADDRESS($AK$3,$AK$4)))/DSUM(Forespørgsel1[#All],""&$L$4&"",$N$4:INDIRECT(ADDRESS($AK$3,$AK$4))))))),""),"") ->  | I34: =IF($AB$1=44,IFERROR(IF(ISTEXT($B34)=TRUE,DSUM(Forespørgsel1[#All],""&LEFT($C34,LEN($C34)-$A34)&"",$N$10:INDIRECT(ADDRESS($AK$5,$AK$4)))/DSUM(Forespørgsel1[#All],""&$B34&"",$N$10:INDIRECT(ADDRESS($AK$5,$AK$4))),IF($B34=0,DAVERAGE(Forespørgsel1[#All],""&LEFT($C34,LEN($C34)-$A34)&"",$N$10:INDIRECT(ADDRESS($AK$5,$AK$4))),IF($B34=1,DSUM(Forespørgsel1[#All],""&LEFT($C34,LEN($C34)-$A34)&"",$N$10:INDIRECT(ADDRESS($AK$5,$AK$4)))/DSUM(Forespørgsel1[#All],""&$K$4&"",$N$10:INDIRECT(ADDRESS($AK$5,$AK$4))),IF($B34=2,DSUM(Forespørgsel1[#All],""&LEFT($C34,LEN($C34)-$A34)&"",$N$10:INDIRECT(ADDRESS($AK$5,$AK$4)))/DSUM(Forespørgsel1[#All],""&$L$4&"",$N$10:INDIRECT(ADDRESS($AK$5,$AK$4))))))),""),"") ->  | L34: =IF($AB$1=44,SUMIFS(Forespørgsel1[[#All],[Ejd_Nr]],Forespørgsel1[[#All],[Andel rug i pct.]],M34),"") ->  | M34: =IF($AB$1=44,DMAX(Forespørgsel1[#All],""&$M$17&"",$N29:INDIRECT(ADDRESS($AK34,$AK$4))),"") ->  | N34: =$O$5 -> =3400 | O34: ="<"&M34&"" -> < | P34: =P5 -> TRUE | AJ34: Række | AK34: =ROW(AJ34)-2 -> 32
D35: =IF($AB$1=44,Landsgennemsnit!DX35,"") ->  | E35: =IF($AB$1=44,Landsgennemsnit!DY35,"") ->  | F35: =IF($AB$1=44,Landsgennemsnit!DZ35,"") ->  | H35: =IF($AB$1=44,IFERROR(IF(ISTEXT($B35)=TRUE,DSUM(Forespørgsel1[#All],""&LEFT($C35,LEN($C35)-$A35)&"",$N$4:INDIRECT(ADDRESS($AK$3,$AK$4)))/DSUM(Forespørgsel1[#All],""&$B35&"",$N$4:INDIRECT(ADDRESS($AK$3,$AK$4))),IF($B35=0,DAVERAGE(Forespørgsel1[#All],""&LEFT($C35,LEN($C35)-$A35)&"",$N$4:INDIRECT(ADDRESS($AK$3,$AK$4))),IF($B35=1,DSUM(Forespørgsel1[#All],""&LEFT($C35,LEN($C35)-$A35)&"",$N$4:INDIRECT(ADDRESS($AK$3,$AK$4)))/DSUM(Forespørgsel1[#All],""&$K$4&"",$N$4:INDIRECT(ADDRESS($AK$3,$AK$4))),IF($B35=2,DSUM(Forespørgsel1[#All],""&LEFT($C35,LEN($C35)-$A35)&"",$N$4:INDIRECT(ADDRESS($AK$3,$AK$4)))/DSUM(Forespørgsel1[#All],""&$L$4&"",$N$4:INDIRECT(ADDRESS($AK$3,$AK$4))))))),""),"") ->  | I35: =IF($AB$1=44,IFERROR(IF(ISTEXT($B35)=TRUE,DSUM(Forespørgsel1[#All],""&LEFT($C35,LEN($C35)-$A35)&"",$N$10:INDIRECT(ADDRESS($AK$5,$AK$4)))/DSUM(Forespørgsel1[#All],""&$B35&"",$N$10:INDIRECT(ADDRESS($AK$5,$AK$4))),IF($B35=0,DAVERAGE(Forespørgsel1[#All],""&LEFT($C35,LEN($C35)-$A35)&"",$N$10:INDIRECT(ADDRESS($AK$5,$AK$4))),IF($B35=1,DSUM(Forespørgsel1[#All],""&LEFT($C35,LEN($C35)-$A35)&"",$N$10:INDIRECT(ADDRESS($AK$5,$AK$4)))/DSUM(Forespørgsel1[#All],""&$K$4&"",$N$10:INDIRECT(ADDRESS($AK$5,$AK$4))),IF($B35=2,DSUM(Forespørgsel1[#All],""&LEFT($C35,LEN($C35)-$A35)&"",$N$10:INDIRECT(ADDRESS($AK$5,$AK$4)))/DSUM(Forespørgsel1[#All],""&$L$4&"",$N$10:INDIRECT(ADDRESS($AK$5,$AK$4))))))),""),"") ->  | N35: =$N$20 -> =3400 | O35: =O34 -> < | P35: =P6 -> TRUE
B36: Ha i alt, driftsgren | C36: Dækningsbidrag | D36: =IF($AB$1=44,Landsgennemsnit!DX36,"") ->  | E36: =IF($AB$1=44,Landsgennemsnit!DY36,"") ->  | F36: =IF($AB$1=44,Landsgennemsnit!DZ36,"") ->  | G36: =IF($AB$1=44,IFERROR(IF(ISTEXT($B36)=TRUE,DSUM(Forespørgsel1[#All],""&LEFT($C36,LEN($C36)-$A36)&"",$O$4:INDIRECT(ADDRESS($AK$3,$AK$4)))/DSUM(Forespørgsel1[#All],""&$B36&"",$O$4:INDIRECT(ADDRESS($AK$3,$AK$4))),IF($B36=0,DAVERAGE(Forespørgsel1[#All],""&LEFT($C36,LEN($C36)-$A36)&"",$O$4:INDIRECT(ADDRESS($AK$3,$AK$4))),IF($B36=1,DSUM(Forespørgsel1[#All],""&LEFT($C36,LEN($C36)-$A36)&"",$O$4:INDIRECT(ADDRESS($AK$3,$AK$4)))/DSUM(Forespørgsel1[#All],""&$K$4&"",$O$4:INDIRECT(ADDRESS($AK$3,$AK$4))),DSUM(Forespørgsel1[#All],""&LEFT($C36,LEN($C36)-$A36)&"",$O$4:INDIRECT(ADDRESS($AK$3,$AK$4)))/DSUM(Forespørgsel1[#All],""&$L$4&"",$O$4:INDIRECT(ADDRESS($AK$3,$AK$4)))))),"fejl"),"") ->  | H36: =IF($AB$1=44,IFERROR(IF(ISTEXT($B36)=TRUE,DSUM(Forespørgsel1[#All],""&LEFT($C36,LEN($C36)-$A36)&"",$N$4:INDIRECT(ADDRESS($AK$3,$AK$4)))/DSUM(Forespørgsel1[#All],""&$B36&"",$N$4:INDIRECT(ADDRESS($AK$3,$AK$4))),IF($B36=0,DAVERAGE(Forespørgsel1[#All],""&LEFT($C36,LEN($C36)-$A36)&"",$N$4:INDIRECT(ADDRESS($AK$3,$AK$4))),IF($B36=1,DSUM(Forespørgsel1[#All],""&LEFT($C36,LEN($C36)-$A36)&"",$N$4:INDIRECT(ADDRESS($AK$3,$AK$4)))/DSUM(Forespørgsel1[#All],""&$K$4&"",$N$4:INDIRECT(ADDRESS($AK$3,$AK$4))),IF($B36=2,DSUM(Forespørgsel1[#All],""&LEFT($C36,LEN($C36)-$A36)&"",$N$4:INDIRECT(ADDRESS($AK$3,$AK$4)))/DSUM(Forespørgsel1[#All],""&$L$4&"",$N$4:INDIRECT(ADDRESS($AK$3,$AK$4))))))),""),"") ->  | I36: =IF($AB$1=44,IFERROR(IF(ISTEXT($B36)=TRUE,DSUM(Forespørgsel1[#All],""&LEFT($C36,LEN($C36)-$A36)&"",$N$10:INDIRECT(ADDRESS($AK$5,$AK$4)))/DSUM(Forespørgsel1[#All],""&$B36&"",$N$10:INDIRECT(ADDRESS($AK$5,$AK$4))),IF($B36=0,DAVERAGE(Forespørgsel1[#All],""&LEFT($C36,LEN($C36)-$A36)&"",$N$10:INDIRECT(ADDRESS($AK$5,$AK$4))),IF($B36=1,DSUM(Forespørgsel1[#All],""&LEFT($C36,LEN($C36)-$A36)&"",$N$10:INDIRECT(ADDRESS($AK$5,$AK$4)))/DSUM(Forespørgsel1[#All],""&$K$4&"",$N$10:INDIRECT(ADDRESS($AK$5,$AK$4))),IF($B36=2,DSUM(Forespørgsel1[#All],""&LEFT($C36,LEN($C36)-$A36)&"",$N$10:INDIRECT(ADDRESS($AK$5,$AK$4)))/DSUM(Forespørgsel1[#All],""&$L$4&"",$N$10:INDIRECT(ADDRESS($AK$5,$AK$4))))))),""),"") ->  | N36: =$N$20 -> =3400 | O36: =O34 -> < | P36: =P7 -> TRUE
D37: =IF($AB$1=44,Landsgennemsnit!DX37,"") ->  | E37: =IF($AB$1=44,Landsgennemsnit!DY37,"") ->  | F37: =IF($AB$1=44,Landsgennemsnit!DZ37,"") ->  | H37: =IF($AB$1=44,IFERROR(IF(ISTEXT($B37)=TRUE,DSUM(Forespørgsel1[#All],""&LEFT($C37,LEN($C37)-$A37)&"",$N$4:INDIRECT(ADDRESS($AK$3,$AK$4)))/DSUM(Forespørgsel1[#All],""&$B37&"",$N$4:INDIRECT(ADDRESS($AK$3,$AK$4))),IF($B37=0,DAVERAGE(Forespørgsel1[#All],""&LEFT($C37,LEN($C37)-$A37)&"",$N$4:INDIRECT(ADDRESS($AK$3,$AK$4))),IF($B37=1,DSUM(Forespørgsel1[#All],""&LEFT($C37,LEN($C37)-$A37)&"",$N$4:INDIRECT(ADDRESS($AK$3,$AK$4)))/DSUM(Forespørgsel1[#All],""&$K$4&"",$N$4:INDIRECT(ADDRESS($AK$3,$AK$4))),IF($B37=2,DSUM(Forespørgsel1[#All],""&LEFT($C37,LEN($C37)-$A37)&"",$N$4:INDIRECT(ADDRESS($AK$3,$AK$4)))/DSUM(Forespørgsel1[#All],""&$L$4&"",$N$4:INDIRECT(ADDRESS($AK$3,$AK$4))))))),""),"") ->  | I37: =IF($AB$1=44,IFERROR(IF(ISTEXT($B37)=TRUE,DSUM(Forespørgsel1[#All],""&LEFT($C37,LEN($C37)-$A37)&"",$N$10:INDIRECT(ADDRESS($AK$5,$AK$4)))/DSUM(Forespørgsel1[#All],""&$B37&"",$N$10:INDIRECT(ADDRESS($AK$5,$AK$4))),IF($B37=0,DAVERAGE(Forespørgsel1[#All],""&LEFT($C37,LEN($C37)-$A37)&"",$N$10:INDIRECT(ADDRESS($AK$5,$AK$4))),IF($B37=1,DSUM(Forespørgsel1[#All],""&LEFT($C37,LEN($C37)-$A37)&"",$N$10:INDIRECT(ADDRESS($AK$5,$AK$4)))/DSUM(Forespørgsel1[#All],""&$K$4&"",$N$10:INDIRECT(ADDRESS($AK$5,$AK$4))),IF($B37=2,DSUM(Forespørgsel1[#All],""&LEFT($C37,LEN($C37)-$A37)&"",$N$10:INDIRECT(ADDRESS($AK$5,$AK$4)))/DSUM(Forespørgsel1[#All],""&$L$4&"",$N$10:INDIRECT(ADDRESS($AK$5,$AK$4))))))),""),"") ->  | N37: Prodgren | O37: =$N$4 -> Rest til jordleje før EU-støtte pr. ha | P37: =IF(P$4="","",P$4) -> Godkendt
B38: Ha i alt, driftsgren | C38: Energi | D38: =IF($AB$1=44,Landsgennemsnit!DX38,"") ->  | E38: =IF($AB$1=44,Landsgennemsnit!DY38,"") ->  | F38: =IF($AB$1=44,Landsgennemsnit!DZ38,"") ->  | G38: =IF($AB$1=44,IFERROR(IF(ISTEXT($B38)=TRUE,DSUM(Forespørgsel1[#All],""&LEFT($C38,LEN($C38)-$A38)&"",$O$4:INDIRECT(ADDRESS($AK$3,$AK$4)))/DSUM(Forespørgsel1[#All],""&$B38&"",$O$4:INDIRECT(ADDRESS($AK$3,$AK$4))),IF($B38=0,DAVERAGE(Forespørgsel1[#All],""&LEFT($C38,LEN($C38)-$A38)&"",$O$4:INDIRECT(ADDRESS($AK$3,$AK$4))),IF($B38=1,DSUM(Forespørgsel1[#All],""&LEFT($C38,LEN($C38)-$A38)&"",$O$4:INDIRECT(ADDRESS($AK$3,$AK$4)))/DSUM(Forespørgsel1[#All],""&$K$4&"",$O$4:INDIRECT(ADDRESS($AK$3,$AK$4))),DSUM(Forespørgsel1[#All],""&LEFT($C38,LEN($C38)-$A38)&"",$O$4:INDIRECT(ADDRESS($AK$3,$AK$4)))/DSUM(Forespørgsel1[#All],""&$L$4&"",$O$4:INDIRECT(ADDRESS($AK$3,$AK$4)))))),"fejl"),"") ->  | H38: =IF($AB$1=44,IFERROR(IF(ISTEXT($B38)=TRUE,DSUM(Forespørgsel1[#All],""&LEFT($C38,LEN($C38)-$A38)&"",$N$4:INDIRECT(ADDRESS($AK$3,$AK$4)))/DSUM(Forespørgsel1[#All],""&$B38&"",$N$4:INDIRECT(ADDRESS($AK$3,$AK$4))),IF($B38=0,DAVERAGE(Forespørgsel1[#All],""&LEFT($C38,LEN($C38)-$A38)&"",$N$4:INDIRECT(ADDRESS($AK$3,$AK$4))),IF($B38=1,DSUM(Forespørgsel1[#All],""&LEFT($C38,LEN($C38)-$A38)&"",$N$4:INDIRECT(ADDRESS($AK$3,$AK$4)))/DSUM(Forespørgsel1[#All],""&$K$4&"",$N$4:INDIRECT(ADDRESS($AK$3,$AK$4))),IF($B38=2,DSUM(Forespørgsel1[#All],""&LEFT($C38,LEN($C38)-$A38)&"",$N$4:INDIRECT(ADDRESS($AK$3,$AK$4)))/DSUM(Forespørgsel1[#All],""&$L$4&"",$N$4:INDIRECT(ADDRESS($AK$3,$AK$4))))))),""),"") ->  | I38: =IF($AB$1=44,IFERROR(IF(ISTEXT($B38)=TRUE,DSUM(Forespørgsel1[#All],""&LEFT($C38,LEN($C38)-$A38)&"",$N$10:INDIRECT(ADDRESS($AK$5,$AK$4)))/DSUM(Forespørgsel1[#All],""&$B38&"",$N$10:INDIRECT(ADDRESS($AK$5,$AK$4))),IF($B38=0,DAVERAGE(Forespørgsel1[#All],""&LEFT($C38,LEN($C38)-$A38)&"",$N$10:INDIRECT(ADDRESS($AK$5,$AK$4))),IF($B38=1,DSUM(Forespørgsel1[#All],""&LEFT($C38,LEN($C38)-$A38)&"",$N$10:INDIRECT(ADDRESS($AK$5,$AK$4)))/DSUM(Forespørgsel1[#All],""&$K$4&"",$N$10:INDIRECT(ADDRESS($AK$5,$AK$4))),IF($B38=2,DSUM(Forespørgsel1[#All],""&LEFT($C38,LEN($C38)-$A38)&"",$N$10:INDIRECT(ADDRESS($AK$5,$AK$4)))/DSUM(Forespørgsel1[#All],""&$L$4&"",$N$10:INDIRECT(ADDRESS($AK$5,$AK$4))))))),""),"") ->  | L38: =IF($AB$1=44,SUMIFS(Forespørgsel1[[#All],[Ejd_Nr]],Forespørgsel1[[#All],[Andel rug i pct.]],M38),"") ->  | M38: =IF($AB$1=44,DMAX(Forespørgsel1[#All],""&$M$17&"",$N33:INDIRECT(ADDRESS($AK38,$AK$4))),"") ->  | N38: =$O$5 -> =3400 | O38: ="<"&M38&"" -> < | P38: =$P$5 -> TRUE | AJ38: Række | AK38: =ROW(AJ38)-2 -> 36
B39: Ha i alt, driftsgren | C39: Brændstof | D39: =IF($AB$1=44,Landsgennemsnit!DX39,"") ->  | E39: =IF($AB$1=44,Landsgennemsnit!DY39,"") ->  | F39: =IF($AB$1=44,Landsgennemsnit!DZ39,"") ->  | G39: =IF($AB$1=44,IFERROR(IF(ISTEXT($B39)=TRUE,DSUM(Forespørgsel1[#All],""&LEFT($C39,LEN($C39)-$A39)&"",$O$4:INDIRECT(ADDRESS($AK$3,$AK$4)))/DSUM(Forespørgsel1[#All],""&$B39&"",$O$4:INDIRECT(ADDRESS($AK$3,$AK$4))),IF($B39=0,DAVERAGE(Forespørgsel1[#All],""&LEFT($C39,LEN($C39)-$A39)&"",$O$4:INDIRECT(ADDRESS($AK$3,$AK$4))),IF($B39=1,DSUM(Forespørgsel1[#All],""&LEFT($C39,LEN($C39)-$A39)&"",$O$4:INDIRECT(ADDRESS($AK$3,$AK$4)))/DSUM(Forespørgsel1[#All],""&$K$4&"",$O$4:INDIRECT(ADDRESS($AK$3,$AK$4))),DSUM(Forespørgsel1[#All],""&LEFT($C39,LEN($C39)-$A39)&"",$O$4:INDIRECT(ADDRESS($AK$3,$AK$4)))/DSUM(Forespørgsel1[#All],""&$L$4&"",$O$4:INDIRECT(ADDRESS($AK$3,$AK$4)))))),"fejl"),"") ->  | H39: =IF($AB$1=44,IFERROR(IF(ISTEXT($B39)=TRUE,DSUM(Forespørgsel1[#All],""&LEFT($C39,LEN($C39)-$A39)&"",$N$4:INDIRECT(ADDRESS($AK$3,$AK$4)))/DSUM(Forespørgsel1[#All],""&$B39&"",$N$4:INDIRECT(ADDRESS($AK$3,$AK$4))),IF($B39=0,DAVERAGE(Forespørgsel1[#All],""&LEFT($C39,LEN($C39)-$A39)&"",$N$4:INDIRECT(ADDRESS($AK$3,$AK$4))),IF($B39=1,DSUM(Forespørgsel1[#All],""&LEFT($C39,LEN($C39)-$A39)&"",$N$4:INDIRECT(ADDRESS($AK$3,$AK$4)))/DSUM(Forespørgsel1[#All],""&$K$4&"",$N$4:INDIRECT(ADDRESS($AK$3,$AK$4))),IF($B39=2,DSUM(Forespørgsel1[#All],""&LEFT($C39,LEN($C39)-$A39)&"",$N$4:INDIRECT(ADDRESS($AK$3,$AK$4)))/DSUM(Forespørgsel1[#All],""&$L$4&"",$N$4:INDIRECT(ADDRESS($AK$3,$AK$4))))))),""),"") ->  | I39: =IF($AB$1=44,IFERROR(IF(ISTEXT($B39)=TRUE,DSUM(Forespørgsel1[#All],""&LEFT($C39,LEN($C39)-$A39)&"",$N$10:INDIRECT(ADDRESS($AK$5,$AK$4)))/DSUM(Forespørgsel1[#All],""&$B39&"",$N$10:INDIRECT(ADDRESS($AK$5,$AK$4))),IF($B39=0,DAVERAGE(Forespørgsel1[#All],""&LEFT($C39,LEN($C39)-$A39)&"",$N$10:INDIRECT(ADDRESS($AK$5,$AK$4))),IF($B39=1,DSUM(Forespørgsel1[#All],""&LEFT($C39,LEN($C39)-$A39)&"",$N$10:INDIRECT(ADDRESS($AK$5,$AK$4)))/DSUM(Forespørgsel1[#All],""&$K$4&"",$N$10:INDIRECT(ADDRESS($AK$5,$AK$4))),IF($B39=2,DSUM(Forespørgsel1[#All],""&LEFT($C39,LEN($C39)-$A39)&"",$N$10:INDIRECT(ADDRESS($AK$5,$AK$4)))/DSUM(Forespørgsel1[#All],""&$L$4&"",$N$10:INDIRECT(ADDRESS($AK$5,$AK$4))))))),""),"") ->  | N39: =$N$20 -> =3400 | O39: =O38 -> < | P39: =$P$6 -> TRUE
B40: Ha i alt, driftsgren | C40: Maskinstation mv. | D40: =IF($AB$1=44,Landsgennemsnit!DX40,"") ->  | E40: =IF($AB$1=44,Landsgennemsnit!DY40,"") ->  | F40: =IF($AB$1=44,Landsgennemsnit!DZ40,"") ->  | G40: =IF($AB$1=44,IFERROR(IF(ISTEXT($B40)=TRUE,DSUM(Forespørgsel1[#All],""&LEFT($C40,LEN($C40)-$A40)&"",$O$4:INDIRECT(ADDRESS($AK$3,$AK$4)))/DSUM(Forespørgsel1[#All],""&$B40&"",$O$4:INDIRECT(ADDRESS($AK$3,$AK$4))),IF($B40=0,DAVERAGE(Forespørgsel1[#All],""&LEFT($C40,LEN($C40)-$A40)&"",$O$4:INDIRECT(ADDRESS($AK$3,$AK$4))),IF($B40=1,DSUM(Forespørgsel1[#All],""&LEFT($C40,LEN($C40)-$A40)&"",$O$4:INDIRECT(ADDRESS($AK$3,$AK$4)))/DSUM(Forespørgsel1[#All],""&$K$4&"",$O$4:INDIRECT(ADDRESS($AK$3,$AK$4))),DSUM(Forespørgsel1[#All],""&LEFT($C40,LEN($C40)-$A40)&"",$O$4:INDIRECT(ADDRESS($AK$3,$AK$4)))/DSUM(Forespørgsel1[#All],""&$L$4&"",$O$4:INDIRECT(ADDRESS($AK$3,$AK$4)))))),"fejl"),"") ->  | H40: =IF($AB$1=44,IFERROR(IF(ISTEXT($B40)=TRUE,DSUM(Forespørgsel1[#All],""&LEFT($C40,LEN($C40)-$A40)&"",$N$4:INDIRECT(ADDRESS($AK$3,$AK$4)))/DSUM(Forespørgsel1[#All],""&$B40&"",$N$4:INDIRECT(ADDRESS($AK$3,$AK$4))),IF($B40=0,DAVERAGE(Forespørgsel1[#All],""&LEFT($C40,LEN($C40)-$A40)&"",$N$4:INDIRECT(ADDRESS($AK$3,$AK$4))),IF($B40=1,DSUM(Forespørgsel1[#All],""&LEFT($C40,LEN($C40)-$A40)&"",$N$4:INDIRECT(ADDRESS($AK$3,$AK$4)))/DSUM(Forespørgsel1[#All],""&$K$4&"",$N$4:INDIRECT(ADDRESS($AK$3,$AK$4))),IF($B40=2,DSUM(Forespørgsel1[#All],""&LEFT($C40,LEN($C40)-$A40)&"",$N$4:INDIRECT(ADDRESS($AK$3,$AK$4)))/DSUM(Forespørgsel1[#All],""&$L$4&"",$N$4:INDIRECT(ADDRESS($AK$3,$AK$4))))))),""),"") ->  | I40: =IF($AB$1=44,IFERROR(IF(ISTEXT($B40)=TRUE,DSUM(Forespørgsel1[#All],""&LEFT($C40,LEN($C40)-$A40)&"",$N$10:INDIRECT(ADDRESS($AK$5,$AK$4)))/DSUM(Forespørgsel1[#All],""&$B40&"",$N$10:INDIRECT(ADDRESS($AK$5,$AK$4))),IF($B40=0,DAVERAGE(Forespørgsel1[#All],""&LEFT($C40,LEN($C40)-$A40)&"",$N$10:INDIRECT(ADDRESS($AK$5,$AK$4))),IF($B40=1,DSUM(Forespørgsel1[#All],""&LEFT($C40,LEN($C40)-$A40)&"",$N$10:INDIRECT(ADDRESS($AK$5,$AK$4)))/DSUM(Forespørgsel1[#All],""&$K$4&"",$N$10:INDIRECT(ADDRESS($AK$5,$AK$4))),IF($B40=2,DSUM(Forespørgsel1[#All],""&LEFT($C40,LEN($C40)-$A40)&"",$N$10:INDIRECT(ADDRESS($AK$5,$AK$4)))/DSUM(Forespørgsel1[#All],""&$L$4&"",$N$10:INDIRECT(ADDRESS($AK$5,$AK$4))))))),""),"") ->  | N40: =3400 | O40: =O38 -> < | P40: =$P$7 -> TRUE
B41: Ha i alt, driftsgren | C41: Vedligehold | D41: =IF($AB$1=44,Landsgennemsnit!DX41,"") ->  | E41: =IF($AB$1=44,Landsgennemsnit!DY41,"") ->  | F41: =IF($AB$1=44,Landsgennemsnit!DZ41,"") ->  | G41: =IF($AB$1=44,IFERROR(IF(ISTEXT($B41)=TRUE,DSUM(Forespørgsel1[#All],""&LEFT($C41,LEN($C41)-$A41)&"",$O$4:INDIRECT(ADDRESS($AK$3,$AK$4)))/DSUM(Forespørgsel1[#All],""&$B41&"",$O$4:INDIRECT(ADDRESS($AK$3,$AK$4))),IF($B41=0,DAVERAGE(Forespørgsel1[#All],""&LEFT($C41,LEN($C41)-$A41)&"",$O$4:INDIRECT(ADDRESS($AK$3,$AK$4))),IF($B41=1,DSUM(Forespørgsel1[#All],""&LEFT($C41,LEN($C41)-$A41)&"",$O$4:INDIRECT(ADDRESS($AK$3,$AK$4)))/DSUM(Forespørgsel1[#All],""&$K$4&"",$O$4:INDIRECT(ADDRESS($AK$3,$AK$4))),DSUM(Forespørgsel1[#All],""&LEFT($C41,LEN($C41)-$A41)&"",$O$4:INDIRECT(ADDRESS($AK$3,$AK$4)))/DSUM(Forespørgsel1[#All],""&$L$4&"",$O$4:INDIRECT(ADDRESS($AK$3,$AK$4)))))),"fejl"),"") ->  | H41: =IF($AB$1=44,IFERROR(IF(ISTEXT($B41)=TRUE,DSUM(Forespørgsel1[#All],""&LEFT($C41,LEN($C41)-$A41)&"",$N$4:INDIRECT(ADDRESS($AK$3,$AK$4)))/DSUM(Forespørgsel1[#All],""&$B41&"",$N$4:INDIRECT(ADDRESS($AK$3,$AK$4))),IF($B41=0,DAVERAGE(Forespørgsel1[#All],""&LEFT($C41,LEN($C41)-$A41)&"",$N$4:INDIRECT(ADDRESS($AK$3,$AK$4))),IF($B41=1,DSUM(Forespørgsel1[#All],""&LEFT($C41,LEN($C41)-$A41)&"",$N$4:INDIRECT(ADDRESS($AK$3,$AK$4)))/DSUM(Forespørgsel1[#All],""&$K$4&"",$N$4:INDIRECT(ADDRESS($AK$3,$AK$4))),IF($B41=2,DSUM(Forespørgsel1[#All],""&LEFT($C41,LEN($C41)-$A41)&"",$N$4:INDIRECT(ADDRESS($AK$3,$AK$4)))/DSUM(Forespørgsel1[#All],""&$L$4&"",$N$4:INDIRECT(ADDRESS($AK$3,$AK$4))))))),""),"") ->  | I41: =IF($AB$1=44,IFERROR(IF(ISTEXT($B41)=TRUE,DSUM(Forespørgsel1[#All],""&LEFT($C41,LEN($C41)-$A41)&"",$N$10:INDIRECT(ADDRESS($AK$5,$AK$4)))/DSUM(Forespørgsel1[#All],""&$B41&"",$N$10:INDIRECT(ADDRESS($AK$5,$AK$4))),IF($B41=0,DAVERAGE(Forespørgsel1[#All],""&LEFT($C41,LEN($C41)-$A41)&"",$N$10:INDIRECT(ADDRESS($AK$5,$AK$4))),IF($B41=1,DSUM(Forespørgsel1[#All],""&LEFT($C41,LEN($C41)-$A41)&"",$N$10:INDIRECT(ADDRESS($AK$5,$AK$4)))/DSUM(Forespørgsel1[#All],""&$K$4&"",$N$10:INDIRECT(ADDRESS($AK$5,$AK$4))),IF($B41=2,DSUM(Forespørgsel1[#All],""&LEFT($C41,LEN($C41)-$A41)&"",$N$10:INDIRECT(ADDRESS($AK$5,$AK$4)))/DSUM(Forespørgsel1[#All],""&$L$4&"",$N$10:INDIRECT(ADDRESS($AK$5,$AK$4))))))),""),"") ->  | N41: Prodgren | O41: =$N$4 -> Rest til jordleje før EU-støtte pr. ha | P41: Godkendt
B42: Ha i alt, driftsgren | C42: Lønomkostninger | D42: =IF($AB$1=44,Landsgennemsnit!DX42,"") ->  | E42: =IF($AB$1=44,Landsgennemsnit!DY42,"") ->  | F42: =IF($AB$1=44,Landsgennemsnit!DZ42,"") ->  | G42: =IF($AB$1=44,IFERROR(IF(ISTEXT($B42)=TRUE,DSUM(Forespørgsel1[#All],""&LEFT($C42,LEN($C42)-$A42)&"",$O$4:INDIRECT(ADDRESS($AK$3,$AK$4)))/DSUM(Forespørgsel1[#All],""&$B42&"",$O$4:INDIRECT(ADDRESS($AK$3,$AK$4))),IF($B42=0,DAVERAGE(Forespørgsel1[#All],""&LEFT($C42,LEN($C42)-$A42)&"",$O$4:INDIRECT(ADDRESS($AK$3,$AK$4))),IF($B42=1,DSUM(Forespørgsel1[#All],""&LEFT($C42,LEN($C42)-$A42)&"",$O$4:INDIRECT(ADDRESS($AK$3,$AK$4)))/DSUM(Forespørgsel1[#All],""&$K$4&"",$O$4:INDIRECT(ADDRESS($AK$3,$AK$4))),DSUM(Forespørgsel1[#All],""&LEFT($C42,LEN($C42)-$A42)&"",$O$4:INDIRECT(ADDRESS($AK$3,$AK$4)))/DSUM(Forespørgsel1[#All],""&$L$4&"",$O$4:INDIRECT(ADDRESS($AK$3,$AK$4)))))),"fejl"),"") ->  | H42: =IF($AB$1=44,IFERROR(IF(ISTEXT($B42)=TRUE,DSUM(Forespørgsel1[#All],""&LEFT($C42,LEN($C42)-$A42)&"",$N$4:INDIRECT(ADDRESS($AK$3,$AK$4)))/DSUM(Forespørgsel1[#All],""&$B42&"",$N$4:INDIRECT(ADDRESS($AK$3,$AK$4))),IF($B42=0,DAVERAGE(Forespørgsel1[#All],""&LEFT($C42,LEN($C42)-$A42)&"",$N$4:INDIRECT(ADDRESS($AK$3,$AK$4))),IF($B42=1,DSUM(Forespørgsel1[#All],""&LEFT($C42,LEN($C42)-$A42)&"",$N$4:INDIRECT(ADDRESS($AK$3,$AK$4)))/DSUM(Forespørgsel1[#All],""&$K$4&"",$N$4:INDIRECT(ADDRESS($AK$3,$AK$4))),IF($B42=2,DSUM(Forespørgsel1[#All],""&LEFT($C42,LEN($C42)-$A42)&"",$N$4:INDIRECT(ADDRESS($AK$3,$AK$4)))/DSUM(Forespørgsel1[#All],""&$L$4&"",$N$4:INDIRECT(ADDRESS($AK$3,$AK$4))))))),""),"") ->  | I42: =IF($AB$1=44,IFERROR(IF(ISTEXT($B42)=TRUE,DSUM(Forespørgsel1[#All],""&LEFT($C42,LEN($C42)-$A42)&"",$N$10:INDIRECT(ADDRESS($AK$5,$AK$4)))/DSUM(Forespørgsel1[#All],""&$B42&"",$N$10:INDIRECT(ADDRESS($AK$5,$AK$4))),IF($B42=0,DAVERAGE(Forespørgsel1[#All],""&LEFT($C42,LEN($C42)-$A42)&"",$N$10:INDIRECT(ADDRESS($AK$5,$AK$4))),IF($B42=1,DSUM(Forespørgsel1[#All],""&LEFT($C42,LEN($C42)-$A42)&"",$N$10:INDIRECT(ADDRESS($AK$5,$AK$4)))/DSUM(Forespørgsel1[#All],""&$K$4&"",$N$10:INDIRECT(ADDRESS($AK$5,$AK$4))),IF($B42=2,DSUM(Forespørgsel1[#All],""&LEFT($C42,LEN($C42)-$A42)&"",$N$10:INDIRECT(ADDRESS($AK$5,$AK$4)))/DSUM(Forespørgsel1[#All],""&$L$4&"",$N$10:INDIRECT(ADDRESS($AK$5,$AK$4))))))),""),"") ->  | L42: =IF($AB$1=44,SUMIFS(Forespørgsel1[[#All],[Ejd_Nr]],Forespørgsel1[[#All],[Andel rug i pct.]],M42),"") ->  | M42: =IF($AB$1=44,DMAX(Forespørgsel1[#All],""&$M$17&"",$N37:INDIRECT(ADDRESS($AK42,$AK$4))),"") ->  | N42: =$O$5 -> =3400 | O42: ="<"&M42&"" -> < | P42: =$P$5 -> TRUE | AJ42: Række | AK42: =ROW(AJ42)-2 -> 40
B43: Ha i alt, driftsgren | C43: Ejeraflønning | D43: =IF($AB$1=44,Landsgennemsnit!DX43,"") ->  | E43: =IF($AB$1=44,Landsgennemsnit!DY43,"") ->  | F43: =IF($AB$1=44,Landsgennemsnit!DZ43,"") ->  | G43: =IF($AB$1=44,IFERROR(IF(ISTEXT($B43)=TRUE,DSUM(Forespørgsel1[#All],""&LEFT($C43,LEN($C43)-$A43)&"",$O$4:INDIRECT(ADDRESS($AK$3,$AK$4)))/DSUM(Forespørgsel1[#All],""&$B43&"",$O$4:INDIRECT(ADDRESS($AK$3,$AK$4))),IF($B43=0,DAVERAGE(Forespørgsel1[#All],""&LEFT($C43,LEN($C43)-$A43)&"",$O$4:INDIRECT(ADDRESS($AK$3,$AK$4))),IF($B43=1,DSUM(Forespørgsel1[#All],""&LEFT($C43,LEN($C43)-$A43)&"",$O$4:INDIRECT(ADDRESS($AK$3,$AK$4)))/DSUM(Forespørgsel1[#All],""&$K$4&"",$O$4:INDIRECT(ADDRESS($AK$3,$AK$4))),DSUM(Forespørgsel1[#All],""&LEFT($C43,LEN($C43)-$A43)&"",$O$4:INDIRECT(ADDRESS($AK$3,$AK$4)))/DSUM(Forespørgsel1[#All],""&$L$4&"",$O$4:INDIRECT(ADDRESS($AK$3,$AK$4)))))),"fejl"),"") ->  | H43: =IF($AB$1=44,IFERROR(IF(ISTEXT($B43)=TRUE,DSUM(Forespørgsel1[#All],""&LEFT($C43,LEN($C43)-$A43)&"",$N$4:INDIRECT(ADDRESS($AK$3,$AK$4)))/DSUM(Forespørgsel1[#All],""&$B43&"",$N$4:INDIRECT(ADDRESS($AK$3,$AK$4))),IF($B43=0,DAVERAGE(Forespørgsel1[#All],""&LEFT($C43,LEN($C43)-$A43)&"",$N$4:INDIRECT(ADDRESS($AK$3,$AK$4))),IF($B43=1,DSUM(Forespørgsel1[#All],""&LEFT($C43,LEN($C43)-$A43)&"",$N$4:INDIRECT(ADDRESS($AK$3,$AK$4)))/DSUM(Forespørgsel1[#All],""&$K$4&"",$N$4:INDIRECT(ADDRESS($AK$3,$AK$4))),IF($B43=2,DSUM(Forespørgsel1[#All],""&LEFT($C43,LEN($C43)-$A43)&"",$N$4:INDIRECT(ADDRESS($AK$3,$AK$4)))/DSUM(Forespørgsel1[#All],""&$L$4&"",$N$4:INDIRECT(ADDRESS($AK$3,$AK$4))))))),""),"") ->  | I43: =IF($AB$1=44,IFERROR(IF(ISTEXT($B43)=TRUE,DSUM(Forespørgsel1[#All],""&LEFT($C43,LEN($C43)-$A43)&"",$N$10:INDIRECT(ADDRESS($AK$5,$AK$4)))/DSUM(Forespørgsel1[#All],""&$B43&"",$N$10:INDIRECT(ADDRESS($AK$5,$AK$4))),IF($B43=0,DAVERAGE(Forespørgsel1[#All],""&LEFT($C43,LEN($C43)-$A43)&"",$N$10:INDIRECT(ADDRESS($AK$5,$AK$4))),IF($B43=1,DSUM(Forespørgsel1[#All],""&LEFT($C43,LEN($C43)-$A43)&"",$N$10:INDIRECT(ADDRESS($AK$5,$AK$4)))/DSUM(Forespørgsel1[#All],""&$K$4&"",$N$10:INDIRECT(ADDRESS($AK$5,$AK$4))),IF($B43=2,DSUM(Forespørgsel1[#All],""&LEFT($C43,LEN($C43)-$A43)&"",$N$10:INDIRECT(ADDRESS($AK$5,$AK$4)))/DSUM(Forespørgsel1[#All],""&$L$4&"",$N$10:INDIRECT(ADDRESS($AK$5,$AK$4))))))),""),"") ->  | N43: =$N$20 -> =3400 | O43: =O42 -> < | P43: =$P$6 -> TRUE
A44: 2 | B44: Ha i alt, driftsgren | C44: Ejendomsskat og forsikringer | D44: =IF($AB$1=44,Landsgennemsnit!DX44,"") ->  | E44: =IF($AB$1=44,Landsgennemsnit!DY44,"") ->  | F44: =IF($AB$1=44,Landsgennemsnit!DZ44,"") ->  | G44: =IF($AB$1=44,IFERROR(IF(ISTEXT($B44)=TRUE,DSUM(Forespørgsel1[#All],""&LEFT($C44,LEN($C44)-$A44)&"",$O$4:INDIRECT(ADDRESS($AK$3,$AK$4)))/DSUM(Forespørgsel1[#All],""&$B44&"",$O$4:INDIRECT(ADDRESS($AK$3,$AK$4))),IF($B44=0,DAVERAGE(Forespørgsel1[#All],""&LEFT($C44,LEN($C44)-$A44)&"",$O$4:INDIRECT(ADDRESS($AK$3,$AK$4))),IF($B44=1,DSUM(Forespørgsel1[#All],""&LEFT($C44,LEN($C44)-$A44)&"",$O$4:INDIRECT(ADDRESS($AK$3,$AK$4)))/DSUM(Forespørgsel1[#All],""&$K$4&"",$O$4:INDIRECT(ADDRESS($AK$3,$AK$4))),DSUM(Forespørgsel1[#All],""&LEFT($C44,LEN($C44)-$A44)&"",$O$4:INDIRECT(ADDRESS($AK$3,$AK$4)))/DSUM(Forespørgsel1[#All],""&$L$4&"",$O$4:INDIRECT(ADDRESS($AK$3,$AK$4)))))),"fejl"),"") ->  | H44: =IF($AB$1=44,IFERROR(IF(ISTEXT($B44)=TRUE,DSUM(Forespørgsel1[#All],""&LEFT($C44,LEN($C44)-$A44)&"",$N$4:INDIRECT(ADDRESS($AK$3,$AK$4)))/DSUM(Forespørgsel1[#All],""&$B44&"",$N$4:INDIRECT(ADDRESS($AK$3,$AK$4))),IF($B44=0,DAVERAGE(Forespørgsel1[#All],""&LEFT($C44,LEN($C44)-$A44)&"",$N$4:INDIRECT(ADDRESS($AK$3,$AK$4))),IF($B44=1,DSUM(Forespørgsel1[#All],""&LEFT($C44,LEN($C44)-$A44)&"",$N$4:INDIRECT(ADDRESS($AK$3,$AK$4)))/DSUM(Forespørgsel1[#All],""&$K$4&"",$N$4:INDIRECT(ADDRESS($AK$3,$AK$4))),IF($B44=2,DSUM(Forespørgsel1[#All],""&LEFT($C44,LEN($C44)-$A44)&"",$N$4:INDIRECT(ADDRESS($AK$3,$AK$4)))/DSUM(Forespørgsel1[#All],""&$L$4&"",$N$4:INDIRECT(ADDRESS($AK$3,$AK$4))))))),""),"") ->  | I44: =IF($AB$1=44,IFERROR(IF(ISTEXT($B44)=TRUE,DSUM(Forespørgsel1[#All],""&LEFT($C44,LEN($C44)-$A44)&"",$N$10:INDIRECT(ADDRESS($AK$5,$AK$4)))/DSUM(Forespørgsel1[#All],""&$B44&"",$N$10:INDIRECT(ADDRESS($AK$5,$AK$4))),IF($B44=0,DAVERAGE(Forespørgsel1[#All],""&LEFT($C44,LEN($C44)-$A44)&"",$N$10:INDIRECT(ADDRESS($AK$5,$AK$4))),IF($B44=1,DSUM(Forespørgsel1[#All],""&LEFT($C44,LEN($C44)-$A44)&"",$N$10:INDIRECT(ADDRESS($AK$5,$AK$4)))/DSUM(Forespørgsel1[#All],""&$K$4&"",$N$10:INDIRECT(ADDRESS($AK$5,$AK$4))),IF($B44=2,DSUM(Forespørgsel1[#All],""&LEFT($C44,LEN($C44)-$A44)&"",$N$10:INDIRECT(ADDRESS($AK$5,$AK$4)))/DSUM(Forespørgsel1[#All],""&$L$4&"",$N$10:INDIRECT(ADDRESS($AK$5,$AK$4))))))),""),"") ->  | N44: =3400 | O44: =O42 -> < | P44: =$P$7 -> TRUE
B45: Ha i alt, driftsgren | C45: Diverse kapacitetsomkostninger | D45: =IF($AB$1=44,Landsgennemsnit!DX45,"") ->  | E45: =IF($AB$1=44,Landsgennemsnit!DY45,"") ->  | F45: =IF($AB$1=44,Landsgennemsnit!DZ45,"") ->  | G45: =IF($AB$1=44,IFERROR(IF(ISTEXT($B45)=TRUE,DSUM(Forespørgsel1[#All],""&LEFT($C45,LEN($C45)-$A45)&"",$O$4:INDIRECT(ADDRESS($AK$3,$AK$4)))/DSUM(Forespørgsel1[#All],""&$B45&"",$O$4:INDIRECT(ADDRESS($AK$3,$AK$4))),IF($B45=0,DAVERAGE(Forespørgsel1[#All],""&LEFT($C45,LEN($C45)-$A45)&"",$O$4:INDIRECT(ADDRESS($AK$3,$AK$4))),IF($B45=1,DSUM(Forespørgsel1[#All],""&LEFT($C45,LEN($C45)-$A45)&"",$O$4:INDIRECT(ADDRESS($AK$3,$AK$4)))/DSUM(Forespørgsel1[#All],""&$K$4&"",$O$4:INDIRECT(ADDRESS($AK$3,$AK$4))),DSUM(Forespørgsel1[#All],""&LEFT($C45,LEN($C45)-$A45)&"",$O$4:INDIRECT(ADDRESS($AK$3,$AK$4)))/DSUM(Forespørgsel1[#All],""&$L$4&"",$O$4:INDIRECT(ADDRESS($AK$3,$AK$4)))))),"fejl"),"") ->  | H45: =IF($AB$1=44,IFERROR(IF(ISTEXT($B45)=TRUE,DSUM(Forespørgsel1[#All],""&LEFT($C45,LEN($C45)-$A45)&"",$N$4:INDIRECT(ADDRESS($AK$3,$AK$4)))/DSUM(Forespørgsel1[#All],""&$B45&"",$N$4:INDIRECT(ADDRESS($AK$3,$AK$4))),IF($B45=0,DAVERAGE(Forespørgsel1[#All],""&LEFT($C45,LEN($C45)-$A45)&"",$N$4:INDIRECT(ADDRESS($AK$3,$AK$4))),IF($B45=1,DSUM(Forespørgsel1[#All],""&LEFT($C45,LEN($C45)-$A45)&"",$N$4:INDIRECT(ADDRESS($AK$3,$AK$4)))/DSUM(Forespørgsel1[#All],""&$K$4&"",$N$4:INDIRECT(ADDRESS($AK$3,$AK$4))),IF($B45=2,DSUM(Forespørgsel1[#All],""&LEFT($C45,LEN($C45)-$A45)&"",$N$4:INDIRECT(ADDRESS($AK$3,$AK$4)))/DSUM(Forespørgsel1[#All],""&$L$4&"",$N$4:INDIRECT(ADDRESS($AK$3,$AK$4))))))),""),"") ->  | I45: =IF($AB$1=44,IFERROR(IF(ISTEXT($B45)=TRUE,DSUM(Forespørgsel1[#All],""&LEFT($C45,LEN($C45)-$A45)&"",$N$10:INDIRECT(ADDRESS($AK$5,$AK$4)))/DSUM(Forespørgsel1[#All],""&$B45&"",$N$10:INDIRECT(ADDRESS($AK$5,$AK$4))),IF($B45=0,DAVERAGE(Forespørgsel1[#All],""&LEFT($C45,LEN($C45)-$A45)&"",$N$10:INDIRECT(ADDRESS($AK$5,$AK$4))),IF($B45=1,DSUM(Forespørgsel1[#All],""&LEFT($C45,LEN($C45)-$A45)&"",$N$10:INDIRECT(ADDRESS($AK$5,$AK$4)))/DSUM(Forespørgsel1[#All],""&$K$4&"",$N$10:INDIRECT(ADDRESS($AK$5,$AK$4))),IF($B45=2,DSUM(Forespørgsel1[#All],""&LEFT($C45,LEN($C45)-$A45)&"",$N$10:INDIRECT(ADDRESS($AK$5,$AK$4)))/DSUM(Forespørgsel1[#All],""&$L$4&"",$N$10:INDIRECT(ADDRESS($AK$5,$AK$4))))))),""),"") ->  | N45: Prodgren | O45: =$N$4 -> Rest til jordleje før EU-støtte pr. ha | P45: Godkendt
B46: Ha i alt, driftsgren | C46: Kapacitetsomkostninger i alt | D46: =IF($AB$1=44,Landsgennemsnit!DX46,"") ->  | E46: =IF($AB$1=44,Landsgennemsnit!DY46,"") ->  | F46: =IF($AB$1=44,Landsgennemsnit!DZ46,"") ->  | G46: =IF($AB$1=44,IFERROR(IF(ISTEXT($B46)=TRUE,DSUM(Forespørgsel1[#All],""&LEFT($C46,LEN($C46)-$A46)&"",$O$4:INDIRECT(ADDRESS($AK$3,$AK$4)))/DSUM(Forespørgsel1[#All],""&$B46&"",$O$4:INDIRECT(ADDRESS($AK$3,$AK$4))),IF($B46=0,DAVERAGE(Forespørgsel1[#All],""&LEFT($C46,LEN($C46)-$A46)&"",$O$4:INDIRECT(ADDRESS($AK$3,$AK$4))),IF($B46=1,DSUM(Forespørgsel1[#All],""&LEFT($C46,LEN($C46)-$A46)&"",$O$4:INDIRECT(ADDRESS($AK$3,$AK$4)))/DSUM(Forespørgsel1[#All],""&$K$4&"",$O$4:INDIRECT(ADDRESS($AK$3,$AK$4))),DSUM(Forespørgsel1[#All],""&LEFT($C46,LEN($C46)-$A46)&"",$O$4:INDIRECT(ADDRESS($AK$3,$AK$4)))/DSUM(Forespørgsel1[#All],""&$L$4&"",$O$4:INDIRECT(ADDRESS($AK$3,$AK$4)))))),"fejl"),"") ->  | H46: =IF($AB$1=44,IFERROR(IF(ISTEXT($B46)=TRUE,DSUM(Forespørgsel1[#All],""&LEFT($C46,LEN($C46)-$A46)&"",$N$4:INDIRECT(ADDRESS($AK$3,$AK$4)))/DSUM(Forespørgsel1[#All],""&$B46&"",$N$4:INDIRECT(ADDRESS($AK$3,$AK$4))),IF($B46=0,DAVERAGE(Forespørgsel1[#All],""&LEFT($C46,LEN($C46)-$A46)&"",$N$4:INDIRECT(ADDRESS($AK$3,$AK$4))),IF($B46=1,DSUM(Forespørgsel1[#All],""&LEFT($C46,LEN($C46)-$A46)&"",$N$4:INDIRECT(ADDRESS($AK$3,$AK$4)))/DSUM(Forespørgsel1[#All],""&$K$4&"",$N$4:INDIRECT(ADDRESS($AK$3,$AK$4))),IF($B46=2,DSUM(Forespørgsel1[#All],""&LEFT($C46,LEN($C46)-$A46)&"",$N$4:INDIRECT(ADDRESS($AK$3,$AK$4)))/DSUM(Forespørgsel1[#All],""&$L$4&"",$N$4:INDIRECT(ADDRESS($AK$3,$AK$4))))))),""),"") ->  | I46: =IF($AB$1=44,IFERROR(IF(ISTEXT($B46)=TRUE,DSUM(Forespørgsel1[#All],""&LEFT($C46,LEN($C46)-$A46)&"",$N$10:INDIRECT(ADDRESS($AK$5,$AK$4)))/DSUM(Forespørgsel1[#All],""&$B46&"",$N$10:INDIRECT(ADDRESS($AK$5,$AK$4))),IF($B46=0,DAVERAGE(Forespørgsel1[#All],""&LEFT($C46,LEN($C46)-$A46)&"",$N$10:INDIRECT(ADDRESS($AK$5,$AK$4))),IF($B46=1,DSUM(Forespørgsel1[#All],""&LEFT($C46,LEN($C46)-$A46)&"",$N$10:INDIRECT(ADDRESS($AK$5,$AK$4)))/DSUM(Forespørgsel1[#All],""&$K$4&"",$N$10:INDIRECT(ADDRESS($AK$5,$AK$4))),IF($B46=2,DSUM(Forespørgsel1[#All],""&LEFT($C46,LEN($C46)-$A46)&"",$N$10:INDIRECT(ADDRESS($AK$5,$AK$4)))/DSUM(Forespørgsel1[#All],""&$L$4&"",$N$10:INDIRECT(ADDRESS($AK$5,$AK$4))))))),""),"") ->  | L46: =IF($AB$1=44,SUMIFS(Forespørgsel1[[#All],[Ejd_Nr]],Forespørgsel1[[#All],[Andel rug i pct.]],M46),"") ->  | M46: =IF($AB$1=44,DMAX(Forespørgsel1[#All],""&$M$17&"",$N41:INDIRECT(ADDRESS($AK46,$AK$4))),"") ->  | N46: =$O$5 -> =3400 | O46: ="<"&M46&"" -> < | P46: =$P$5 -> TRUE | AJ46: Række | AK46: 44
D47: =IF($AB$1=44,Landsgennemsnit!DX47,"") ->  | E47: =IF($AB$1=44,Landsgennemsnit!DY47,"") ->  | F47: =IF($AB$1=44,Landsgennemsnit!DZ47,"") ->  | H47: =IF($AB$1=44,IFERROR(IF(ISTEXT($B47)=TRUE,DSUM(Forespørgsel1[#All],""&LEFT($C47,LEN($C47)-$A47)&"",$N$4:INDIRECT(ADDRESS($AK$3,$AK$4)))/DSUM(Forespørgsel1[#All],""&$B47&"",$N$4:INDIRECT(ADDRESS($AK$3,$AK$4))),IF($B47=0,DAVERAGE(Forespørgsel1[#All],""&LEFT($C47,LEN($C47)-$A47)&"",$N$4:INDIRECT(ADDRESS($AK$3,$AK$4))),IF($B47=1,DSUM(Forespørgsel1[#All],""&LEFT($C47,LEN($C47)-$A47)&"",$N$4:INDIRECT(ADDRESS($AK$3,$AK$4)))/DSUM(Forespørgsel1[#All],""&$K$4&"",$N$4:INDIRECT(ADDRESS($AK$3,$AK$4))),IF($B47=2,DSUM(Forespørgsel1[#All],""&LEFT($C47,LEN($C47)-$A47)&"",$N$4:INDIRECT(ADDRESS($AK$3,$AK$4)))/DSUM(Forespørgsel1[#All],""&$L$4&"",$N$4:INDIRECT(ADDRESS($AK$3,$AK$4))))))),""),"") ->  | I47: =IF($AB$1=44,IFERROR(IF(ISTEXT($B47)=TRUE,DSUM(Forespørgsel1[#All],""&LEFT($C47,LEN($C47)-$A47)&"",$N$10:INDIRECT(ADDRESS($AK$5,$AK$4)))/DSUM(Forespørgsel1[#All],""&$B47&"",$N$10:INDIRECT(ADDRESS($AK$5,$AK$4))),IF($B47=0,DAVERAGE(Forespørgsel1[#All],""&LEFT($C47,LEN($C47)-$A47)&"",$N$10:INDIRECT(ADDRESS($AK$5,$AK$4))),IF($B47=1,DSUM(Forespørgsel1[#All],""&LEFT($C47,LEN($C47)-$A47)&"",$N$10:INDIRECT(ADDRESS($AK$5,$AK$4)))/DSUM(Forespørgsel1[#All],""&$K$4&"",$N$10:INDIRECT(ADDRESS($AK$5,$AK$4))),IF($B47=2,DSUM(Forespørgsel1[#All],""&LEFT($C47,LEN($C47)-$A47)&"",$N$10:INDIRECT(ADDRESS($AK$5,$AK$4)))/DSUM(Forespørgsel1[#All],""&$L$4&"",$N$10:INDIRECT(ADDRESS($AK$5,$AK$4))))))),""),"") ->  | N47: =$N$20 -> =3400 | O47: =O46 -> < | P47: =$P$6 -> TRUE
B48: Ha i alt, driftsgren | C48: Afskrivning bygninger og grundforbedring | D48: =IF($AB$1=44,Landsgennemsnit!DX48,"") ->  | E48: =IF($AB$1=44,Landsgennemsnit!DY48,"") ->  | F48: =IF($AB$1=44,Landsgennemsnit!DZ48,"") ->  | G48: =IF($AB$1=44,IFERROR(IF(ISTEXT($B48)=TRUE,DSUM(Forespørgsel1[#All],""&LEFT($C48,LEN($C48)-$A48)&"",$O$4:INDIRECT(ADDRESS($AK$3,$AK$4)))/DSUM(Forespørgsel1[#All],""&$B48&"",$O$4:INDIRECT(ADDRESS($AK$3,$AK$4))),IF($B48=0,DAVERAGE(Forespørgsel1[#All],""&LEFT($C48,LEN($C48)-$A48)&"",$O$4:INDIRECT(ADDRESS($AK$3,$AK$4))),IF($B48=1,DSUM(Forespørgsel1[#All],""&LEFT($C48,LEN($C48)-$A48)&"",$O$4:INDIRECT(ADDRESS($AK$3,$AK$4)))/DSUM(Forespørgsel1[#All],""&$K$4&"",$O$4:INDIRECT(ADDRESS($AK$3,$AK$4))),DSUM(Forespørgsel1[#All],""&LEFT($C48,LEN($C48)-$A48)&"",$O$4:INDIRECT(ADDRESS($AK$3,$AK$4)))/DSUM(Forespørgsel1[#All],""&$L$4&"",$O$4:INDIRECT(ADDRESS($AK$3,$AK$4)))))),"fejl"),"") ->  | H48: =IF($AB$1=44,IFERROR(IF(ISTEXT($B48)=TRUE,DSUM(Forespørgsel1[#All],""&LEFT($C48,LEN($C48)-$A48)&"",$N$4:INDIRECT(ADDRESS($AK$3,$AK$4)))/DSUM(Forespørgsel1[#All],""&$B48&"",$N$4:INDIRECT(ADDRESS($AK$3,$AK$4))),IF($B48=0,DAVERAGE(Forespørgsel1[#All],""&LEFT($C48,LEN($C48)-$A48)&"",$N$4:INDIRECT(ADDRESS($AK$3,$AK$4))),IF($B48=1,DSUM(Forespørgsel1[#All],""&LEFT($C48,LEN($C48)-$A48)&"",$N$4:INDIRECT(ADDRESS($AK$3,$AK$4)))/DSUM(Forespørgsel1[#All],""&$K$4&"",$N$4:INDIRECT(ADDRESS($AK$3,$AK$4))),IF($B48=2,DSUM(Forespørgsel1[#All],""&LEFT($C48,LEN($C48)-$A48)&"",$N$4:INDIRECT(ADDRESS($AK$3,$AK$4)))/DSUM(Forespørgsel1[#All],""&$L$4&"",$N$4:INDIRECT(ADDRESS($AK$3,$AK$4))))))),""),"") ->  | I48: =IF($AB$1=44,IFERROR(IF(ISTEXT($B48)=TRUE,DSUM(Forespørgsel1[#All],""&LEFT($C48,LEN($C48)-$A48)&"",$N$10:INDIRECT(ADDRESS($AK$5,$AK$4)))/DSUM(Forespørgsel1[#All],""&$B48&"",$N$10:INDIRECT(ADDRESS($AK$5,$AK$4))),IF($B48=0,DAVERAGE(Forespørgsel1[#All],""&LEFT($C48,LEN($C48)-$A48)&"",$N$10:INDIRECT(ADDRESS($AK$5,$AK$4))),IF($B48=1,DSUM(Forespørgsel1[#All],""&LEFT($C48,LEN($C48)-$A48)&"",$N$10:INDIRECT(ADDRESS($AK$5,$AK$4)))/DSUM(Forespørgsel1[#All],""&$K$4&"",$N$10:INDIRECT(ADDRESS($AK$5,$AK$4))),IF($B48=2,DSUM(Forespørgsel1[#All],""&LEFT($C48,LEN($C48)-$A48)&"",$N$10:INDIRECT(ADDRESS($AK$5,$AK$4)))/DSUM(Forespørgsel1[#All],""&$L$4&"",$N$10:INDIRECT(ADDRESS($AK$5,$AK$4))))))),""),"") ->  | N48: =3400 | O48: =O46 -> < | P48: =$P$7 -> TRUE
B49: Ha i alt, driftsgren | C49: Afskrivning, markinventar | D49: =IF($AB$1=44,Landsgennemsnit!DX49,"") ->  | E49: =IF($AB$1=44,Landsgennemsnit!DY49,"") ->  | F49: =IF($AB$1=44,Landsgennemsnit!DZ49,"") ->  | G49: =IF($AB$1=44,IFERROR(IF(ISTEXT($B49)=TRUE,DSUM(Forespørgsel1[#All],""&LEFT($C49,LEN($C49)-$A49)&"",$O$4:INDIRECT(ADDRESS($AK$3,$AK$4)))/DSUM(Forespørgsel1[#All],""&$B49&"",$O$4:INDIRECT(ADDRESS($AK$3,$AK$4))),IF($B49=0,DAVERAGE(Forespørgsel1[#All],""&LEFT($C49,LEN($C49)-$A49)&"",$O$4:INDIRECT(ADDRESS($AK$3,$AK$4))),IF($B49=1,DSUM(Forespørgsel1[#All],""&LEFT($C49,LEN($C49)-$A49)&"",$O$4:INDIRECT(ADDRESS($AK$3,$AK$4)))/DSUM(Forespørgsel1[#All],""&$K$4&"",$O$4:INDIRECT(ADDRESS($AK$3,$AK$4))),DSUM(Forespørgsel1[#All],""&LEFT($C49,LEN($C49)-$A49)&"",$O$4:INDIRECT(ADDRESS($AK$3,$AK$4)))/DSUM(Forespørgsel1[#All],""&$L$4&"",$O$4:INDIRECT(ADDRESS($AK$3,$AK$4)))))),"fejl"),"") ->  | H49: =IF($AB$1=44,IFERROR(IF(ISTEXT($B49)=TRUE,DSUM(Forespørgsel1[#All],""&LEFT($C49,LEN($C49)-$A49)&"",$N$4:INDIRECT(ADDRESS($AK$3,$AK$4)))/DSUM(Forespørgsel1[#All],""&$B49&"",$N$4:INDIRECT(ADDRESS($AK$3,$AK$4))),IF($B49=0,DAVERAGE(Forespørgsel1[#All],""&LEFT($C49,LEN($C49)-$A49)&"",$N$4:INDIRECT(ADDRESS($AK$3,$AK$4))),IF($B49=1,DSUM(Forespørgsel1[#All],""&LEFT($C49,LEN($C49)-$A49)&"",$N$4:INDIRECT(ADDRESS($AK$3,$AK$4)))/DSUM(Forespørgsel1[#All],""&$K$4&"",$N$4:INDIRECT(ADDRESS($AK$3,$AK$4))),IF($B49=2,DSUM(Forespørgsel1[#All],""&LEFT($C49,LEN($C49)-$A49)&"",$N$4:INDIRECT(ADDRESS($AK$3,$AK$4)))/DSUM(Forespørgsel1[#All],""&$L$4&"",$N$4:INDIRECT(ADDRESS($AK$3,$AK$4))))))),""),"") ->  | I49: =IF($AB$1=44,IFERROR(IF(ISTEXT($B49)=TRUE,DSUM(Forespørgsel1[#All],""&LEFT($C49,LEN($C49)-$A49)&"",$N$10:INDIRECT(ADDRESS($AK$5,$AK$4)))/DSUM(Forespørgsel1[#All],""&$B49&"",$N$10:INDIRECT(ADDRESS($AK$5,$AK$4))),IF($B49=0,DAVERAGE(Forespørgsel1[#All],""&LEFT($C49,LEN($C49)-$A49)&"",$N$10:INDIRECT(ADDRESS($AK$5,$AK$4))),IF($B49=1,DSUM(Forespørgsel1[#All],""&LEFT($C49,LEN($C49)-$A49)&"",$N$10:INDIRECT(ADDRESS($AK$5,$AK$4)))/DSUM(Forespørgsel1[#All],""&$K$4&"",$N$10:INDIRECT(ADDRESS($AK$5,$AK$4))),IF($B49=2,DSUM(Forespørgsel1[#All],""&LEFT($C49,LEN($C49)-$A49)&"",$N$10:INDIRECT(ADDRESS($AK$5,$AK$4)))/DSUM(Forespørgsel1[#All],""&$L$4&"",$N$10:INDIRECT(ADDRESS($AK$5,$AK$4))))))),""),"") ->  | N49: Prodgren | O49: =$N$4 -> Rest til jordleje før EU-støtte pr. ha | P49: Godkendt
B50: Ha i alt, driftsgren | C50: Afkoblet EU-støtte | D50: =IF($AB$1=44,Landsgennemsnit!DX50,"") ->  | E50: =IF($AB$1=44,Landsgennemsnit!DY50,"") ->  | F50: =IF($AB$1=44,Landsgennemsnit!DZ50,"") ->  | G50: =IF($AB$1=44,IFERROR(IF(ISTEXT($B50)=TRUE,DSUM(Forespørgsel1[#All],""&LEFT($C50,LEN($C50)-$A50)&"",$O$4:INDIRECT(ADDRESS($AK$3,$AK$4)))/DSUM(Forespørgsel1[#All],""&$B50&"",$O$4:INDIRECT(ADDRESS($AK$3,$AK$4))),IF($B50=0,DAVERAGE(Forespørgsel1[#All],""&LEFT($C50,LEN($C50)-$A50)&"",$O$4:INDIRECT(ADDRESS($AK$3,$AK$4))),IF($B50=1,DSUM(Forespørgsel1[#All],""&LEFT($C50,LEN($C50)-$A50)&"",$O$4:INDIRECT(ADDRESS($AK$3,$AK$4)))/DSUM(Forespørgsel1[#All],""&$K$4&"",$O$4:INDIRECT(ADDRESS($AK$3,$AK$4))),DSUM(Forespørgsel1[#All],""&LEFT($C50,LEN($C50)-$A50)&"",$O$4:INDIRECT(ADDRESS($AK$3,$AK$4)))/DSUM(Forespørgsel1[#All],""&$L$4&"",$O$4:INDIRECT(ADDRESS($AK$3,$AK$4)))))),"fejl"),"") ->  | H50: =IF($AB$1=44,IFERROR(IF(ISTEXT($B50)=TRUE,DSUM(Forespørgsel1[#All],""&LEFT($C50,LEN($C50)-$A50)&"",$N$4:INDIRECT(ADDRESS($AK$3,$AK$4)))/DSUM(Forespørgsel1[#All],""&$B50&"",$N$4:INDIRECT(ADDRESS($AK$3,$AK$4))),IF($B50=0,DAVERAGE(Forespørgsel1[#All],""&LEFT($C50,LEN($C50)-$A50)&"",$N$4:INDIRECT(ADDRESS($AK$3,$AK$4))),IF($B50=1,DSUM(Forespørgsel1[#All],""&LEFT($C50,LEN($C50)-$A50)&"",$N$4:INDIRECT(ADDRESS($AK$3,$AK$4)))/DSUM(Forespørgsel1[#All],""&$K$4&"",$N$4:INDIRECT(ADDRESS($AK$3,$AK$4))),IF($B50=2,DSUM(Forespørgsel1[#All],""&LEFT($C50,LEN($C50)-$A50)&"",$N$4:INDIRECT(ADDRESS($AK$3,$AK$4)))/DSUM(Forespørgsel1[#All],""&$L$4&"",$N$4:INDIRECT(ADDRESS($AK$3,$AK$4))))))),""),"") ->  | I50: =IF($AB$1=44,IFERROR(IF(ISTEXT($B50)=TRUE,DSUM(Forespørgsel1[#All],""&LEFT($C50,LEN($C50)-$A50)&"",$N$10:INDIRECT(ADDRESS($AK$5,$AK$4)))/DSUM(Forespørgsel1[#All],""&$B50&"",$N$10:INDIRECT(ADDRESS($AK$5,$AK$4))),IF($B50=0,DAVERAGE(Forespørgsel1[#All],""&LEFT($C50,LEN($C50)-$A50)&"",$N$10:INDIRECT(ADDRESS($AK$5,$AK$4))),IF($B50=1,DSUM(Forespørgsel1[#All],""&LEFT($C50,LEN($C50)-$A50)&"",$N$10:INDIRECT(ADDRESS($AK$5,$AK$4)))/DSUM(Forespørgsel1[#All],""&$K$4&"",$N$10:INDIRECT(ADDRESS($AK$5,$AK$4))),IF($B50=2,DSUM(Forespørgsel1[#All],""&LEFT($C50,LEN($C50)-$A50)&"",$N$10:INDIRECT(ADDRESS($AK$5,$AK$4)))/DSUM(Forespørgsel1[#All],""&$L$4&"",$N$10:INDIRECT(ADDRESS($AK$5,$AK$4))))))),""),"") ->  | L50: =IF($AB$1=44,SUMIFS(Forespørgsel1[[#All],[Ejd_Nr]],Forespørgsel1[[#All],[Andel rug i pct.]],M50),"") ->  | M50: =IF($AB$1=44,DMAX(Forespørgsel1[#All],""&$M$17&"",$N45:INDIRECT(ADDRESS($AK50,$AK$4))),"") ->  | N50: =$O$5 -> =3400 | O50: ="<"&M50&"" -> < | P50: =$P$5 -> TRUE | AJ50: Række | AK50: 48
B51: Ha i alt, driftsgren | C51: Renteomk. af bundet kapital | D51: =IF($AB$1=44,Landsgennemsnit!DX51,"") ->  | E51: =IF($AB$1=44,Landsgennemsnit!DY51,"") ->  | F51: =IF($AB$1=44,Landsgennemsnit!DZ51,"") ->  | G51: =IF($AB$1=44,IFERROR(IF(ISTEXT($B51)=TRUE,DSUM(Forespørgsel1[#All],""&LEFT($C51,LEN($C51)-$A51)&"",$O$4:INDIRECT(ADDRESS($AK$3,$AK$4)))/DSUM(Forespørgsel1[#All],""&$B51&"",$O$4:INDIRECT(ADDRESS($AK$3,$AK$4))),IF($B51=0,DAVERAGE(Forespørgsel1[#All],""&LEFT($C51,LEN($C51)-$A51)&"",$O$4:INDIRECT(ADDRESS($AK$3,$AK$4))),IF($B51=1,DSUM(Forespørgsel1[#All],""&LEFT($C51,LEN($C51)-$A51)&"",$O$4:INDIRECT(ADDRESS($AK$3,$AK$4)))/DSUM(Forespørgsel1[#All],""&$K$4&"",$O$4:INDIRECT(ADDRESS($AK$3,$AK$4))),DSUM(Forespørgsel1[#All],""&LEFT($C51,LEN($C51)-$A51)&"",$O$4:INDIRECT(ADDRESS($AK$3,$AK$4)))/DSUM(Forespørgsel1[#All],""&$L$4&"",$O$4:INDIRECT(ADDRESS($AK$3,$AK$4)))))),"fejl"),"") ->  | H51: =IF($AB$1=44,IFERROR(IF(ISTEXT($B51)=TRUE,DSUM(Forespørgsel1[#All],""&LEFT($C51,LEN($C51)-$A51)&"",$N$4:INDIRECT(ADDRESS($AK$3,$AK$4)))/DSUM(Forespørgsel1[#All],""&$B51&"",$N$4:INDIRECT(ADDRESS($AK$3,$AK$4))),IF($B51=0,DAVERAGE(Forespørgsel1[#All],""&LEFT($C51,LEN($C51)-$A51)&"",$N$4:INDIRECT(ADDRESS($AK$3,$AK$4))),IF($B51=1,DSUM(Forespørgsel1[#All],""&LEFT($C51,LEN($C51)-$A51)&"",$N$4:INDIRECT(ADDRESS($AK$3,$AK$4)))/DSUM(Forespørgsel1[#All],""&$K$4&"",$N$4:INDIRECT(ADDRESS($AK$3,$AK$4))),IF($B51=2,DSUM(Forespørgsel1[#All],""&LEFT($C51,LEN($C51)-$A51)&"",$N$4:INDIRECT(ADDRESS($AK$3,$AK$4)))/DSUM(Forespørgsel1[#All],""&$L$4&"",$N$4:INDIRECT(ADDRESS($AK$3,$AK$4))))))),""),"") ->  | I51: =IF($AB$1=44,IFERROR(IF(ISTEXT($B51)=TRUE,DSUM(Forespørgsel1[#All],""&LEFT($C51,LEN($C51)-$A51)&"",$N$10:INDIRECT(ADDRESS($AK$5,$AK$4)))/DSUM(Forespørgsel1[#All],""&$B51&"",$N$10:INDIRECT(ADDRESS($AK$5,$AK$4))),IF($B51=0,DAVERAGE(Forespørgsel1[#All],""&LEFT($C51,LEN($C51)-$A51)&"",$N$10:INDIRECT(ADDRESS($AK$5,$AK$4))),IF($B51=1,DSUM(Forespørgsel1[#All],""&LEFT($C51,LEN($C51)-$A51)&"",$N$10:INDIRECT(ADDRESS($AK$5,$AK$4)))/DSUM(Forespørgsel1[#All],""&$K$4&"",$N$10:INDIRECT(ADDRESS($AK$5,$AK$4))),IF($B51=2,DSUM(Forespørgsel1[#All],""&LEFT($C51,LEN($C51)-$A51)&"",$N$10:INDIRECT(ADDRESS($AK$5,$AK$4)))/DSUM(Forespørgsel1[#All],""&$L$4&"",$N$10:INDIRECT(ADDRESS($AK$5,$AK$4))))))),""),"") ->  | N51: =$N$20 -> =3400 | O51: =O50 -> < | P51: =$P$6 -> TRUE
B52: Ha i alt, driftsgren | C52: Forpagtning | D52: =IF($AB$1=44,Landsgennemsnit!DX52,"") ->  | E52: =IF($AB$1=44,Landsgennemsnit!DY52,"") ->  | F52: =IF($AB$1=44,Landsgennemsnit!DZ52,"") ->  | G52: =IF($AB$1=44,IFERROR(IF(ISTEXT($B52)=TRUE,DSUM(Forespørgsel1[#All],""&LEFT($C52,LEN($C52)-$A52)&"",$O$4:INDIRECT(ADDRESS($AK$3,$AK$4)))/DSUM(Forespørgsel1[#All],""&$B52&"",$O$4:INDIRECT(ADDRESS($AK$3,$AK$4))),IF($B52=0,DAVERAGE(Forespørgsel1[#All],""&LEFT($C52,LEN($C52)-$A52)&"",$O$4:INDIRECT(ADDRESS($AK$3,$AK$4))),IF($B52=1,DSUM(Forespørgsel1[#All],""&LEFT($C52,LEN($C52)-$A52)&"",$O$4:INDIRECT(ADDRESS($AK$3,$AK$4)))/DSUM(Forespørgsel1[#All],""&$K$4&"",$O$4:INDIRECT(ADDRESS($AK$3,$AK$4))),DSUM(Forespørgsel1[#All],""&LEFT($C52,LEN($C52)-$A52)&"",$O$4:INDIRECT(ADDRESS($AK$3,$AK$4)))/DSUM(Forespørgsel1[#All],""&$L$4&"",$O$4:INDIRECT(ADDRESS($AK$3,$AK$4)))))),"fejl"),"") ->  | H52: =IF($AB$1=44,IFERROR(IF(ISTEXT($B52)=TRUE,DSUM(Forespørgsel1[#All],""&LEFT($C52,LEN($C52)-$A52)&"",$N$4:INDIRECT(ADDRESS($AK$3,$AK$4)))/DSUM(Forespørgsel1[#All],""&$B52&"",$N$4:INDIRECT(ADDRESS($AK$3,$AK$4))),IF($B52=0,DAVERAGE(Forespørgsel1[#All],""&LEFT($C52,LEN($C52)-$A52)&"",$N$4:INDIRECT(ADDRESS($AK$3,$AK$4))),IF($B52=1,DSUM(Forespørgsel1[#All],""&LEFT($C52,LEN($C52)-$A52)&"",$N$4:INDIRECT(ADDRESS($AK$3,$AK$4)))/DSUM(Forespørgsel1[#All],""&$K$4&"",$N$4:INDIRECT(ADDRESS($AK$3,$AK$4))),IF($B52=2,DSUM(Forespørgsel1[#All],""&LEFT($C52,LEN($C52)-$A52)&"",$N$4:INDIRECT(ADDRESS($AK$3,$AK$4)))/DSUM(Forespørgsel1[#All],""&$L$4&"",$N$4:INDIRECT(ADDRESS($AK$3,$AK$4))))))),""),"") ->  | I52: =IF($AB$1=44,IFERROR(IF(ISTEXT($B52)=TRUE,DSUM(Forespørgsel1[#All],""&LEFT($C52,LEN($C52)-$A52)&"",$N$10:INDIRECT(ADDRESS($AK$5,$AK$4)))/DSUM(Forespørgsel1[#All],""&$B52&"",$N$10:INDIRECT(ADDRESS($AK$5,$AK$4))),IF($B52=0,DAVERAGE(Forespørgsel1[#All],""&LEFT($C52,LEN($C52)-$A52)&"",$N$10:INDIRECT(ADDRESS($AK$5,$AK$4))),IF($B52=1,DSUM(Forespørgsel1[#All],""&LEFT($C52,LEN($C52)-$A52)&"",$N$10:INDIRECT(ADDRESS($AK$5,$AK$4)))/DSUM(Forespørgsel1[#All],""&$K$4&"",$N$10:INDIRECT(ADDRESS($AK$5,$AK$4))),IF($B52=2,DSUM(Forespørgsel1[#All],""&LEFT($C52,LEN($C52)-$A52)&"",$N$10:INDIRECT(ADDRESS($AK$5,$AK$4)))/DSUM(Forespørgsel1[#All],""&$L$4&"",$N$10:INDIRECT(ADDRESS($AK$5,$AK$4))))))),""),"") ->  | N52: =3400 | O52: =O50 -> < | P52: =$P$7 -> TRUE
B53: Ha i alt, driftsgren | C53: Diverse kapitalomkostninger | D53: =IF($AB$1=44,Landsgennemsnit!DX53,"") ->  | E53: =IF($AB$1=44,Landsgennemsnit!DY53,"") ->  | F53: =IF($AB$1=44,Landsgennemsnit!DZ53,"") ->  | G53: =IF($AB$1=44,IFERROR(IF(ISTEXT($B53)=TRUE,DSUM(Forespørgsel1[#All],""&LEFT($C53,LEN($C53)-$A53)&"",$O$4:INDIRECT(ADDRESS($AK$3,$AK$4)))/DSUM(Forespørgsel1[#All],""&$B53&"",$O$4:INDIRECT(ADDRESS($AK$3,$AK$4))),IF($B53=0,DAVERAGE(Forespørgsel1[#All],""&LEFT($C53,LEN($C53)-$A53)&"",$O$4:INDIRECT(ADDRESS($AK$3,$AK$4))),IF($B53=1,DSUM(Forespørgsel1[#All],""&LEFT($C53,LEN($C53)-$A53)&"",$O$4:INDIRECT(ADDRESS($AK$3,$AK$4)))/DSUM(Forespørgsel1[#All],""&$K$4&"",$O$4:INDIRECT(ADDRESS($AK$3,$AK$4))),DSUM(Forespørgsel1[#All],""&LEFT($C53,LEN($C53)-$A53)&"",$O$4:INDIRECT(ADDRESS($AK$3,$AK$4)))/DSUM(Forespørgsel1[#All],""&$L$4&"",$O$4:INDIRECT(ADDRESS($AK$3,$AK$4)))))),"fejl"),"") ->  | H53: =IF($AB$1=44,IFERROR(IF(ISTEXT($B53)=TRUE,DSUM(Forespørgsel1[#All],""&LEFT($C53,LEN($C53)-$A53)&"",$N$4:INDIRECT(ADDRESS($AK$3,$AK$4)))/DSUM(Forespørgsel1[#All],""&$B53&"",$N$4:INDIRECT(ADDRESS($AK$3,$AK$4))),IF($B53=0,DAVERAGE(Forespørgsel1[#All],""&LEFT($C53,LEN($C53)-$A53)&"",$N$4:INDIRECT(ADDRESS($AK$3,$AK$4))),IF($B53=1,DSUM(Forespørgsel1[#All],""&LEFT($C53,LEN($C53)-$A53)&"",$N$4:INDIRECT(ADDRESS($AK$3,$AK$4)))/DSUM(Forespørgsel1[#All],""&$K$4&"",$N$4:INDIRECT(ADDRESS($AK$3,$AK$4))),IF($B53=2,DSUM(Forespørgsel1[#All],""&LEFT($C53,LEN($C53)-$A53)&"",$N$4:INDIRECT(ADDRESS($AK$3,$AK$4)))/DSUM(Forespørgsel1[#All],""&$L$4&"",$N$4:INDIRECT(ADDRESS($AK$3,$AK$4))))))),""),"") ->  | I53: =IF($AB$1=44,IFERROR(IF(ISTEXT($B53)=TRUE,DSUM(Forespørgsel1[#All],""&LEFT($C53,LEN($C53)-$A53)&"",$N$10:INDIRECT(ADDRESS($AK$5,$AK$4)))/DSUM(Forespørgsel1[#All],""&$B53&"",$N$10:INDIRECT(ADDRESS($AK$5,$AK$4))),IF($B53=0,DAVERAGE(Forespørgsel1[#All],""&LEFT($C53,LEN($C53)-$A53)&"",$N$10:INDIRECT(ADDRESS($AK$5,$AK$4))),IF($B53=1,DSUM(Forespørgsel1[#All],""&LEFT($C53,LEN($C53)-$A53)&"",$N$10:INDIRECT(ADDRESS($AK$5,$AK$4)))/DSUM(Forespørgsel1[#All],""&$K$4&"",$N$10:INDIRECT(ADDRESS($AK$5,$AK$4))),IF($B53=2,DSUM(Forespørgsel1[#All],""&LEFT($C53,LEN($C53)-$A53)&"",$N$10:INDIRECT(ADDRESS($AK$5,$AK$4)))/DSUM(Forespørgsel1[#All],""&$L$4&"",$N$10:INDIRECT(ADDRESS($AK$5,$AK$4))))))),""),"") ->  | N53: Prodgren | O53: =$N$4 -> Rest til jordleje før EU-støtte pr. ha | P53: Godkendt
B54: Ha i alt, driftsgren | C54: Kapitalomkostninger i alt | D54: =IF($AB$1=44,Landsgennemsnit!DX54,"") ->  | E54: =IF($AB$1=44,Landsgennemsnit!DY54,"") ->  | F54: =IF($AB$1=44,Landsgennemsnit!DZ54,"") ->  | G54: =IF($AB$1=44,IFERROR(IF(ISTEXT($B54)=TRUE,DSUM(Forespørgsel1[#All],""&LEFT($C54,LEN($C54)-$A54)&"",$O$4:INDIRECT(ADDRESS($AK$3,$AK$4)))/DSUM(Forespørgsel1[#All],""&$B54&"",$O$4:INDIRECT(ADDRESS($AK$3,$AK$4))),IF($B54=0,DAVERAGE(Forespørgsel1[#All],""&LEFT($C54,LEN($C54)-$A54)&"",$O$4:INDIRECT(ADDRESS($AK$3,$AK$4))),IF($B54=1,DSUM(Forespørgsel1[#All],""&LEFT($C54,LEN($C54)-$A54)&"",$O$4:INDIRECT(ADDRESS($AK$3,$AK$4)))/DSUM(Forespørgsel1[#All],""&$K$4&"",$O$4:INDIRECT(ADDRESS($AK$3,$AK$4))),DSUM(Forespørgsel1[#All],""&LEFT($C54,LEN($C54)-$A54)&"",$O$4:INDIRECT(ADDRESS($AK$3,$AK$4)))/DSUM(Forespørgsel1[#All],""&$L$4&"",$O$4:INDIRECT(ADDRESS($AK$3,$AK$4)))))),"fejl"),"") ->  | H54: =IF($AB$1=44,IFERROR(IF(ISTEXT($B54)=TRUE,DSUM(Forespørgsel1[#All],""&LEFT($C54,LEN($C54)-$A54)&"",$N$4:INDIRECT(ADDRESS($AK$3,$AK$4)))/DSUM(Forespørgsel1[#All],""&$B54&"",$N$4:INDIRECT(ADDRESS($AK$3,$AK$4))),IF($B54=0,DAVERAGE(Forespørgsel1[#All],""&LEFT($C54,LEN($C54)-$A54)&"",$N$4:INDIRECT(ADDRESS($AK$3,$AK$4))),IF($B54=1,DSUM(Forespørgsel1[#All],""&LEFT($C54,LEN($C54)-$A54)&"",$N$4:INDIRECT(ADDRESS($AK$3,$AK$4)))/DSUM(Forespørgsel1[#All],""&$K$4&"",$N$4:INDIRECT(ADDRESS($AK$3,$AK$4))),IF($B54=2,DSUM(Forespørgsel1[#All],""&LEFT($C54,LEN($C54)-$A54)&"",$N$4:INDIRECT(ADDRESS($AK$3,$AK$4)))/DSUM(Forespørgsel1[#All],""&$L$4&"",$N$4:INDIRECT(ADDRESS($AK$3,$AK$4))))))),""),"") ->  | I54: =IF($AB$1=44,IFERROR(IF(ISTEXT($B54)=TRUE,DSUM(Forespørgsel1[#All],""&LEFT($C54,LEN($C54)-$A54)&"",$N$10:INDIRECT(ADDRESS($AK$5,$AK$4)))/DSUM(Forespørgsel1[#All],""&$B54&"",$N$10:INDIRECT(ADDRESS($AK$5,$AK$4))),IF($B54=0,DAVERAGE(Forespørgsel1[#All],""&LEFT($C54,LEN($C54)-$A54)&"",$N$10:INDIRECT(ADDRESS($AK$5,$AK$4))),IF($B54=1,DSUM(Forespørgsel1[#All],""&LEFT($C54,LEN($C54)-$A54)&"",$N$10:INDIRECT(ADDRESS($AK$5,$AK$4)))/DSUM(Forespørgsel1[#All],""&$K$4&"",$N$10:INDIRECT(ADDRESS($AK$5,$AK$4))),IF($B54=2,DSUM(Forespørgsel1[#All],""&LEFT($C54,LEN($C54)-$A54)&"",$N$10:INDIRECT(ADDRESS($AK$5,$AK$4)))/DSUM(Forespørgsel1[#All],""&$L$4&"",$N$10:INDIRECT(ADDRESS($AK$5,$AK$4))))))),""),"") ->  | L54: =IF($AB$1=44,SUMIFS(Forespørgsel1[[#All],[Ejd_Nr]],Forespørgsel1[[#All],[Andel rug i pct.]],M54),"") ->  | M54: =IF($AB$1=44,DMAX(Forespørgsel1[#All],""&$M$17&"",$N49:INDIRECT(ADDRESS($AK54,$AK$4))),"") ->  | N54: =$O$5 -> =3400 | O54: ="<"&M54&"" -> < | P54: =$P$5 -> TRUE | AJ54: Række | AK54: 52
D55: =IF($AB$1=44,Landsgennemsnit!DX55,"") ->  | E55: =IF($AB$1=44,Landsgennemsnit!DY55,"") ->  | F55: =IF($AB$1=44,Landsgennemsnit!DZ55,"") ->  | H55: =IF($AB$1=44,IFERROR(IF(ISTEXT($B55)=TRUE,DSUM(Forespørgsel1[#All],""&LEFT($C55,LEN($C55)-$A55)&"",$N$4:INDIRECT(ADDRESS($AK$3,$AK$4)))/DSUM(Forespørgsel1[#All],""&$B55&"",$N$4:INDIRECT(ADDRESS($AK$3,$AK$4))),IF($B55=0,DAVERAGE(Forespørgsel1[#All],""&LEFT($C55,LEN($C55)-$A55)&"",$N$4:INDIRECT(ADDRESS($AK$3,$AK$4))),IF($B55=1,DSUM(Forespørgsel1[#All],""&LEFT($C55,LEN($C55)-$A55)&"",$N$4:INDIRECT(ADDRESS($AK$3,$AK$4)))/DSUM(Forespørgsel1[#All],""&$K$4&"",$N$4:INDIRECT(ADDRESS($AK$3,$AK$4))),IF($B55=2,DSUM(Forespørgsel1[#All],""&LEFT($C55,LEN($C55)-$A55)&"",$N$4:INDIRECT(ADDRESS($AK$3,$AK$4)))/DSUM(Forespørgsel1[#All],""&$L$4&"",$N$4:INDIRECT(ADDRESS($AK$3,$AK$4))))))),""),"") ->  | I55: =IF($AB$1=44,IFERROR(IF(ISTEXT($B55)=TRUE,DSUM(Forespørgsel1[#All],""&LEFT($C55,LEN($C55)-$A55)&"",$N$10:INDIRECT(ADDRESS($AK$5,$AK$4)))/DSUM(Forespørgsel1[#All],""&$B55&"",$N$10:INDIRECT(ADDRESS($AK$5,$AK$4))),IF($B55=0,DAVERAGE(Forespørgsel1[#All],""&LEFT($C55,LEN($C55)-$A55)&"",$N$10:INDIRECT(ADDRESS($AK$5,$AK$4))),IF($B55=1,DSUM(Forespørgsel1[#All],""&LEFT($C55,LEN($C55)-$A55)&"",$N$10:INDIRECT(ADDRESS($AK$5,$AK$4)))/DSUM(Forespørgsel1[#All],""&$K$4&"",$N$10:INDIRECT(ADDRESS($AK$5,$AK$4))),IF($B55=2,DSUM(Forespørgsel1[#All],""&LEFT($C55,LEN($C55)-$A55)&"",$N$10:INDIRECT(ADDRESS($AK$5,$AK$4)))/DSUM(Forespørgsel1[#All],""&$L$4&"",$N$10:INDIRECT(ADDRESS($AK$5,$AK$4))))))),""),"") ->  | N55: =$N$20 -> =3400 | O55: =O54 -> < | P55: =$P$6 -> TRUE
B56: Ha i alt, driftsgren | C56: Resultat, driftsgren | D56: =IF($AB$1=44,Landsgennemsnit!DX56,"") ->  | E56: =IF($AB$1=44,Landsgennemsnit!DY56,"") ->  | F56: =IF($AB$1=44,Landsgennemsnit!DZ56,"") ->  | G56: =IF($AB$1=44,IFERROR(IF(ISTEXT($B56)=TRUE,DSUM(Forespørgsel1[#All],""&LEFT($C56,LEN($C56)-$A56)&"",$O$4:INDIRECT(ADDRESS($AK$3,$AK$4)))/DSUM(Forespørgsel1[#All],""&$B56&"",$O$4:INDIRECT(ADDRESS($AK$3,$AK$4))),IF($B56=0,DAVERAGE(Forespørgsel1[#All],""&LEFT($C56,LEN($C56)-$A56)&"",$O$4:INDIRECT(ADDRESS($AK$3,$AK$4))),IF($B56=1,DSUM(Forespørgsel1[#All],""&LEFT($C56,LEN($C56)-$A56)&"",$O$4:INDIRECT(ADDRESS($AK$3,$AK$4)))/DSUM(Forespørgsel1[#All],""&$K$4&"",$O$4:INDIRECT(ADDRESS($AK$3,$AK$4))),DSUM(Forespørgsel1[#All],""&LEFT($C56,LEN($C56)-$A56)&"",$O$4:INDIRECT(ADDRESS($AK$3,$AK$4)))/DSUM(Forespørgsel1[#All],""&$L$4&"",$O$4:INDIRECT(ADDRESS($AK$3,$AK$4)))))),"fejl"),"") ->  | H56: =IF($AB$1=44,IFERROR(IF(ISTEXT($B56)=TRUE,DSUM(Forespørgsel1[#All],""&LEFT($C56,LEN($C56)-$A56)&"",$N$4:INDIRECT(ADDRESS($AK$3,$AK$4)))/DSUM(Forespørgsel1[#All],""&$B56&"",$N$4:INDIRECT(ADDRESS($AK$3,$AK$4))),IF($B56=0,DAVERAGE(Forespørgsel1[#All],""&LEFT($C56,LEN($C56)-$A56)&"",$N$4:INDIRECT(ADDRESS($AK$3,$AK$4))),IF($B56=1,DSUM(Forespørgsel1[#All],""&LEFT($C56,LEN($C56)-$A56)&"",$N$4:INDIRECT(ADDRESS($AK$3,$AK$4)))/DSUM(Forespørgsel1[#All],""&$K$4&"",$N$4:INDIRECT(ADDRESS($AK$3,$AK$4))),IF($B56=2,DSUM(Forespørgsel1[#All],""&LEFT($C56,LEN($C56)-$A56)&"",$N$4:INDIRECT(ADDRESS($AK$3,$AK$4)))/DSUM(Forespørgsel1[#All],""&$L$4&"",$N$4:INDIRECT(ADDRESS($AK$3,$AK$4))))))),""),"") ->  | I56: =IF($AB$1=44,IFERROR(IF(ISTEXT($B56)=TRUE,DSUM(Forespørgsel1[#All],""&LEFT($C56,LEN($C56)-$A56)&"",$N$10:INDIRECT(ADDRESS($AK$5,$AK$4)))/DSUM(Forespørgsel1[#All],""&$B56&"",$N$10:INDIRECT(ADDRESS($AK$5,$AK$4))),IF($B56=0,DAVERAGE(Forespørgsel1[#All],""&LEFT($C56,LEN($C56)-$A56)&"",$N$10:INDIRECT(ADDRESS($AK$5,$AK$4))),IF($B56=1,DSUM(Forespørgsel1[#All],""&LEFT($C56,LEN($C56)-$A56)&"",$N$10:INDIRECT(ADDRESS($AK$5,$AK$4)))/DSUM(Forespørgsel1[#All],""&$K$4&"",$N$10:INDIRECT(ADDRESS($AK$5,$AK$4))),IF($B56=2,DSUM(Forespørgsel1[#All],""&LEFT($C56,LEN($C56)-$A56)&"",$N$10:INDIRECT(ADDRESS($AK$5,$AK$4)))/DSUM(Forespørgsel1[#All],""&$L$4&"",$N$10:INDIRECT(ADDRESS($AK$5,$AK$4))))))),""),"") ->  | N56: =3400 | O56: =O54 -> < | P56: =$P$7 -> TRUE
D57: =IF($AB$1=44,Landsgennemsnit!DX61,"") ->  | E57: =IF($AB$1=44,Landsgennemsnit!DY61,"") ->  | F57: =IF($AB$1=44,Landsgennemsnit!DZ61,"") ->  | G57: =IF($AB$1=34,IFERROR(IF(ISTEXT($B57)=TRUE,DSUM(Forespørgsel1[#All],""&LEFT($C57,LEN($C57)-$A57)&"",$O$4:INDIRECT(ADDRESS($AK$3,$AK$4)))/DSUM(Forespørgsel1[#All],""&$B57&"",$O$4:INDIRECT(ADDRESS($AK$3,$AK$4))),IF($B57=0,DAVERAGE(Forespørgsel1[#All],""&LEFT($C57,LEN($C57)-$A57)&"",$O$4:INDIRECT(ADDRESS($AK$3,$AK$4))),IF($B57=1,DSUM(Forespørgsel1[#All],""&LEFT($C57,LEN($C57)-$A57)&"",$O$4:INDIRECT(ADDRESS($AK$3,$AK$4)))/DSUM(Forespørgsel1[#All],""&$K$4&"",$O$4:INDIRECT(ADDRESS($AK$3,$AK$4))),DSUM(Forespørgsel1[#All],""&LEFT($C57,LEN($C57)-$A57)&"",$O$4:INDIRECT(ADDRESS($AK$3,$AK$4)))/DSUM(Forespørgsel1[#All],""&$L$4&"",$O$4:INDIRECT(ADDRESS($AK$3,$AK$4)))))),""),"") ->  | H57: =IF($AB$1=34,IFERROR(IF(ISTEXT($B57)=TRUE,DSUM(Forespørgsel1[#All],""&LEFT($C57,LEN($C57)-$A57)&"",$N$4:INDIRECT(ADDRESS($AK$3,$AK$4)))/DSUM(Forespørgsel1[#All],""&$B57&"",$N$4:INDIRECT(ADDRESS($AK$3,$AK$4))),IF($B57=0,DAVERAGE(Forespørgsel1[#All],""&LEFT($C57,LEN($C57)-$A57)&"",$N$4:INDIRECT(ADDRESS($AK$3,$AK$4))),IF($B57=1,DSUM(Forespørgsel1[#All],""&LEFT($C57,LEN($C57)-$A57)&"",$N$4:INDIRECT(ADDRESS($AK$3,$AK$4)))/DSUM(Forespørgsel1[#All],""&$K$4&"",$N$4:INDIRECT(ADDRESS($AK$3,$AK$4))),IF($B57=2,DSUM(Forespørgsel1[#All],""&LEFT($C57,LEN($C57)-$A57)&"",$N$4:INDIRECT(ADDRESS($AK$3,$AK$4)))/DSUM(Forespørgsel1[#All],""&$L$4&"",$N$4:INDIRECT(ADDRESS($AK$3,$AK$4))))))),""),"") -> 
G58: =IF($AB$1=34,IFERROR(IF(ISTEXT($B58)=TRUE,DSUM(Forespørgsel1[#All],""&LEFT($C58,LEN($C58)-$A58)&"",$O$4:INDIRECT(ADDRESS($AK$3,$AK$4)))/DSUM(Forespørgsel1[#All],""&$B58&"",$O$4:INDIRECT(ADDRESS($AK$3,$AK$4))),IF($B58=0,DAVERAGE(Forespørgsel1[#All],""&LEFT($C58,LEN($C58)-$A58)&"",$O$4:INDIRECT(ADDRESS($AK$3,$AK$4))),IF($B58=1,DSUM(Forespørgsel1[#All],""&LEFT($C58,LEN($C58)-$A58)&"",$O$4:INDIRECT(ADDRESS($AK$3,$AK$4)))/DSUM(Forespørgsel1[#All],""&$K$4&"",$O$4:INDIRECT(ADDRESS($AK$3,$AK$4))),DSUM(Forespørgsel1[#All],""&LEFT($C58,LEN($C58)-$A58)&"",$O$4:INDIRECT(ADDRESS($AK$3,$AK$4)))/DSUM(Forespørgsel1[#All],""&$L$4&"",$O$4:INDIRECT(ADDRESS($AK$3,$AK$4)))))),""),"") ->  | H58: =IF($AB$1=34,IFERROR(IF(ISTEXT($B58)=TRUE,DSUM(Forespørgsel1[#All],""&LEFT($C58,LEN($C58)-$A58)&"",$N$4:INDIRECT(ADDRESS($AK$3,$AK$4)))/DSUM(Forespørgsel1[#All],""&$B58&"",$N$4:INDIRECT(ADDRESS($AK$3,$AK$4))),IF($B58=0,DAVERAGE(Forespørgsel1[#All],""&LEFT($C58,LEN($C58)-$A58)&"",$N$4:INDIRECT(ADDRESS($AK$3,$AK$4))),IF($B58=1,DSUM(Forespørgsel1[#All],""&LEFT($C58,LEN($C58)-$A58)&"",$N$4:INDIRECT(ADDRESS($AK$3,$AK$4)))/DSUM(Forespørgsel1[#All],""&$K$4&"",$N$4:INDIRECT(ADDRESS($AK$3,$AK$4))),IF($B58=2,DSUM(Forespørgsel1[#All],""&LEFT($C58,LEN($C58)-$A58)&"",$N$4:INDIRECT(ADDRESS($AK$3,$AK$4)))/DSUM(Forespørgsel1[#All],""&$L$4&"",$N$4:INDIRECT(ADDRESS($AK$3,$AK$4))))))),""),"") ->  | AJ58: Række | AK58: 56
G59: =IF($AB$1=34,IFERROR(IF(ISTEXT($B59)=TRUE,DSUM(Forespørgsel1[#All],""&LEFT($C59,LEN($C59)-$A59)&"",$O$4:INDIRECT(ADDRESS($AK$3,$AK$4)))/DSUM(Forespørgsel1[#All],""&$B59&"",$O$4:INDIRECT(ADDRESS($AK$3,$AK$4))),IF($B59=0,DAVERAGE(Forespørgsel1[#All],""&LEFT($C59,LEN($C59)-$A59)&"",$O$4:INDIRECT(ADDRESS($AK$3,$AK$4))),IF($B59=1,DSUM(Forespørgsel1[#All],""&LEFT($C59,LEN($C59)-$A59)&"",$O$4:INDIRECT(ADDRESS($AK$3,$AK$4)))/DSUM(Forespørgsel1[#All],""&$K$4&"",$O$4:INDIRECT(ADDRESS($AK$3,$AK$4))),DSUM(Forespørgsel1[#All],""&LEFT($C59,LEN($C59)-$A59)&"",$O$4:INDIRECT(ADDRESS($AK$3,$AK$4)))/DSUM(Forespørgsel1[#All],""&$L$4&"",$O$4:INDIRECT(ADDRESS($AK$3,$AK$4)))))),""),"") ->  | H59: =IF($AB$1=34,IFERROR(IF(ISTEXT($B59)=TRUE,DSUM(Forespørgsel1[#All],""&LEFT($C59,LEN($C59)-$A59)&"",$N$4:INDIRECT(ADDRESS($AK$3,$AK$4)))/DSUM(Forespørgsel1[#All],""&$B59&"",$N$4:INDIRECT(ADDRESS($AK$3,$AK$4))),IF($B59=0,DAVERAGE(Forespørgsel1[#All],""&LEFT($C59,LEN($C59)-$A59)&"",$N$4:INDIRECT(ADDRESS($AK$3,$AK$4))),IF($B59=1,DSUM(Forespørgsel1[#All],""&LEFT($C59,LEN($C59)-$A59)&"",$N$4:INDIRECT(ADDRESS($AK$3,$AK$4)))/DSUM(Forespørgsel1[#All],""&$K$4&"",$N$4:INDIRECT(ADDRESS($AK$3,$AK$4))),IF($B59=2,DSUM(Forespørgsel1[#All],""&LEFT($C59,LEN($C59)-$A59)&"",$N$4:INDIRECT(ADDRESS($AK$3,$AK$4)))/DSUM(Forespørgsel1[#All],""&$L$4&"",$N$4:INDIRECT(ADDRESS($AK$3,$AK$4))))))),""),"") -> 
G60: =IF($AB$1=34,IFERROR(IF(ISTEXT($B60)=TRUE,DSUM(Forespørgsel1[#All],""&LEFT($C60,LEN($C60)-$A60)&"",$O$4:INDIRECT(ADDRESS($AK$3,$AK$4)))/DSUM(Forespørgsel1[#All],""&$B60&"",$O$4:INDIRECT(ADDRESS($AK$3,$AK$4))),IF($B60=0,DAVERAGE(Forespørgsel1[#All],""&LEFT($C60,LEN($C60)-$A60)&"",$O$4:INDIRECT(ADDRESS($AK$3,$AK$4))),IF($B60=1,DSUM(Forespørgsel1[#All],""&LEFT($C60,LEN($C60)-$A60)&"",$O$4:INDIRECT(ADDRESS($AK$3,$AK$4)))/DSUM(Forespørgsel1[#All],""&$K$4&"",$O$4:INDIRECT(ADDRESS($AK$3,$AK$4))),DSUM(Forespørgsel1[#All],""&LEFT($C60,LEN($C60)-$A60)&"",$O$4:INDIRECT(ADDRESS($AK$3,$AK$4)))/DSUM(Forespørgsel1[#All],""&$L$4&"",$O$4:INDIRECT(ADDRESS($AK$3,$AK$4)))))),""),"") ->  | H60: =IF($AB$1=34,IFERROR(IF(ISTEXT($B60)=TRUE,DSUM(Forespørgsel1[#All],""&LEFT($C60,LEN($C60)-$A60)&"",$N$4:INDIRECT(ADDRESS($AK$3,$AK$4)))/DSUM(Forespørgsel1[#All],""&$B60&"",$N$4:INDIRECT(ADDRESS($AK$3,$AK$4))),IF($B60=0,DAVERAGE(Forespørgsel1[#All],""&LEFT($C60,LEN($C60)-$A60)&"",$N$4:INDIRECT(ADDRESS($AK$3,$AK$4))),IF($B60=1,DSUM(Forespørgsel1[#All],""&LEFT($C60,LEN($C60)-$A60)&"",$N$4:INDIRECT(ADDRESS($AK$3,$AK$4)))/DSUM(Forespørgsel1[#All],""&$K$4&"",$N$4:INDIRECT(ADDRESS($AK$3,$AK$4))),IF($B60=2,DSUM(Forespørgsel1[#All],""&LEFT($C60,LEN($C60)-$A60)&"",$N$4:INDIRECT(ADDRESS($AK$3,$AK$4)))/DSUM(Forespørgsel1[#All],""&$L$4&"",$N$4:INDIRECT(ADDRESS($AK$3,$AK$4))))))),""),"") -> 
G61: =IF($AB$1=34,IFERROR(IF(ISTEXT($B61)=TRUE,DSUM(Forespørgsel1[#All],""&LEFT($C61,LEN($C61)-$A61)&"",$O$4:INDIRECT(ADDRESS($AK$3,$AK$4)))/DSUM(Forespørgsel1[#All],""&$B61&"",$O$4:INDIRECT(ADDRESS($AK$3,$AK$4))),IF($B61=0,DAVERAGE(Forespørgsel1[#All],""&LEFT($C61,LEN($C61)-$A61)&"",$O$4:INDIRECT(ADDRESS($AK$3,$AK$4))),IF($B61=1,DSUM(Forespørgsel1[#All],""&LEFT($C61,LEN($C61)-$A61)&"",$O$4:INDIRECT(ADDRESS($AK$3,$AK$4)))/DSUM(Forespørgsel1[#All],""&$K$4&"",$O$4:INDIRECT(ADDRESS($AK$3,$AK$4))),DSUM(Forespørgsel1[#All],""&LEFT($C61,LEN($C61)-$A61)&"",$O$4:INDIRECT(ADDRESS($AK$3,$AK$4)))/DSUM(Forespørgsel1[#All],""&$L$4&"",$O$4:INDIRECT(ADDRESS($AK$3,$AK$4)))))),""),"") ->  | H61: =IF($AB$1=34,IFERROR(IF(ISTEXT($B61)=TRUE,DSUM(Forespørgsel1[#All],""&LEFT($C61,LEN($C61)-$A61)&"",$N$4:INDIRECT(ADDRESS($AK$3,$AK$4)))/DSUM(Forespørgsel1[#All],""&$B61&"",$N$4:INDIRECT(ADDRESS($AK$3,$AK$4))),IF($B61=0,DAVERAGE(Forespørgsel1[#All],""&LEFT($C61,LEN($C61)-$A61)&"",$N$4:INDIRECT(ADDRESS($AK$3,$AK$4))),IF($B61=1,DSUM(Forespørgsel1[#All],""&LEFT($C61,LEN($C61)-$A61)&"",$N$4:INDIRECT(ADDRESS($AK$3,$AK$4)))/DSUM(Forespørgsel1[#All],""&$K$4&"",$N$4:INDIRECT(ADDRESS($AK$3,$AK$4))),IF($B61=2,DSUM(Forespørgsel1[#All],""&LEFT($C61,LEN($C61)-$A61)&"",$N$4:INDIRECT(ADDRESS($AK$3,$AK$4)))/DSUM(Forespørgsel1[#All],""&$L$4&"",$N$4:INDIRECT(ADDRESS($AK$3,$AK$4))))))),""),"") -> 
G62: =IF($AB$1=34,IFERROR(IF(ISTEXT($B62)=TRUE,DSUM(Forespørgsel1[#All],""&LEFT($C62,LEN($C62)-$A62)&"",$O$4:INDIRECT(ADDRESS($AK$3,$AK$4)))/DSUM(Forespørgsel1[#All],""&$B62&"",$O$4:INDIRECT(ADDRESS($AK$3,$AK$4))),IF($B62=0,DAVERAGE(Forespørgsel1[#All],""&LEFT($C62,LEN($C62)-$A62)&"",$O$4:INDIRECT(ADDRESS($AK$3,$AK$4))),IF($B62=1,DSUM(Forespørgsel1[#All],""&LEFT($C62,LEN($C62)-$A62)&"",$O$4:INDIRECT(ADDRESS($AK$3,$AK$4)))/DSUM(Forespørgsel1[#All],""&$K$4&"",$O$4:INDIRECT(ADDRESS($AK$3,$AK$4))),DSUM(Forespørgsel1[#All],""&LEFT($C62,LEN($C62)-$A62)&"",$O$4:INDIRECT(ADDRESS($AK$3,$AK$4)))/DSUM(Forespørgsel1[#All],""&$L$4&"",$O$4:INDIRECT(ADDRESS($AK$3,$AK$4)))))),""),"") ->  | H62: =IF($AB$1=34,IFERROR(IF(ISTEXT($B62)=TRUE,DSUM(Forespørgsel1[#All],""&LEFT($C62,LEN($C62)-$A62)&"",$N$4:INDIRECT(ADDRESS($AK$3,$AK$4)))/DSUM(Forespørgsel1[#All],""&$B62&"",$N$4:INDIRECT(ADDRESS($AK$3,$AK$4))),IF($B62=0,DAVERAGE(Forespørgsel1[#All],""&LEFT($C62,LEN($C62)-$A62)&"",$N$4:INDIRECT(ADDRESS($AK$3,$AK$4))),IF($B62=1,DSUM(Forespørgsel1[#All],""&LEFT($C62,LEN($C62)-$A62)&"",$N$4:INDIRECT(ADDRESS($AK$3,$AK$4)))/DSUM(Forespørgsel1[#All],""&$K$4&"",$N$4:INDIRECT(ADDRESS($AK$3,$AK$4))),IF($B62=2,DSUM(Forespørgsel1[#All],""&LEFT($C62,LEN($C62)-$A62)&"",$N$4:INDIRECT(ADDRESS($AK$3,$AK$4)))/DSUM(Forespørgsel1[#All],""&$L$4&"",$N$4:INDIRECT(ADDRESS($AK$3,$AK$4))))))),""),"") -> 
G63: =IF($AB$1=34,IFERROR(IF(ISTEXT($B63)=TRUE,DSUM(Forespørgsel1[#All],""&LEFT($C63,LEN($C63)-$A63)&"",$O$4:INDIRECT(ADDRESS($AK$3,$AK$4)))/DSUM(Forespørgsel1[#All],""&$B63&"",$O$4:INDIRECT(ADDRESS($AK$3,$AK$4))),IF($B63=0,DAVERAGE(Forespørgsel1[#All],""&LEFT($C63,LEN($C63)-$A63)&"",$O$4:INDIRECT(ADDRESS($AK$3,$AK$4))),IF($B63=1,DSUM(Forespørgsel1[#All],""&LEFT($C63,LEN($C63)-$A63)&"",$O$4:INDIRECT(ADDRESS($AK$3,$AK$4)))/DSUM(Forespørgsel1[#All],""&$K$4&"",$O$4:INDIRECT(ADDRESS($AK$3,$AK$4))),DSUM(Forespørgsel1[#All],""&LEFT($C63,LEN($C63)-$A63)&"",$O$4:INDIRECT(ADDRESS($AK$3,$AK$4)))/DSUM(Forespørgsel1[#All],""&$L$4&"",$O$4:INDIRECT(ADDRESS($AK$3,$AK$4)))))),""),"") ->  | H63: =IF($AB$1=34,IFERROR(IF(ISTEXT($B63)=TRUE,DSUM(Forespørgsel1[#All],""&LEFT($C63,LEN($C63)-$A63)&"",$N$4:INDIRECT(ADDRESS($AK$3,$AK$4)))/DSUM(Forespørgsel1[#All],""&$B63&"",$N$4:INDIRECT(ADDRESS($AK$3,$AK$4))),IF($B63=0,DAVERAGE(Forespørgsel1[#All],""&LEFT($C63,LEN($C63)-$A63)&"",$N$4:INDIRECT(ADDRESS($AK$3,$AK$4))),IF($B63=1,DSUM(Forespørgsel1[#All],""&LEFT($C63,LEN($C63)-$A63)&"",$N$4:INDIRECT(ADDRESS($AK$3,$AK$4)))/DSUM(Forespørgsel1[#All],""&$K$4&"",$N$4:INDIRECT(ADDRESS($AK$3,$AK$4))),IF($B63=2,DSUM(Forespørgsel1[#All],""&LEFT($C63,LEN($C63)-$A63)&"",$N$4:INDIRECT(ADDRESS($AK$3,$AK$4)))/DSUM(Forespørgsel1[#All],""&$L$4&"",$N$4:INDIRECT(ADDRESS($AK$3,$AK$4))))))),""),"") -> 
G64: =IF($AB$1=34,IFERROR(IF(ISTEXT($B64)=TRUE,DSUM(Forespørgsel1[#All],""&LEFT($C64,LEN($C64)-$A64)&"",$O$4:INDIRECT(ADDRESS($AK$3,$AK$4)))/DSUM(Forespørgsel1[#All],""&$B64&"",$O$4:INDIRECT(ADDRESS($AK$3,$AK$4))),IF($B64=0,DAVERAGE(Forespørgsel1[#All],""&LEFT($C64,LEN($C64)-$A64)&"",$O$4:INDIRECT(ADDRESS($AK$3,$AK$4))),IF($B64=1,DSUM(Forespørgsel1[#All],""&LEFT($C64,LEN($C64)-$A64)&"",$O$4:INDIRECT(ADDRESS($AK$3,$AK$4)))/DSUM(Forespørgsel1[#All],""&$K$4&"",$O$4:INDIRECT(ADDRESS($AK$3,$AK$4))),DSUM(Forespørgsel1[#All],""&LEFT($C64,LEN($C64)-$A64)&"",$O$4:INDIRECT(ADDRESS($AK$3,$AK$4)))/DSUM(Forespørgsel1[#All],""&$L$4&"",$O$4:INDIRECT(ADDRESS($AK$3,$AK$4)))))),""),"") ->  | H64: =IF($AB$1=34,IFERROR(IF(ISTEXT($B64)=TRUE,DSUM(Forespørgsel1[#All],""&LEFT($C64,LEN($C64)-$A64)&"",$N$4:INDIRECT(ADDRESS($AK$3,$AK$4)))/DSUM(Forespørgsel1[#All],""&$B64&"",$N$4:INDIRECT(ADDRESS($AK$3,$AK$4))),IF($B64=0,DAVERAGE(Forespørgsel1[#All],""&LEFT($C64,LEN($C64)-$A64)&"",$N$4:INDIRECT(ADDRESS($AK$3,$AK$4))),IF($B64=1,DSUM(Forespørgsel1[#All],""&LEFT($C64,LEN($C64)-$A64)&"",$N$4:INDIRECT(ADDRESS($AK$3,$AK$4)))/DSUM(Forespørgsel1[#All],""&$K$4&"",$N$4:INDIRECT(ADDRESS($AK$3,$AK$4))),IF($B64=2,DSUM(Forespørgsel1[#All],""&LEFT($C64,LEN($C64)-$A64)&"",$N$4:INDIRECT(ADDRESS($AK$3,$AK$4)))/DSUM(Forespørgsel1[#All],""&$L$4&"",$N$4:INDIRECT(ADDRESS($AK$3,$AK$4))))))),""),"") -> 
G65: =IF($AB$1=34,IFERROR(IF(ISTEXT($B65)=TRUE,DSUM(Forespørgsel1[#All],""&LEFT($C65,LEN($C65)-$A65)&"",$O$4:INDIRECT(ADDRESS($AK$3,$AK$4)))/DSUM(Forespørgsel1[#All],""&$B65&"",$O$4:INDIRECT(ADDRESS($AK$3,$AK$4))),IF($B65=0,DAVERAGE(Forespørgsel1[#All],""&LEFT($C65,LEN($C65)-$A65)&"",$O$4:INDIRECT(ADDRESS($AK$3,$AK$4))),IF($B65=1,DSUM(Forespørgsel1[#All],""&LEFT($C65,LEN($C65)-$A65)&"",$O$4:INDIRECT(ADDRESS($AK$3,$AK$4)))/DSUM(Forespørgsel1[#All],""&$K$4&"",$O$4:INDIRECT(ADDRESS($AK$3,$AK$4))),DSUM(Forespørgsel1[#All],""&LEFT($C65,LEN($C65)-$A65)&"",$O$4:INDIRECT(ADDRESS($AK$3,$AK$4)))/DSUM(Forespørgsel1[#All],""&$L$4&"",$O$4:INDIRECT(ADDRESS($AK$3,$AK$4)))))),""),"") ->  | H65: =IF($AB$1=34,IFERROR(IF(ISTEXT($B65)=TRUE,DSUM(Forespørgsel1[#All],""&LEFT($C65,LEN($C65)-$A65)&"",$N$4:INDIRECT(ADDRESS($AK$3,$AK$4)))/DSUM(Forespørgsel1[#All],""&$B65&"",$N$4:INDIRECT(ADDRESS($AK$3,$AK$4))),IF($B65=0,DAVERAGE(Forespørgsel1[#All],""&LEFT($C65,LEN($C65)-$A65)&"",$N$4:INDIRECT(ADDRESS($AK$3,$AK$4))),IF($B65=1,DSUM(Forespørgsel1[#All],""&LEFT($C65,LEN($C65)-$A65)&"",$N$4:INDIRECT(ADDRESS($AK$3,$AK$4)))/DSUM(Forespørgsel1[#All],""&$K$4&"",$N$4:INDIRECT(ADDRESS($AK$3,$AK$4))),IF($B65=2,DSUM(Forespørgsel1[#All],""&LEFT($C65,LEN($C65)-$A65)&"",$N$4:INDIRECT(ADDRESS($AK$3,$AK$4)))/DSUM(Forespørgsel1[#All],""&$L$4&"",$N$4:INDIRECT(ADDRESS($AK$3,$AK$4))))))),""),"") -> 
D66: =IF($AB$1=34,Landsgennemsnit!BM71,"") ->  | E66: =IF($AB$1=34,Landsgennemsnit!BN71,"") ->  | G66: =IF($AB$1=34,IFERROR(IF(ISTEXT($B66)=TRUE,DSUM(Forespørgsel1[#All],""&LEFT($C66,LEN($C66)-$A66)&"",$O$4:INDIRECT(ADDRESS($AK$3,$AK$4)))/DSUM(Forespørgsel1[#All],""&$B66&"",$O$4:INDIRECT(ADDRESS($AK$3,$AK$4))),IF($B66=0,DAVERAGE(Forespørgsel1[#All],""&LEFT($C66,LEN($C66)-$A66)&"",$O$4:INDIRECT(ADDRESS($AK$3,$AK$4))),IF($B66=1,DSUM(Forespørgsel1[#All],""&LEFT($C66,LEN($C66)-$A66)&"",$O$4:INDIRECT(ADDRESS($AK$3,$AK$4)))/DSUM(Forespørgsel1[#All],""&$K$4&"",$O$4:INDIRECT(ADDRESS($AK$3,$AK$4))),DSUM(Forespørgsel1[#All],""&LEFT($C66,LEN($C66)-$A66)&"",$O$4:INDIRECT(ADDRESS($AK$3,$AK$4)))/DSUM(Forespørgsel1[#All],""&$L$4&"",$O$4:INDIRECT(ADDRESS($AK$3,$AK$4)))))),""),"") ->  | H66: =IF($AB$1=34,IFERROR(IF(ISTEXT($B66)=TRUE,DSUM(Forespørgsel1[#All],""&LEFT($C66,LEN($C66)-$A66)&"",$N$4:INDIRECT(ADDRESS($AK$3,$AK$4)))/DSUM(Forespørgsel1[#All],""&$B66&"",$N$4:INDIRECT(ADDRESS($AK$3,$AK$4))),IF($B66=0,DAVERAGE(Forespørgsel1[#All],""&LEFT($C66,LEN($C66)-$A66)&"",$N$4:INDIRECT(ADDRESS($AK$3,$AK$4))),IF($B66=1,DSUM(Forespørgsel1[#All],""&LEFT($C66,LEN($C66)-$A66)&"",$N$4:INDIRECT(ADDRESS($AK$3,$AK$4)))/DSUM(Forespørgsel1[#All],""&$K$4&"",$N$4:INDIRECT(ADDRESS($AK$3,$AK$4))),IF($B66=2,DSUM(Forespørgsel1[#All],""&LEFT($C66,LEN($C66)-$A66)&"",$N$4:INDIRECT(ADDRESS($AK$3,$AK$4)))/DSUM(Forespørgsel1[#All],""&$L$4&"",$N$4:INDIRECT(ADDRESS($AK$3,$AK$4))))))),""),"") -> 
D67: =IF($AB$1=34,Landsgennemsnit!BM72,"") ->  | E67: =IF($AB$1=34,Landsgennemsnit!BN72,"") ->  | G67: =IF($AB$1=34,IFERROR(IF(ISTEXT($B67)=TRUE,DSUM(Forespørgsel1[#All],""&LEFT($C67,LEN($C67)-$A67)&"",$O$4:INDIRECT(ADDRESS($AK$3,$AK$4)))/DSUM(Forespørgsel1[#All],""&$B67&"",$O$4:INDIRECT(ADDRESS($AK$3,$AK$4))),IF($B67=0,DAVERAGE(Forespørgsel1[#All],""&LEFT($C67,LEN($C67)-$A67)&"",$O$4:INDIRECT(ADDRESS($AK$3,$AK$4))),IF($B67=1,DSUM(Forespørgsel1[#All],""&LEFT($C67,LEN($C67)-$A67)&"",$O$4:INDIRECT(ADDRESS($AK$3,$AK$4)))/DSUM(Forespørgsel1[#All],""&$K$4&"",$O$4:INDIRECT(ADDRESS($AK$3,$AK$4))),DSUM(Forespørgsel1[#All],""&LEFT($C67,LEN($C67)-$A67)&"",$O$4:INDIRECT(ADDRESS($AK$3,$AK$4)))/DSUM(Forespørgsel1[#All],""&$L$4&"",$O$4:INDIRECT(ADDRESS($AK$3,$AK$4)))))),""),"") ->  | H67: =IF($AB$1=34,IFERROR(IF(ISTEXT($B67)=TRUE,DSUM(Forespørgsel1[#All],""&LEFT($C67,LEN($C67)-$A67)&"",$N$4:INDIRECT(ADDRESS($AK$3,$AK$4)))/DSUM(Forespørgsel1[#All],""&$B67&"",$N$4:INDIRECT(ADDRESS($AK$3,$AK$4))),IF($B67=0,DAVERAGE(Forespørgsel1[#All],""&LEFT($C67,LEN($C67)-$A67)&"",$N$4:INDIRECT(ADDRESS($AK$3,$AK$4))),IF($B67=1,DSUM(Forespørgsel1[#All],""&LEFT($C67,LEN($C67)-$A67)&"",$N$4:INDIRECT(ADDRESS($AK$3,$AK$4)))/DSUM(Forespørgsel1[#All],""&$K$4&"",$N$4:INDIRECT(ADDRESS($AK$3,$AK$4))),IF($B67=2,DSUM(Forespørgsel1[#All],""&LEFT($C67,LEN($C67)-$A67)&"",$N$4:INDIRECT(ADDRESS($AK$3,$AK$4)))/DSUM(Forespørgsel1[#All],""&$L$4&"",$N$4:INDIRECT(ADDRESS($AK$3,$AK$4))))))),""),"") -> 
D68: =IF($AB$1=34,Landsgennemsnit!BM73,"") ->  | E68: =IF($AB$1=34,Landsgennemsnit!BN73,"") ->  | G68: =IF($AB$1=34,IFERROR(IF(ISTEXT($B68)=TRUE,DSUM(Forespørgsel1[#All],""&LEFT($C68,LEN($C68)-$A68)&"",$O$4:INDIRECT(ADDRESS($AK$3,$AK$4)))/DSUM(Forespørgsel1[#All],""&$B68&"",$O$4:INDIRECT(ADDRESS($AK$3,$AK$4))),IF($B68=0,DAVERAGE(Forespørgsel1[#All],""&LEFT($C68,LEN($C68)-$A68)&"",$O$4:INDIRECT(ADDRESS($AK$3,$AK$4))),IF($B68=1,DSUM(Forespørgsel1[#All],""&LEFT($C68,LEN($C68)-$A68)&"",$O$4:INDIRECT(ADDRESS($AK$3,$AK$4)))/DSUM(Forespørgsel1[#All],""&$K$4&"",$O$4:INDIRECT(ADDRESS($AK$3,$AK$4))),DSUM(Forespørgsel1[#All],""&LEFT($C68,LEN($C68)-$A68)&"",$O$4:INDIRECT(ADDRESS($AK$3,$AK$4)))/DSUM(Forespørgsel1[#All],""&$L$4&"",$O$4:INDIRECT(ADDRESS($AK$3,$AK$4)))))),""),"") ->  | H68: =IF($AB$1=34,IFERROR(IF(ISTEXT($B68)=TRUE,DSUM(Forespørgsel1[#All],""&LEFT($C68,LEN($C68)-$A68)&"",$N$4:INDIRECT(ADDRESS($AK$3,$AK$4)))/DSUM(Forespørgsel1[#All],""&$B68&"",$N$4:INDIRECT(ADDRESS($AK$3,$AK$4))),IF($B68=0,DAVERAGE(Forespørgsel1[#All],""&LEFT($C68,LEN($C68)-$A68)&"",$N$4:INDIRECT(ADDRESS($AK$3,$AK$4))),IF($B68=1,DSUM(Forespørgsel1[#All],""&LEFT($C68,LEN($C68)-$A68)&"",$N$4:INDIRECT(ADDRESS($AK$3,$AK$4)))/DSUM(Forespørgsel1[#All],""&$K$4&"",$N$4:INDIRECT(ADDRESS($AK$3,$AK$4))),IF($B68=2,DSUM(Forespørgsel1[#All],""&LEFT($C68,LEN($C68)-$A68)&"",$N$4:INDIRECT(ADDRESS($AK$3,$AK$4)))/DSUM(Forespørgsel1[#All],""&$L$4&"",$N$4:INDIRECT(ADDRESS($AK$3,$AK$4))))))),""),"") -> 
D69: =IF($AB$1=34,Landsgennemsnit!BM74,"") ->  | E69: =IF($AB$1=34,Landsgennemsnit!BN74,"") ->  | G69: =IF($AB$1=34,IFERROR(IF(ISTEXT($B69)=TRUE,DSUM(Forespørgsel1[#All],""&LEFT($C69,LEN($C69)-$A69)&"",$O$4:INDIRECT(ADDRESS($AK$3,$AK$4)))/DSUM(Forespørgsel1[#All],""&$B69&"",$O$4:INDIRECT(ADDRESS($AK$3,$AK$4))),IF($B69=0,DAVERAGE(Forespørgsel1[#All],""&LEFT($C69,LEN($C69)-$A69)&"",$O$4:INDIRECT(ADDRESS($AK$3,$AK$4))),IF($B69=1,DSUM(Forespørgsel1[#All],""&LEFT($C69,LEN($C69)-$A69)&"",$O$4:INDIRECT(ADDRESS($AK$3,$AK$4)))/DSUM(Forespørgsel1[#All],""&$K$4&"",$O$4:INDIRECT(ADDRESS($AK$3,$AK$4))),DSUM(Forespørgsel1[#All],""&LEFT($C69,LEN($C69)-$A69)&"",$O$4:INDIRECT(ADDRESS($AK$3,$AK$4)))/DSUM(Forespørgsel1[#All],""&$L$4&"",$O$4:INDIRECT(ADDRESS($AK$3,$AK$4)))))),""),"") ->  | H69: =IF($AB$1=34,IFERROR(IF(ISTEXT($B69)=TRUE,DSUM(Forespørgsel1[#All],""&LEFT($C69,LEN($C69)-$A69)&"",$N$4:INDIRECT(ADDRESS($AK$3,$AK$4)))/DSUM(Forespørgsel1[#All],""&$B69&"",$N$4:INDIRECT(ADDRESS($AK$3,$AK$4))),IF($B69=0,DAVERAGE(Forespørgsel1[#All],""&LEFT($C69,LEN($C69)-$A69)&"",$N$4:INDIRECT(ADDRESS($AK$3,$AK$4))),IF($B69=1,DSUM(Forespørgsel1[#All],""&LEFT($C69,LEN($C69)-$A69)&"",$N$4:INDIRECT(ADDRESS($AK$3,$AK$4)))/DSUM(Forespørgsel1[#All],""&$K$4&"",$N$4:INDIRECT(ADDRESS($AK$3,$AK$4))),IF($B69=2,DSUM(Forespørgsel1[#All],""&LEFT($C69,LEN($C69)-$A69)&"",$N$4:INDIRECT(ADDRESS($AK$3,$AK$4)))/DSUM(Forespørgsel1[#All],""&$L$4&"",$N$4:INDIRECT(ADDRESS($AK$3,$AK$4))))))),""),"") -> 
D70: =IF($AB$1=34,Landsgennemsnit!BM75,"") ->  | E70: =IF($AB$1=34,Landsgennemsnit!BN75,"") ->  | G70: =IF($AB$1=34,IFERROR(IF(ISTEXT($B70)=TRUE,DSUM(Forespørgsel1[#All],""&LEFT($C70,LEN($C70)-$A70)&"",$O$4:INDIRECT(ADDRESS($AK$3,$AK$4)))/DSUM(Forespørgsel1[#All],""&$B70&"",$O$4:INDIRECT(ADDRESS($AK$3,$AK$4))),IF($B70=0,DAVERAGE(Forespørgsel1[#All],""&LEFT($C70,LEN($C70)-$A70)&"",$O$4:INDIRECT(ADDRESS($AK$3,$AK$4))),IF($B70=1,DSUM(Forespørgsel1[#All],""&LEFT($C70,LEN($C70)-$A70)&"",$O$4:INDIRECT(ADDRESS($AK$3,$AK$4)))/DSUM(Forespørgsel1[#All],""&$K$4&"",$O$4:INDIRECT(ADDRESS($AK$3,$AK$4))),DSUM(Forespørgsel1[#All],""&LEFT($C70,LEN($C70)-$A70)&"",$O$4:INDIRECT(ADDRESS($AK$3,$AK$4)))/DSUM(Forespørgsel1[#All],""&$L$4&"",$O$4:INDIRECT(ADDRESS($AK$3,$AK$4)))))),""),"") ->  | H70: =IF($AB$1=34,IFERROR(IF(ISTEXT($B70)=TRUE,DSUM(Forespørgsel1[#All],""&LEFT($C70,LEN($C70)-$A70)&"",$N$4:INDIRECT(ADDRESS($AK$3,$AK$4)))/DSUM(Forespørgsel1[#All],""&$B70&"",$N$4:INDIRECT(ADDRESS($AK$3,$AK$4))),IF($B70=0,DAVERAGE(Forespørgsel1[#All],""&LEFT($C70,LEN($C70)-$A70)&"",$N$4:INDIRECT(ADDRESS($AK$3,$AK$4))),IF($B70=1,DSUM(Forespørgsel1[#All],""&LEFT($C70,LEN($C70)-$A70)&"",$N$4:INDIRECT(ADDRESS($AK$3,$AK$4)))/DSUM(Forespørgsel1[#All],""&$K$4&"",$N$4:INDIRECT(ADDRESS($AK$3,$AK$4))),IF($B70=2,DSUM(Forespørgsel1[#All],""&LEFT($C70,LEN($C70)-$A70)&"",$N$4:INDIRECT(ADDRESS($AK$3,$AK$4)))/DSUM(Forespørgsel1[#All],""&$L$4&"",$N$4:INDIRECT(ADDRESS($AK$3,$AK$4))))))),""),"") -> 
D71: =IF($AB$1=34,Landsgennemsnit!BM76,"") ->  | E71: =IF($AB$1=34,Landsgennemsnit!BN76,"") ->  | G71: =IF($AB$1=34,IFERROR(IF(ISTEXT($B71)=TRUE,DSUM(Forespørgsel1[#All],""&LEFT($C71,LEN($C71)-$A71)&"",$O$4:INDIRECT(ADDRESS($AK$3,$AK$4)))/DSUM(Forespørgsel1[#All],""&$B71&"",$O$4:INDIRECT(ADDRESS($AK$3,$AK$4))),IF($B71=0,DAVERAGE(Forespørgsel1[#All],""&LEFT($C71,LEN($C71)-$A71)&"",$O$4:INDIRECT(ADDRESS($AK$3,$AK$4))),IF($B71=1,DSUM(Forespørgsel1[#All],""&LEFT($C71,LEN($C71)-$A71)&"",$O$4:INDIRECT(ADDRESS($AK$3,$AK$4)))/DSUM(Forespørgsel1[#All],""&$K$4&"",$O$4:INDIRECT(ADDRESS($AK$3,$AK$4))),DSUM(Forespørgsel1[#All],""&LEFT($C71,LEN($C71)-$A71)&"",$O$4:INDIRECT(ADDRESS($AK$3,$AK$4)))/DSUM(Forespørgsel1[#All],""&$L$4&"",$O$4:INDIRECT(ADDRESS($AK$3,$AK$4)))))),""),"") ->  | H71: =IF($AB$1=34,IFERROR(IF(ISTEXT($B71)=TRUE,DSUM(Forespørgsel1[#All],""&LEFT($C71,LEN($C71)-$A71)&"",$N$4:INDIRECT(ADDRESS($AK$3,$AK$4)))/DSUM(Forespørgsel1[#All],""&$B71&"",$N$4:INDIRECT(ADDRESS($AK$3,$AK$4))),IF($B71=0,DAVERAGE(Forespørgsel1[#All],""&LEFT($C71,LEN($C71)-$A71)&"",$N$4:INDIRECT(ADDRESS($AK$3,$AK$4))),IF($B71=1,DSUM(Forespørgsel1[#All],""&LEFT($C71,LEN($C71)-$A71)&"",$N$4:INDIRECT(ADDRESS($AK$3,$AK$4)))/DSUM(Forespørgsel1[#All],""&$K$4&"",$N$4:INDIRECT(ADDRESS($AK$3,$AK$4))),IF($B71=2,DSUM(Forespørgsel1[#All],""&LEFT($C71,LEN($C71)-$A71)&"",$N$4:INDIRECT(ADDRESS($AK$3,$AK$4)))/DSUM(Forespørgsel1[#All],""&$L$4&"",$N$4:INDIRECT(ADDRESS($AK$3,$AK$4))))))),""),"") -> 
D72: =IF($AB$1=34,Landsgennemsnit!BM77,"") ->  | E72: =IF($AB$1=34,Landsgennemsnit!BN77,"") ->  | G72: =IF($AB$1=34,IFERROR(IF(ISTEXT($B72)=TRUE,DSUM(Forespørgsel1[#All],""&LEFT($C72,LEN($C72)-$A72)&"",$O$4:INDIRECT(ADDRESS($AK$3,$AK$4)))/DSUM(Forespørgsel1[#All],""&$B72&"",$O$4:INDIRECT(ADDRESS($AK$3,$AK$4))),IF($B72=0,DAVERAGE(Forespørgsel1[#All],""&LEFT($C72,LEN($C72)-$A72)&"",$O$4:INDIRECT(ADDRESS($AK$3,$AK$4))),IF($B72=1,DSUM(Forespørgsel1[#All],""&LEFT($C72,LEN($C72)-$A72)&"",$O$4:INDIRECT(ADDRESS($AK$3,$AK$4)))/DSUM(Forespørgsel1[#All],""&$K$4&"",$O$4:INDIRECT(ADDRESS($AK$3,$AK$4))),DSUM(Forespørgsel1[#All],""&LEFT($C72,LEN($C72)-$A72)&"",$O$4:INDIRECT(ADDRESS($AK$3,$AK$4)))/DSUM(Forespørgsel1[#All],""&$L$4&"",$O$4:INDIRECT(ADDRESS($AK$3,$AK$4)))))),""),"") ->  | H72: =IF($AB$1=34,IFERROR(IF(ISTEXT($B72)=TRUE,DSUM(Forespørgsel1[#All],""&LEFT($C72,LEN($C72)-$A72)&"",$N$4:INDIRECT(ADDRESS($AK$3,$AK$4)))/DSUM(Forespørgsel1[#All],""&$B72&"",$N$4:INDIRECT(ADDRESS($AK$3,$AK$4))),IF($B72=0,DAVERAGE(Forespørgsel1[#All],""&LEFT($C72,LEN($C72)-$A72)&"",$N$4:INDIRECT(ADDRESS($AK$3,$AK$4))),IF($B72=1,DSUM(Forespørgsel1[#All],""&LEFT($C72,LEN($C72)-$A72)&"",$N$4:INDIRECT(ADDRESS($AK$3,$AK$4)))/DSUM(Forespørgsel1[#All],""&$K$4&"",$N$4:INDIRECT(ADDRESS($AK$3,$AK$4))),IF($B72=2,DSUM(Forespørgsel1[#All],""&LEFT($C72,LEN($C72)-$A72)&"",$N$4:INDIRECT(ADDRESS($AK$3,$AK$4)))/DSUM(Forespørgsel1[#All],""&$L$4&"",$N$4:INDIRECT(ADDRESS($AK$3,$AK$4))))))),""),"") -> 
D73: =IF($AB$1=34,Landsgennemsnit!BM78,"") ->  | E73: =IF($AB$1=34,Landsgennemsnit!BN78,"") ->  | G73: =IF($AB$1=34,IFERROR(IF(ISTEXT($B73)=TRUE,DSUM(Forespørgsel1[#All],""&LEFT($C73,LEN($C73)-$A73)&"",$O$4:INDIRECT(ADDRESS($AK$3,$AK$4)))/DSUM(Forespørgsel1[#All],""&$B73&"",$O$4:INDIRECT(ADDRESS($AK$3,$AK$4))),IF($B73=0,DAVERAGE(Forespørgsel1[#All],""&LEFT($C73,LEN($C73)-$A73)&"",$O$4:INDIRECT(ADDRESS($AK$3,$AK$4))),IF($B73=1,DSUM(Forespørgsel1[#All],""&LEFT($C73,LEN($C73)-$A73)&"",$O$4:INDIRECT(ADDRESS($AK$3,$AK$4)))/DSUM(Forespørgsel1[#All],""&$K$4&"",$O$4:INDIRECT(ADDRESS($AK$3,$AK$4))),DSUM(Forespørgsel1[#All],""&LEFT($C73,LEN($C73)-$A73)&"",$O$4:INDIRECT(ADDRESS($AK$3,$AK$4)))/DSUM(Forespørgsel1[#All],""&$L$4&"",$O$4:INDIRECT(ADDRESS($AK$3,$AK$4)))))),""),"") ->  | H73: =IF($AB$1=34,IFERROR(IF(ISTEXT($B73)=TRUE,DSUM(Forespørgsel1[#All],""&LEFT($C73,LEN($C73)-$A73)&"",$N$4:INDIRECT(ADDRESS($AK$3,$AK$4)))/DSUM(Forespørgsel1[#All],""&$B73&"",$N$4:INDIRECT(ADDRESS($AK$3,$AK$4))),IF($B73=0,DAVERAGE(Forespørgsel1[#All],""&LEFT($C73,LEN($C73)-$A73)&"",$N$4:INDIRECT(ADDRESS($AK$3,$AK$4))),IF($B73=1,DSUM(Forespørgsel1[#All],""&LEFT($C73,LEN($C73)-$A73)&"",$N$4:INDIRECT(ADDRESS($AK$3,$AK$4)))/DSUM(Forespørgsel1[#All],""&$K$4&"",$N$4:INDIRECT(ADDRESS($AK$3,$AK$4))),IF($B73=2,DSUM(Forespørgsel1[#All],""&LEFT($C73,LEN($C73)-$A73)&"",$N$4:INDIRECT(ADDRESS($AK$3,$AK$4)))/DSUM(Forespørgsel1[#All],""&$L$4&"",$N$4:INDIRECT(ADDRESS($AK$3,$AK$4))))))),""),"") -> 
D79: Formattering
C80: =C2 -> 0 | D80: 1 | E80: 1
C81: Fabriksroer | D81: 1 | E81: 1
C82: Ha i alt, driftsgren | D82: 110 | E82: 1
C83: 0 | D83: 9 | E83: 1
C84: Forpagtet andel af areal | D84: 1 | E84: 1
C85: Udbytte pr. ha fabriksroer, ton polsukker | D85: 110 | E85: 1
D86: 9 | E86: 1
C87: Jordbundsforhold | D87: 110 | E87: 1
C88: Andel med JB 5-6 og 7-9 | D88: 1 | E88: 1
C89: =C11 ->  | D89: 9 | E89: 1
C90: Rest til jordleje før EU-støtte pr. ha | D90: 113 | E90: 1
C91: Rest til jordleje efter EU-støtte pr. ha | D91: 1 | E91: 1
C92: Maskinomk. inkl. arbejde pr. ha | D92: 1 | E92: 1
C93: Øvrige omkostninger ha | D93: 1 | E93: 1
C94: Jordleje fratrukket EU-støtte pr. ha | D94: 1 | E94: 1
D95: 1 | E95: 1
C96: Jordværdi (ejet jord), kr. pr ha | D96: 1 | E96: 1
C97: Bundet kapital - Inventar | D97: 1 | E97: 1
C98: Anvendt rentesats, pct. | D98: 1 | E98: 1
C99: Resultatkorr. (2% på jord og 4% på resten) | D99: 1 | E99: 1
C100: Afkastningsgrad | D100: 110 | E100: 1
D101: 1 | E101: 1
C102: Specifikation af resultat | D102: 110 | E102: 1
C103: Salgsafgrøder | D103: 1 | E103: 1
C104: Maskinstationsindtægter | D104: 1 | E104: 1
C105: Diverse indtægter | D105: 1 | E105: 1
C106: Bruttoudbytte i alt | D106: 113 | E106: 1
C107: 0 | D107: 9 | E107: 1
C108: Udsæd | D108: 1 | E108: 1
C109: Gødning | D109: 1 | E109: 1
C110: Planteværn | D110: 1 | E110: 1
C111: Diverse vedrørende mark | D111: 1 | E111: 1
C112: Stykomkostninger i alt | D112: 113 | E112: 1
C113: 0 | D113: 9 | E113: 1
C114: Dækningsbidrag | D114: 113 | E114: 1
C115: 0 | D115: 9 | E115: 1
C116: Energi | D116: 1 | E116: 1
C117: Brændstof | D117: 1 | E117: 1
C118: Maskinstation mv. | D118: 1 | E118: 1
C119: Vedligehold | D119: 1 | E119: 1
C120: Lønomkostninger | D120: 1 | E120: 1
C121: Ejeraflønning | D121: 1 | E121: 1
C122: Ejendomsskat og forsikringer | D122: 1 | E122: 1
C123: Diverse kapacitetsomkostninger | D123: 1 | E123: 1
C124: Kapacitetsomkostninger i alt | D124: 113 | E124: 1
C125: 0 | D125: 9 | E125: 1
C126: Afskrivning bygninger og grundforbedring | D126: 1 | E126: 1
C127: Afskrivning, markinventar | D127: 1 | E127: 1
C128: Afkoblet EU-støtte | D128: 1 | E128: 1
C129: Renteomk. af bundet kapital | D129: 1 | E129: 1
C130: Forpagtning | D130: 1 | E130: 1
C131: Diverse kapitalomkostninger | D131: 1 | E131: 1
C132: Kapitalomkostninger i alt | D132: 113 | E132: 1
C133: 0 | D133: 9 | E133: 1
C134: Resultat, driftsgren | D134: 201 | E134: 1
C135: 0
C136: 0
C137: 0
C138: 0
C139: 0
C140: =C62 -> 0
C141: =C63 -> 0
C142: =C64 -> 0
C143: 0
C144: 0
C145: 0
C146: 0
C147: 0
C148: 0
C149: 0
C150: 0
C151: 0

Sheet Kartofler (hidden)
A1: Kartofler (3300) | AA1: Ident | AB1: =Choices!A1*10+Choices!D1*1 -> 42 | AJ1: Til adresseformel
D2: Landsplan | G2: ="Kreds "&Kredsudvælgelse!$A$2&"" -> Kreds 199 | N2: Betingelser | AJ2: =ISTEXT(P4) -> TRUE | AK2: TRUE | AL2: TRUE | AM2: FALSE | AN2: FALSE | AO2: FALSE
A3: Tegn (fra højre der skal væk så navnet passer med navnet i forespørgslen) | B3: Divisor, til snit | C3: Kartofler | D3: =IF($AB$1=45,Landsgennemsnit!EB3,"") ->  | E3: Top 5 | F3: Bedste 1/3 | G3: =+K8 ->  | H3: Top 5 | I3: Bedste 1/3 | K3: Divisor 1 | L3: Divisor 2 | N3: =H3 -> Top 5 | O3: =IF(O4="","",IF(ISERROR(HLOOKUP(O4,Forespørgsel1[#Headers],1,FALSE))=TRUE,"Ikke fundet i forespørgslen","")) ->  | P3: =IF(P4="","",IF(ISERROR(HLOOKUP(P4,Forespørgsel1[#Headers],1,FALSE))=TRUE,"Ikke fundet i forespørgslen","")) ->  | Q3: =IF(Q4="","",IF(ISERROR(HLOOKUP(Q4,Forespørgsel1[#Headers],1,FALSE))=TRUE,"Ikke fundet i forespørgslen","")) ->  | R3: =IF(R4="","",IF(ISERROR(HLOOKUP(R4,Forespørgsel1[#Headers],1,FALSE))=TRUE,"Ikke fundet i forespørgslen","")) ->  | S3: =IF(S4="","",IF(ISERROR(HLOOKUP(S4,Forespørgsel1[#Headers],1,FALSE))=TRUE,"Ikke fundet i forespørgslen","")) ->  | T3: =IF(T4="","",IF(ISERROR(HLOOKUP(T4,Forespørgsel1[#Headers],1,FALSE))=TRUE,"Ikke fundet i forespørgslen","")) ->  | U3: =IF(U4="","",IF(ISERROR(HLOOKUP(U4,Forespørgsel1[#Headers],1,FALSE))=TRUE,"Ikke fundet i forespørgslen","")) ->  | V3: Find grænse for bedste 1/3 manuelt udfra data: | AJ3: Række top 10 | AK3: 7
A4: 0 | B4: 0 | C4: Ha i alt, driftsgren | D4: =IF($AB$1=45,Landsgennemsnit!EB4,"") ->  | E4: =IF($AB$1=45,Landsgennemsnit!EC4,"") ->  | F4: =IF($AB$1=45,Landsgennemsnit!ED4,"") ->  | G4: =IF($AB$1=45,IFERROR(IF(ISTEXT($B4)=TRUE,DSUM(Forespørgsel1[#All],""&LEFT($C4,LEN($C4)-$A4)&"",$O$4:INDIRECT(ADDRESS($AK$3,$AK$4)))/DSUM(Forespørgsel1[#All],""&$B4&"",$O$4:INDIRECT(ADDRESS($AK$3,$AK$4))),IF($B4=0,DAVERAGE(Forespørgsel1[#All],""&LEFT($C4,LEN($C4)-$A4)&"",$O$4:INDIRECT(ADDRESS($AK$3,$AK$4))),IF($B4=1,DSUM(Forespørgsel1[#All],""&LEFT($C4,LEN($C4)-$A4)&"",$O$4:INDIRECT(ADDRESS($AK$3,$AK$4)))/DSUM(Forespørgsel1[#All],""&$K$4&"",$O$4:INDIRECT(ADDRESS($AK$3,$AK$4))),DSUM(Forespørgsel1[#All],""&LEFT($C4,LEN($C4)-$A4)&"",$O$4:INDIRECT(ADDRESS($AK$3,$AK$4)))/DSUM(Forespørgsel1[#All],""&$L$4&"",$O$4:INDIRECT(ADDRESS($AK$3,$AK$4)))))),""),"") ->  | H4: =IF($AB$1=45,IFERROR(IF(ISTEXT($B4)=TRUE,DSUM(Forespørgsel1[#All],""&LEFT($C4,LEN($C4)-$A4)&"",$N$4:INDIRECT(ADDRESS($AK$3,$AK$4)))/DSUM(Forespørgsel1[#All],""&$B4&"",$N$4:INDIRECT(ADDRESS($AK$3,$AK$4))),IF($B4=0,DAVERAGE(Forespørgsel1[#All],""&LEFT($C4,LEN($C4)-$A4)&"",$N$4:INDIRECT(ADDRESS($AK$3,$AK$4))),IF($B4=1,DSUM(Forespørgsel1[#All],""&LEFT($C4,LEN($C4)-$A4)&"",$N$4:INDIRECT(ADDRESS($AK$3,$AK$4)))/DSUM(Forespørgsel1[#All],""&$K$4&"",$N$4:INDIRECT(ADDRESS($AK$3,$AK$4))),IF($B4=2,DSUM(Forespørgsel1[#All],""&LEFT($C4,LEN($C4)-$A4)&"",$N$4:INDIRECT(ADDRESS($AK$3,$AK$4)))/DSUM(Forespørgsel1[#All],""&$L$4&"",$N$4:INDIRECT(ADDRESS($AK$3,$AK$4))))))),""),"") ->  | I4: =IF($AB$1=45,IFERROR(IF(ISTEXT($B4)=TRUE,DSUM(Forespørgsel1[#All],""&LEFT($C4,LEN($C4)-$A4)&"",$N$10:INDIRECT(ADDRESS($AK$5,$AK$4)))/DSUM(Forespørgsel1[#All],""&$B4&"",$N$10:INDIRECT(ADDRESS($AK$5,$AK$4))),IF($B4=0,DAVERAGE(Forespørgsel1[#All],""&LEFT($C4,LEN($C4)-$A4)&"",$N$10:INDIRECT(ADDRESS($AK$5,$AK$4))),IF($B4=1,DSUM(Forespørgsel1[#All],""&LEFT($C4,LEN($C4)-$A4)&"",$N$10:INDIRECT(ADDRESS($AK$5,$AK$4)))/DSUM(Forespørgsel1[#All],""&$K$4&"",$N$10:INDIRECT(ADDRESS($AK$5,$AK$4))),IF($B4=2,DSUM(Forespørgsel1[#All],""&LEFT($C4,LEN($C4)-$A4)&"",$N$10:INDIRECT(ADDRESS($AK$5,$AK$4)))/DSUM(Forespørgsel1[#All],""&$L$4&"",$N$10:INDIRECT(ADDRESS($AK$5,$AK$4))))))),""),"") ->  | K4: Ha i alt, driftsgren | N4: Rest til jordleje før EU-støtte pr. ha | O4: Prodgren | P4: Godkendt | Q4: Andel stivelseskartofler | R4: Ha i alt, driftsgren | V4: Rest til jordleje før EU-støtte pr. ha | AJ4: Kolonne (begge) | AK4: =COLUMNS(A3:O3)+COUNTIF(AJ2:AO2,TRUE) -> 18
A5: 0 | B5: 0 | C5: Andel stivelseskartofler | D5: =IF($AB$1=45,Landsgennemsnit!EB5,"") ->  | E5: =IF($AB$1=45,Landsgennemsnit!EC5,"") ->  | F5: =IF($AB$1=45,Landsgennemsnit!ED5,"") ->  | G5: =IF($AB$1=45,IFERROR(IF(ISTEXT($B5)=TRUE,DSUM(Forespørgsel1[#All],""&LEFT($C5,LEN($C5)-$A5)&"",$O$4:INDIRECT(ADDRESS($AK$3,$AK$4)))/DSUM(Forespørgsel1[#All],""&$B5&"",$O$4:INDIRECT(ADDRESS($AK$3,$AK$4))),IF($B5=0,DAVERAGE(Forespørgsel1[#All],""&LEFT($C5,LEN($C5)-$A5)&"",$O$4:INDIRECT(ADDRESS($AK$3,$AK$4))),IF($B5=1,DSUM(Forespørgsel1[#All],""&LEFT($C5,LEN($C5)-$A5)&"",$O$4:INDIRECT(ADDRESS($AK$3,$AK$4)))/DSUM(Forespørgsel1[#All],""&$K$4&"",$O$4:INDIRECT(ADDRESS($AK$3,$AK$4))),DSUM(Forespørgsel1[#All],""&LEFT($C5,LEN($C5)-$A5)&"",$O$4:INDIRECT(ADDRESS($AK$3,$AK$4)))/DSUM(Forespørgsel1[#All],""&$L$4&"",$O$4:INDIRECT(ADDRESS($AK$3,$AK$4)))))),""),"") ->  | H5: =IF($AB$1=45,IFERROR(IF(ISTEXT($B5)=TRUE,DSUM(Forespørgsel1[#All],""&LEFT($C5,LEN($C5)-$A5)&"",$N$4:INDIRECT(ADDRESS($AK$3,$AK$4)))/DSUM(Forespørgsel1[#All],""&$B5&"",$N$4:INDIRECT(ADDRESS($AK$3,$AK$4))),IF($B5=0,DAVERAGE(Forespørgsel1[#All],""&LEFT($C5,LEN($C5)-$A5)&"",$N$4:INDIRECT(ADDRESS($AK$3,$AK$4))),IF($B5=1,DSUM(Forespørgsel1[#All],""&LEFT($C5,LEN($C5)-$A5)&"",$N$4:INDIRECT(ADDRESS($AK$3,$AK$4)))/DSUM(Forespørgsel1[#All],""&$K$4&"",$N$4:INDIRECT(ADDRESS($AK$3,$AK$4))),IF($B5=2,DSUM(Forespørgsel1[#All],""&LEFT($C5,LEN($C5)-$A5)&"",$N$4:INDIRECT(ADDRESS($AK$3,$AK$4)))/DSUM(Forespørgsel1[#All],""&$L$4&"",$N$4:INDIRECT(ADDRESS($AK$3,$AK$4))))))),""),"") ->  | I5: =IF($AB$1=45,IFERROR(IF(ISTEXT($B5)=TRUE,DSUM(Forespørgsel1[#All],""&LEFT($C5,LEN($C5)-$A5)&"",$N$10:INDIRECT(ADDRESS($AK$5,$AK$4)))/DSUM(Forespørgsel1[#All],""&$B5&"",$N$10:INDIRECT(ADDRESS($AK$5,$AK$4))),IF($B5=0,DAVERAGE(Forespørgsel1[#All],""&LEFT($C5,LEN($C5)-$A5)&"",$N$10:INDIRECT(ADDRESS($AK$5,$AK$4))),IF($B5=1,DSUM(Forespørgsel1[#All],""&LEFT($C5,LEN($C5)-$A5)&"",$N$10:INDIRECT(ADDRESS($AK$5,$AK$4)))/DSUM(Forespørgsel1[#All],""&$K$4&"",$N$10:INDIRECT(ADDRESS($AK$5,$AK$4))),IF($B5=2,DSUM(Forespørgsel1[#All],""&LEFT($C5,LEN($C5)-$A5)&"",$N$10:INDIRECT(ADDRESS($AK$5,$AK$4)))/DSUM(Forespørgsel1[#All],""&$L$4&"",$N$10:INDIRECT(ADDRESS($AK$5,$AK$4))))))),""),"") ->  | N5: =IF($AB$1=45,">"&IF(K8<=5,"For få relevante observationer",DMAX(Forespørgsel1[#All],""&$M$17&"",$N$33:INDIRECT(ADDRESS($AK$38,$AK$4))))&"","") ->  | O5: ="=3300" -> =3300 | P5: TRUE | Q5: >50 | R5: >5 | V5: >7420 | AJ5: Række bedste 1/3 | AK5: 13
A6: 0 | B6: 0 | C6: Andel læggekartofler | D6: =IF($AB$1=45,Landsgennemsnit!EB6,"") ->  | E6: =IF($AB$1=45,Landsgennemsnit!EC6,"") ->  | F6: =IF($AB$1=45,Landsgennemsnit!ED6,"") ->  | G6: =IF($AB$1=45,IFERROR(IF(ISTEXT($B6)=TRUE,DSUM(Forespørgsel1[#All],""&LEFT($C6,LEN($C6)-$A6)&"",$O$4:INDIRECT(ADDRESS($AK$3,$AK$4)))/DSUM(Forespørgsel1[#All],""&$B6&"",$O$4:INDIRECT(ADDRESS($AK$3,$AK$4))),IF($B6=0,DAVERAGE(Forespørgsel1[#All],""&LEFT($C6,LEN($C6)-$A6)&"",$O$4:INDIRECT(ADDRESS($AK$3,$AK$4))),IF($B6=1,DSUM(Forespørgsel1[#All],""&LEFT($C6,LEN($C6)-$A6)&"",$O$4:INDIRECT(ADDRESS($AK$3,$AK$4)))/DSUM(Forespørgsel1[#All],""&$K$4&"",$O$4:INDIRECT(ADDRESS($AK$3,$AK$4))),DSUM(Forespørgsel1[#All],""&LEFT($C6,LEN($C6)-$A6)&"",$O$4:INDIRECT(ADDRESS($AK$3,$AK$4)))/DSUM(Forespørgsel1[#All],""&$L$4&"",$O$4:INDIRECT(ADDRESS($AK$3,$AK$4)))))),""),"") ->  | H6: =IF($AB$1=45,IFERROR(IF(ISTEXT($B6)=TRUE,DSUM(Forespørgsel1[#All],""&LEFT($C6,LEN($C6)-$A6)&"",$N$4:INDIRECT(ADDRESS($AK$3,$AK$4)))/DSUM(Forespørgsel1[#All],""&$B6&"",$N$4:INDIRECT(ADDRESS($AK$3,$AK$4))),IF($B6=0,DAVERAGE(Forespørgsel1[#All],""&LEFT($C6,LEN($C6)-$A6)&"",$N$4:INDIRECT(ADDRESS($AK$3,$AK$4))),IF($B6=1,DSUM(Forespørgsel1[#All],""&LEFT($C6,LEN($C6)-$A6)&"",$N$4:INDIRECT(ADDRESS($AK$3,$AK$4)))/DSUM(Forespørgsel1[#All],""&$K$4&"",$N$4:INDIRECT(ADDRESS($AK$3,$AK$4))),IF($B6=2,DSUM(Forespørgsel1[#All],""&LEFT($C6,LEN($C6)-$A6)&"",$N$4:INDIRECT(ADDRESS($AK$3,$AK$4)))/DSUM(Forespørgsel1[#All],""&$L$4&"",$N$4:INDIRECT(ADDRESS($AK$3,$AK$4))))))),""),"") ->  | I6: =IF($AB$1=45,IFERROR(IF(ISTEXT($B6)=TRUE,DSUM(Forespørgsel1[#All],""&LEFT($C6,LEN($C6)-$A6)&"",$N$10:INDIRECT(ADDRESS($AK$5,$AK$4)))/DSUM(Forespørgsel1[#All],""&$B6&"",$N$10:INDIRECT(ADDRESS($AK$5,$AK$4))),IF($B6=0,DAVERAGE(Forespørgsel1[#All],""&LEFT($C6,LEN($C6)-$A6)&"",$N$10:INDIRECT(ADDRESS($AK$5,$AK$4))),IF($B6=1,DSUM(Forespørgsel1[#All],""&LEFT($C6,LEN($C6)-$A6)&"",$N$10:INDIRECT(ADDRESS($AK$5,$AK$4)))/DSUM(Forespørgsel1[#All],""&$K$4&"",$N$10:INDIRECT(ADDRESS($AK$5,$AK$4))),IF($B6=2,DSUM(Forespørgsel1[#All],""&LEFT($C6,LEN($C6)-$A6)&"",$N$10:INDIRECT(ADDRESS($AK$5,$AK$4)))/DSUM(Forespørgsel1[#All],""&$L$4&"",$N$10:INDIRECT(ADDRESS($AK$5,$AK$4))))))),""),"") ->  | N6: =$N$5 ->  | O6: =$O$5 -> =3300 | P6: TRUE | Q6: >50 | R6: >5
A7: 0 | B7: 0 | C7: Andel spisekartofler | D7: =IF($AB$1=45,Landsgennemsnit!EB7,"") ->  | E7: =IF($AB$1=45,Landsgennemsnit!EC7,"") ->  | F7: =IF($AB$1=45,Landsgennemsnit!ED7,"") ->  | G7: =IF($AB$1=45,IFERROR(IF(ISTEXT($B7)=TRUE,DSUM(Forespørgsel1[#All],""&LEFT($C7,LEN($C7)-$A7)&"",$O$4:INDIRECT(ADDRESS($AK$3,$AK$4)))/DSUM(Forespørgsel1[#All],""&$B7&"",$O$4:INDIRECT(ADDRESS($AK$3,$AK$4))),IF($B7=0,DAVERAGE(Forespørgsel1[#All],""&LEFT($C7,LEN($C7)-$A7)&"",$O$4:INDIRECT(ADDRESS($AK$3,$AK$4))),IF($B7=1,DSUM(Forespørgsel1[#All],""&LEFT($C7,LEN($C7)-$A7)&"",$O$4:INDIRECT(ADDRESS($AK$3,$AK$4)))/DSUM(Forespørgsel1[#All],""&$K$4&"",$O$4:INDIRECT(ADDRESS($AK$3,$AK$4))),DSUM(Forespørgsel1[#All],""&LEFT($C7,LEN($C7)-$A7)&"",$O$4:INDIRECT(ADDRESS($AK$3,$AK$4)))/DSUM(Forespørgsel1[#All],""&$L$4&"",$O$4:INDIRECT(ADDRESS($AK$3,$AK$4)))))),""),"") ->  | H7: =IF($AB$1=45,IFERROR(IF(ISTEXT($B7)=TRUE,DSUM(Forespørgsel1[#All],""&LEFT($C7,LEN($C7)-$A7)&"",$N$4:INDIRECT(ADDRESS($AK$3,$AK$4)))/DSUM(Forespørgsel1[#All],""&$B7&"",$N$4:INDIRECT(ADDRESS($AK$3,$AK$4))),IF($B7=0,DAVERAGE(Forespørgsel1[#All],""&LEFT($C7,LEN($C7)-$A7)&"",$N$4:INDIRECT(ADDRESS($AK$3,$AK$4))),IF($B7=1,DSUM(Forespørgsel1[#All],""&LEFT($C7,LEN($C7)-$A7)&"",$N$4:INDIRECT(ADDRESS($AK$3,$AK$4)))/DSUM(Forespørgsel1[#All],""&$K$4&"",$N$4:INDIRECT(ADDRESS($AK$3,$AK$4))),IF($B7=2,DSUM(Forespørgsel1[#All],""&LEFT($C7,LEN($C7)-$A7)&"",$N$4:INDIRECT(ADDRESS($AK$3,$AK$4)))/DSUM(Forespørgsel1[#All],""&$L$4&"",$N$4:INDIRECT(ADDRESS($AK$3,$AK$4))))))),""),"") ->  | I7: =IF($AB$1=45,IFERROR(IF(ISTEXT($B7)=TRUE,DSUM(Forespørgsel1[#All],""&LEFT($C7,LEN($C7)-$A7)&"",$N$10:INDIRECT(ADDRESS($AK$5,$AK$4)))/DSUM(Forespørgsel1[#All],""&$B7&"",$N$10:INDIRECT(ADDRESS($AK$5,$AK$4))),IF($B7=0,DAVERAGE(Forespørgsel1[#All],""&LEFT($C7,LEN($C7)-$A7)&"",$N$10:INDIRECT(ADDRESS($AK$5,$AK$4))),IF($B7=1,DSUM(Forespørgsel1[#All],""&LEFT($C7,LEN($C7)-$A7)&"",$N$10:INDIRECT(ADDRESS($AK$5,$AK$4)))/DSUM(Forespørgsel1[#All],""&$K$4&"",$N$10:INDIRECT(ADDRESS($AK$5,$AK$4))),IF($B7=2,DSUM(Forespørgsel1[#All],""&LEFT($C7,LEN($C7)-$A7)&"",$N$10:INDIRECT(ADDRESS($AK$5,$AK$4)))/DSUM(Forespørgsel1[#All],""&$L$4&"",$N$10:INDIRECT(ADDRESS($AK$5,$AK$4))))))),""),"") ->  | K7: Samlet antal inkluderet under betingelserne | N7: =$N$5 ->  | O7: =$O$5 -> =3300 | P7: TRUE | Q7: >50 | R7: >5
A8: 0 | B8: 0 | C8: Andel proceskartofler | D8: =IF($AB$1=45,Landsgennemsnit!EB8,"") ->  | E8: =IF($AB$1=45,Landsgennemsnit!EC8,"") ->  | F8: =IF($AB$1=45,Landsgennemsnit!ED8,"") ->  | G8: =IF($AB$1=45,IFERROR(IF(ISTEXT($B8)=TRUE,DSUM(Forespørgsel1[#All],""&LEFT($C8,LEN($C8)-$A8)&"",$O$4:INDIRECT(ADDRESS($AK$3,$AK$4)))/DSUM(Forespørgsel1[#All],""&$B8&"",$O$4:INDIRECT(ADDRESS($AK$3,$AK$4))),IF($B8=0,DAVERAGE(Forespørgsel1[#All],""&LEFT($C8,LEN($C8)-$A8)&"",$O$4:INDIRECT(ADDRESS($AK$3,$AK$4))),IF($B8=1,DSUM(Forespørgsel1[#All],""&LEFT($C8,LEN($C8)-$A8)&"",$O$4:INDIRECT(ADDRESS($AK$3,$AK$4)))/DSUM(Forespørgsel1[#All],""&$K$4&"",$O$4:INDIRECT(ADDRESS($AK$3,$AK$4))),DSUM(Forespørgsel1[#All],""&LEFT($C8,LEN($C8)-$A8)&"",$O$4:INDIRECT(ADDRESS($AK$3,$AK$4)))/DSUM(Forespørgsel1[#All],""&$L$4&"",$O$4:INDIRECT(ADDRESS($AK$3,$AK$4)))))),""),"") ->  | H8: =IF($AB$1=45,IFERROR(IF(ISTEXT($B8)=TRUE,DSUM(Forespørgsel1[#All],""&LEFT($C8,LEN($C8)-$A8)&"",$N$4:INDIRECT(ADDRESS($AK$3,$AK$4)))/DSUM(Forespørgsel1[#All],""&$B8&"",$N$4:INDIRECT(ADDRESS($AK$3,$AK$4))),IF($B8=0,DAVERAGE(Forespørgsel1[#All],""&LEFT($C8,LEN($C8)-$A8)&"",$N$4:INDIRECT(ADDRESS($AK$3,$AK$4))),IF($B8=1,DSUM(Forespørgsel1[#All],""&LEFT($C8,LEN($C8)-$A8)&"",$N$4:INDIRECT(ADDRESS($AK$3,$AK$4)))/DSUM(Forespørgsel1[#All],""&$K$4&"",$N$4:INDIRECT(ADDRESS($AK$3,$AK$4))),IF($B8=2,DSUM(Forespørgsel1[#All],""&LEFT($C8,LEN($C8)-$A8)&"",$N$4:INDIRECT(ADDRESS($AK$3,$AK$4)))/DSUM(Forespørgsel1[#All],""&$L$4&"",$N$4:INDIRECT(ADDRESS($AK$3,$AK$4))))))),""),"") ->  | I8: =IF($AB$1=45,IFERROR(IF(ISTEXT($B8)=TRUE,DSUM(Forespørgsel1[#All],""&LEFT($C8,LEN($C8)-$A8)&"",$N$10:INDIRECT(ADDRESS($AK$5,$AK$4)))/DSUM(Forespørgsel1[#All],""&$B8&"",$N$10:INDIRECT(ADDRESS($AK$5,$AK$4))),IF($B8=0,DAVERAGE(Forespørgsel1[#All],""&LEFT($C8,LEN($C8)-$A8)&"",$N$10:INDIRECT(ADDRESS($AK$5,$AK$4))),IF($B8=1,DSUM(Forespørgsel1[#All],""&LEFT($C8,LEN($C8)-$A8)&"",$N$10:INDIRECT(ADDRESS($AK$5,$AK$4)))/DSUM(Forespørgsel1[#All],""&$K$4&"",$N$10:INDIRECT(ADDRESS($AK$5,$AK$4))),IF($B8=2,DSUM(Forespørgsel1[#All],""&LEFT($C8,LEN($C8)-$A8)&"",$N$10:INDIRECT(ADDRESS($AK$5,$AK$4)))/DSUM(Forespørgsel1[#All],""&$L$4&"",$N$10:INDIRECT(ADDRESS($AK$5,$AK$4))))))),""),"") ->  | K8: =IF($AB$1=45,DCOUNT(Forespørgsel1[#All],""&N4&"",IF(P4=0,O4:O7,IF(Q4=0,O4:P7,IF(R4=0,O4:Q7,IF(S4=0,O4:R7,IF(T4=0,O4:S7,IF(U4=0,O4:T7,""))))))),"") -> 
A9: 0 | B9: 0 | C9: Forpagtet andel af areal | D9: =IF($AB$1=45,Landsgennemsnit!EB9,"") ->  | E9: =IF($AB$1=45,Landsgennemsnit!EC9,"") ->  | F9: =IF($AB$1=45,Landsgennemsnit!ED9,"") ->  | G9: =IF($AB$1=45,IFERROR(IF(ISTEXT($B9)=TRUE,DSUM(Forespørgsel1[#All],""&LEFT($C9,LEN($C9)-$A9)&"",$O$4:INDIRECT(ADDRESS($AK$3,$AK$4)))/DSUM(Forespørgsel1[#All],""&$B9&"",$O$4:INDIRECT(ADDRESS($AK$3,$AK$4))),IF($B9=0,DAVERAGE(Forespørgsel1[#All],""&LEFT($C9,LEN($C9)-$A9)&"",$O$4:INDIRECT(ADDRESS($AK$3,$AK$4))),IF($B9=1,DSUM(Forespørgsel1[#All],""&LEFT($C9,LEN($C9)-$A9)&"",$O$4:INDIRECT(ADDRESS($AK$3,$AK$4)))/DSUM(Forespørgsel1[#All],""&$K$4&"",$O$4:INDIRECT(ADDRESS($AK$3,$AK$4))),DSUM(Forespørgsel1[#All],""&LEFT($C9,LEN($C9)-$A9)&"",$O$4:INDIRECT(ADDRESS($AK$3,$AK$4)))/DSUM(Forespørgsel1[#All],""&$L$4&"",$O$4:INDIRECT(ADDRESS($AK$3,$AK$4)))))),""),"") ->  | H9: =IF($AB$1=45,IFERROR(IF(ISTEXT($B9)=TRUE,DSUM(Forespørgsel1[#All],""&LEFT($C9,LEN($C9)-$A9)&"",$N$4:INDIRECT(ADDRESS($AK$3,$AK$4)))/DSUM(Forespørgsel1[#All],""&$B9&"",$N$4:INDIRECT(ADDRESS($AK$3,$AK$4))),IF($B9=0,DAVERAGE(Forespørgsel1[#All],""&LEFT($C9,LEN($C9)-$A9)&"",$N$4:INDIRECT(ADDRESS($AK$3,$AK$4))),IF($B9=1,DSUM(Forespørgsel1[#All],""&LEFT($C9,LEN($C9)-$A9)&"",$N$4:INDIRECT(ADDRESS($AK$3,$AK$4)))/DSUM(Forespørgsel1[#All],""&$K$4&"",$N$4:INDIRECT(ADDRESS($AK$3,$AK$4))),IF($B9=2,DSUM(Forespørgsel1[#All],""&LEFT($C9,LEN($C9)-$A9)&"",$N$4:INDIRECT(ADDRESS($AK$3,$AK$4)))/DSUM(Forespørgsel1[#All],""&$L$4&"",$N$4:INDIRECT(ADDRESS($AK$3,$AK$4))))))),""),"") ->  | I9: =IF($AB$1=45,IFERROR(IF(ISTEXT($B9)=TRUE,DSUM(Forespørgsel1[#All],""&LEFT($C9,LEN($C9)-$A9)&"",$N$10:INDIRECT(ADDRESS($AK$5,$AK$4)))/DSUM(Forespørgsel1[#All],""&$B9&"",$N$10:INDIRECT(ADDRESS($AK$5,$AK$4))),IF($B9=0,DAVERAGE(Forespørgsel1[#All],""&LEFT($C9,LEN($C9)-$A9)&"",$N$10:INDIRECT(ADDRESS($AK$5,$AK$4))),IF($B9=1,DSUM(Forespørgsel1[#All],""&LEFT($C9,LEN($C9)-$A9)&"",$N$10:INDIRECT(ADDRESS($AK$5,$AK$4)))/DSUM(Forespørgsel1[#All],""&$K$4&"",$N$10:INDIRECT(ADDRESS($AK$5,$AK$4))),IF($B9=2,DSUM(Forespørgsel1[#All],""&LEFT($C9,LEN($C9)-$A9)&"",$N$10:INDIRECT(ADDRESS($AK$5,$AK$4)))/DSUM(Forespørgsel1[#All],""&$L$4&"",$N$10:INDIRECT(ADDRESS($AK$5,$AK$4))))))),""),"") ->  | N9: Bedste 1/3
D10: =IF($AB$1=45,Landsgennemsnit!EB10,"") ->  | E10: =IF($AB$1=45,Landsgennemsnit!EC10,"") ->  | F10: =IF($AB$1=45,Landsgennemsnit!ED10,"") ->  | G10: =IF($AB$1=45,IFERROR(IF(ISTEXT($B10)=TRUE,DSUM(Forespørgsel1[#All],""&LEFT($C10,LEN($C10)-$A10)&"",$O$4:INDIRECT(ADDRESS($AK$3,$AK$4)))/DSUM(Forespørgsel1[#All],""&$B10&"",$O$4:INDIRECT(ADDRESS($AK$3,$AK$4))),IF($B10=0,DAVERAGE(Forespørgsel1[#All],""&LEFT($C10,LEN($C10)-$A10)&"",$O$4:INDIRECT(ADDRESS($AK$3,$AK$4))),IF($B10=1,DSUM(Forespørgsel1[#All],""&LEFT($C10,LEN($C10)-$A10)&"",$O$4:INDIRECT(ADDRESS($AK$3,$AK$4)))/DSUM(Forespørgsel1[#All],""&$K$4&"",$O$4:INDIRECT(ADDRESS($AK$3,$AK$4))),DSUM(Forespørgsel1[#All],""&LEFT($C10,LEN($C10)-$A10)&"",$O$4:INDIRECT(ADDRESS($AK$3,$AK$4)))/DSUM(Forespørgsel1[#All],""&$L$4&"",$O$4:INDIRECT(ADDRESS($AK$3,$AK$4)))))),""),"") ->  | H10: =IF($AB$1=45,IFERROR(IF(ISTEXT($B10)=TRUE,DSUM(Forespørgsel1[#All],""&LEFT($C10,LEN($C10)-$A10)&"",$N$4:INDIRECT(ADDRESS($AK$3,$AK$4)))/DSUM(Forespørgsel1[#All],""&$B10&"",$N$4:INDIRECT(ADDRESS($AK$3,$AK$4))),IF($B10=0,DAVERAGE(Forespørgsel1[#All],""&LEFT($C10,LEN($C10)-$A10)&"",$N$4:INDIRECT(ADDRESS($AK$3,$AK$4))),IF($B10=1,DSUM(Forespørgsel1[#All],""&LEFT($C10,LEN($C10)-$A10)&"",$N$4:INDIRECT(ADDRESS($AK$3,$AK$4)))/DSUM(Forespørgsel1[#All],""&$K$4&"",$N$4:INDIRECT(ADDRESS($AK$3,$AK$4))),IF($B10=2,DSUM(Forespørgsel1[#All],""&LEFT($C10,LEN($C10)-$A10)&"",$N$4:INDIRECT(ADDRESS($AK$3,$AK$4)))/DSUM(Forespørgsel1[#All],""&$L$4&"",$N$4:INDIRECT(ADDRESS($AK$3,$AK$4))))))),""),"") ->  | I10: =IF($AB$1=45,IFERROR(IF(ISTEXT($B10)=TRUE,DSUM(Forespørgsel1[#All],""&LEFT($C10,LEN($C10)-$A10)&"",$N$10:INDIRECT(ADDRESS($AK$5,$AK$4)))/DSUM(Forespørgsel1[#All],""&$B10&"",$N$10:INDIRECT(ADDRESS($AK$5,$AK$4))),IF($B10=0,DAVERAGE(Forespørgsel1[#All],""&LEFT($C10,LEN($C10)-$A10)&"",$N$10:INDIRECT(ADDRESS($AK$5,$AK$4))),IF($B10=1,DSUM(Forespørgsel1[#All],""&LEFT($C10,LEN($C10)-$A10)&"",$N$10:INDIRECT(ADDRESS($AK$5,$AK$4)))/DSUM(Forespørgsel1[#All],""&$K$4&"",$N$10:INDIRECT(ADDRESS($AK$5,$AK$4))),IF($B10=2,DSUM(Forespørgsel1[#All],""&LEFT($C10,LEN($C10)-$A10)&"",$N$10:INDIRECT(ADDRESS($AK$5,$AK$4)))/DSUM(Forespørgsel1[#All],""&$L$4&"",$N$10:INDIRECT(ADDRESS($AK$5,$AK$4))))))),""),"") ->  | N10: Rest til jordleje før EU-støtte pr. ha | O10: =O4 -> Prodgren | P10: =P4 -> Godkendt | Q10: =Q4 -> Andel stivelseskartofler | R10: Ha i alt, driftsgren
A11: 0 | B11: 0 | C11: Udbytte pr. ha stivelseskartofler, hkg | D11: =IF($AB$1=45,Landsgennemsnit!EB11,"") ->  | E11: =IF($AB$1=45,Landsgennemsnit!EC11,"") ->  | F11: =IF($AB$1=45,Landsgennemsnit!ED11,"") ->  | G11: =IF($AB$1=45,IFERROR(IF(ISTEXT($B11)=TRUE,DSUM(Forespørgsel1[#All],""&LEFT($C11,LEN($C11)-$A11)&"",$O$4:INDIRECT(ADDRESS($AK$3,$AK$4)))/DSUM(Forespørgsel1[#All],""&$B11&"",$O$4:INDIRECT(ADDRESS($AK$3,$AK$4))),IF($B11=0,DAVERAGE(Forespørgsel1[#All],""&LEFT($C11,LEN($C11)-$A11)&"",$O$4:INDIRECT(ADDRESS($AK$3,$AK$4))),IF($B11=1,DSUM(Forespørgsel1[#All],""&LEFT($C11,LEN($C11)-$A11)&"",$O$4:INDIRECT(ADDRESS($AK$3,$AK$4)))/DSUM(Forespørgsel1[#All],""&$K$4&"",$O$4:INDIRECT(ADDRESS($AK$3,$AK$4))),DSUM(Forespørgsel1[#All],""&LEFT($C11,LEN($C11)-$A11)&"",$O$4:INDIRECT(ADDRESS($AK$3,$AK$4)))/DSUM(Forespørgsel1[#All],""&$L$4&"",$O$4:INDIRECT(ADDRESS($AK$3,$AK$4)))))),""),"") ->  | H11: =IF($AB$1=45,IFERROR(IF(ISTEXT($B11)=TRUE,DSUM(Forespørgsel1[#All],""&LEFT($C11,LEN($C11)-$A11)&"",$N$4:INDIRECT(ADDRESS($AK$3,$AK$4)))/DSUM(Forespørgsel1[#All],""&$B11&"",$N$4:INDIRECT(ADDRESS($AK$3,$AK$4))),IF($B11=0,DAVERAGE(Forespørgsel1[#All],""&LEFT($C11,LEN($C11)-$A11)&"",$N$4:INDIRECT(ADDRESS($AK$3,$AK$4))),IF($B11=1,DSUM(Forespørgsel1[#All],""&LEFT($C11,LEN($C11)-$A11)&"",$N$4:INDIRECT(ADDRESS($AK$3,$AK$4)))/DSUM(Forespørgsel1[#All],""&$K$4&"",$N$4:INDIRECT(ADDRESS($AK$3,$AK$4))),IF($B11=2,DSUM(Forespørgsel1[#All],""&LEFT($C11,LEN($C11)-$A11)&"",$N$4:INDIRECT(ADDRESS($AK$3,$AK$4)))/DSUM(Forespørgsel1[#All],""&$L$4&"",$N$4:INDIRECT(ADDRESS($AK$3,$AK$4))))))),""),"") ->  | I11: =IF($AB$1=45,IFERROR(IF(ISTEXT($B11)=TRUE,DSUM(Forespørgsel1[#All],""&LEFT($C11,LEN($C11)-$A11)&"",$N$10:INDIRECT(ADDRESS($AK$5,$AK$4)))/DSUM(Forespørgsel1[#All],""&$B11&"",$N$10:INDIRECT(ADDRESS($AK$5,$AK$4))),IF($B11=0,DAVERAGE(Forespørgsel1[#All],""&LEFT($C11,LEN($C11)-$A11)&"",$N$10:INDIRECT(ADDRESS($AK$5,$AK$4))),IF($B11=1,DSUM(Forespørgsel1[#All],""&LEFT($C11,LEN($C11)-$A11)&"",$N$10:INDIRECT(ADDRESS($AK$5,$AK$4)))/DSUM(Forespørgsel1[#All],""&$K$4&"",$N$10:INDIRECT(ADDRESS($AK$5,$AK$4))),IF($B11=2,DSUM(Forespørgsel1[#All],""&LEFT($C11,LEN($C11)-$A11)&"",$N$10:INDIRECT(ADDRESS($AK$5,$AK$4)))/DSUM(Forespørgsel1[#All],""&$L$4&"",$N$10:INDIRECT(ADDRESS($AK$5,$AK$4))))))),""),"") ->  | N11: =IF($AB$1=45,IF(K8/3<=5,"For få relevante observationer",V5),"") ->  | O11: =$O$5 -> =3300 | P11: =P5 -> TRUE | Q11: >50 | R11: >5
A12: 0 | B12: 0 | C12: Udbytte pr. ha læggekartofler, hkg | D12: =IF($AB$1=45,Landsgennemsnit!EB12,"") ->  | E12: =IF($AB$1=45,Landsgennemsnit!EC12,"") ->  | F12: =IF($AB$1=45,Landsgennemsnit!ED12,"") ->  | G12: =IF($AB$1=45,IFERROR(IF(ISTEXT($B12)=TRUE,DSUM(Forespørgsel1[#All],""&LEFT($C12,LEN($C12)-$A12)&"",$O$4:INDIRECT(ADDRESS($AK$3,$AK$4)))/DSUM(Forespørgsel1[#All],""&$B12&"",$O$4:INDIRECT(ADDRESS($AK$3,$AK$4))),IF($B12=0,DAVERAGE(Forespørgsel1[#All],""&LEFT($C12,LEN($C12)-$A12)&"",$O$4:INDIRECT(ADDRESS($AK$3,$AK$4))),IF($B12=1,DSUM(Forespørgsel1[#All],""&LEFT($C12,LEN($C12)-$A12)&"",$O$4:INDIRECT(ADDRESS($AK$3,$AK$4)))/DSUM(Forespørgsel1[#All],""&$K$4&"",$O$4:INDIRECT(ADDRESS($AK$3,$AK$4))),DSUM(Forespørgsel1[#All],""&LEFT($C12,LEN($C12)-$A12)&"",$O$4:INDIRECT(ADDRESS($AK$3,$AK$4)))/DSUM(Forespørgsel1[#All],""&$L$4&"",$O$4:INDIRECT(ADDRESS($AK$3,$AK$4)))))),""),"") ->  | H12: =IF($AB$1=45,IFERROR(IF(ISTEXT($B12)=TRUE,DSUM(Forespørgsel1[#All],""&LEFT($C12,LEN($C12)-$A12)&"",$N$4:INDIRECT(ADDRESS($AK$3,$AK$4)))/DSUM(Forespørgsel1[#All],""&$B12&"",$N$4:INDIRECT(ADDRESS($AK$3,$AK$4))),IF($B12=0,DAVERAGE(Forespørgsel1[#All],""&LEFT($C12,LEN($C12)-$A12)&"",$N$4:INDIRECT(ADDRESS($AK$3,$AK$4))),IF($B12=1,DSUM(Forespørgsel1[#All],""&LEFT($C12,LEN($C12)-$A12)&"",$N$4:INDIRECT(ADDRESS($AK$3,$AK$4)))/DSUM(Forespørgsel1[#All],""&$K$4&"",$N$4:INDIRECT(ADDRESS($AK$3,$AK$4))),IF($B12=2,DSUM(Forespørgsel1[#All],""&LEFT($C12,LEN($C12)-$A12)&"",$N$4:INDIRECT(ADDRESS($AK$3,$AK$4)))/DSUM(Forespørgsel1[#All],""&$L$4&"",$N$4:INDIRECT(ADDRESS($AK$3,$AK$4))))))),""),"") ->  | I12: =IF($AB$1=45,IFERROR(IF(ISTEXT($B12)=TRUE,DSUM(Forespørgsel1[#All],""&LEFT($C12,LEN($C12)-$A12)&"",$N$10:INDIRECT(ADDRESS($AK$5,$AK$4)))/DSUM(Forespørgsel1[#All],""&$B12&"",$N$10:INDIRECT(ADDRESS($AK$5,$AK$4))),IF($B12=0,DAVERAGE(Forespørgsel1[#All],""&LEFT($C12,LEN($C12)-$A12)&"",$N$10:INDIRECT(ADDRESS($AK$5,$AK$4))),IF($B12=1,DSUM(Forespørgsel1[#All],""&LEFT($C12,LEN($C12)-$A12)&"",$N$10:INDIRECT(ADDRESS($AK$5,$AK$4)))/DSUM(Forespørgsel1[#All],""&$K$4&"",$N$10:INDIRECT(ADDRESS($AK$5,$AK$4))),IF($B12=2,DSUM(Forespørgsel1[#All],""&LEFT($C12,LEN($C12)-$A12)&"",$N$10:INDIRECT(ADDRESS($AK$5,$AK$4)))/DSUM(Forespørgsel1[#All],""&$L$4&"",$N$10:INDIRECT(ADDRESS($AK$5,$AK$4))))))),""),"") ->  | N12: =N11 ->  | O12: =$O$5 -> =3300 | P12: =P6 -> TRUE | Q12: >50 | R12: >5
A13: 0 | B13: 0 | C13: Udbytte pr. ha spisekartofler, hkg | D13: =IF($AB$1=45,Landsgennemsnit!EB13,"") ->  | E13: =IF($AB$1=45,Landsgennemsnit!EC13,"") ->  | F13: =IF($AB$1=45,Landsgennemsnit!ED13,"") ->  | G13: =IF($AB$1=45,IFERROR(IF(ISTEXT($B13)=TRUE,DSUM(Forespørgsel1[#All],""&LEFT($C13,LEN($C13)-$A13)&"",$O$4:INDIRECT(ADDRESS($AK$3,$AK$4)))/DSUM(Forespørgsel1[#All],""&$B13&"",$O$4:INDIRECT(ADDRESS($AK$3,$AK$4))),IF($B13=0,DAVERAGE(Forespørgsel1[#All],""&LEFT($C13,LEN($C13)-$A13)&"",$O$4:INDIRECT(ADDRESS($AK$3,$AK$4))),IF($B13=1,DSUM(Forespørgsel1[#All],""&LEFT($C13,LEN($C13)-$A13)&"",$O$4:INDIRECT(ADDRESS($AK$3,$AK$4)))/DSUM(Forespørgsel1[#All],""&$K$4&"",$O$4:INDIRECT(ADDRESS($AK$3,$AK$4))),DSUM(Forespørgsel1[#All],""&LEFT($C13,LEN($C13)-$A13)&"",$O$4:INDIRECT(ADDRESS($AK$3,$AK$4)))/DSUM(Forespørgsel1[#All],""&$L$4&"",$O$4:INDIRECT(ADDRESS($AK$3,$AK$4)))))),""),"") ->  | H13: =IF($AB$1=45,IFERROR(IF(ISTEXT($B13)=TRUE,DSUM(Forespørgsel1[#All],""&LEFT($C13,LEN($C13)-$A13)&"",$N$4:INDIRECT(ADDRESS($AK$3,$AK$4)))/DSUM(Forespørgsel1[#All],""&$B13&"",$N$4:INDIRECT(ADDRESS($AK$3,$AK$4))),IF($B13=0,DAVERAGE(Forespørgsel1[#All],""&LEFT($C13,LEN($C13)-$A13)&"",$N$4:INDIRECT(ADDRESS($AK$3,$AK$4))),IF($B13=1,DSUM(Forespørgsel1[#All],""&LEFT($C13,LEN($C13)-$A13)&"",$N$4:INDIRECT(ADDRESS($AK$3,$AK$4)))/DSUM(Forespørgsel1[#All],""&$K$4&"",$N$4:INDIRECT(ADDRESS($AK$3,$AK$4))),IF($B13=2,DSUM(Forespørgsel1[#All],""&LEFT($C13,LEN($C13)-$A13)&"",$N$4:INDIRECT(ADDRESS($AK$3,$AK$4)))/DSUM(Forespørgsel1[#All],""&$L$4&"",$N$4:INDIRECT(ADDRESS($AK$3,$AK$4))))))),""),"") ->  | I13: =IF($AB$1=45,IFERROR(IF(ISTEXT($B13)=TRUE,DSUM(Forespørgsel1[#All],""&LEFT($C13,LEN($C13)-$A13)&"",$N$10:INDIRECT(ADDRESS($AK$5,$AK$4)))/DSUM(Forespørgsel1[#All],""&$B13&"",$N$10:INDIRECT(ADDRESS($AK$5,$AK$4))),IF($B13=0,DAVERAGE(Forespørgsel1[#All],""&LEFT($C13,LEN($C13)-$A13)&"",$N$10:INDIRECT(ADDRESS($AK$5,$AK$4))),IF($B13=1,DSUM(Forespørgsel1[#All],""&LEFT($C13,LEN($C13)-$A13)&"",$N$10:INDIRECT(ADDRESS($AK$5,$AK$4)))/DSUM(Forespørgsel1[#All],""&$K$4&"",$N$10:INDIRECT(ADDRESS($AK$5,$AK$4))),IF($B13=2,DSUM(Forespørgsel1[#All],""&LEFT($C13,LEN($C13)-$A13)&"",$N$10:INDIRECT(ADDRESS($AK$5,$AK$4)))/DSUM(Forespørgsel1[#All],""&$L$4&"",$N$10:INDIRECT(ADDRESS($AK$5,$AK$4))))))),""),"") ->  | N13: =N11 ->  | O13: =$O$5 -> =3300 | P13: =P7 -> TRUE | Q13: >50 | R13: >5
A14: 0 | B14: 0 | C14: Udbytte pr. ha proceskartofler, hkg | D14: =IF($AB$1=45,Landsgennemsnit!EB14,"") ->  | E14: =IF($AB$1=45,Landsgennemsnit!EC14,"") ->  | F14: =IF($AB$1=45,Landsgennemsnit!ED14,"") ->  | G14: =IF($AB$1=45,IFERROR(IF(ISTEXT($B14)=TRUE,DSUM(Forespørgsel1[#All],""&LEFT($C14,LEN($C14)-$A14)&"",$O$4:INDIRECT(ADDRESS($AK$3,$AK$4)))/DSUM(Forespørgsel1[#All],""&$B14&"",$O$4:INDIRECT(ADDRESS($AK$3,$AK$4))),IF($B14=0,DAVERAGE(Forespørgsel1[#All],""&LEFT($C14,LEN($C14)-$A14)&"",$O$4:INDIRECT(ADDRESS($AK$3,$AK$4))),IF($B14=1,DSUM(Forespørgsel1[#All],""&LEFT($C14,LEN($C14)-$A14)&"",$O$4:INDIRECT(ADDRESS($AK$3,$AK$4)))/DSUM(Forespørgsel1[#All],""&$K$4&"",$O$4:INDIRECT(ADDRESS($AK$3,$AK$4))),DSUM(Forespørgsel1[#All],""&LEFT($C14,LEN($C14)-$A14)&"",$O$4:INDIRECT(ADDRESS($AK$3,$AK$4)))/DSUM(Forespørgsel1[#All],""&$L$4&"",$O$4:INDIRECT(ADDRESS($AK$3,$AK$4)))))),""),"") ->  | H14: =IF($AB$1=45,IFERROR(IF(ISTEXT($B14)=TRUE,DSUM(Forespørgsel1[#All],""&LEFT($C14,LEN($C14)-$A14)&"",$N$4:INDIRECT(ADDRESS($AK$3,$AK$4)))/DSUM(Forespørgsel1[#All],""&$B14&"",$N$4:INDIRECT(ADDRESS($AK$3,$AK$4))),IF($B14=0,DAVERAGE(Forespørgsel1[#All],""&LEFT($C14,LEN($C14)-$A14)&"",$N$4:INDIRECT(ADDRESS($AK$3,$AK$4))),IF($B14=1,DSUM(Forespørgsel1[#All],""&LEFT($C14,LEN($C14)-$A14)&"",$N$4:INDIRECT(ADDRESS($AK$3,$AK$4)))/DSUM(Forespørgsel1[#All],""&$K$4&"",$N$4:INDIRECT(ADDRESS($AK$3,$AK$4))),IF($B14=2,DSUM(Forespørgsel1[#All],""&LEFT($C14,LEN($C14)-$A14)&"",$N$4:INDIRECT(ADDRESS($AK$3,$AK$4)))/DSUM(Forespørgsel1[#All],""&$L$4&"",$N$4:INDIRECT(ADDRESS($AK$3,$AK$4))))))),""),"") ->  | I14: =IF($AB$1=45,IFERROR(IF(ISTEXT($B14)=TRUE,DSUM(Forespørgsel1[#All],""&LEFT($C14,LEN($C14)-$A14)&"",$N$10:INDIRECT(ADDRESS($AK$5,$AK$4)))/DSUM(Forespørgsel1[#All],""&$B14&"",$N$10:INDIRECT(ADDRESS($AK$5,$AK$4))),IF($B14=0,DAVERAGE(Forespørgsel1[#All],""&LEFT($C14,LEN($C14)-$A14)&"",$N$10:INDIRECT(ADDRESS($AK$5,$AK$4))),IF($B14=1,DSUM(Forespørgsel1[#All],""&LEFT($C14,LEN($C14)-$A14)&"",$N$10:INDIRECT(ADDRESS($AK$5,$AK$4)))/DSUM(Forespørgsel1[#All],""&$K$4&"",$N$10:INDIRECT(ADDRESS($AK$5,$AK$4))),IF($B14=2,DSUM(Forespørgsel1[#All],""&LEFT($C14,LEN($C14)-$A14)&"",$N$10:INDIRECT(ADDRESS($AK$5,$AK$4)))/DSUM(Forespørgsel1[#All],""&$L$4&"",$N$10:INDIRECT(ADDRESS($AK$5,$AK$4))))))),""),"") -> 
D15: =IF($AB$1=45,Landsgennemsnit!EB15,"") ->  | E15: =IF($AB$1=45,Landsgennemsnit!EC15,"") ->  | F15: =IF($AB$1=45,Landsgennemsnit!ED15,"") ->  | G15: =IF($AB$1=45,IFERROR(IF(ISTEXT($B15)=TRUE,DSUM(Forespørgsel1[#All],""&LEFT($C15,LEN($C15)-$A15)&"",$O$4:INDIRECT(ADDRESS($AK$3,$AK$4)))/DSUM(Forespørgsel1[#All],""&$B15&"",$O$4:INDIRECT(ADDRESS($AK$3,$AK$4))),IF($B15=0,DAVERAGE(Forespørgsel1[#All],""&LEFT($C15,LEN($C15)-$A15)&"",$O$4:INDIRECT(ADDRESS($AK$3,$AK$4))),IF($B15=1,DSUM(Forespørgsel1[#All],""&LEFT($C15,LEN($C15)-$A15)&"",$O$4:INDIRECT(ADDRESS($AK$3,$AK$4)))/DSUM(Forespørgsel1[#All],""&$K$4&"",$O$4:INDIRECT(ADDRESS($AK$3,$AK$4))),DSUM(Forespørgsel1[#All],""&LEFT($C15,LEN($C15)-$A15)&"",$O$4:INDIRECT(ADDRESS($AK$3,$AK$4)))/DSUM(Forespørgsel1[#All],""&$L$4&"",$O$4:INDIRECT(ADDRESS($AK$3,$AK$4)))))),""),"") ->  | H15: =IF($AB$1=45,IFERROR(IF(ISTEXT($B15)=TRUE,DSUM(Forespørgsel1[#All],""&LEFT($C15,LEN($C15)-$A15)&"",$N$4:INDIRECT(ADDRESS($AK$3,$AK$4)))/DSUM(Forespørgsel1[#All],""&$B15&"",$N$4:INDIRECT(ADDRESS($AK$3,$AK$4))),IF($B15=0,DAVERAGE(Forespørgsel1[#All],""&LEFT($C15,LEN($C15)-$A15)&"",$N$4:INDIRECT(ADDRESS($AK$3,$AK$4))),IF($B15=1,DSUM(Forespørgsel1[#All],""&LEFT($C15,LEN($C15)-$A15)&"",$N$4:INDIRECT(ADDRESS($AK$3,$AK$4)))/DSUM(Forespørgsel1[#All],""&$K$4&"",$N$4:INDIRECT(ADDRESS($AK$3,$AK$4))),IF($B15=2,DSUM(Forespørgsel1[#All],""&LEFT($C15,LEN($C15)-$A15)&"",$N$4:INDIRECT(ADDRESS($AK$3,$AK$4)))/DSUM(Forespørgsel1[#All],""&$L$4&"",$N$4:INDIRECT(ADDRESS($AK$3,$AK$4))))))),""),"") ->  | I15: =IF($AB$1=45,IFERROR(IF(ISTEXT($B15)=TRUE,DSUM(Forespørgsel1[#All],""&LEFT($C15,LEN($C15)-$A15)&"",$N$10:INDIRECT(ADDRESS($AK$5,$AK$4)))/DSUM(Forespørgsel1[#All],""&$B15&"",$N$10:INDIRECT(ADDRESS($AK$5,$AK$4))),IF($B15=0,DAVERAGE(Forespørgsel1[#All],""&LEFT($C15,LEN($C15)-$A15)&"",$N$10:INDIRECT(ADDRESS($AK$5,$AK$4))),IF($B15=1,DSUM(Forespørgsel1[#All],""&LEFT($C15,LEN($C15)-$A15)&"",$N$10:INDIRECT(ADDRESS($AK$5,$AK$4)))/DSUM(Forespørgsel1[#All],""&$K$4&"",$N$10:INDIRECT(ADDRESS($AK$5,$AK$4))),IF($B15=2,DSUM(Forespørgsel1[#All],""&LEFT($C15,LEN($C15)-$A15)&"",$N$10:INDIRECT(ADDRESS($AK$5,$AK$4)))/DSUM(Forespørgsel1[#All],""&$L$4&"",$N$10:INDIRECT(ADDRESS($AK$5,$AK$4))))))),""),"") ->  | N15: De største værdier
A16: 0 | B16: 0 | C16: Jordbundsforhold | D16: =IF($AB$1=45,Landsgennemsnit!EB16,"") ->  | E16: =IF($AB$1=45,Landsgennemsnit!EC16,"") ->  | F16: =IF($AB$1=45,Landsgennemsnit!ED16,"") ->  | G16: =IF($AB$1=45,IFERROR(IF(ISTEXT($B16)=TRUE,DSUM(Forespørgsel1[#All],""&LEFT($C16,LEN($C16)-$A16)&"",$O$4:INDIRECT(ADDRESS($AK$3,$AK$4)))/DSUM(Forespørgsel1[#All],""&$B16&"",$O$4:INDIRECT(ADDRESS($AK$3,$AK$4))),IF($B16=0,DAVERAGE(Forespørgsel1[#All],""&LEFT($C16,LEN($C16)-$A16)&"",$O$4:INDIRECT(ADDRESS($AK$3,$AK$4))),IF($B16=1,DSUM(Forespørgsel1[#All],""&LEFT($C16,LEN($C16)-$A16)&"",$O$4:INDIRECT(ADDRESS($AK$3,$AK$4)))/DSUM(Forespørgsel1[#All],""&$K$4&"",$O$4:INDIRECT(ADDRESS($AK$3,$AK$4))),DSUM(Forespørgsel1[#All],""&LEFT($C16,LEN($C16)-$A16)&"",$O$4:INDIRECT(ADDRESS($AK$3,$AK$4)))/DSUM(Forespørgsel1[#All],""&$L$4&"",$O$4:INDIRECT(ADDRESS($AK$3,$AK$4)))))),""),"") ->  | H16: =IF($AB$1=45,IFERROR(IF(ISTEXT($B16)=TRUE,DSUM(Forespørgsel1[#All],""&LEFT($C16,LEN($C16)-$A16)&"",$N$4:INDIRECT(ADDRESS($AK$3,$AK$4)))/DSUM(Forespørgsel1[#All],""&$B16&"",$N$4:INDIRECT(ADDRESS($AK$3,$AK$4))),IF($B16=0,DAVERAGE(Forespørgsel1[#All],""&LEFT($C16,LEN($C16)-$A16)&"",$N$4:INDIRECT(ADDRESS($AK$3,$AK$4))),IF($B16=1,DSUM(Forespørgsel1[#All],""&LEFT($C16,LEN($C16)-$A16)&"",$N$4:INDIRECT(ADDRESS($AK$3,$AK$4)))/DSUM(Forespørgsel1[#All],""&$K$4&"",$N$4:INDIRECT(ADDRESS($AK$3,$AK$4))),IF($B16=2,DSUM(Forespørgsel1[#All],""&LEFT($C16,LEN($C16)-$A16)&"",$N$4:INDIRECT(ADDRESS($AK$3,$AK$4)))/DSUM(Forespørgsel1[#All],""&$L$4&"",$N$4:INDIRECT(ADDRESS($AK$3,$AK$4))))))),""),"") ->  | I16: =IF($AB$1=45,IFERROR(IF(ISTEXT($B16)=TRUE,DSUM(Forespørgsel1[#All],""&LEFT($C16,LEN($C16)-$A16)&"",$N$10:INDIRECT(ADDRESS($AK$5,$AK$4)))/DSUM(Forespørgsel1[#All],""&$B16&"",$N$10:INDIRECT(ADDRESS($AK$5,$AK$4))),IF($B16=0,DAVERAGE(Forespørgsel1[#All],""&LEFT($C16,LEN($C16)-$A16)&"",$N$10:INDIRECT(ADDRESS($AK$5,$AK$4))),IF($B16=1,DSUM(Forespørgsel1[#All],""&LEFT($C16,LEN($C16)-$A16)&"",$N$10:INDIRECT(ADDRESS($AK$5,$AK$4)))/DSUM(Forespørgsel1[#All],""&$K$4&"",$N$10:INDIRECT(ADDRESS($AK$5,$AK$4))),IF($B16=2,DSUM(Forespørgsel1[#All],""&LEFT($C16,LEN($C16)-$A16)&"",$N$10:INDIRECT(ADDRESS($AK$5,$AK$4)))/DSUM(Forespørgsel1[#All],""&$L$4&"",$N$10:INDIRECT(ADDRESS($AK$5,$AK$4))))))),""),"") ->  | M16: De 5 største værdier:
A17: 0 | B17: 0 | C17: Andel med JB 5-6 og 7-9 | D17: =IF($AB$1=45,Landsgennemsnit!EB17,"") ->  | E17: =IF($AB$1=45,Landsgennemsnit!EC17,"") ->  | F17: =IF($AB$1=45,Landsgennemsnit!ED17,"") ->  | G17: =IF($AB$1=45,IFERROR(IF(ISTEXT($B17)=TRUE,DSUM(Forespørgsel1[#All],""&LEFT($C17,LEN($C17)-$A17)&"",$O$4:INDIRECT(ADDRESS($AK$3,$AK$4)))/DSUM(Forespørgsel1[#All],""&$B17&"",$O$4:INDIRECT(ADDRESS($AK$3,$AK$4))),IF($B17=0,DAVERAGE(Forespørgsel1[#All],""&LEFT($C17,LEN($C17)-$A17)&"",$O$4:INDIRECT(ADDRESS($AK$3,$AK$4))),IF($B17=1,DSUM(Forespørgsel1[#All],""&LEFT($C17,LEN($C17)-$A17)&"",$O$4:INDIRECT(ADDRESS($AK$3,$AK$4)))/DSUM(Forespørgsel1[#All],""&$K$4&"",$O$4:INDIRECT(ADDRESS($AK$3,$AK$4))),DSUM(Forespørgsel1[#All],""&LEFT($C17,LEN($C17)-$A17)&"",$O$4:INDIRECT(ADDRESS($AK$3,$AK$4)))/DSUM(Forespørgsel1[#All],""&$L$4&"",$O$4:INDIRECT(ADDRESS($AK$3,$AK$4)))))),""),"") ->  | H17: =IF($AB$1=45,IFERROR(IF(ISTEXT($B17)=TRUE,DSUM(Forespørgsel1[#All],""&LEFT($C17,LEN($C17)-$A17)&"",$N$4:INDIRECT(ADDRESS($AK$3,$AK$4)))/DSUM(Forespørgsel1[#All],""&$B17&"",$N$4:INDIRECT(ADDRESS($AK$3,$AK$4))),IF($B17=0,DAVERAGE(Forespørgsel1[#All],""&LEFT($C17,LEN($C17)-$A17)&"",$N$4:INDIRECT(ADDRESS($AK$3,$AK$4))),IF($B17=1,DSUM(Forespørgsel1[#All],""&LEFT($C17,LEN($C17)-$A17)&"",$N$4:INDIRECT(ADDRESS($AK$3,$AK$4)))/DSUM(Forespørgsel1[#All],""&$K$4&"",$N$4:INDIRECT(ADDRESS($AK$3,$AK$4))),IF($B17=2,DSUM(Forespørgsel1[#All],""&LEFT($C17,LEN($C17)-$A17)&"",$N$4:INDIRECT(ADDRESS($AK$3,$AK$4)))/DSUM(Forespørgsel1[#All],""&$L$4&"",$N$4:INDIRECT(ADDRESS($AK$3,$AK$4))))))),""),"") ->  | I17: =IF($AB$1=45,IFERROR(IF(ISTEXT($B17)=TRUE,DSUM(Forespørgsel1[#All],""&LEFT($C17,LEN($C17)-$A17)&"",$N$10:INDIRECT(ADDRESS($AK$5,$AK$4)))/DSUM(Forespørgsel1[#All],""&$B17&"",$N$10:INDIRECT(ADDRESS($AK$5,$AK$4))),IF($B17=0,DAVERAGE(Forespørgsel1[#All],""&LEFT($C17,LEN($C17)-$A17)&"",$N$10:INDIRECT(ADDRESS($AK$5,$AK$4))),IF($B17=1,DSUM(Forespørgsel1[#All],""&LEFT($C17,LEN($C17)-$A17)&"",$N$10:INDIRECT(ADDRESS($AK$5,$AK$4)))/DSUM(Forespørgsel1[#All],""&$K$4&"",$N$10:INDIRECT(ADDRESS($AK$5,$AK$4))),IF($B17=2,DSUM(Forespørgsel1[#All],""&LEFT($C17,LEN($C17)-$A17)&"",$N$10:INDIRECT(ADDRESS($AK$5,$AK$4)))/DSUM(Forespørgsel1[#All],""&$L$4&"",$N$10:INDIRECT(ADDRESS($AK$5,$AK$4))))))),""),"") ->  | L17: Ejd i top 5 | M17: =O17 -> Rest til jordleje før EU-støtte pr. ha | N17: Prodgren | O17: =$N$4 -> Rest til jordleje før EU-støtte pr. ha | P17: =IF(P$4="","",P$4) -> Godkendt | Q17: Andel stivelseskartofler | R17: Ha i alt, driftsgren
A18: 0 | B18: 0 | C18: Andel med finsand 2 og 4 | D18: =IF($AB$1=45,Landsgennemsnit!EB18,"") ->  | E18: =IF($AB$1=45,Landsgennemsnit!EC18,"") ->  | F18: =IF($AB$1=45,Landsgennemsnit!ED18,"") ->  | G18: =IF($AB$1=45,IFERROR(IF(ISTEXT($B18)=TRUE,DSUM(Forespørgsel1[#All],""&LEFT($C18,LEN($C18)-$A18)&"",$O$4:INDIRECT(ADDRESS($AK$3,$AK$4)))/DSUM(Forespørgsel1[#All],""&$B18&"",$O$4:INDIRECT(ADDRESS($AK$3,$AK$4))),IF($B18=0,DAVERAGE(Forespørgsel1[#All],""&LEFT($C18,LEN($C18)-$A18)&"",$O$4:INDIRECT(ADDRESS($AK$3,$AK$4))),IF($B18=1,DSUM(Forespørgsel1[#All],""&LEFT($C18,LEN($C18)-$A18)&"",$O$4:INDIRECT(ADDRESS($AK$3,$AK$4)))/DSUM(Forespørgsel1[#All],""&$K$4&"",$O$4:INDIRECT(ADDRESS($AK$3,$AK$4))),DSUM(Forespørgsel1[#All],""&LEFT($C18,LEN($C18)-$A18)&"",$O$4:INDIRECT(ADDRESS($AK$3,$AK$4)))/DSUM(Forespørgsel1[#All],""&$L$4&"",$O$4:INDIRECT(ADDRESS($AK$3,$AK$4)))))),""),"") ->  | H18: =IF($AB$1=45,IFERROR(IF(ISTEXT($B18)=TRUE,DSUM(Forespørgsel1[#All],""&LEFT($C18,LEN($C18)-$A18)&"",$N$4:INDIRECT(ADDRESS($AK$3,$AK$4)))/DSUM(Forespørgsel1[#All],""&$B18&"",$N$4:INDIRECT(ADDRESS($AK$3,$AK$4))),IF($B18=0,DAVERAGE(Forespørgsel1[#All],""&LEFT($C18,LEN($C18)-$A18)&"",$N$4:INDIRECT(ADDRESS($AK$3,$AK$4))),IF($B18=1,DSUM(Forespørgsel1[#All],""&LEFT($C18,LEN($C18)-$A18)&"",$N$4:INDIRECT(ADDRESS($AK$3,$AK$4)))/DSUM(Forespørgsel1[#All],""&$K$4&"",$N$4:INDIRECT(ADDRESS($AK$3,$AK$4))),IF($B18=2,DSUM(Forespørgsel1[#All],""&LEFT($C18,LEN($C18)-$A18)&"",$N$4:INDIRECT(ADDRESS($AK$3,$AK$4)))/DSUM(Forespørgsel1[#All],""&$L$4&"",$N$4:INDIRECT(ADDRESS($AK$3,$AK$4))))))),""),"") ->  | I18: =IF($AB$1=45,IFERROR(IF(ISTEXT($B18)=TRUE,DSUM(Forespørgsel1[#All],""&LEFT($C18,LEN($C18)-$A18)&"",$N$10:INDIRECT(ADDRESS($AK$5,$AK$4)))/DSUM(Forespørgsel1[#All],""&$B18&"",$N$10:INDIRECT(ADDRESS($AK$5,$AK$4))),IF($B18=0,DAVERAGE(Forespørgsel1[#All],""&LEFT($C18,LEN($C18)-$A18)&"",$N$10:INDIRECT(ADDRESS($AK$5,$AK$4))),IF($B18=1,DSUM(Forespørgsel1[#All],""&LEFT($C18,LEN($C18)-$A18)&"",$N$10:INDIRECT(ADDRESS($AK$5,$AK$4)))/DSUM(Forespørgsel1[#All],""&$K$4&"",$N$10:INDIRECT(ADDRESS($AK$5,$AK$4))),IF($B18=2,DSUM(Forespørgsel1[#All],""&LEFT($C18,LEN($C18)-$A18)&"",$N$10:INDIRECT(ADDRESS($AK$5,$AK$4)))/DSUM(Forespørgsel1[#All],""&$L$4&"",$N$10:INDIRECT(ADDRESS($AK$5,$AK$4))))))),""),"") ->  | L18: =IF($AB$1=45,SUMIFS(Forespørgsel1[[#All],[Ejd_Nr]],Forespørgsel1[[#All],[Andel rug i pct.]],M18),"") ->  | M18: =IF($AB$1=45,DMAX(Forespørgsel1[#All],""&$M$17&"",$O$4:INDIRECT(ADDRESS($AK$3,$AK$4))),"") ->  | N18: =$O$5 -> =3300 | O18: ="<"&M18&"" -> < | P18: =P5 -> TRUE | Q18: =IF(Q$4>0,$Q$5,"") -> >50 | R18: =IF(R$4>0,R5,"") -> >5
A19: 0 | B19: 0 | C19: Andel med grovsand | D19: =IF($AB$1=45,Landsgennemsnit!EB19,"") ->  | E19: =IF($AB$1=45,Landsgennemsnit!EC19,"") ->  | F19: =IF($AB$1=45,Landsgennemsnit!ED19,"") ->  | G19: =IF($AB$1=45,IFERROR(IF(ISTEXT($B19)=TRUE,DSUM(Forespørgsel1[#All],""&LEFT($C19,LEN($C19)-$A19)&"",$O$4:INDIRECT(ADDRESS($AK$3,$AK$4)))/DSUM(Forespørgsel1[#All],""&$B19&"",$O$4:INDIRECT(ADDRESS($AK$3,$AK$4))),IF($B19=0,DAVERAGE(Forespørgsel1[#All],""&LEFT($C19,LEN($C19)-$A19)&"",$O$4:INDIRECT(ADDRESS($AK$3,$AK$4))),IF($B19=1,DSUM(Forespørgsel1[#All],""&LEFT($C19,LEN($C19)-$A19)&"",$O$4:INDIRECT(ADDRESS($AK$3,$AK$4)))/DSUM(Forespørgsel1[#All],""&$K$4&"",$O$4:INDIRECT(ADDRESS($AK$3,$AK$4))),DSUM(Forespørgsel1[#All],""&LEFT($C19,LEN($C19)-$A19)&"",$O$4:INDIRECT(ADDRESS($AK$3,$AK$4)))/DSUM(Forespørgsel1[#All],""&$L$4&"",$O$4:INDIRECT(ADDRESS($AK$3,$AK$4)))))),""),"") ->  | H19: =IF($AB$1=45,IFERROR(IF(ISTEXT($B19)=TRUE,DSUM(Forespørgsel1[#All],""&LEFT($C19,LEN($C19)-$A19)&"",$N$4:INDIRECT(ADDRESS($AK$3,$AK$4)))/DSUM(Forespørgsel1[#All],""&$B19&"",$N$4:INDIRECT(ADDRESS($AK$3,$AK$4))),IF($B19=0,DAVERAGE(Forespørgsel1[#All],""&LEFT($C19,LEN($C19)-$A19)&"",$N$4:INDIRECT(ADDRESS($AK$3,$AK$4))),IF($B19=1,DSUM(Forespørgsel1[#All],""&LEFT($C19,LEN($C19)-$A19)&"",$N$4:INDIRECT(ADDRESS($AK$3,$AK$4)))/DSUM(Forespørgsel1[#All],""&$K$4&"",$N$4:INDIRECT(ADDRESS($AK$3,$AK$4))),IF($B19=2,DSUM(Forespørgsel1[#All],""&LEFT($C19,LEN($C19)-$A19)&"",$N$4:INDIRECT(ADDRESS($AK$3,$AK$4)))/DSUM(Forespørgsel1[#All],""&$L$4&"",$N$4:INDIRECT(ADDRESS($AK$3,$AK$4))))))),""),"") ->  | I19: =IF($AB$1=45,IFERROR(IF(ISTEXT($B19)=TRUE,DSUM(Forespørgsel1[#All],""&LEFT($C19,LEN($C19)-$A19)&"",$N$10:INDIRECT(ADDRESS($AK$5,$AK$4)))/DSUM(Forespørgsel1[#All],""&$B19&"",$N$10:INDIRECT(ADDRESS($AK$5,$AK$4))),IF($B19=0,DAVERAGE(Forespørgsel1[#All],""&LEFT($C19,LEN($C19)-$A19)&"",$N$10:INDIRECT(ADDRESS($AK$5,$AK$4))),IF($B19=1,DSUM(Forespørgsel1[#All],""&LEFT($C19,LEN($C19)-$A19)&"",$N$10:INDIRECT(ADDRESS($AK$5,$AK$4)))/DSUM(Forespørgsel1[#All],""&$K$4&"",$N$10:INDIRECT(ADDRESS($AK$5,$AK$4))),IF($B19=2,DSUM(Forespørgsel1[#All],""&LEFT($C19,LEN($C19)-$A19)&"",$N$10:INDIRECT(ADDRESS($AK$5,$AK$4)))/DSUM(Forespørgsel1[#All],""&$L$4&"",$N$10:INDIRECT(ADDRESS($AK$5,$AK$4))))))),""),"") ->  | N19: =$O$5 -> =3300 | O19: =O18 -> < | P19: =P6 -> TRUE | Q19: =IF(Q$4>0,$Q$6,"") -> >50 | R19: >5
A20: 0 | B20: 0 | C20: Andel med særlig bonitet | D20: =IF($AB$1=45,Landsgennemsnit!EB20,"") ->  | E20: =IF($AB$1=45,Landsgennemsnit!EC20,"") ->  | F20: =IF($AB$1=45,Landsgennemsnit!ED20,"") ->  | G20: =IF($AB$1=45,IFERROR(IF(ISTEXT($B20)=TRUE,DSUM(Forespørgsel1[#All],""&LEFT($C20,LEN($C20)-$A20)&"",$O$4:INDIRECT(ADDRESS($AK$3,$AK$4)))/DSUM(Forespørgsel1[#All],""&$B20&"",$O$4:INDIRECT(ADDRESS($AK$3,$AK$4))),IF($B20=0,DAVERAGE(Forespørgsel1[#All],""&LEFT($C20,LEN($C20)-$A20)&"",$O$4:INDIRECT(ADDRESS($AK$3,$AK$4))),IF($B20=1,DSUM(Forespørgsel1[#All],""&LEFT($C20,LEN($C20)-$A20)&"",$O$4:INDIRECT(ADDRESS($AK$3,$AK$4)))/DSUM(Forespørgsel1[#All],""&$K$4&"",$O$4:INDIRECT(ADDRESS($AK$3,$AK$4))),DSUM(Forespørgsel1[#All],""&LEFT($C20,LEN($C20)-$A20)&"",$O$4:INDIRECT(ADDRESS($AK$3,$AK$4)))/DSUM(Forespørgsel1[#All],""&$L$4&"",$O$4:INDIRECT(ADDRESS($AK$3,$AK$4)))))),""),"") ->  | H20: =IF($AB$1=45,IFERROR(IF(ISTEXT($B20)=TRUE,DSUM(Forespørgsel1[#All],""&LEFT($C20,LEN($C20)-$A20)&"",$N$4:INDIRECT(ADDRESS($AK$3,$AK$4)))/DSUM(Forespørgsel1[#All],""&$B20&"",$N$4:INDIRECT(ADDRESS($AK$3,$AK$4))),IF($B20=0,DAVERAGE(Forespørgsel1[#All],""&LEFT($C20,LEN($C20)-$A20)&"",$N$4:INDIRECT(ADDRESS($AK$3,$AK$4))),IF($B20=1,DSUM(Forespørgsel1[#All],""&LEFT($C20,LEN($C20)-$A20)&"",$N$4:INDIRECT(ADDRESS($AK$3,$AK$4)))/DSUM(Forespørgsel1[#All],""&$K$4&"",$N$4:INDIRECT(ADDRESS($AK$3,$AK$4))),IF($B20=2,DSUM(Forespørgsel1[#All],""&LEFT($C20,LEN($C20)-$A20)&"",$N$4:INDIRECT(ADDRESS($AK$3,$AK$4)))/DSUM(Forespørgsel1[#All],""&$L$4&"",$N$4:INDIRECT(ADDRESS($AK$3,$AK$4))))))),""),"") ->  | I20: =IF($AB$1=45,IFERROR(IF(ISTEXT($B20)=TRUE,DSUM(Forespørgsel1[#All],""&LEFT($C20,LEN($C20)-$A20)&"",$N$10:INDIRECT(ADDRESS($AK$5,$AK$4)))/DSUM(Forespørgsel1[#All],""&$B20&"",$N$10:INDIRECT(ADDRESS($AK$5,$AK$4))),IF($B20=0,DAVERAGE(Forespørgsel1[#All],""&LEFT($C20,LEN($C20)-$A20)&"",$N$10:INDIRECT(ADDRESS($AK$5,$AK$4))),IF($B20=1,DSUM(Forespørgsel1[#All],""&LEFT($C20,LEN($C20)-$A20)&"",$N$10:INDIRECT(ADDRESS($AK$5,$AK$4)))/DSUM(Forespørgsel1[#All],""&$K$4&"",$N$10:INDIRECT(ADDRESS($AK$5,$AK$4))),IF($B20=2,DSUM(Forespørgsel1[#All],""&LEFT($C20,LEN($C20)-$A20)&"",$N$10:INDIRECT(ADDRESS($AK$5,$AK$4)))/DSUM(Forespørgsel1[#All],""&$L$4&"",$N$10:INDIRECT(ADDRESS($AK$5,$AK$4))))))),""),"") ->  | N20: =$O$5 -> =3300 | O20: =O18 -> < | P20: =P7 -> TRUE | Q20: =IF(Q$4>0,$Q$7,"") -> >50 | R20: >5
A21: 0 | B21: 0 | C21: Andel der kan vandes | D21: =IF($AB$1=45,Landsgennemsnit!EB21,"") ->  | E21: =IF($AB$1=45,Landsgennemsnit!EC21,"") ->  | F21: =IF($AB$1=45,Landsgennemsnit!ED21,"") ->  | G21: =IF($AB$1=45,IFERROR(IF(ISTEXT($B21)=TRUE,DSUM(Forespørgsel1[#All],""&LEFT($C21,LEN($C21)-$A21)&"",$O$4:INDIRECT(ADDRESS($AK$3,$AK$4)))/DSUM(Forespørgsel1[#All],""&$B21&"",$O$4:INDIRECT(ADDRESS($AK$3,$AK$4))),IF($B21=0,DAVERAGE(Forespørgsel1[#All],""&LEFT($C21,LEN($C21)-$A21)&"",$O$4:INDIRECT(ADDRESS($AK$3,$AK$4))),IF($B21=1,DSUM(Forespørgsel1[#All],""&LEFT($C21,LEN($C21)-$A21)&"",$O$4:INDIRECT(ADDRESS($AK$3,$AK$4)))/DSUM(Forespørgsel1[#All],""&$K$4&"",$O$4:INDIRECT(ADDRESS($AK$3,$AK$4))),DSUM(Forespørgsel1[#All],""&LEFT($C21,LEN($C21)-$A21)&"",$O$4:INDIRECT(ADDRESS($AK$3,$AK$4)))/DSUM(Forespørgsel1[#All],""&$L$4&"",$O$4:INDIRECT(ADDRESS($AK$3,$AK$4)))))),""),"") ->  | H21: =IF($AB$1=45,IFERROR(IF(ISTEXT($B21)=TRUE,DSUM(Forespørgsel1[#All],""&LEFT($C21,LEN($C21)-$A21)&"",$N$4:INDIRECT(ADDRESS($AK$3,$AK$4)))/DSUM(Forespørgsel1[#All],""&$B21&"",$N$4:INDIRECT(ADDRESS($AK$3,$AK$4))),IF($B21=0,DAVERAGE(Forespørgsel1[#All],""&LEFT($C21,LEN($C21)-$A21)&"",$N$4:INDIRECT(ADDRESS($AK$3,$AK$4))),IF($B21=1,DSUM(Forespørgsel1[#All],""&LEFT($C21,LEN($C21)-$A21)&"",$N$4:INDIRECT(ADDRESS($AK$3,$AK$4)))/DSUM(Forespørgsel1[#All],""&$K$4&"",$N$4:INDIRECT(ADDRESS($AK$3,$AK$4))),IF($B21=2,DSUM(Forespørgsel1[#All],""&LEFT($C21,LEN($C21)-$A21)&"",$N$4:INDIRECT(ADDRESS($AK$3,$AK$4)))/DSUM(Forespørgsel1[#All],""&$L$4&"",$N$4:INDIRECT(ADDRESS($AK$3,$AK$4))))))),""),"") ->  | I21: =IF($AB$1=45,IFERROR(IF(ISTEXT($B21)=TRUE,DSUM(Forespørgsel1[#All],""&LEFT($C21,LEN($C21)-$A21)&"",$N$10:INDIRECT(ADDRESS($AK$5,$AK$4)))/DSUM(Forespørgsel1[#All],""&$B21&"",$N$10:INDIRECT(ADDRESS($AK$5,$AK$4))),IF($B21=0,DAVERAGE(Forespørgsel1[#All],""&LEFT($C21,LEN($C21)-$A21)&"",$N$10:INDIRECT(ADDRESS($AK$5,$AK$4))),IF($B21=1,DSUM(Forespørgsel1[#All],""&LEFT($C21,LEN($C21)-$A21)&"",$N$10:INDIRECT(ADDRESS($AK$5,$AK$4)))/DSUM(Forespørgsel1[#All],""&$K$4&"",$N$10:INDIRECT(ADDRESS($AK$5,$AK$4))),IF($B21=2,DSUM(Forespørgsel1[#All],""&LEFT($C21,LEN($C21)-$A21)&"",$N$10:INDIRECT(ADDRESS($AK$5,$AK$4)))/DSUM(Forespørgsel1[#All],""&$L$4&"",$N$10:INDIRECT(ADDRESS($AK$5,$AK$4))))))),""),"") ->  | N21: Prodgren | O21: =$N$4 -> Rest til jordleje før EU-støtte pr. ha | P21: =IF(P$4="","",P$4) -> Godkendt | Q21: =IF(Q$4="","",Q$4) -> Andel stivelseskartofler | R21: Ha i alt, driftsgren
A22: 0 | D22: =IF($AB$1=45,Landsgennemsnit!EB22,"") ->  | E22: =IF($AB$1=45,Landsgennemsnit!EC22,"") ->  | F22: =IF($AB$1=45,Landsgennemsnit!ED22,"") ->  | G22: =IF($AB$1=45,IFERROR(IF(ISTEXT($B22)=TRUE,DSUM(Forespørgsel1[#All],""&LEFT($C22,LEN($C22)-$A22)&"",$O$4:INDIRECT(ADDRESS($AK$3,$AK$4)))/DSUM(Forespørgsel1[#All],""&$B22&"",$O$4:INDIRECT(ADDRESS($AK$3,$AK$4))),IF($B22=0,DAVERAGE(Forespørgsel1[#All],""&LEFT($C22,LEN($C22)-$A22)&"",$O$4:INDIRECT(ADDRESS($AK$3,$AK$4))),IF($B22=1,DSUM(Forespørgsel1[#All],""&LEFT($C22,LEN($C22)-$A22)&"",$O$4:INDIRECT(ADDRESS($AK$3,$AK$4)))/DSUM(Forespørgsel1[#All],""&$K$4&"",$O$4:INDIRECT(ADDRESS($AK$3,$AK$4))),DSUM(Forespørgsel1[#All],""&LEFT($C22,LEN($C22)-$A22)&"",$O$4:INDIRECT(ADDRESS($AK$3,$AK$4)))/DSUM(Forespørgsel1[#All],""&$L$4&"",$O$4:INDIRECT(ADDRESS($AK$3,$AK$4)))))),""),"") ->  | H22: =IF($AB$1=45,IFERROR(IF(ISTEXT($B22)=TRUE,DSUM(Forespørgsel1[#All],""&LEFT($C22,LEN($C22)-$A22)&"",$N$4:INDIRECT(ADDRESS($AK$3,$AK$4)))/DSUM(Forespørgsel1[#All],""&$B22&"",$N$4:INDIRECT(ADDRESS($AK$3,$AK$4))),IF($B22=0,DAVERAGE(Forespørgsel1[#All],""&LEFT($C22,LEN($C22)-$A22)&"",$N$4:INDIRECT(ADDRESS($AK$3,$AK$4))),IF($B22=1,DSUM(Forespørgsel1[#All],""&LEFT($C22,LEN($C22)-$A22)&"",$N$4:INDIRECT(ADDRESS($AK$3,$AK$4)))/DSUM(Forespørgsel1[#All],""&$K$4&"",$N$4:INDIRECT(ADDRESS($AK$3,$AK$4))),IF($B22=2,DSUM(Forespørgsel1[#All],""&LEFT($C22,LEN($C22)-$A22)&"",$N$4:INDIRECT(ADDRESS($AK$3,$AK$4)))/DSUM(Forespørgsel1[#All],""&$L$4&"",$N$4:INDIRECT(ADDRESS($AK$3,$AK$4))))))),""),"") ->  | I22: =IF($AB$1=45,IFERROR(IF(ISTEXT($B22)=TRUE,DSUM(Forespørgsel1[#All],""&LEFT($C22,LEN($C22)-$A22)&"",$N$10:INDIRECT(ADDRESS($AK$5,$AK$4)))/DSUM(Forespørgsel1[#All],""&$B22&"",$N$10:INDIRECT(ADDRESS($AK$5,$AK$4))),IF($B22=0,DAVERAGE(Forespørgsel1[#All],""&LEFT($C22,LEN($C22)-$A22)&"",$N$10:INDIRECT(ADDRESS($AK$5,$AK$4))),IF($B22=1,DSUM(Forespørgsel1[#All],""&LEFT($C22,LEN($C22)-$A22)&"",$N$10:INDIRECT(ADDRESS($AK$5,$AK$4)))/DSUM(Forespørgsel1[#All],""&$K$4&"",$N$10:INDIRECT(ADDRESS($AK$5,$AK$4))),IF($B22=2,DSUM(Forespørgsel1[#All],""&LEFT($C22,LEN($C22)-$A22)&"",$N$10:INDIRECT(ADDRESS($AK$5,$AK$4)))/DSUM(Forespørgsel1[#All],""&$L$4&"",$N$10:INDIRECT(ADDRESS($AK$5,$AK$4))))))),""),"") ->  | L22: =IF($AB$1=45,SUMIFS(Forespørgsel1[[#All],[Ejd_Nr]],Forespørgsel1[[#All],[Andel rug i pct.]],M22),"") ->  | M22: =IF($AB$1=45,DMAX(Forespørgsel1[#All],""&$M$17&"",$N17:INDIRECT(ADDRESS($AK22,$AK$4))),"") ->  | N22: =$O$5 -> =3300 | O22: ="<"&M22&"" -> < | P22: =P5 -> TRUE | Q22: =IF(Q$4>0,$Q$5,"") -> >50 | R22: =IF(R$4>0,R5,"") -> >5 | AJ22: Række | AK22: =ROW(AJ22)-2 -> 20
A23: 7 | B23: Ha i alt, driftsgren | C23: Rest til jordleje før EU-støtte pr. ha | D23: =IF($AB$1=45,Landsgennemsnit!EB23,"") ->  | E23: =IF($AB$1=45,Landsgennemsnit!EC23,"") ->  | F23: =IF($AB$1=45,Landsgennemsnit!ED23,"") ->  | G23: =IF($AB$1=45,IFERROR(IF(ISTEXT($B23)=TRUE,DSUM(Forespørgsel1[#All],""&LEFT($C23,LEN($C23)-$A23)&"",$O$4:INDIRECT(ADDRESS($AK$3,$AK$4)))/DSUM(Forespørgsel1[#All],""&$B23&"",$O$4:INDIRECT(ADDRESS($AK$3,$AK$4))),IF($B23=0,DAVERAGE(Forespørgsel1[#All],""&LEFT($C23,LEN($C23)-$A23)&"",$O$4:INDIRECT(ADDRESS($AK$3,$AK$4))),IF($B23=1,DSUM(Forespørgsel1[#All],""&LEFT($C23,LEN($C23)-$A23)&"",$O$4:INDIRECT(ADDRESS($AK$3,$AK$4)))/DSUM(Forespørgsel1[#All],""&$K$4&"",$O$4:INDIRECT(ADDRESS($AK$3,$AK$4))),DSUM(Forespørgsel1[#All],""&LEFT($C23,LEN($C23)-$A23)&"",$O$4:INDIRECT(ADDRESS($AK$3,$AK$4)))/DSUM(Forespørgsel1[#All],""&$L$4&"",$O$4:INDIRECT(ADDRESS($AK$3,$AK$4)))))),""),"") ->  | H23: =IF($AB$1=45,IFERROR(IF(ISTEXT($B23)=TRUE,DSUM(Forespørgsel1[#All],""&LEFT($C23,LEN($C23)-$A23)&"",$N$4:INDIRECT(ADDRESS($AK$3,$AK$4)))/DSUM(Forespørgsel1[#All],""&$B23&"",$N$4:INDIRECT(ADDRESS($AK$3,$AK$4))),IF($B23=0,DAVERAGE(Forespørgsel1[#All],""&LEFT($C23,LEN($C23)-$A23)&"",$N$4:INDIRECT(ADDRESS($AK$3,$AK$4))),IF($B23=1,DSUM(Forespørgsel1[#All],""&LEFT($C23,LEN($C23)-$A23)&"",$N$4:INDIRECT(ADDRESS($AK$3,$AK$4)))/DSUM(Forespørgsel1[#All],""&$K$4&"",$N$4:INDIRECT(ADDRESS($AK$3,$AK$4))),IF($B23=2,DSUM(Forespørgsel1[#All],""&LEFT($C23,LEN($C23)-$A23)&"",$N$4:INDIRECT(ADDRESS($AK$3,$AK$4)))/DSUM(Forespørgsel1[#All],""&$L$4&"",$N$4:INDIRECT(ADDRESS($AK$3,$AK$4))))))),""),"") ->  | I23: =IF($AB$1=45,IFERROR(IF(ISTEXT($B23)=TRUE,DSUM(Forespørgsel1[#All],""&LEFT($C23,LEN($C23)-$A23)&"",$N$10:INDIRECT(ADDRESS($AK$5,$AK$4)))/DSUM(Forespørgsel1[#All],""&$B23&"",$N$10:INDIRECT(ADDRESS($AK$5,$AK$4))),IF($B23=0,DAVERAGE(Forespørgsel1[#All],""&LEFT($C23,LEN($C23)-$A23)&"",$N$10:INDIRECT(ADDRESS($AK$5,$AK$4))),IF($B23=1,DSUM(Forespørgsel1[#All],""&LEFT($C23,LEN($C23)-$A23)&"",$N$10:INDIRECT(ADDRESS($AK$5,$AK$4)))/DSUM(Forespørgsel1[#All],""&$K$4&"",$N$10:INDIRECT(ADDRESS($AK$5,$AK$4))),IF($B23=2,DSUM(Forespørgsel1[#All],""&LEFT($C23,LEN($C23)-$A23)&"",$N$10:INDIRECT(ADDRESS($AK$5,$AK$4)))/DSUM(Forespørgsel1[#All],""&$L$4&"",$N$10:INDIRECT(ADDRESS($AK$5,$AK$4))))))),""),"") ->  | N23: =$N$20 -> =3300 | O23: =O22 -> < | P23: =P6 -> TRUE | Q23: =IF(Q$4>0,$Q$6,"") -> >50 | R23: =IF(R$4>0,R6,"") -> >5
A24: 7 | B24: Ha i alt, driftsgren | C24: Rest til jordleje efter EU-støtte pr. ha | D24: =IF($AB$1=45,Landsgennemsnit!EB24,"") ->  | E24: =IF($AB$1=45,Landsgennemsnit!EC24,"") ->  | F24: =IF($AB$1=45,Landsgennemsnit!ED24,"") ->  | G24: =IF($AB$1=45,IFERROR(IF(ISTEXT($B24)=TRUE,DSUM(Forespørgsel1[#All],""&LEFT($C24,LEN($C24)-$A24)&"",$O$4:INDIRECT(ADDRESS($AK$3,$AK$4)))/DSUM(Forespørgsel1[#All],""&$B24&"",$O$4:INDIRECT(ADDRESS($AK$3,$AK$4))),IF($B24=0,DAVERAGE(Forespørgsel1[#All],""&LEFT($C24,LEN($C24)-$A24)&"",$O$4:INDIRECT(ADDRESS($AK$3,$AK$4))),IF($B24=1,DSUM(Forespørgsel1[#All],""&LEFT($C24,LEN($C24)-$A24)&"",$O$4:INDIRECT(ADDRESS($AK$3,$AK$4)))/DSUM(Forespørgsel1[#All],""&$K$4&"",$O$4:INDIRECT(ADDRESS($AK$3,$AK$4))),DSUM(Forespørgsel1[#All],""&LEFT($C24,LEN($C24)-$A24)&"",$O$4:INDIRECT(ADDRESS($AK$3,$AK$4)))/DSUM(Forespørgsel1[#All],""&$L$4&"",$O$4:INDIRECT(ADDRESS($AK$3,$AK$4)))))),""),"") ->  | H24: =IF($AB$1=45,IFERROR(IF(ISTEXT($B24)=TRUE,DSUM(Forespørgsel1[#All],""&LEFT($C24,LEN($C24)-$A24)&"",$N$4:INDIRECT(ADDRESS($AK$3,$AK$4)))/DSUM(Forespørgsel1[#All],""&$B24&"",$N$4:INDIRECT(ADDRESS($AK$3,$AK$4))),IF($B24=0,DAVERAGE(Forespørgsel1[#All],""&LEFT($C24,LEN($C24)-$A24)&"",$N$4:INDIRECT(ADDRESS($AK$3,$AK$4))),IF($B24=1,DSUM(Forespørgsel1[#All],""&LEFT($C24,LEN($C24)-$A24)&"",$N$4:INDIRECT(ADDRESS($AK$3,$AK$4)))/DSUM(Forespørgsel1[#All],""&$K$4&"",$N$4:INDIRECT(ADDRESS($AK$3,$AK$4))),IF($B24=2,DSUM(Forespørgsel1[#All],""&LEFT($C24,LEN($C24)-$A24)&"",$N$4:INDIRECT(ADDRESS($AK$3,$AK$4)))/DSUM(Forespørgsel1[#All],""&$L$4&"",$N$4:INDIRECT(ADDRESS($AK$3,$AK$4))))))),""),"") ->  | I24: =IF($AB$1=45,IFERROR(IF(ISTEXT($B24)=TRUE,DSUM(Forespørgsel1[#All],""&LEFT($C24,LEN($C24)-$A24)&"",$N$10:INDIRECT(ADDRESS($AK$5,$AK$4)))/DSUM(Forespørgsel1[#All],""&$B24&"",$N$10:INDIRECT(ADDRESS($AK$5,$AK$4))),IF($B24=0,DAVERAGE(Forespørgsel1[#All],""&LEFT($C24,LEN($C24)-$A24)&"",$N$10:INDIRECT(ADDRESS($AK$5,$AK$4))),IF($B24=1,DSUM(Forespørgsel1[#All],""&LEFT($C24,LEN($C24)-$A24)&"",$N$10:INDIRECT(ADDRESS($AK$5,$AK$4)))/DSUM(Forespørgsel1[#All],""&$K$4&"",$N$10:INDIRECT(ADDRESS($AK$5,$AK$4))),IF($B24=2,DSUM(Forespørgsel1[#All],""&LEFT($C24,LEN($C24)-$A24)&"",$N$10:INDIRECT(ADDRESS($AK$5,$AK$4)))/DSUM(Forespørgsel1[#All],""&$L$4&"",$N$10:INDIRECT(ADDRESS($AK$5,$AK$4))))))),""),"") ->  | N24: =$N$20 -> =3300 | O24: =O22 -> < | P24: =P7 -> TRUE | Q24: =IF(Q$4>0,$Q$7,"") -> >50 | R24: =IF(R$4>0,R7,"") -> >5
A25: 7 | B25: Ha i alt, driftsgren | C25: Maskinomk. inkl. arbejde pr. ha | D25: =IF($AB$1=45,Landsgennemsnit!EB25,"") ->  | E25: =IF($AB$1=45,Landsgennemsnit!EC25,"") ->  | F25: =IF($AB$1=45,Landsgennemsnit!ED25,"") ->  | G25: =IF($AB$1=45,IFERROR(IF(ISTEXT($B25)=TRUE,DSUM(Forespørgsel1[#All],""&LEFT($C25,LEN($C25)-$A25)&"",$O$4:INDIRECT(ADDRESS($AK$3,$AK$4)))/DSUM(Forespørgsel1[#All],""&$B25&"",$O$4:INDIRECT(ADDRESS($AK$3,$AK$4))),IF($B25=0,DAVERAGE(Forespørgsel1[#All],""&LEFT($C25,LEN($C25)-$A25)&"",$O$4:INDIRECT(ADDRESS($AK$3,$AK$4))),IF($B25=1,DSUM(Forespørgsel1[#All],""&LEFT($C25,LEN($C25)-$A25)&"",$O$4:INDIRECT(ADDRESS($AK$3,$AK$4)))/DSUM(Forespørgsel1[#All],""&$K$4&"",$O$4:INDIRECT(ADDRESS($AK$3,$AK$4))),DSUM(Forespørgsel1[#All],""&LEFT($C25,LEN($C25)-$A25)&"",$O$4:INDIRECT(ADDRESS($AK$3,$AK$4)))/DSUM(Forespørgsel1[#All],""&$L$4&"",$O$4:INDIRECT(ADDRESS($AK$3,$AK$4)))))),""),"") ->  | H25: =IF($AB$1=45,IFERROR(IF(ISTEXT($B25)=TRUE,DSUM(Forespørgsel1[#All],""&LEFT($C25,LEN($C25)-$A25)&"",$N$4:INDIRECT(ADDRESS($AK$3,$AK$4)))/DSUM(Forespørgsel1[#All],""&$B25&"",$N$4:INDIRECT(ADDRESS($AK$3,$AK$4))),IF($B25=0,DAVERAGE(Forespørgsel1[#All],""&LEFT($C25,LEN($C25)-$A25)&"",$N$4:INDIRECT(ADDRESS($AK$3,$AK$4))),IF($B25=1,DSUM(Forespørgsel1[#All],""&LEFT($C25,LEN($C25)-$A25)&"",$N$4:INDIRECT(ADDRESS($AK$3,$AK$4)))/DSUM(Forespørgsel1[#All],""&$K$4&"",$N$4:INDIRECT(ADDRESS($AK$3,$AK$4))),IF($B25=2,DSUM(Forespørgsel1[#All],""&LEFT($C25,LEN($C25)-$A25)&"",$N$4:INDIRECT(ADDRESS($AK$3,$AK$4)))/DSUM(Forespørgsel1[#All],""&$L$4&"",$N$4:INDIRECT(ADDRESS($AK$3,$AK$4))))))),""),"") ->  | I25: =IF($AB$1=45,IFERROR(IF(ISTEXT($B25)=TRUE,DSUM(Forespørgsel1[#All],""&LEFT($C25,LEN($C25)-$A25)&"",$N$10:INDIRECT(ADDRESS($AK$5,$AK$4)))/DSUM(Forespørgsel1[#All],""&$B25&"",$N$10:INDIRECT(ADDRESS($AK$5,$AK$4))),IF($B25=0,DAVERAGE(Forespørgsel1[#All],""&LEFT($C25,LEN($C25)-$A25)&"",$N$10:INDIRECT(ADDRESS($AK$5,$AK$4))),IF($B25=1,DSUM(Forespørgsel1[#All],""&LEFT($C25,LEN($C25)-$A25)&"",$N$10:INDIRECT(ADDRESS($AK$5,$AK$4)))/DSUM(Forespørgsel1[#All],""&$K$4&"",$N$10:INDIRECT(ADDRESS($AK$5,$AK$4))),IF($B25=2,DSUM(Forespørgsel1[#All],""&LEFT($C25,LEN($C25)-$A25)&"",$N$10:INDIRECT(ADDRESS($AK$5,$AK$4)))/DSUM(Forespørgsel1[#All],""&$L$4&"",$N$10:INDIRECT(ADDRESS($AK$5,$AK$4))))))),""),"") ->  | N25: Prodgren | O25: =$N$4 -> Rest til jordleje før EU-støtte pr. ha | P25: =IF(P$4="","",P$4) -> Godkendt | Q25: Andel stivelseskartofler | R25: Ha i alt, driftsgren
B26: Ha i alt, driftsgren | C26: Øvrige omkostninger ha | D26: =IF($AB$1=45,Landsgennemsnit!EB26,"") ->  | E26: =IF($AB$1=45,Landsgennemsnit!EC26,"") ->  | F26: =IF($AB$1=45,Landsgennemsnit!ED26,"") ->  | G26: =IF($AB$1=45,IFERROR(IF(ISTEXT($B26)=TRUE,DSUM(Forespørgsel1[#All],""&LEFT($C26,LEN($C26)-$A26)&"",$O$4:INDIRECT(ADDRESS($AK$3,$AK$4)))/DSUM(Forespørgsel1[#All],""&$B26&"",$O$4:INDIRECT(ADDRESS($AK$3,$AK$4))),IF($B26=0,DAVERAGE(Forespørgsel1[#All],""&LEFT($C26,LEN($C26)-$A26)&"",$O$4:INDIRECT(ADDRESS($AK$3,$AK$4))),IF($B26=1,DSUM(Forespørgsel1[#All],""&LEFT($C26,LEN($C26)-$A26)&"",$O$4:INDIRECT(ADDRESS($AK$3,$AK$4)))/DSUM(Forespørgsel1[#All],""&$K$4&"",$O$4:INDIRECT(ADDRESS($AK$3,$AK$4))),DSUM(Forespørgsel1[#All],""&LEFT($C26,LEN($C26)-$A26)&"",$O$4:INDIRECT(ADDRESS($AK$3,$AK$4)))/DSUM(Forespørgsel1[#All],""&$L$4&"",$O$4:INDIRECT(ADDRESS($AK$3,$AK$4)))))),""),"") ->  | H26: =IF($AB$1=45,IFERROR(IF(ISTEXT($B26)=TRUE,DSUM(Forespørgsel1[#All],""&LEFT($C26,LEN($C26)-$A26)&"",$N$4:INDIRECT(ADDRESS($AK$3,$AK$4)))/DSUM(Forespørgsel1[#All],""&$B26&"",$N$4:INDIRECT(ADDRESS($AK$3,$AK$4))),IF($B26=0,DAVERAGE(Forespørgsel1[#All],""&LEFT($C26,LEN($C26)-$A26)&"",$N$4:INDIRECT(ADDRESS($AK$3,$AK$4))),IF($B26=1,DSUM(Forespørgsel1[#All],""&LEFT($C26,LEN($C26)-$A26)&"",$N$4:INDIRECT(ADDRESS($AK$3,$AK$4)))/DSUM(Forespørgsel1[#All],""&$K$4&"",$N$4:INDIRECT(ADDRESS($AK$3,$AK$4))),IF($B26=2,DSUM(Forespørgsel1[#All],""&LEFT($C26,LEN($C26)-$A26)&"",$N$4:INDIRECT(ADDRESS($AK$3,$AK$4)))/DSUM(Forespørgsel1[#All],""&$L$4&"",$N$4:INDIRECT(ADDRESS($AK$3,$AK$4))))))),""),"") ->  | I26: =IF($AB$1=45,IFERROR(IF(ISTEXT($B26)=TRUE,DSUM(Forespørgsel1[#All],""&LEFT($C26,LEN($C26)-$A26)&"",$N$10:INDIRECT(ADDRESS($AK$5,$AK$4)))/DSUM(Forespørgsel1[#All],""&$B26&"",$N$10:INDIRECT(ADDRESS($AK$5,$AK$4))),IF($B26=0,DAVERAGE(Forespørgsel1[#All],""&LEFT($C26,LEN($C26)-$A26)&"",$N$10:INDIRECT(ADDRESS($AK$5,$AK$4))),IF($B26=1,DSUM(Forespørgsel1[#All],""&LEFT($C26,LEN($C26)-$A26)&"",$N$10:INDIRECT(ADDRESS($AK$5,$AK$4)))/DSUM(Forespørgsel1[#All],""&$K$4&"",$N$10:INDIRECT(ADDRESS($AK$5,$AK$4))),IF($B26=2,DSUM(Forespørgsel1[#All],""&LEFT($C26,LEN($C26)-$A26)&"",$N$10:INDIRECT(ADDRESS($AK$5,$AK$4)))/DSUM(Forespørgsel1[#All],""&$L$4&"",$N$10:INDIRECT(ADDRESS($AK$5,$AK$4))))))),""),"") ->  | L26: =IF($AB$1=45,SUMIFS(Forespørgsel1[[#All],[Ejd_Nr]],Forespørgsel1[[#All],[Andel rug i pct.]],M26),"") ->  | M26: =IF($AB$1=45,DMAX(Forespørgsel1[#All],""&$M$17&"",$N21:INDIRECT(ADDRESS($AK26,$AK$4))),"") ->  | N26: =$O$5 -> =3300 | O26: ="<"&M26&"" -> < | P26: =P5 -> TRUE | Q26: =IF(Q$4>0,$Q$5,"") -> >50 | R26: =IF(R$4>0,R5,"") -> >5 | AJ26: Række | AK26: =ROW(AJ26)-2 -> 24
A27: 7 | B27: Ha i alt, driftsgren | C27: Jordleje fratrukket EU-støtte pr. ha | D27: =IF($AB$1=45,Landsgennemsnit!EB27,"") ->  | E27: =IF($AB$1=45,Landsgennemsnit!EC27,"") ->  | F27: =IF($AB$1=45,Landsgennemsnit!ED27,"") ->  | G27: =IF($AB$1=45,IFERROR(IF(ISTEXT($B27)=TRUE,DSUM(Forespørgsel1[#All],""&LEFT($C27,LEN($C27)-$A27)&"",$O$4:INDIRECT(ADDRESS($AK$3,$AK$4)))/DSUM(Forespørgsel1[#All],""&$B27&"",$O$4:INDIRECT(ADDRESS($AK$3,$AK$4))),IF($B27=0,DAVERAGE(Forespørgsel1[#All],""&LEFT($C27,LEN($C27)-$A27)&"",$O$4:INDIRECT(ADDRESS($AK$3,$AK$4))),IF($B27=1,DSUM(Forespørgsel1[#All],""&LEFT($C27,LEN($C27)-$A27)&"",$O$4:INDIRECT(ADDRESS($AK$3,$AK$4)))/DSUM(Forespørgsel1[#All],""&$K$4&"",$O$4:INDIRECT(ADDRESS($AK$3,$AK$4))),DSUM(Forespørgsel1[#All],""&LEFT($C27,LEN($C27)-$A27)&"",$O$4:INDIRECT(ADDRESS($AK$3,$AK$4)))/DSUM(Forespørgsel1[#All],""&$L$4&"",$O$4:INDIRECT(ADDRESS($AK$3,$AK$4)))))),""),"") ->  | H27: =IF($AB$1=45,IFERROR(IF(ISTEXT($B27)=TRUE,DSUM(Forespørgsel1[#All],""&LEFT($C27,LEN($C27)-$A27)&"",$N$4:INDIRECT(ADDRESS($AK$3,$AK$4)))/DSUM(Forespørgsel1[#All],""&$B27&"",$N$4:INDIRECT(ADDRESS($AK$3,$AK$4))),IF($B27=0,DAVERAGE(Forespørgsel1[#All],""&LEFT($C27,LEN($C27)-$A27)&"",$N$4:INDIRECT(ADDRESS($AK$3,$AK$4))),IF($B27=1,DSUM(Forespørgsel1[#All],""&LEFT($C27,LEN($C27)-$A27)&"",$N$4:INDIRECT(ADDRESS($AK$3,$AK$4)))/DSUM(Forespørgsel1[#All],""&$K$4&"",$N$4:INDIRECT(ADDRESS($AK$3,$AK$4))),IF($B27=2,DSUM(Forespørgsel1[#All],""&LEFT($C27,LEN($C27)-$A27)&"",$N$4:INDIRECT(ADDRESS($AK$3,$AK$4)))/DSUM(Forespørgsel1[#All],""&$L$4&"",$N$4:INDIRECT(ADDRESS($AK$3,$AK$4))))))),""),"") ->  | I27: =IF($AB$1=45,IFERROR(IF(ISTEXT($B27)=TRUE,DSUM(Forespørgsel1[#All],""&LEFT($C27,LEN($C27)-$A27)&"",$N$10:INDIRECT(ADDRESS($AK$5,$AK$4)))/DSUM(Forespørgsel1[#All],""&$B27&"",$N$10:INDIRECT(ADDRESS($AK$5,$AK$4))),IF($B27=0,DAVERAGE(Forespørgsel1[#All],""&LEFT($C27,LEN($C27)-$A27)&"",$N$10:INDIRECT(ADDRESS($AK$5,$AK$4))),IF($B27=1,DSUM(Forespørgsel1[#All],""&LEFT($C27,LEN($C27)-$A27)&"",$N$10:INDIRECT(ADDRESS($AK$5,$AK$4)))/DSUM(Forespørgsel1[#All],""&$K$4&"",$N$10:INDIRECT(ADDRESS($AK$5,$AK$4))),IF($B27=2,DSUM(Forespørgsel1[#All],""&LEFT($C27,LEN($C27)-$A27)&"",$N$10:INDIRECT(ADDRESS($AK$5,$AK$4)))/DSUM(Forespørgsel1[#All],""&$L$4&"",$N$10:INDIRECT(ADDRESS($AK$5,$AK$4))))))),""),"") ->  | N27: =$N$20 -> =3300 | O27: =O26 -> < | P27: =P6 -> TRUE | Q27: =IF(Q$4>0,$Q$6,"") -> >50 | R27: =IF(R$4>0,R6,"") -> >5
D28: =IF($AB$1=45,Landsgennemsnit!EB28,"") ->  | E28: =IF($AB$1=45,Landsgennemsnit!EC28,"") ->  | F28: =IF($AB$1=45,Landsgennemsnit!ED28,"") ->  | G28: =IF($AB$1=45,IFERROR(IF(ISTEXT($B28)=TRUE,DSUM(Forespørgsel1[#All],""&LEFT($C28,LEN($C28)-$A28)&"",$O$4:INDIRECT(ADDRESS($AK$3,$AK$4)))/DSUM(Forespørgsel1[#All],""&$B28&"",$O$4:INDIRECT(ADDRESS($AK$3,$AK$4))),IF($B28=0,DAVERAGE(Forespørgsel1[#All],""&LEFT($C28,LEN($C28)-$A28)&"",$O$4:INDIRECT(ADDRESS($AK$3,$AK$4))),IF($B28=1,DSUM(Forespørgsel1[#All],""&LEFT($C28,LEN($C28)-$A28)&"",$O$4:INDIRECT(ADDRESS($AK$3,$AK$4)))/DSUM(Forespørgsel1[#All],""&$K$4&"",$O$4:INDIRECT(ADDRESS($AK$3,$AK$4))),DSUM(Forespørgsel1[#All],""&LEFT($C28,LEN($C28)-$A28)&"",$O$4:INDIRECT(ADDRESS($AK$3,$AK$4)))/DSUM(Forespørgsel1[#All],""&$L$4&"",$O$4:INDIRECT(ADDRESS($AK$3,$AK$4)))))),""),"") ->  | H28: =IF($AB$1=45,IFERROR(IF(ISTEXT($B28)=TRUE,DSUM(Forespørgsel1[#All],""&LEFT($C28,LEN($C28)-$A28)&"",$N$4:INDIRECT(ADDRESS($AK$3,$AK$4)))/DSUM(Forespørgsel1[#All],""&$B28&"",$N$4:INDIRECT(ADDRESS($AK$3,$AK$4))),IF($B28=0,DAVERAGE(Forespørgsel1[#All],""&LEFT($C28,LEN($C28)-$A28)&"",$N$4:INDIRECT(ADDRESS($AK$3,$AK$4))),IF($B28=1,DSUM(Forespørgsel1[#All],""&LEFT($C28,LEN($C28)-$A28)&"",$N$4:INDIRECT(ADDRESS($AK$3,$AK$4)))/DSUM(Forespørgsel1[#All],""&$K$4&"",$N$4:INDIRECT(ADDRESS($AK$3,$AK$4))),IF($B28=2,DSUM(Forespørgsel1[#All],""&LEFT($C28,LEN($C28)-$A28)&"",$N$4:INDIRECT(ADDRESS($AK$3,$AK$4)))/DSUM(Forespørgsel1[#All],""&$L$4&"",$N$4:INDIRECT(ADDRESS($AK$3,$AK$4))))))),""),"") ->  | I28: =IF($AB$1=45,IFERROR(IF(ISTEXT($B28)=TRUE,DSUM(Forespørgsel1[#All],""&LEFT($C28,LEN($C28)-$A28)&"",$N$10:INDIRECT(ADDRESS($AK$5,$AK$4)))/DSUM(Forespørgsel1[#All],""&$B28&"",$N$10:INDIRECT(ADDRESS($AK$5,$AK$4))),IF($B28=0,DAVERAGE(Forespørgsel1[#All],""&LEFT($C28,LEN($C28)-$A28)&"",$N$10:INDIRECT(ADDRESS($AK$5,$AK$4))),IF($B28=1,DSUM(Forespørgsel1[#All],""&LEFT($C28,LEN($C28)-$A28)&"",$N$10:INDIRECT(ADDRESS($AK$5,$AK$4)))/DSUM(Forespørgsel1[#All],""&$K$4&"",$N$10:INDIRECT(ADDRESS($AK$5,$AK$4))),IF($B28=2,DSUM(Forespørgsel1[#All],""&LEFT($C28,LEN($C28)-$A28)&"",$N$10:INDIRECT(ADDRESS($AK$5,$AK$4)))/DSUM(Forespørgsel1[#All],""&$L$4&"",$N$10:INDIRECT(ADDRESS($AK$5,$AK$4))))))),""),"") ->  | N28: =$N$20 -> =3300 | O28: =O26 -> < | P28: =P7 -> TRUE | Q28: =IF(Q$4>0,$Q$7,"") -> >50 | R28: =IF(R$4>0,R7,"") -> >5
C29: Jordværdi (ejet jord), kr. pr ha | D29: =IF($AB$1=45,Landsgennemsnit!EB29,"") ->  | E29: =IF($AB$1=45,Landsgennemsnit!EC29,"") ->  | F29: =IF($AB$1=45,Landsgennemsnit!ED29,"") ->  | G29: =IF($AB$1=45,IFERROR(IF(ISTEXT($B29)=TRUE,DSUM(Forespørgsel1[#All],""&LEFT($C29,LEN($C29)-$A29)&"",$O$4:INDIRECT(ADDRESS($AK$3,$AK$4)))/DSUM(Forespørgsel1[#All],""&$B29&"",$O$4:INDIRECT(ADDRESS($AK$3,$AK$4))),IF($B29=0,DAVERAGE(Forespørgsel1[#All],""&LEFT($C29,LEN($C29)-$A29)&"",$O$4:INDIRECT(ADDRESS($AK$3,$AK$4))),IF($B29=1,DSUM(Forespørgsel1[#All],""&LEFT($C29,LEN($C29)-$A29)&"",$O$4:INDIRECT(ADDRESS($AK$3,$AK$4)))/DSUM(Forespørgsel1[#All],""&$K$4&"",$O$4:INDIRECT(ADDRESS($AK$3,$AK$4))),DSUM(Forespørgsel1[#All],""&LEFT($C29,LEN($C29)-$A29)&"",$O$4:INDIRECT(ADDRESS($AK$3,$AK$4)))/DSUM(Forespørgsel1[#All],""&$L$4&"",$O$4:INDIRECT(ADDRESS($AK$3,$AK$4)))))),""),"") ->  | H29: =IF($AB$1=45,IFERROR(IF(ISTEXT($B29)=TRUE,DSUM(Forespørgsel1[#All],""&LEFT($C29,LEN($C29)-$A29)&"",$N$4:INDIRECT(ADDRESS($AK$3,$AK$4)))/DSUM(Forespørgsel1[#All],""&$B29&"",$N$4:INDIRECT(ADDRESS($AK$3,$AK$4))),IF($B29=0,DAVERAGE(Forespørgsel1[#All],""&LEFT($C29,LEN($C29)-$A29)&"",$N$4:INDIRECT(ADDRESS($AK$3,$AK$4))),IF($B29=1,DSUM(Forespørgsel1[#All],""&LEFT($C29,LEN($C29)-$A29)&"",$N$4:INDIRECT(ADDRESS($AK$3,$AK$4)))/DSUM(Forespørgsel1[#All],""&$K$4&"",$N$4:INDIRECT(ADDRESS($AK$3,$AK$4))),IF($B29=2,DSUM(Forespørgsel1[#All],""&LEFT($C29,LEN($C29)-$A29)&"",$N$4:INDIRECT(ADDRESS($AK$3,$AK$4)))/DSUM(Forespørgsel1[#All],""&$L$4&"",$N$4:INDIRECT(ADDRESS($AK$3,$AK$4))))))),""),"") ->  | I29: =IF($AB$1=45,IFERROR(IF(ISTEXT($B29)=TRUE,DSUM(Forespørgsel1[#All],""&LEFT($C29,LEN($C29)-$A29)&"",$N$10:INDIRECT(ADDRESS($AK$5,$AK$4)))/DSUM(Forespørgsel1[#All],""&$B29&"",$N$10:INDIRECT(ADDRESS($AK$5,$AK$4))),IF($B29=0,DAVERAGE(Forespørgsel1[#All],""&LEFT($C29,LEN($C29)-$A29)&"",$N$10:INDIRECT(ADDRESS($AK$5,$AK$4))),IF($B29=1,DSUM(Forespørgsel1[#All],""&LEFT($C29,LEN($C29)-$A29)&"",$N$10:INDIRECT(ADDRESS($AK$5,$AK$4)))/DSUM(Forespørgsel1[#All],""&$K$4&"",$N$10:INDIRECT(ADDRESS($AK$5,$AK$4))),IF($B29=2,DSUM(Forespørgsel1[#All],""&LEFT($C29,LEN($C29)-$A29)&"",$N$10:INDIRECT(ADDRESS($AK$5,$AK$4)))/DSUM(Forespørgsel1[#All],""&$L$4&"",$N$10:INDIRECT(ADDRESS($AK$5,$AK$4))))))),""),"") ->  | N29: Prodgren | O29: =$N$4 -> Rest til jordleje før EU-støtte pr. ha | P29: =IF(P$4="","",P$4) -> Godkendt | Q29: Andel stivelseskartofler | R29: Ha i alt, driftsgren
B30: Ha i alt, driftsgren | C30: Bundet kapital - Inventar | D30: =IF($AB$1=45,Landsgennemsnit!EB30,"") ->  | E30: =IF($AB$1=45,Landsgennemsnit!EC30,"") ->  | F30: =IF($AB$1=45,Landsgennemsnit!ED30,"") ->  | G30: =IF($AB$1=45,IFERROR(IF(ISTEXT($B30)=TRUE,DSUM(Forespørgsel1[#All],""&LEFT($C30,LEN($C30)-$A30)&"",$O$4:INDIRECT(ADDRESS($AK$3,$AK$4)))/DSUM(Forespørgsel1[#All],""&$B30&"",$O$4:INDIRECT(ADDRESS($AK$3,$AK$4))),IF($B30=0,DAVERAGE(Forespørgsel1[#All],""&LEFT($C30,LEN($C30)-$A30)&"",$O$4:INDIRECT(ADDRESS($AK$3,$AK$4))),IF($B30=1,DSUM(Forespørgsel1[#All],""&LEFT($C30,LEN($C30)-$A30)&"",$O$4:INDIRECT(ADDRESS($AK$3,$AK$4)))/DSUM(Forespørgsel1[#All],""&$K$4&"",$O$4:INDIRECT(ADDRESS($AK$3,$AK$4))),DSUM(Forespørgsel1[#All],""&LEFT($C30,LEN($C30)-$A30)&"",$O$4:INDIRECT(ADDRESS($AK$3,$AK$4)))/DSUM(Forespørgsel1[#All],""&$L$4&"",$O$4:INDIRECT(ADDRESS($AK$3,$AK$4)))))),""),"") ->  | H30: =IF($AB$1=45,IFERROR(IF(ISTEXT($B30)=TRUE,DSUM(Forespørgsel1[#All],""&LEFT($C30,LEN($C30)-$A30)&"",$N$4:INDIRECT(ADDRESS($AK$3,$AK$4)))/DSUM(Forespørgsel1[#All],""&$B30&"",$N$4:INDIRECT(ADDRESS($AK$3,$AK$4))),IF($B30=0,DAVERAGE(Forespørgsel1[#All],""&LEFT($C30,LEN($C30)-$A30)&"",$N$4:INDIRECT(ADDRESS($AK$3,$AK$4))),IF($B30=1,DSUM(Forespørgsel1[#All],""&LEFT($C30,LEN($C30)-$A30)&"",$N$4:INDIRECT(ADDRESS($AK$3,$AK$4)))/DSUM(Forespørgsel1[#All],""&$K$4&"",$N$4:INDIRECT(ADDRESS($AK$3,$AK$4))),IF($B30=2,DSUM(Forespørgsel1[#All],""&LEFT($C30,LEN($C30)-$A30)&"",$N$4:INDIRECT(ADDRESS($AK$3,$AK$4)))/DSUM(Forespørgsel1[#All],""&$L$4&"",$N$4:INDIRECT(ADDRESS($AK$3,$AK$4))))))),""),"") ->  | I30: =IF($AB$1=45,IFERROR(IF(ISTEXT($B30)=TRUE,DSUM(Forespørgsel1[#All],""&LEFT($C30,LEN($C30)-$A30)&"",$N$10:INDIRECT(ADDRESS($AK$5,$AK$4)))/DSUM(Forespørgsel1[#All],""&$B30&"",$N$10:INDIRECT(ADDRESS($AK$5,$AK$4))),IF($B30=0,DAVERAGE(Forespørgsel1[#All],""&LEFT($C30,LEN($C30)-$A30)&"",$N$10:INDIRECT(ADDRESS($AK$5,$AK$4))),IF($B30=1,DSUM(Forespørgsel1[#All],""&LEFT($C30,LEN($C30)-$A30)&"",$N$10:INDIRECT(ADDRESS($AK$5,$AK$4)))/DSUM(Forespørgsel1[#All],""&$K$4&"",$N$10:INDIRECT(ADDRESS($AK$5,$AK$4))),IF($B30=2,DSUM(Forespørgsel1[#All],""&LEFT($C30,LEN($C30)-$A30)&"",$N$10:INDIRECT(ADDRESS($AK$5,$AK$4)))/DSUM(Forespørgsel1[#All],""&$L$4&"",$N$10:INDIRECT(ADDRESS($AK$5,$AK$4))))))),""),"") ->  | L30: =IF($AB$1=45,SUMIFS(Forespørgsel1[[#All],[Ejd_Nr]],Forespørgsel1[[#All],[Andel rug i pct.]],M30),"") ->  | M30: =IF($AB$1=45,DMAX(Forespørgsel1[#All],""&$M$17&"",$N25:INDIRECT(ADDRESS($AK30,$AK$4))),"") ->  | N30: =$O$5 -> =3300 | O30: ="<"&M30&"" -> < | P30: =P5 -> TRUE | Q30: =IF(Q$4>0,$Q$5,"") -> >50 | R30: =IF(R$4>0,R5,"") -> >5 | AJ30: Række | AK30: =ROW(AJ30)-2 -> 28
C31: Anvendt rentesats, pct. | D31: =IF($AB$1=45,Landsgennemsnit!EB31,"") ->  | E31: =IF($AB$1=45,Landsgennemsnit!EC31,"") ->  | F31: =IF($AB$1=45,Landsgennemsnit!ED31,"") ->  | G31: =IF($AB$1=45,IFERROR(IF(ISTEXT($B31)=TRUE,DSUM(Forespørgsel1[#All],""&LEFT($C31,LEN($C31)-$A31)&"",$O$4:INDIRECT(ADDRESS($AK$3,$AK$4)))/DSUM(Forespørgsel1[#All],""&$B31&"",$O$4:INDIRECT(ADDRESS($AK$3,$AK$4))),IF($B31=0,DAVERAGE(Forespørgsel1[#All],""&LEFT($C31,LEN($C31)-$A31)&"",$O$4:INDIRECT(ADDRESS($AK$3,$AK$4))),IF($B31=1,DSUM(Forespørgsel1[#All],""&LEFT($C31,LEN($C31)-$A31)&"",$O$4:INDIRECT(ADDRESS($AK$3,$AK$4)))/DSUM(Forespørgsel1[#All],""&$K$4&"",$O$4:INDIRECT(ADDRESS($AK$3,$AK$4))),DSUM(Forespørgsel1[#All],""&LEFT($C31,LEN($C31)-$A31)&"",$O$4:INDIRECT(ADDRESS($AK$3,$AK$4)))/DSUM(Forespørgsel1[#All],""&$L$4&"",$O$4:INDIRECT(ADDRESS($AK$3,$AK$4)))))),""),"") ->  | H31: =IF($AB$1=45,IFERROR(IF(ISTEXT($B31)=TRUE,DSUM(Forespørgsel1[#All],""&LEFT($C31,LEN($C31)-$A31)&"",$N$4:INDIRECT(ADDRESS($AK$3,$AK$4)))/DSUM(Forespørgsel1[#All],""&$B31&"",$N$4:INDIRECT(ADDRESS($AK$3,$AK$4))),IF($B31=0,DAVERAGE(Forespørgsel1[#All],""&LEFT($C31,LEN($C31)-$A31)&"",$N$4:INDIRECT(ADDRESS($AK$3,$AK$4))),IF($B31=1,DSUM(Forespørgsel1[#All],""&LEFT($C31,LEN($C31)-$A31)&"",$N$4:INDIRECT(ADDRESS($AK$3,$AK$4)))/DSUM(Forespørgsel1[#All],""&$K$4&"",$N$4:INDIRECT(ADDRESS($AK$3,$AK$4))),IF($B31=2,DSUM(Forespørgsel1[#All],""&LEFT($C31,LEN($C31)-$A31)&"",$N$4:INDIRECT(ADDRESS($AK$3,$AK$4)))/DSUM(Forespørgsel1[#All],""&$L$4&"",$N$4:INDIRECT(ADDRESS($AK$3,$AK$4))))))),""),"") ->  | I31: =IF($AB$1=45,IFERROR(IF(ISTEXT($B31)=TRUE,DSUM(Forespørgsel1[#All],""&LEFT($C31,LEN($C31)-$A31)&"",$N$10:INDIRECT(ADDRESS($AK$5,$AK$4)))/DSUM(Forespørgsel1[#All],""&$B31&"",$N$10:INDIRECT(ADDRESS($AK$5,$AK$4))),IF($B31=0,DAVERAGE(Forespørgsel1[#All],""&LEFT($C31,LEN($C31)-$A31)&"",$N$10:INDIRECT(ADDRESS($AK$5,$AK$4))),IF($B31=1,DSUM(Forespørgsel1[#All],""&LEFT($C31,LEN($C31)-$A31)&"",$N$10:INDIRECT(ADDRESS($AK$5,$AK$4)))/DSUM(Forespørgsel1[#All],""&$K$4&"",$N$10:INDIRECT(ADDRESS($AK$5,$AK$4))),IF($B31=2,DSUM(Forespørgsel1[#All],""&LEFT($C31,LEN($C31)-$A31)&"",$N$10:INDIRECT(ADDRESS($AK$5,$AK$4)))/DSUM(Forespørgsel1[#All],""&$L$4&"",$N$10:INDIRECT(ADDRESS($AK$5,$AK$4))))))),""),"") ->  | N31: =$N$20 -> =3300 | O31: =O30 -> < | P31: =P6 -> TRUE | Q31: =IF(Q$4>0,$Q$6,"") -> >50 | R31: =IF(R$4>0,R6,"") -> >5
B32: Ha i alt, driftsgren | C32: Resultatkorr. (2% på jord og 4% på resten) | D32: =IF($AB$1=45,Landsgennemsnit!EB32,"") ->  | E32: =IF($AB$1=45,Landsgennemsnit!EC32,"") ->  | F32: =IF($AB$1=45,Landsgennemsnit!ED32,"") ->  | G32: =IF($AB$1=45,IFERROR(IF(ISTEXT($B32)=TRUE,DSUM(Forespørgsel1[#All],""&LEFT($C32,LEN($C32)-$A32)&"",$O$4:INDIRECT(ADDRESS($AK$3,$AK$4)))/DSUM(Forespørgsel1[#All],""&$B32&"",$O$4:INDIRECT(ADDRESS($AK$3,$AK$4))),IF($B32=0,DAVERAGE(Forespørgsel1[#All],""&LEFT($C32,LEN($C32)-$A32)&"",$O$4:INDIRECT(ADDRESS($AK$3,$AK$4))),IF($B32=1,DSUM(Forespørgsel1[#All],""&LEFT($C32,LEN($C32)-$A32)&"",$O$4:INDIRECT(ADDRESS($AK$3,$AK$4)))/DSUM(Forespørgsel1[#All],""&$K$4&"",$O$4:INDIRECT(ADDRESS($AK$3,$AK$4))),DSUM(Forespørgsel1[#All],""&LEFT($C32,LEN($C32)-$A32)&"",$O$4:INDIRECT(ADDRESS($AK$3,$AK$4)))/DSUM(Forespørgsel1[#All],""&$L$4&"",$O$4:INDIRECT(ADDRESS($AK$3,$AK$4)))))),""),"") ->  | H32: =IF($AB$1=45,IFERROR(IF(ISTEXT($B32)=TRUE,DSUM(Forespørgsel1[#All],""&LEFT($C32,LEN($C32)-$A32)&"",$N$4:INDIRECT(ADDRESS($AK$3,$AK$4)))/DSUM(Forespørgsel1[#All],""&$B32&"",$N$4:INDIRECT(ADDRESS($AK$3,$AK$4))),IF($B32=0,DAVERAGE(Forespørgsel1[#All],""&LEFT($C32,LEN($C32)-$A32)&"",$N$4:INDIRECT(ADDRESS($AK$3,$AK$4))),IF($B32=1,DSUM(Forespørgsel1[#All],""&LEFT($C32,LEN($C32)-$A32)&"",$N$4:INDIRECT(ADDRESS($AK$3,$AK$4)))/DSUM(Forespørgsel1[#All],""&$K$4&"",$N$4:INDIRECT(ADDRESS($AK$3,$AK$4))),IF($B32=2,DSUM(Forespørgsel1[#All],""&LEFT($C32,LEN($C32)-$A32)&"",$N$4:INDIRECT(ADDRESS($AK$3,$AK$4)))/DSUM(Forespørgsel1[#All],""&$L$4&"",$N$4:INDIRECT(ADDRESS($AK$3,$AK$4))))))),""),"") ->  | I32: =IF($AB$1=45,IFERROR(IF(ISTEXT($B32)=TRUE,DSUM(Forespørgsel1[#All],""&LEFT($C32,LEN($C32)-$A32)&"",$N$10:INDIRECT(ADDRESS($AK$5,$AK$4)))/DSUM(Forespørgsel1[#All],""&$B32&"",$N$10:INDIRECT(ADDRESS($AK$5,$AK$4))),IF($B32=0,DAVERAGE(Forespørgsel1[#All],""&LEFT($C32,LEN($C32)-$A32)&"",$N$10:INDIRECT(ADDRESS($AK$5,$AK$4))),IF($B32=1,DSUM(Forespørgsel1[#All],""&LEFT($C32,LEN($C32)-$A32)&"",$N$10:INDIRECT(ADDRESS($AK$5,$AK$4)))/DSUM(Forespørgsel1[#All],""&$K$4&"",$N$10:INDIRECT(ADDRESS($AK$5,$AK$4))),IF($B32=2,DSUM(Forespørgsel1[#All],""&LEFT($C32,LEN($C32)-$A32)&"",$N$10:INDIRECT(ADDRESS($AK$5,$AK$4)))/DSUM(Forespørgsel1[#All],""&$L$4&"",$N$10:INDIRECT(ADDRESS($AK$5,$AK$4))))))),""),"") ->  | N32: =$N$20 -> =3300 | O32: =O30 -> < | P32: =P7 -> TRUE | Q32: =IF(Q$4>0,$Q$7,"") -> >50 | R32: =IF(R$4>0,R7,"") -> >5
C33: Afkastningsgrad | D33: =IF($AB$1=45,Landsgennemsnit!EB33,"") ->  | E33: =IF($AB$1=45,Landsgennemsnit!EC33,"") ->  | F33: =IF($AB$1=45,Landsgennemsnit!ED33,"") ->  | G33: =IF($AB$1=45,IFERROR(IF(ISTEXT($B33)=TRUE,DSUM(Forespørgsel1[#All],""&LEFT($C33,LEN($C33)-$A33)&"",$O$4:INDIRECT(ADDRESS($AK$3,$AK$4)))/DSUM(Forespørgsel1[#All],""&$B33&"",$O$4:INDIRECT(ADDRESS($AK$3,$AK$4))),IF($B33=0,DAVERAGE(Forespørgsel1[#All],""&LEFT($C33,LEN($C33)-$A33)&"",$O$4:INDIRECT(ADDRESS($AK$3,$AK$4))),IF($B33=1,DSUM(Forespørgsel1[#All],""&LEFT($C33,LEN($C33)-$A33)&"",$O$4:INDIRECT(ADDRESS($AK$3,$AK$4)))/DSUM(Forespørgsel1[#All],""&$K$4&"",$O$4:INDIRECT(ADDRESS($AK$3,$AK$4))),DSUM(Forespørgsel1[#All],""&LEFT($C33,LEN($C33)-$A33)&"",$O$4:INDIRECT(ADDRESS($AK$3,$AK$4)))/DSUM(Forespørgsel1[#All],""&$L$4&"",$O$4:INDIRECT(ADDRESS($AK$3,$AK$4)))))),""),"") ->  | H33: =IF($AB$1=45,IFERROR(IF(ISTEXT($B33)=TRUE,DSUM(Forespørgsel1[#All],""&LEFT($C33,LEN($C33)-$A33)&"",$N$4:INDIRECT(ADDRESS($AK$3,$AK$4)))/DSUM(Forespørgsel1[#All],""&$B33&"",$N$4:INDIRECT(ADDRESS($AK$3,$AK$4))),IF($B33=0,DAVERAGE(Forespørgsel1[#All],""&LEFT($C33,LEN($C33)-$A33)&"",$N$4:INDIRECT(ADDRESS($AK$3,$AK$4))),IF($B33=1,DSUM(Forespørgsel1[#All],""&LEFT($C33,LEN($C33)-$A33)&"",$N$4:INDIRECT(ADDRESS($AK$3,$AK$4)))/DSUM(Forespørgsel1[#All],""&$K$4&"",$N$4:INDIRECT(ADDRESS($AK$3,$AK$4))),IF($B33=2,DSUM(Forespørgsel1[#All],""&LEFT($C33,LEN($C33)-$A33)&"",$N$4:INDIRECT(ADDRESS($AK$3,$AK$4)))/DSUM(Forespørgsel1[#All],""&$L$4&"",$N$4:INDIRECT(ADDRESS($AK$3,$AK$4))))))),""),"") ->  | I33: =IF($AB$1=45,IFERROR(IF(ISTEXT($B33)=TRUE,DSUM(Forespørgsel1[#All],""&LEFT($C33,LEN($C33)-$A33)&"",$N$10:INDIRECT(ADDRESS($AK$5,$AK$4)))/DSUM(Forespørgsel1[#All],""&$B33&"",$N$10:INDIRECT(ADDRESS($AK$5,$AK$4))),IF($B33=0,DAVERAGE(Forespørgsel1[#All],""&LEFT($C33,LEN($C33)-$A33)&"",$N$10:INDIRECT(ADDRESS($AK$5,$AK$4))),IF($B33=1,DSUM(Forespørgsel1[#All],""&LEFT($C33,LEN($C33)-$A33)&"",$N$10:INDIRECT(ADDRESS($AK$5,$AK$4)))/DSUM(Forespørgsel1[#All],""&$K$4&"",$N$10:INDIRECT(ADDRESS($AK$5,$AK$4))),IF($B33=2,DSUM(Forespørgsel1[#All],""&LEFT($C33,LEN($C33)-$A33)&"",$N$10:INDIRECT(ADDRESS($AK$5,$AK$4)))/DSUM(Forespørgsel1[#All],""&$L$4&"",$N$10:INDIRECT(ADDRESS($AK$5,$AK$4))))))),""),"") ->  | N33: Prodgren | O33: =$N$4 -> Rest til jordleje før EU-støtte pr. ha | P33: =IF(P$4="","",P$4) -> Godkendt | Q33: Andel stivelseskartofler | R33: Ha i alt, driftsgren
D34: =IF($AB$1=45,Landsgennemsnit!EB34,"") ->  | E34: =IF($AB$1=45,Landsgennemsnit!EC34,"") ->  | F34: =IF($AB$1=45,Landsgennemsnit!ED34,"") ->  | G34: =IF($AB$1=45,IFERROR(IF(ISTEXT($B34)=TRUE,DSUM(Forespørgsel1[#All],""&LEFT($C34,LEN($C34)-$A34)&"",$O$4:INDIRECT(ADDRESS($AK$3,$AK$4)))/DSUM(Forespørgsel1[#All],""&$B34&"",$O$4:INDIRECT(ADDRESS($AK$3,$AK$4))),IF($B34=0,DAVERAGE(Forespørgsel1[#All],""&LEFT($C34,LEN($C34)-$A34)&"",$O$4:INDIRECT(ADDRESS($AK$3,$AK$4))),IF($B34=1,DSUM(Forespørgsel1[#All],""&LEFT($C34,LEN($C34)-$A34)&"",$O$4:INDIRECT(ADDRESS($AK$3,$AK$4)))/DSUM(Forespørgsel1[#All],""&$K$4&"",$O$4:INDIRECT(ADDRESS($AK$3,$AK$4))),DSUM(Forespørgsel1[#All],""&LEFT($C34,LEN($C34)-$A34)&"",$O$4:INDIRECT(ADDRESS($AK$3,$AK$4)))/DSUM(Forespørgsel1[#All],""&$L$4&"",$O$4:INDIRECT(ADDRESS($AK$3,$AK$4)))))),""),"") ->  | H34: =IF($AB$1=45,IFERROR(IF(ISTEXT($B34)=TRUE,DSUM(Forespørgsel1[#All],""&LEFT($C34,LEN($C34)-$A34)&"",$N$4:INDIRECT(ADDRESS($AK$3,$AK$4)))/DSUM(Forespørgsel1[#All],""&$B34&"",$N$4:INDIRECT(ADDRESS($AK$3,$AK$4))),IF($B34=0,DAVERAGE(Forespørgsel1[#All],""&LEFT($C34,LEN($C34)-$A34)&"",$N$4:INDIRECT(ADDRESS($AK$3,$AK$4))),IF($B34=1,DSUM(Forespørgsel1[#All],""&LEFT($C34,LEN($C34)-$A34)&"",$N$4:INDIRECT(ADDRESS($AK$3,$AK$4)))/DSUM(Forespørgsel1[#All],""&$K$4&"",$N$4:INDIRECT(ADDRESS($AK$3,$AK$4))),IF($B34=2,DSUM(Forespørgsel1[#All],""&LEFT($C34,LEN($C34)-$A34)&"",$N$4:INDIRECT(ADDRESS($AK$3,$AK$4)))/DSUM(Forespørgsel1[#All],""&$L$4&"",$N$4:INDIRECT(ADDRESS($AK$3,$AK$4))))))),""),"") ->  | I34: =IF($AB$1=45,IFERROR(IF(ISTEXT($B34)=TRUE,DSUM(Forespørgsel1[#All],""&LEFT($C34,LEN($C34)-$A34)&"",$N$10:INDIRECT(ADDRESS($AK$5,$AK$4)))/DSUM(Forespørgsel1[#All],""&$B34&"",$N$10:INDIRECT(ADDRESS($AK$5,$AK$4))),IF($B34=0,DAVERAGE(Forespørgsel1[#All],""&LEFT($C34,LEN($C34)-$A34)&"",$N$10:INDIRECT(ADDRESS($AK$5,$AK$4))),IF($B34=1,DSUM(Forespørgsel1[#All],""&LEFT($C34,LEN($C34)-$A34)&"",$N$10:INDIRECT(ADDRESS($AK$5,$AK$4)))/DSUM(Forespørgsel1[#All],""&$K$4&"",$N$10:INDIRECT(ADDRESS($AK$5,$AK$4))),IF($B34=2,DSUM(Forespørgsel1[#All],""&LEFT($C34,LEN($C34)-$A34)&"",$N$10:INDIRECT(ADDRESS($AK$5,$AK$4)))/DSUM(Forespørgsel1[#All],""&$L$4&"",$N$10:INDIRECT(ADDRESS($AK$5,$AK$4))))))),""),"") ->  | L34: =IF($AB$1=45,SUMIFS(Forespørgsel1[[#All],[Ejd_Nr]],Forespørgsel1[[#All],[Andel rug i pct.]],M34),"") ->  | M34: =IF($AB$1=45,DMAX(Forespørgsel1[#All],""&$M$17&"",$N29:INDIRECT(ADDRESS($AK34,$AK$4))),"") ->  | N34: =$O$5 -> =3300 | O34: ="<"&M34&"" -> < | P34: =P5 -> TRUE | Q34: =IF(Q$4>0,$Q$5,"") -> >50 | R34: =IF(R$4>0,R5,"") -> >5 | AJ34: Række | AK34: =ROW(AJ34)-2 -> 32
C35: Specifikation af resultat | D35: =IF($AB$1=45,Landsgennemsnit!EB35,"") ->  | E35: =IF($AB$1=45,Landsgennemsnit!EC35,"") ->  | F35: =IF($AB$1=45,Landsgennemsnit!ED35,"") ->  | G35: =IF($AB$1=45,IFERROR(IF(ISTEXT($B35)=TRUE,DSUM(Forespørgsel1[#All],""&LEFT($C35,LEN($C35)-$A35)&"",$O$4:INDIRECT(ADDRESS($AK$3,$AK$4)))/DSUM(Forespørgsel1[#All],""&$B35&"",$O$4:INDIRECT(ADDRESS($AK$3,$AK$4))),IF($B35=0,DAVERAGE(Forespørgsel1[#All],""&LEFT($C35,LEN($C35)-$A35)&"",$O$4:INDIRECT(ADDRESS($AK$3,$AK$4))),IF($B35=1,DSUM(Forespørgsel1[#All],""&LEFT($C35,LEN($C35)-$A35)&"",$O$4:INDIRECT(ADDRESS($AK$3,$AK$4)))/DSUM(Forespørgsel1[#All],""&$K$4&"",$O$4:INDIRECT(ADDRESS($AK$3,$AK$4))),DSUM(Forespørgsel1[#All],""&LEFT($C35,LEN($C35)-$A35)&"",$O$4:INDIRECT(ADDRESS($AK$3,$AK$4)))/DSUM(Forespørgsel1[#All],""&$L$4&"",$O$4:INDIRECT(ADDRESS($AK$3,$AK$4)))))),""),"") ->  | H35: =IF($AB$1=45,IFERROR(IF(ISTEXT($B35)=TRUE,DSUM(Forespørgsel1[#All],""&LEFT($C35,LEN($C35)-$A35)&"",$N$4:INDIRECT(ADDRESS($AK$3,$AK$4)))/DSUM(Forespørgsel1[#All],""&$B35&"",$N$4:INDIRECT(ADDRESS($AK$3,$AK$4))),IF($B35=0,DAVERAGE(Forespørgsel1[#All],""&LEFT($C35,LEN($C35)-$A35)&"",$N$4:INDIRECT(ADDRESS($AK$3,$AK$4))),IF($B35=1,DSUM(Forespørgsel1[#All],""&LEFT($C35,LEN($C35)-$A35)&"",$N$4:INDIRECT(ADDRESS($AK$3,$AK$4)))/DSUM(Forespørgsel1[#All],""&$K$4&"",$N$4:INDIRECT(ADDRESS($AK$3,$AK$4))),IF($B35=2,DSUM(Forespørgsel1[#All],""&LEFT($C35,LEN($C35)-$A35)&"",$N$4:INDIRECT(ADDRESS($AK$3,$AK$4)))/DSUM(Forespørgsel1[#All],""&$L$4&"",$N$4:INDIRECT(ADDRESS($AK$3,$AK$4))))))),""),"") ->  | I35: =IF($AB$1=45,IFERROR(IF(ISTEXT($B35)=TRUE,DSUM(Forespørgsel1[#All],""&LEFT($C35,LEN($C35)-$A35)&"",$N$10:INDIRECT(ADDRESS($AK$5,$AK$4)))/DSUM(Forespørgsel1[#All],""&$B35&"",$N$10:INDIRECT(ADDRESS($AK$5,$AK$4))),IF($B35=0,DAVERAGE(Forespørgsel1[#All],""&LEFT($C35,LEN($C35)-$A35)&"",$N$10:INDIRECT(ADDRESS($AK$5,$AK$4))),IF($B35=1,DSUM(Forespørgsel1[#All],""&LEFT($C35,LEN($C35)-$A35)&"",$N$10:INDIRECT(ADDRESS($AK$5,$AK$4)))/DSUM(Forespørgsel1[#All],""&$K$4&"",$N$10:INDIRECT(ADDRESS($AK$5,$AK$4))),IF($B35=2,DSUM(Forespørgsel1[#All],""&LEFT($C35,LEN($C35)-$A35)&"",$N$10:INDIRECT(ADDRESS($AK$5,$AK$4)))/DSUM(Forespørgsel1[#All],""&$L$4&"",$N$10:INDIRECT(ADDRESS($AK$5,$AK$4))))))),""),"") ->  | N35: =$N$20 -> =3300 | O35: =O34 -> < | P35: =P6 -> TRUE | Q35: =IF(Q$4>0,$Q$6,"") -> >50 | R35: =IF(R$4>0,R6,"") -> >5
A36: 0 | B36: Ha i alt, driftsgren | C36: Salgsafgrøder | D36: =IF($AB$1=45,Landsgennemsnit!EB36,"") ->  | E36: =IF($AB$1=45,Landsgennemsnit!EC36,"") ->  | F36: =IF($AB$1=45,Landsgennemsnit!ED36,"") ->  | G36: =IF($AB$1=45,IFERROR(IF(ISTEXT($B36)=TRUE,DSUM(Forespørgsel1[#All],""&LEFT($C36,LEN($C36)-$A36)&"",$O$4:INDIRECT(ADDRESS($AK$3,$AK$4)))/DSUM(Forespørgsel1[#All],""&$B36&"",$O$4:INDIRECT(ADDRESS($AK$3,$AK$4))),IF($B36=0,DAVERAGE(Forespørgsel1[#All],""&LEFT($C36,LEN($C36)-$A36)&"",$O$4:INDIRECT(ADDRESS($AK$3,$AK$4))),IF($B36=1,DSUM(Forespørgsel1[#All],""&LEFT($C36,LEN($C36)-$A36)&"",$O$4:INDIRECT(ADDRESS($AK$3,$AK$4)))/DSUM(Forespørgsel1[#All],""&$K$4&"",$O$4:INDIRECT(ADDRESS($AK$3,$AK$4))),DSUM(Forespørgsel1[#All],""&LEFT($C36,LEN($C36)-$A36)&"",$O$4:INDIRECT(ADDRESS($AK$3,$AK$4)))/DSUM(Forespørgsel1[#All],""&$L$4&"",$O$4:INDIRECT(ADDRESS($AK$3,$AK$4)))))),""),"") ->  | H36: =IF($AB$1=45,IFERROR(IF(ISTEXT($B36)=TRUE,DSUM(Forespørgsel1[#All],""&LEFT($C36,LEN($C36)-$A36)&"",$N$4:INDIRECT(ADDRESS($AK$3,$AK$4)))/DSUM(Forespørgsel1[#All],""&$B36&"",$N$4:INDIRECT(ADDRESS($AK$3,$AK$4))),IF($B36=0,DAVERAGE(Forespørgsel1[#All],""&LEFT($C36,LEN($C36)-$A36)&"",$N$4:INDIRECT(ADDRESS($AK$3,$AK$4))),IF($B36=1,DSUM(Forespørgsel1[#All],""&LEFT($C36,LEN($C36)-$A36)&"",$N$4:INDIRECT(ADDRESS($AK$3,$AK$4)))/DSUM(Forespørgsel1[#All],""&$K$4&"",$N$4:INDIRECT(ADDRESS($AK$3,$AK$4))),IF($B36=2,DSUM(Forespørgsel1[#All],""&LEFT($C36,LEN($C36)-$A36)&"",$N$4:INDIRECT(ADDRESS($AK$3,$AK$4)))/DSUM(Forespørgsel1[#All],""&$L$4&"",$N$4:INDIRECT(ADDRESS($AK$3,$AK$4))))))),""),"") ->  | I36: =IF($AB$1=45,IFERROR(IF(ISTEXT($B36)=TRUE,DSUM(Forespørgsel1[#All],""&LEFT($C36,LEN($C36)-$A36)&"",$N$10:INDIRECT(ADDRESS($AK$5,$AK$4)))/DSUM(Forespørgsel1[#All],""&$B36&"",$N$10:INDIRECT(ADDRESS($AK$5,$AK$4))),IF($B36=0,DAVERAGE(Forespørgsel1[#All],""&LEFT($C36,LEN($C36)-$A36)&"",$N$10:INDIRECT(ADDRESS($AK$5,$AK$4))),IF($B36=1,DSUM(Forespørgsel1[#All],""&LEFT($C36,LEN($C36)-$A36)&"",$N$10:INDIRECT(ADDRESS($AK$5,$AK$4)))/DSUM(Forespørgsel1[#All],""&$K$4&"",$N$10:INDIRECT(ADDRESS($AK$5,$AK$4))),IF($B36=2,DSUM(Forespørgsel1[#All],""&LEFT($C36,LEN($C36)-$A36)&"",$N$10:INDIRECT(ADDRESS($AK$5,$AK$4)))/DSUM(Forespørgsel1[#All],""&$L$4&"",$N$10:INDIRECT(ADDRESS($AK$5,$AK$4))))))),""),"") ->  | N36: =$N$20 -> =3300 | O36: =O34 -> < | P36: =P7 -> TRUE | Q36: =IF(Q$4>0,$Q$7,"") -> >50 | R36: =IF(R$4>0,R7,"") -> >5
B37: Ha i alt, driftsgren | C37: Maskinstationsindtægter | D37: =IF($AB$1=45,Landsgennemsnit!EB37,"") ->  | E37: =IF($AB$1=45,Landsgennemsnit!EC37,"") ->  | F37: =IF($AB$1=45,Landsgennemsnit!ED37,"") ->  | G37: =IF($AB$1=45,IFERROR(IF(ISTEXT($B37)=TRUE,DSUM(Forespørgsel1[#All],""&LEFT($C37,LEN($C37)-$A37)&"",$O$4:INDIRECT(ADDRESS($AK$3,$AK$4)))/DSUM(Forespørgsel1[#All],""&$B37&"",$O$4:INDIRECT(ADDRESS($AK$3,$AK$4))),IF($B37=0,DAVERAGE(Forespørgsel1[#All],""&LEFT($C37,LEN($C37)-$A37)&"",$O$4:INDIRECT(ADDRESS($AK$3,$AK$4))),IF($B37=1,DSUM(Forespørgsel1[#All],""&LEFT($C37,LEN($C37)-$A37)&"",$O$4:INDIRECT(ADDRESS($AK$3,$AK$4)))/DSUM(Forespørgsel1[#All],""&$K$4&"",$O$4:INDIRECT(ADDRESS($AK$3,$AK$4))),DSUM(Forespørgsel1[#All],""&LEFT($C37,LEN($C37)-$A37)&"",$O$4:INDIRECT(ADDRESS($AK$3,$AK$4)))/DSUM(Forespørgsel1[#All],""&$L$4&"",$O$4:INDIRECT(ADDRESS($AK$3,$AK$4)))))),""),"") ->  | H37: =IF($AB$1=45,IFERROR(IF(ISTEXT($B37)=TRUE,DSUM(Forespørgsel1[#All],""&LEFT($C37,LEN($C37)-$A37)&"",$N$4:INDIRECT(ADDRESS($AK$3,$AK$4)))/DSUM(Forespørgsel1[#All],""&$B37&"",$N$4:INDIRECT(ADDRESS($AK$3,$AK$4))),IF($B37=0,DAVERAGE(Forespørgsel1[#All],""&LEFT($C37,LEN($C37)-$A37)&"",$N$4:INDIRECT(ADDRESS($AK$3,$AK$4))),IF($B37=1,DSUM(Forespørgsel1[#All],""&LEFT($C37,LEN($C37)-$A37)&"",$N$4:INDIRECT(ADDRESS($AK$3,$AK$4)))/DSUM(Forespørgsel1[#All],""&$K$4&"",$N$4:INDIRECT(ADDRESS($AK$3,$AK$4))),IF($B37=2,DSUM(Forespørgsel1[#All],""&LEFT($C37,LEN($C37)-$A37)&"",$N$4:INDIRECT(ADDRESS($AK$3,$AK$4)))/DSUM(Forespørgsel1[#All],""&$L$4&"",$N$4:INDIRECT(ADDRESS($AK$3,$AK$4))))))),""),"") ->  | I37: =IF($AB$1=45,IFERROR(IF(ISTEXT($B37)=TRUE,DSUM(Forespørgsel1[#All],""&LEFT($C37,LEN($C37)-$A37)&"",$N$10:INDIRECT(ADDRESS($AK$5,$AK$4)))/DSUM(Forespørgsel1[#All],""&$B37&"",$N$10:INDIRECT(ADDRESS($AK$5,$AK$4))),IF($B37=0,DAVERAGE(Forespørgsel1[#All],""&LEFT($C37,LEN($C37)-$A37)&"",$N$10:INDIRECT(ADDRESS($AK$5,$AK$4))),IF($B37=1,DSUM(Forespørgsel1[#All],""&LEFT($C37,LEN($C37)-$A37)&"",$N$10:INDIRECT(ADDRESS($AK$5,$AK$4)))/DSUM(Forespørgsel1[#All],""&$K$4&"",$N$10:INDIRECT(ADDRESS($AK$5,$AK$4))),IF($B37=2,DSUM(Forespørgsel1[#All],""&LEFT($C37,LEN($C37)-$A37)&"",$N$10:INDIRECT(ADDRESS($AK$5,$AK$4)))/DSUM(Forespørgsel1[#All],""&$L$4&"",$N$10:INDIRECT(ADDRESS($AK$5,$AK$4))))))),""),"") -> 
B38: Ha i alt, driftsgren | C38: Diverse indtægter | D38: =IF($AB$1=45,Landsgennemsnit!EB38,"") ->  | E38: =IF($AB$1=45,Landsgennemsnit!EC38,"") ->  | F38: =IF($AB$1=45,Landsgennemsnit!ED38,"") ->  | G38: =IF($AB$1=45,IFERROR(IF(ISTEXT($B38)=TRUE,DSUM(Forespørgsel1[#All],""&LEFT($C38,LEN($C38)-$A38)&"",$O$4:INDIRECT(ADDRESS($AK$3,$AK$4)))/DSUM(Forespørgsel1[#All],""&$B38&"",$O$4:INDIRECT(ADDRESS($AK$3,$AK$4))),IF($B38=0,DAVERAGE(Forespørgsel1[#All],""&LEFT($C38,LEN($C38)-$A38)&"",$O$4:INDIRECT(ADDRESS($AK$3,$AK$4))),IF($B38=1,DSUM(Forespørgsel1[#All],""&LEFT($C38,LEN($C38)-$A38)&"",$O$4:INDIRECT(ADDRESS($AK$3,$AK$4)))/DSUM(Forespørgsel1[#All],""&$K$4&"",$O$4:INDIRECT(ADDRESS($AK$3,$AK$4))),DSUM(Forespørgsel1[#All],""&LEFT($C38,LEN($C38)-$A38)&"",$O$4:INDIRECT(ADDRESS($AK$3,$AK$4)))/DSUM(Forespørgsel1[#All],""&$L$4&"",$O$4:INDIRECT(ADDRESS($AK$3,$AK$4)))))),""),"") ->  | H38: =IF($AB$1=45,IFERROR(IF(ISTEXT($B38)=TRUE,DSUM(Forespørgsel1[#All],""&LEFT($C38,LEN($C38)-$A38)&"",$N$4:INDIRECT(ADDRESS($AK$3,$AK$4)))/DSUM(Forespørgsel1[#All],""&$B38&"",$N$4:INDIRECT(ADDRESS($AK$3,$AK$4))),IF($B38=0,DAVERAGE(Forespørgsel1[#All],""&LEFT($C38,LEN($C38)-$A38)&"",$N$4:INDIRECT(ADDRESS($AK$3,$AK$4))),IF($B38=1,DSUM(Forespørgsel1[#All],""&LEFT($C38,LEN($C38)-$A38)&"",$N$4:INDIRECT(ADDRESS($AK$3,$AK$4)))/DSUM(Forespørgsel1[#All],""&$K$4&"",$N$4:INDIRECT(ADDRESS($AK$3,$AK$4))),IF($B38=2,DSUM(Forespørgsel1[#All],""&LEFT($C38,LEN($C38)-$A38)&"",$N$4:INDIRECT(ADDRESS($AK$3,$AK$4)))/DSUM(Forespørgsel1[#All],""&$L$4&"",$N$4:INDIRECT(ADDRESS($AK$3,$AK$4))))))),""),"") ->  | I38: =IF($AB$1=45,IFERROR(IF(ISTEXT($B38)=TRUE,DSUM(Forespørgsel1[#All],""&LEFT($C38,LEN($C38)-$A38)&"",$N$10:INDIRECT(ADDRESS($AK$5,$AK$4)))/DSUM(Forespørgsel1[#All],""&$B38&"",$N$10:INDIRECT(ADDRESS($AK$5,$AK$4))),IF($B38=0,DAVERAGE(Forespørgsel1[#All],""&LEFT($C38,LEN($C38)-$A38)&"",$N$10:INDIRECT(ADDRESS($AK$5,$AK$4))),IF($B38=1,DSUM(Forespørgsel1[#All],""&LEFT($C38,LEN($C38)-$A38)&"",$N$10:INDIRECT(ADDRESS($AK$5,$AK$4)))/DSUM(Forespørgsel1[#All],""&$K$4&"",$N$10:INDIRECT(ADDRESS($AK$5,$AK$4))),IF($B38=2,DSUM(Forespørgsel1[#All],""&LEFT($C38,LEN($C38)-$A38)&"",$N$10:INDIRECT(ADDRESS($AK$5,$AK$4)))/DSUM(Forespørgsel1[#All],""&$L$4&"",$N$10:INDIRECT(ADDRESS($AK$5,$AK$4))))))),""),"") ->  | AJ38: Række | AK38: =ROW(AJ38)-2 -> 36
B39: Ha i alt, driftsgren | C39: Bruttoudbytte i alt | D39: =IF($AB$1=45,Landsgennemsnit!EB39,"") ->  | E39: =IF($AB$1=45,Landsgennemsnit!EC39,"") ->  | F39: =IF($AB$1=45,Landsgennemsnit!ED39,"") ->  | G39: =IF($AB$1=45,IFERROR(IF(ISTEXT($B39)=TRUE,DSUM(Forespørgsel1[#All],""&LEFT($C39,LEN($C39)-$A39)&"",$O$4:INDIRECT(ADDRESS($AK$3,$AK$4)))/DSUM(Forespørgsel1[#All],""&$B39&"",$O$4:INDIRECT(ADDRESS($AK$3,$AK$4))),IF($B39=0,DAVERAGE(Forespørgsel1[#All],""&LEFT($C39,LEN($C39)-$A39)&"",$O$4:INDIRECT(ADDRESS($AK$3,$AK$4))),IF($B39=1,DSUM(Forespørgsel1[#All],""&LEFT($C39,LEN($C39)-$A39)&"",$O$4:INDIRECT(ADDRESS($AK$3,$AK$4)))/DSUM(Forespørgsel1[#All],""&$K$4&"",$O$4:INDIRECT(ADDRESS($AK$3,$AK$4))),DSUM(Forespørgsel1[#All],""&LEFT($C39,LEN($C39)-$A39)&"",$O$4:INDIRECT(ADDRESS($AK$3,$AK$4)))/DSUM(Forespørgsel1[#All],""&$L$4&"",$O$4:INDIRECT(ADDRESS($AK$3,$AK$4)))))),""),"") ->  | H39: =IF($AB$1=45,IFERROR(IF(ISTEXT($B39)=TRUE,DSUM(Forespørgsel1[#All],""&LEFT($C39,LEN($C39)-$A39)&"",$N$4:INDIRECT(ADDRESS($AK$3,$AK$4)))/DSUM(Forespørgsel1[#All],""&$B39&"",$N$4:INDIRECT(ADDRESS($AK$3,$AK$4))),IF($B39=0,DAVERAGE(Forespørgsel1[#All],""&LEFT($C39,LEN($C39)-$A39)&"",$N$4:INDIRECT(ADDRESS($AK$3,$AK$4))),IF($B39=1,DSUM(Forespørgsel1[#All],""&LEFT($C39,LEN($C39)-$A39)&"",$N$4:INDIRECT(ADDRESS($AK$3,$AK$4)))/DSUM(Forespørgsel1[#All],""&$K$4&"",$N$4:INDIRECT(ADDRESS($AK$3,$AK$4))),IF($B39=2,DSUM(Forespørgsel1[#All],""&LEFT($C39,LEN($C39)-$A39)&"",$N$4:INDIRECT(ADDRESS($AK$3,$AK$4)))/DSUM(Forespørgsel1[#All],""&$L$4&"",$N$4:INDIRECT(ADDRESS($AK$3,$AK$4))))))),""),"") ->  | I39: =IF($AB$1=45,IFERROR(IF(ISTEXT($B39)=TRUE,DSUM(Forespørgsel1[#All],""&LEFT($C39,LEN($C39)-$A39)&"",$N$10:INDIRECT(ADDRESS($AK$5,$AK$4)))/DSUM(Forespørgsel1[#All],""&$B39&"",$N$10:INDIRECT(ADDRESS($AK$5,$AK$4))),IF($B39=0,DAVERAGE(Forespørgsel1[#All],""&LEFT($C39,LEN($C39)-$A39)&"",$N$10:INDIRECT(ADDRESS($AK$5,$AK$4))),IF($B39=1,DSUM(Forespørgsel1[#All],""&LEFT($C39,LEN($C39)-$A39)&"",$N$10:INDIRECT(ADDRESS($AK$5,$AK$4)))/DSUM(Forespørgsel1[#All],""&$K$4&"",$N$10:INDIRECT(ADDRESS($AK$5,$AK$4))),IF($B39=2,DSUM(Forespørgsel1[#All],""&LEFT($C39,LEN($C39)-$A39)&"",$N$10:INDIRECT(ADDRESS($AK$5,$AK$4)))/DSUM(Forespørgsel1[#All],""&$L$4&"",$N$10:INDIRECT(ADDRESS($AK$5,$AK$4))))))),""),"") -> 
D40: =IF($AB$1=45,Landsgennemsnit!EB40,"") ->  | E40: =IF($AB$1=45,Landsgennemsnit!EC40,"") ->  | F40: =IF($AB$1=45,Landsgennemsnit!ED40,"") ->  | G40: =IF($AB$1=45,IFERROR(IF(ISTEXT($B40)=TRUE,DSUM(Forespørgsel1[#All],""&LEFT($C40,LEN($C40)-$A40)&"",$O$4:INDIRECT(ADDRESS($AK$3,$AK$4)))/DSUM(Forespørgsel1[#All],""&$B40&"",$O$4:INDIRECT(ADDRESS($AK$3,$AK$4))),IF($B40=0,DAVERAGE(Forespørgsel1[#All],""&LEFT($C40,LEN($C40)-$A40)&"",$O$4:INDIRECT(ADDRESS($AK$3,$AK$4))),IF($B40=1,DSUM(Forespørgsel1[#All],""&LEFT($C40,LEN($C40)-$A40)&"",$O$4:INDIRECT(ADDRESS($AK$3,$AK$4)))/DSUM(Forespørgsel1[#All],""&$K$4&"",$O$4:INDIRECT(ADDRESS($AK$3,$AK$4))),DSUM(Forespørgsel1[#All],""&LEFT($C40,LEN($C40)-$A40)&"",$O$4:INDIRECT(ADDRESS($AK$3,$AK$4)))/DSUM(Forespørgsel1[#All],""&$L$4&"",$O$4:INDIRECT(ADDRESS($AK$3,$AK$4)))))),""),"") ->  | H40: =IF($AB$1=45,IFERROR(IF(ISTEXT($B40)=TRUE,DSUM(Forespørgsel1[#All],""&LEFT($C40,LEN($C40)-$A40)&"",$N$4:INDIRECT(ADDRESS($AK$3,$AK$4)))/DSUM(Forespørgsel1[#All],""&$B40&"",$N$4:INDIRECT(ADDRESS($AK$3,$AK$4))),IF($B40=0,DAVERAGE(Forespørgsel1[#All],""&LEFT($C40,LEN($C40)-$A40)&"",$N$4:INDIRECT(ADDRESS($AK$3,$AK$4))),IF($B40=1,DSUM(Forespørgsel1[#All],""&LEFT($C40,LEN($C40)-$A40)&"",$N$4:INDIRECT(ADDRESS($AK$3,$AK$4)))/DSUM(Forespørgsel1[#All],""&$K$4&"",$N$4:INDIRECT(ADDRESS($AK$3,$AK$4))),IF($B40=2,DSUM(Forespørgsel1[#All],""&LEFT($C40,LEN($C40)-$A40)&"",$N$4:INDIRECT(ADDRESS($AK$3,$AK$4)))/DSUM(Forespørgsel1[#All],""&$L$4&"",$N$4:INDIRECT(ADDRESS($AK$3,$AK$4))))))),""),"") ->  | I40: =IF($AB$1=45,IFERROR(IF(ISTEXT($B40)=TRUE,DSUM(Forespørgsel1[#All],""&LEFT($C40,LEN($C40)-$A40)&"",$N$10:INDIRECT(ADDRESS($AK$5,$AK$4)))/DSUM(Forespørgsel1[#All],""&$B40&"",$N$10:INDIRECT(ADDRESS($AK$5,$AK$4))),IF($B40=0,DAVERAGE(Forespørgsel1[#All],""&LEFT($C40,LEN($C40)-$A40)&"",$N$10:INDIRECT(ADDRESS($AK$5,$AK$4))),IF($B40=1,DSUM(Forespørgsel1[#All],""&LEFT($C40,LEN($C40)-$A40)&"",$N$10:INDIRECT(ADDRESS($AK$5,$AK$4)))/DSUM(Forespørgsel1[#All],""&$K$4&"",$N$10:INDIRECT(ADDRESS($AK$5,$AK$4))),IF($B40=2,DSUM(Forespørgsel1[#All],""&LEFT($C40,LEN($C40)-$A40)&"",$N$10:INDIRECT(ADDRESS($AK$5,$AK$4)))/DSUM(Forespørgsel1[#All],""&$L$4&"",$N$10:INDIRECT(ADDRESS($AK$5,$AK$4))))))),""),"") -> 
B41: Ha i alt, driftsgren | C41: Udsæd | D41: =IF($AB$1=45,Landsgennemsnit!EB41,"") ->  | E41: =IF($AB$1=45,Landsgennemsnit!EC41,"") ->  | F41: =IF($AB$1=45,Landsgennemsnit!ED41,"") ->  | G41: =IF($AB$1=45,IFERROR(IF(ISTEXT($B41)=TRUE,DSUM(Forespørgsel1[#All],""&LEFT($C41,LEN($C41)-$A41)&"",$O$4:INDIRECT(ADDRESS($AK$3,$AK$4)))/DSUM(Forespørgsel1[#All],""&$B41&"",$O$4:INDIRECT(ADDRESS($AK$3,$AK$4))),IF($B41=0,DAVERAGE(Forespørgsel1[#All],""&LEFT($C41,LEN($C41)-$A41)&"",$O$4:INDIRECT(ADDRESS($AK$3,$AK$4))),IF($B41=1,DSUM(Forespørgsel1[#All],""&LEFT($C41,LEN($C41)-$A41)&"",$O$4:INDIRECT(ADDRESS($AK$3,$AK$4)))/DSUM(Forespørgsel1[#All],""&$K$4&"",$O$4:INDIRECT(ADDRESS($AK$3,$AK$4))),DSUM(Forespørgsel1[#All],""&LEFT($C41,LEN($C41)-$A41)&"",$O$4:INDIRECT(ADDRESS($AK$3,$AK$4)))/DSUM(Forespørgsel1[#All],""&$L$4&"",$O$4:INDIRECT(ADDRESS($AK$3,$AK$4)))))),""),"") ->  | H41: =IF($AB$1=45,IFERROR(IF(ISTEXT($B41)=TRUE,DSUM(Forespørgsel1[#All],""&LEFT($C41,LEN($C41)-$A41)&"",$N$4:INDIRECT(ADDRESS($AK$3,$AK$4)))/DSUM(Forespørgsel1[#All],""&$B41&"",$N$4:INDIRECT(ADDRESS($AK$3,$AK$4))),IF($B41=0,DAVERAGE(Forespørgsel1[#All],""&LEFT($C41,LEN($C41)-$A41)&"",$N$4:INDIRECT(ADDRESS($AK$3,$AK$4))),IF($B41=1,DSUM(Forespørgsel1[#All],""&LEFT($C41,LEN($C41)-$A41)&"",$N$4:INDIRECT(ADDRESS($AK$3,$AK$4)))/DSUM(Forespørgsel1[#All],""&$K$4&"",$N$4:INDIRECT(ADDRESS($AK$3,$AK$4))),IF($B41=2,DSUM(Forespørgsel1[#All],""&LEFT($C41,LEN($C41)-$A41)&"",$N$4:INDIRECT(ADDRESS($AK$3,$AK$4)))/DSUM(Forespørgsel1[#All],""&$L$4&"",$N$4:INDIRECT(ADDRESS($AK$3,$AK$4))))))),""),"") ->  | I41: =IF($AB$1=45,IFERROR(IF(ISTEXT($B41)=TRUE,DSUM(Forespørgsel1[#All],""&LEFT($C41,LEN($C41)-$A41)&"",$N$10:INDIRECT(ADDRESS($AK$5,$AK$4)))/DSUM(Forespørgsel1[#All],""&$B41&"",$N$10:INDIRECT(ADDRESS($AK$5,$AK$4))),IF($B41=0,DAVERAGE(Forespørgsel1[#All],""&LEFT($C41,LEN($C41)-$A41)&"",$N$10:INDIRECT(ADDRESS($AK$5,$AK$4))),IF($B41=1,DSUM(Forespørgsel1[#All],""&LEFT($C41,LEN($C41)-$A41)&"",$N$10:INDIRECT(ADDRESS($AK$5,$AK$4)))/DSUM(Forespørgsel1[#All],""&$K$4&"",$N$10:INDIRECT(ADDRESS($AK$5,$AK$4))),IF($B41=2,DSUM(Forespørgsel1[#All],""&LEFT($C41,LEN($C41)-$A41)&"",$N$10:INDIRECT(ADDRESS($AK$5,$AK$4)))/DSUM(Forespørgsel1[#All],""&$L$4&"",$N$10:INDIRECT(ADDRESS($AK$5,$AK$4))))))),""),"") -> 
B42: Ha i alt, driftsgren | C42: Gødning | D42: =IF($AB$1=45,Landsgennemsnit!EB42,"") ->  | E42: =IF($AB$1=45,Landsgennemsnit!EC42,"") ->  | F42: =IF($AB$1=45,Landsgennemsnit!ED42,"") ->  | G42: =IF($AB$1=45,IFERROR(IF(ISTEXT($B42)=TRUE,DSUM(Forespørgsel1[#All],""&LEFT($C42,LEN($C42)-$A42)&"",$O$4:INDIRECT(ADDRESS($AK$3,$AK$4)))/DSUM(Forespørgsel1[#All],""&$B42&"",$O$4:INDIRECT(ADDRESS($AK$3,$AK$4))),IF($B42=0,DAVERAGE(Forespørgsel1[#All],""&LEFT($C42,LEN($C42)-$A42)&"",$O$4:INDIRECT(ADDRESS($AK$3,$AK$4))),IF($B42=1,DSUM(Forespørgsel1[#All],""&LEFT($C42,LEN($C42)-$A42)&"",$O$4:INDIRECT(ADDRESS($AK$3,$AK$4)))/DSUM(Forespørgsel1[#All],""&$K$4&"",$O$4:INDIRECT(ADDRESS($AK$3,$AK$4))),DSUM(Forespørgsel1[#All],""&LEFT($C42,LEN($C42)-$A42)&"",$O$4:INDIRECT(ADDRESS($AK$3,$AK$4)))/DSUM(Forespørgsel1[#All],""&$L$4&"",$O$4:INDIRECT(ADDRESS($AK$3,$AK$4)))))),""),"") ->  | H42: =IF($AB$1=45,IFERROR(IF(ISTEXT($B42)=TRUE,DSUM(Forespørgsel1[#All],""&LEFT($C42,LEN($C42)-$A42)&"",$N$4:INDIRECT(ADDRESS($AK$3,$AK$4)))/DSUM(Forespørgsel1[#All],""&$B42&"",$N$4:INDIRECT(ADDRESS($AK$3,$AK$4))),IF($B42=0,DAVERAGE(Forespørgsel1[#All],""&LEFT($C42,LEN($C42)-$A42)&"",$N$4:INDIRECT(ADDRESS($AK$3,$AK$4))),IF($B42=1,DSUM(Forespørgsel1[#All],""&LEFT($C42,LEN($C42)-$A42)&"",$N$4:INDIRECT(ADDRESS($AK$3,$AK$4)))/DSUM(Forespørgsel1[#All],""&$K$4&"",$N$4:INDIRECT(ADDRESS($AK$3,$AK$4))),IF($B42=2,DSUM(Forespørgsel1[#All],""&LEFT($C42,LEN($C42)-$A42)&"",$N$4:INDIRECT(ADDRESS($AK$3,$AK$4)))/DSUM(Forespørgsel1[#All],""&$L$4&"",$N$4:INDIRECT(ADDRESS($AK$3,$AK$4))))))),""),"") ->  | I42: =IF($AB$1=45,IFERROR(IF(ISTEXT($B42)=TRUE,DSUM(Forespørgsel1[#All],""&LEFT($C42,LEN($C42)-$A42)&"",$N$10:INDIRECT(ADDRESS($AK$5,$AK$4)))/DSUM(Forespørgsel1[#All],""&$B42&"",$N$10:INDIRECT(ADDRESS($AK$5,$AK$4))),IF($B42=0,DAVERAGE(Forespørgsel1[#All],""&LEFT($C42,LEN($C42)-$A42)&"",$N$10:INDIRECT(ADDRESS($AK$5,$AK$4))),IF($B42=1,DSUM(Forespørgsel1[#All],""&LEFT($C42,LEN($C42)-$A42)&"",$N$10:INDIRECT(ADDRESS($AK$5,$AK$4)))/DSUM(Forespørgsel1[#All],""&$K$4&"",$N$10:INDIRECT(ADDRESS($AK$5,$AK$4))),IF($B42=2,DSUM(Forespørgsel1[#All],""&LEFT($C42,LEN($C42)-$A42)&"",$N$10:INDIRECT(ADDRESS($AK$5,$AK$4)))/DSUM(Forespørgsel1[#All],""&$L$4&"",$N$10:INDIRECT(ADDRESS($AK$5,$AK$4))))))),""),"") -> 
B43: Ha i alt, driftsgren | C43: Planteværn | D43: =IF($AB$1=45,Landsgennemsnit!EB43,"") ->  | E43: =IF($AB$1=45,Landsgennemsnit!EC43,"") ->  | F43: =IF($AB$1=45,Landsgennemsnit!ED43,"") ->  | G43: =IF($AB$1=45,IFERROR(IF(ISTEXT($B43)=TRUE,DSUM(Forespørgsel1[#All],""&LEFT($C43,LEN($C43)-$A43)&"",$O$4:INDIRECT(ADDRESS($AK$3,$AK$4)))/DSUM(Forespørgsel1[#All],""&$B43&"",$O$4:INDIRECT(ADDRESS($AK$3,$AK$4))),IF($B43=0,DAVERAGE(Forespørgsel1[#All],""&LEFT($C43,LEN($C43)-$A43)&"",$O$4:INDIRECT(ADDRESS($AK$3,$AK$4))),IF($B43=1,DSUM(Forespørgsel1[#All],""&LEFT($C43,LEN($C43)-$A43)&"",$O$4:INDIRECT(ADDRESS($AK$3,$AK$4)))/DSUM(Forespørgsel1[#All],""&$K$4&"",$O$4:INDIRECT(ADDRESS($AK$3,$AK$4))),DSUM(Forespørgsel1[#All],""&LEFT($C43,LEN($C43)-$A43)&"",$O$4:INDIRECT(ADDRESS($AK$3,$AK$4)))/DSUM(Forespørgsel1[#All],""&$L$4&"",$O$4:INDIRECT(ADDRESS($AK$3,$AK$4)))))),""),"") ->  | H43: =IF($AB$1=45,IFERROR(IF(ISTEXT($B43)=TRUE,DSUM(Forespørgsel1[#All],""&LEFT($C43,LEN($C43)-$A43)&"",$N$4:INDIRECT(ADDRESS($AK$3,$AK$4)))/DSUM(Forespørgsel1[#All],""&$B43&"",$N$4:INDIRECT(ADDRESS($AK$3,$AK$4))),IF($B43=0,DAVERAGE(Forespørgsel1[#All],""&LEFT($C43,LEN($C43)-$A43)&"",$N$4:INDIRECT(ADDRESS($AK$3,$AK$4))),IF($B43=1,DSUM(Forespørgsel1[#All],""&LEFT($C43,LEN($C43)-$A43)&"",$N$4:INDIRECT(ADDRESS($AK$3,$AK$4)))/DSUM(Forespørgsel1[#All],""&$K$4&"",$N$4:INDIRECT(ADDRESS($AK$3,$AK$4))),IF($B43=2,DSUM(Forespørgsel1[#All],""&LEFT($C43,LEN($C43)-$A43)&"",$N$4:INDIRECT(ADDRESS($AK$3,$AK$4)))/DSUM(Forespørgsel1[#All],""&$L$4&"",$N$4:INDIRECT(ADDRESS($AK$3,$AK$4))))))),""),"") ->  | I43: =IF($AB$1=45,IFERROR(IF(ISTEXT($B43)=TRUE,DSUM(Forespørgsel1[#All],""&LEFT($C43,LEN($C43)-$A43)&"",$N$10:INDIRECT(ADDRESS($AK$5,$AK$4)))/DSUM(Forespørgsel1[#All],""&$B43&"",$N$10:INDIRECT(ADDRESS($AK$5,$AK$4))),IF($B43=0,DAVERAGE(Forespørgsel1[#All],""&LEFT($C43,LEN($C43)-$A43)&"",$N$10:INDIRECT(ADDRESS($AK$5,$AK$4))),IF($B43=1,DSUM(Forespørgsel1[#All],""&LEFT($C43,LEN($C43)-$A43)&"",$N$10:INDIRECT(ADDRESS($AK$5,$AK$4)))/DSUM(Forespørgsel1[#All],""&$K$4&"",$N$10:INDIRECT(ADDRESS($AK$5,$AK$4))),IF($B43=2,DSUM(Forespørgsel1[#All],""&LEFT($C43,LEN($C43)-$A43)&"",$N$10:INDIRECT(ADDRESS($AK$5,$AK$4)))/DSUM(Forespørgsel1[#All],""&$L$4&"",$N$10:INDIRECT(ADDRESS($AK$5,$AK$4))))))),""),"") -> 
B44: Ha i alt, driftsgren | C44: Diverse vedrørende mark | D44: =IF($AB$1=45,Landsgennemsnit!EB44,"") ->  | E44: =IF($AB$1=45,Landsgennemsnit!EC44,"") ->  | F44: =IF($AB$1=45,Landsgennemsnit!ED44,"") ->  | G44: =IF($AB$1=45,IFERROR(IF(ISTEXT($B44)=TRUE,DSUM(Forespørgsel1[#All],""&LEFT($C44,LEN($C44)-$A44)&"",$O$4:INDIRECT(ADDRESS($AK$3,$AK$4)))/DSUM(Forespørgsel1[#All],""&$B44&"",$O$4:INDIRECT(ADDRESS($AK$3,$AK$4))),IF($B44=0,DAVERAGE(Forespørgsel1[#All],""&LEFT($C44,LEN($C44)-$A44)&"",$O$4:INDIRECT(ADDRESS($AK$3,$AK$4))),IF($B44=1,DSUM(Forespørgsel1[#All],""&LEFT($C44,LEN($C44)-$A44)&"",$O$4:INDIRECT(ADDRESS($AK$3,$AK$4)))/DSUM(Forespørgsel1[#All],""&$K$4&"",$O$4:INDIRECT(ADDRESS($AK$3,$AK$4))),DSUM(Forespørgsel1[#All],""&LEFT($C44,LEN($C44)-$A44)&"",$O$4:INDIRECT(ADDRESS($AK$3,$AK$4)))/DSUM(Forespørgsel1[#All],""&$L$4&"",$O$4:INDIRECT(ADDRESS($AK$3,$AK$4)))))),""),"") ->  | H44: =IF($AB$1=45,IFERROR(IF(ISTEXT($B44)=TRUE,DSUM(Forespørgsel1[#All],""&LEFT($C44,LEN($C44)-$A44)&"",$N$4:INDIRECT(ADDRESS($AK$3,$AK$4)))/DSUM(Forespørgsel1[#All],""&$B44&"",$N$4:INDIRECT(ADDRESS($AK$3,$AK$4))),IF($B44=0,DAVERAGE(Forespørgsel1[#All],""&LEFT($C44,LEN($C44)-$A44)&"",$N$4:INDIRECT(ADDRESS($AK$3,$AK$4))),IF($B44=1,DSUM(Forespørgsel1[#All],""&LEFT($C44,LEN($C44)-$A44)&"",$N$4:INDIRECT(ADDRESS($AK$3,$AK$4)))/DSUM(Forespørgsel1[#All],""&$K$4&"",$N$4:INDIRECT(ADDRESS($AK$3,$AK$4))),IF($B44=2,DSUM(Forespørgsel1[#All],""&LEFT($C44,LEN($C44)-$A44)&"",$N$4:INDIRECT(ADDRESS($AK$3,$AK$4)))/DSUM(Forespørgsel1[#All],""&$L$4&"",$N$4:INDIRECT(ADDRESS($AK$3,$AK$4))))))),""),"") ->  | I44: =IF($AB$1=45,IFERROR(IF(ISTEXT($B44)=TRUE,DSUM(Forespørgsel1[#All],""&LEFT($C44,LEN($C44)-$A44)&"",$N$10:INDIRECT(ADDRESS($AK$5,$AK$4)))/DSUM(Forespørgsel1[#All],""&$B44&"",$N$10:INDIRECT(ADDRESS($AK$5,$AK$4))),IF($B44=0,DAVERAGE(Forespørgsel1[#All],""&LEFT($C44,LEN($C44)-$A44)&"",$N$10:INDIRECT(ADDRESS($AK$5,$AK$4))),IF($B44=1,DSUM(Forespørgsel1[#All],""&LEFT($C44,LEN($C44)-$A44)&"",$N$10:INDIRECT(ADDRESS($AK$5,$AK$4)))/DSUM(Forespørgsel1[#All],""&$K$4&"",$N$10:INDIRECT(ADDRESS($AK$5,$AK$4))),IF($B44=2,DSUM(Forespørgsel1[#All],""&LEFT($C44,LEN($C44)-$A44)&"",$N$10:INDIRECT(ADDRESS($AK$5,$AK$4)))/DSUM(Forespørgsel1[#All],""&$L$4&"",$N$10:INDIRECT(ADDRESS($AK$5,$AK$4))))))),""),"") -> 
B45: Ha i alt, driftsgren | C45: Stykomkostninger i alt | D45: =IF($AB$1=45,Landsgennemsnit!EB45,"") ->  | E45: =IF($AB$1=45,Landsgennemsnit!EC45,"") ->  | F45: =IF($AB$1=45,Landsgennemsnit!ED45,"") ->  | G45: =IF($AB$1=45,IFERROR(IF(ISTEXT($B45)=TRUE,DSUM(Forespørgsel1[#All],""&LEFT($C45,LEN($C45)-$A45)&"",$O$4:INDIRECT(ADDRESS($AK$3,$AK$4)))/DSUM(Forespørgsel1[#All],""&$B45&"",$O$4:INDIRECT(ADDRESS($AK$3,$AK$4))),IF($B45=0,DAVERAGE(Forespørgsel1[#All],""&LEFT($C45,LEN($C45)-$A45)&"",$O$4:INDIRECT(ADDRESS($AK$3,$AK$4))),IF($B45=1,DSUM(Forespørgsel1[#All],""&LEFT($C45,LEN($C45)-$A45)&"",$O$4:INDIRECT(ADDRESS($AK$3,$AK$4)))/DSUM(Forespørgsel1[#All],""&$K$4&"",$O$4:INDIRECT(ADDRESS($AK$3,$AK$4))),DSUM(Forespørgsel1[#All],""&LEFT($C45,LEN($C45)-$A45)&"",$O$4:INDIRECT(ADDRESS($AK$3,$AK$4)))/DSUM(Forespørgsel1[#All],""&$L$4&"",$O$4:INDIRECT(ADDRESS($AK$3,$AK$4)))))),""),"") ->  | H45: =IF($AB$1=45,IFERROR(IF(ISTEXT($B45)=TRUE,DSUM(Forespørgsel1[#All],""&LEFT($C45,LEN($C45)-$A45)&"",$N$4:INDIRECT(ADDRESS($AK$3,$AK$4)))/DSUM(Forespørgsel1[#All],""&$B45&"",$N$4:INDIRECT(ADDRESS($AK$3,$AK$4))),IF($B45=0,DAVERAGE(Forespørgsel1[#All],""&LEFT($C45,LEN($C45)-$A45)&"",$N$4:INDIRECT(ADDRESS($AK$3,$AK$4))),IF($B45=1,DSUM(Forespørgsel1[#All],""&LEFT($C45,LEN($C45)-$A45)&"",$N$4:INDIRECT(ADDRESS($AK$3,$AK$4)))/DSUM(Forespørgsel1[#All],""&$K$4&"",$N$4:INDIRECT(ADDRESS($AK$3,$AK$4))),IF($B45=2,DSUM(Forespørgsel1[#All],""&LEFT($C45,LEN($C45)-$A45)&"",$N$4:INDIRECT(ADDRESS($AK$3,$AK$4)))/DSUM(Forespørgsel1[#All],""&$L$4&"",$N$4:INDIRECT(ADDRESS($AK$3,$AK$4))))))),""),"") ->  | I45: =IF($AB$1=45,IFERROR(IF(ISTEXT($B45)=TRUE,DSUM(Forespørgsel1[#All],""&LEFT($C45,LEN($C45)-$A45)&"",$N$10:INDIRECT(ADDRESS($AK$5,$AK$4)))/DSUM(Forespørgsel1[#All],""&$B45&"",$N$10:INDIRECT(ADDRESS($AK$5,$AK$4))),IF($B45=0,DAVERAGE(Forespørgsel1[#All],""&LEFT($C45,LEN($C45)-$A45)&"",$N$10:INDIRECT(ADDRESS($AK$5,$AK$4))),IF($B45=1,DSUM(Forespørgsel1[#All],""&LEFT($C45,LEN($C45)-$A45)&"",$N$10:INDIRECT(ADDRESS($AK$5,$AK$4)))/DSUM(Forespørgsel1[#All],""&$K$4&"",$N$10:INDIRECT(ADDRESS($AK$5,$AK$4))),IF($B45=2,DSUM(Forespørgsel1[#All],""&LEFT($C45,LEN($C45)-$A45)&"",$N$10:INDIRECT(ADDRESS($AK$5,$AK$4)))/DSUM(Forespørgsel1[#All],""&$L$4&"",$N$10:INDIRECT(ADDRESS($AK$5,$AK$4))))))),""),"") -> 
D46: =IF($AB$1=45,Landsgennemsnit!EB46,"") ->  | E46: =IF($AB$1=45,Landsgennemsnit!EC46,"") ->  | F46: =IF($AB$1=45,Landsgennemsnit!ED46,"") ->  | G46: =IF($AB$1=45,IFERROR(IF(ISTEXT($B46)=TRUE,DSUM(Forespørgsel1[#All],""&LEFT($C46,LEN($C46)-$A46)&"",$O$4:INDIRECT(ADDRESS($AK$3,$AK$4)))/DSUM(Forespørgsel1[#All],""&$B46&"",$O$4:INDIRECT(ADDRESS($AK$3,$AK$4))),IF($B46=0,DAVERAGE(Forespørgsel1[#All],""&LEFT($C46,LEN($C46)-$A46)&"",$O$4:INDIRECT(ADDRESS($AK$3,$AK$4))),IF($B46=1,DSUM(Forespørgsel1[#All],""&LEFT($C46,LEN($C46)-$A46)&"",$O$4:INDIRECT(ADDRESS($AK$3,$AK$4)))/DSUM(Forespørgsel1[#All],""&$K$4&"",$O$4:INDIRECT(ADDRESS($AK$3,$AK$4))),DSUM(Forespørgsel1[#All],""&LEFT($C46,LEN($C46)-$A46)&"",$O$4:INDIRECT(ADDRESS($AK$3,$AK$4)))/DSUM(Forespørgsel1[#All],""&$L$4&"",$O$4:INDIRECT(ADDRESS($AK$3,$AK$4)))))),""),"") ->  | H46: =IF($AB$1=45,IFERROR(IF(ISTEXT($B46)=TRUE,DSUM(Forespørgsel1[#All],""&LEFT($C46,LEN($C46)-$A46)&"",$N$4:INDIRECT(ADDRESS($AK$3,$AK$4)))/DSUM(Forespørgsel1[#All],""&$B46&"",$N$4:INDIRECT(ADDRESS($AK$3,$AK$4))),IF($B46=0,DAVERAGE(Forespørgsel1[#All],""&LEFT($C46,LEN($C46)-$A46)&"",$N$4:INDIRECT(ADDRESS($AK$3,$AK$4))),IF($B46=1,DSUM(Forespørgsel1[#All],""&LEFT($C46,LEN($C46)-$A46)&"",$N$4:INDIRECT(ADDRESS($AK$3,$AK$4)))/DSUM(Forespørgsel1[#All],""&$K$4&"",$N$4:INDIRECT(ADDRESS($AK$3,$AK$4))),IF($B46=2,DSUM(Forespørgsel1[#All],""&LEFT($C46,LEN($C46)-$A46)&"",$N$4:INDIRECT(ADDRESS($AK$3,$AK$4)))/DSUM(Forespørgsel1[#All],""&$L$4&"",$N$4:INDIRECT(ADDRESS($AK$3,$AK$4))))))),""),"") ->  | I46: =IF($AB$1=45,IFERROR(IF(ISTEXT($B46)=TRUE,DSUM(Forespørgsel1[#All],""&LEFT($C46,LEN($C46)-$A46)&"",$N$10:INDIRECT(ADDRESS($AK$5,$AK$4)))/DSUM(Forespørgsel1[#All],""&$B46&"",$N$10:INDIRECT(ADDRESS($AK$5,$AK$4))),IF($B46=0,DAVERAGE(Forespørgsel1[#All],""&LEFT($C46,LEN($C46)-$A46)&"",$N$10:INDIRECT(ADDRESS($AK$5,$AK$4))),IF($B46=1,DSUM(Forespørgsel1[#All],""&LEFT($C46,LEN($C46)-$A46)&"",$N$10:INDIRECT(ADDRESS($AK$5,$AK$4)))/DSUM(Forespørgsel1[#All],""&$K$4&"",$N$10:INDIRECT(ADDRESS($AK$5,$AK$4))),IF($B46=2,DSUM(Forespørgsel1[#All],""&LEFT($C46,LEN($C46)-$A46)&"",$N$10:INDIRECT(ADDRESS($AK$5,$AK$4)))/DSUM(Forespørgsel1[#All],""&$L$4&"",$N$10:INDIRECT(ADDRESS($AK$5,$AK$4))))))),""),"") -> 
B47: Ha i alt, driftsgren | C47: Dækningsbidrag | D47: =IF($AB$1=45,Landsgennemsnit!EB47,"") ->  | E47: =IF($AB$1=45,Landsgennemsnit!EC47,"") ->  | F47: =IF($AB$1=45,Landsgennemsnit!ED47,"") ->  | G47: =IF($AB$1=45,IFERROR(IF(ISTEXT($B47)=TRUE,DSUM(Forespørgsel1[#All],""&LEFT($C47,LEN($C47)-$A47)&"",$O$4:INDIRECT(ADDRESS($AK$3,$AK$4)))/DSUM(Forespørgsel1[#All],""&$B47&"",$O$4:INDIRECT(ADDRESS($AK$3,$AK$4))),IF($B47=0,DAVERAGE(Forespørgsel1[#All],""&LEFT($C47,LEN($C47)-$A47)&"",$O$4:INDIRECT(ADDRESS($AK$3,$AK$4))),IF($B47=1,DSUM(Forespørgsel1[#All],""&LEFT($C47,LEN($C47)-$A47)&"",$O$4:INDIRECT(ADDRESS($AK$3,$AK$4)))/DSUM(Forespørgsel1[#All],""&$K$4&"",$O$4:INDIRECT(ADDRESS($AK$3,$AK$4))),DSUM(Forespørgsel1[#All],""&LEFT($C47,LEN($C47)-$A47)&"",$O$4:INDIRECT(ADDRESS($AK$3,$AK$4)))/DSUM(Forespørgsel1[#All],""&$L$4&"",$O$4:INDIRECT(ADDRESS($AK$3,$AK$4)))))),""),"") ->  | H47: =IF($AB$1=45,IFERROR(IF(ISTEXT($B47)=TRUE,DSUM(Forespørgsel1[#All],""&LEFT($C47,LEN($C47)-$A47)&"",$N$4:INDIRECT(ADDRESS($AK$3,$AK$4)))/DSUM(Forespørgsel1[#All],""&$B47&"",$N$4:INDIRECT(ADDRESS($AK$3,$AK$4))),IF($B47=0,DAVERAGE(Forespørgsel1[#All],""&LEFT($C47,LEN($C47)-$A47)&"",$N$4:INDIRECT(ADDRESS($AK$3,$AK$4))),IF($B47=1,DSUM(Forespørgsel1[#All],""&LEFT($C47,LEN($C47)-$A47)&"",$N$4:INDIRECT(ADDRESS($AK$3,$AK$4)))/DSUM(Forespørgsel1[#All],""&$K$4&"",$N$4:INDIRECT(ADDRESS($AK$3,$AK$4))),IF($B47=2,DSUM(Forespørgsel1[#All],""&LEFT($C47,LEN($C47)-$A47)&"",$N$4:INDIRECT(ADDRESS($AK$3,$AK$4)))/DSUM(Forespørgsel1[#All],""&$L$4&"",$N$4:INDIRECT(ADDRESS($AK$3,$AK$4))))))),""),"") ->  | I47: =IF($AB$1=45,IFERROR(IF(ISTEXT($B47)=TRUE,DSUM(Forespørgsel1[#All],""&LEFT($C47,LEN($C47)-$A47)&"",$N$10:INDIRECT(ADDRESS($AK$5,$AK$4)))/DSUM(Forespørgsel1[#All],""&$B47&"",$N$10:INDIRECT(ADDRESS($AK$5,$AK$4))),IF($B47=0,DAVERAGE(Forespørgsel1[#All],""&LEFT($C47,LEN($C47)-$A47)&"",$N$10:INDIRECT(ADDRESS($AK$5,$AK$4))),IF($B47=1,DSUM(Forespørgsel1[#All],""&LEFT($C47,LEN($C47)-$A47)&"",$N$10:INDIRECT(ADDRESS($AK$5,$AK$4)))/DSUM(Forespørgsel1[#All],""&$K$4&"",$N$10:INDIRECT(ADDRESS($AK$5,$AK$4))),IF($B47=2,DSUM(Forespørgsel1[#All],""&LEFT($C47,LEN($C47)-$A47)&"",$N$10:INDIRECT(ADDRESS($AK$5,$AK$4)))/DSUM(Forespørgsel1[#All],""&$L$4&"",$N$10:INDIRECT(ADDRESS($AK$5,$AK$4))))))),""),"") -> 
D48: =IF($AB$1=45,Landsgennemsnit!EB48,"") ->  | E48: =IF($AB$1=45,Landsgennemsnit!EC48,"") ->  | F48: =IF($AB$1=45,Landsgennemsnit!ED48,"") ->  | G48: =IF($AB$1=45,IFERROR(IF(ISTEXT($B48)=TRUE,DSUM(Forespørgsel1[#All],""&LEFT($C48,LEN($C48)-$A48)&"",$O$4:INDIRECT(ADDRESS($AK$3,$AK$4)))/DSUM(Forespørgsel1[#All],""&$B48&"",$O$4:INDIRECT(ADDRESS($AK$3,$AK$4))),IF($B48=0,DAVERAGE(Forespørgsel1[#All],""&LEFT($C48,LEN($C48)-$A48)&"",$O$4:INDIRECT(ADDRESS($AK$3,$AK$4))),IF($B48=1,DSUM(Forespørgsel1[#All],""&LEFT($C48,LEN($C48)-$A48)&"",$O$4:INDIRECT(ADDRESS($AK$3,$AK$4)))/DSUM(Forespørgsel1[#All],""&$K$4&"",$O$4:INDIRECT(ADDRESS($AK$3,$AK$4))),DSUM(Forespørgsel1[#All],""&LEFT($C48,LEN($C48)-$A48)&"",$O$4:INDIRECT(ADDRESS($AK$3,$AK$4)))/DSUM(Forespørgsel1[#All],""&$L$4&"",$O$4:INDIRECT(ADDRESS($AK$3,$AK$4)))))),""),"") ->  | H48: =IF($AB$1=45,IFERROR(IF(ISTEXT($B48)=TRUE,DSUM(Forespørgsel1[#All],""&LEFT($C48,LEN($C48)-$A48)&"",$N$4:INDIRECT(ADDRESS($AK$3,$AK$4)))/DSUM(Forespørgsel1[#All],""&$B48&"",$N$4:INDIRECT(ADDRESS($AK$3,$AK$4))),IF($B48=0,DAVERAGE(Forespørgsel1[#All],""&LEFT($C48,LEN($C48)-$A48)&"",$N$4:INDIRECT(ADDRESS($AK$3,$AK$4))),IF($B48=1,DSUM(Forespørgsel1[#All],""&LEFT($C48,LEN($C48)-$A48)&"",$N$4:INDIRECT(ADDRESS($AK$3,$AK$4)))/DSUM(Forespørgsel1[#All],""&$K$4&"",$N$4:INDIRECT(ADDRESS($AK$3,$AK$4))),IF($B48=2,DSUM(Forespørgsel1[#All],""&LEFT($C48,LEN($C48)-$A48)&"",$N$4:INDIRECT(ADDRESS($AK$3,$AK$4)))/DSUM(Forespørgsel1[#All],""&$L$4&"",$N$4:INDIRECT(ADDRESS($AK$3,$AK$4))))))),""),"") ->  | I48: =IF($AB$1=45,IFERROR(IF(ISTEXT($B48)=TRUE,DSUM(Forespørgsel1[#All],""&LEFT($C48,LEN($C48)-$A48)&"",$N$10:INDIRECT(ADDRESS($AK$5,$AK$4)))/DSUM(Forespørgsel1[#All],""&$B48&"",$N$10:INDIRECT(ADDRESS($AK$5,$AK$4))),IF($B48=0,DAVERAGE(Forespørgsel1[#All],""&LEFT($C48,LEN($C48)-$A48)&"",$N$10:INDIRECT(ADDRESS($AK$5,$AK$4))),IF($B48=1,DSUM(Forespørgsel1[#All],""&LEFT($C48,LEN($C48)-$A48)&"",$N$10:INDIRECT(ADDRESS($AK$5,$AK$4)))/DSUM(Forespørgsel1[#All],""&$K$4&"",$N$10:INDIRECT(ADDRESS($AK$5,$AK$4))),IF($B48=2,DSUM(Forespørgsel1[#All],""&LEFT($C48,LEN($C48)-$A48)&"",$N$10:INDIRECT(ADDRESS($AK$5,$AK$4)))/DSUM(Forespørgsel1[#All],""&$L$4&"",$N$10:INDIRECT(ADDRESS($AK$5,$AK$4))))))),""),"") -> 
B49: Ha i alt, driftsgren | C49: Energi | D49: =IF($AB$1=45,Landsgennemsnit!EB49,"") ->  | E49: =IF($AB$1=45,Landsgennemsnit!EC49,"") ->  | F49: =IF($AB$1=45,Landsgennemsnit!ED49,"") ->  | G49: =IF($AB$1=45,IFERROR(IF(ISTEXT($B49)=TRUE,DSUM(Forespørgsel1[#All],""&LEFT($C49,LEN($C49)-$A49)&"",$O$4:INDIRECT(ADDRESS($AK$3,$AK$4)))/DSUM(Forespørgsel1[#All],""&$B49&"",$O$4:INDIRECT(ADDRESS($AK$3,$AK$4))),IF($B49=0,DAVERAGE(Forespørgsel1[#All],""&LEFT($C49,LEN($C49)-$A49)&"",$O$4:INDIRECT(ADDRESS($AK$3,$AK$4))),IF($B49=1,DSUM(Forespørgsel1[#All],""&LEFT($C49,LEN($C49)-$A49)&"",$O$4:INDIRECT(ADDRESS($AK$3,$AK$4)))/DSUM(Forespørgsel1[#All],""&$K$4&"",$O$4:INDIRECT(ADDRESS($AK$3,$AK$4))),DSUM(Forespørgsel1[#All],""&LEFT($C49,LEN($C49)-$A49)&"",$O$4:INDIRECT(ADDRESS($AK$3,$AK$4)))/DSUM(Forespørgsel1[#All],""&$L$4&"",$O$4:INDIRECT(ADDRESS($AK$3,$AK$4)))))),""),"") ->  | H49: =IF($AB$1=45,IFERROR(IF(ISTEXT($B49)=TRUE,DSUM(Forespørgsel1[#All],""&LEFT($C49,LEN($C49)-$A49)&"",$N$4:INDIRECT(ADDRESS($AK$3,$AK$4)))/DSUM(Forespørgsel1[#All],""&$B49&"",$N$4:INDIRECT(ADDRESS($AK$3,$AK$4))),IF($B49=0,DAVERAGE(Forespørgsel1[#All],""&LEFT($C49,LEN($C49)-$A49)&"",$N$4:INDIRECT(ADDRESS($AK$3,$AK$4))),IF($B49=1,DSUM(Forespørgsel1[#All],""&LEFT($C49,LEN($C49)-$A49)&"",$N$4:INDIRECT(ADDRESS($AK$3,$AK$4)))/DSUM(Forespørgsel1[#All],""&$K$4&"",$N$4:INDIRECT(ADDRESS($AK$3,$AK$4))),IF($B49=2,DSUM(Forespørgsel1[#All],""&LEFT($C49,LEN($C49)-$A49)&"",$N$4:INDIRECT(ADDRESS($AK$3,$AK$4)))/DSUM(Forespørgsel1[#All],""&$L$4&"",$N$4:INDIRECT(ADDRESS($AK$3,$AK$4))))))),""),"") ->  | I49: =IF($AB$1=45,IFERROR(IF(ISTEXT($B49)=TRUE,DSUM(Forespørgsel1[#All],""&LEFT($C49,LEN($C49)-$A49)&"",$N$10:INDIRECT(ADDRESS($AK$5,$AK$4)))/DSUM(Forespørgsel1[#All],""&$B49&"",$N$10:INDIRECT(ADDRESS($AK$5,$AK$4))),IF($B49=0,DAVERAGE(Forespørgsel1[#All],""&LEFT($C49,LEN($C49)-$A49)&"",$N$10:INDIRECT(ADDRESS($AK$5,$AK$4))),IF($B49=1,DSUM(Forespørgsel1[#All],""&LEFT($C49,LEN($C49)-$A49)&"",$N$10:INDIRECT(ADDRESS($AK$5,$AK$4)))/DSUM(Forespørgsel1[#All],""&$K$4&"",$N$10:INDIRECT(ADDRESS($AK$5,$AK$4))),IF($B49=2,DSUM(Forespørgsel1[#All],""&LEFT($C49,LEN($C49)-$A49)&"",$N$10:INDIRECT(ADDRESS($AK$5,$AK$4)))/DSUM(Forespørgsel1[#All],""&$L$4&"",$N$10:INDIRECT(ADDRESS($AK$5,$AK$4))))))),""),"") -> 
B50: Ha i alt, driftsgren | C50: Brændstof | D50: =IF($AB$1=45,Landsgennemsnit!EB50,"") ->  | E50: =IF($AB$1=45,Landsgennemsnit!EC50,"") ->  | F50: =IF($AB$1=45,Landsgennemsnit!ED50,"") ->  | G50: =IF($AB$1=45,IFERROR(IF(ISTEXT($B50)=TRUE,DSUM(Forespørgsel1[#All],""&LEFT($C50,LEN($C50)-$A50)&"",$O$4:INDIRECT(ADDRESS($AK$3,$AK$4)))/DSUM(Forespørgsel1[#All],""&$B50&"",$O$4:INDIRECT(ADDRESS($AK$3,$AK$4))),IF($B50=0,DAVERAGE(Forespørgsel1[#All],""&LEFT($C50,LEN($C50)-$A50)&"",$O$4:INDIRECT(ADDRESS($AK$3,$AK$4))),IF($B50=1,DSUM(Forespørgsel1[#All],""&LEFT($C50,LEN($C50)-$A50)&"",$O$4:INDIRECT(ADDRESS($AK$3,$AK$4)))/DSUM(Forespørgsel1[#All],""&$K$4&"",$O$4:INDIRECT(ADDRESS($AK$3,$AK$4))),DSUM(Forespørgsel1[#All],""&LEFT($C50,LEN($C50)-$A50)&"",$O$4:INDIRECT(ADDRESS($AK$3,$AK$4)))/DSUM(Forespørgsel1[#All],""&$L$4&"",$O$4:INDIRECT(ADDRESS($AK$3,$AK$4)))))),""),"") ->  | H50: =IF($AB$1=45,IFERROR(IF(ISTEXT($B50)=TRUE,DSUM(Forespørgsel1[#All],""&LEFT($C50,LEN($C50)-$A50)&"",$N$4:INDIRECT(ADDRESS($AK$3,$AK$4)))/DSUM(Forespørgsel1[#All],""&$B50&"",$N$4:INDIRECT(ADDRESS($AK$3,$AK$4))),IF($B50=0,DAVERAGE(Forespørgsel1[#All],""&LEFT($C50,LEN($C50)-$A50)&"",$N$4:INDIRECT(ADDRESS($AK$3,$AK$4))),IF($B50=1,DSUM(Forespørgsel1[#All],""&LEFT($C50,LEN($C50)-$A50)&"",$N$4:INDIRECT(ADDRESS($AK$3,$AK$4)))/DSUM(Forespørgsel1[#All],""&$K$4&"",$N$4:INDIRECT(ADDRESS($AK$3,$AK$4))),IF($B50=2,DSUM(Forespørgsel1[#All],""&LEFT($C50,LEN($C50)-$A50)&"",$N$4:INDIRECT(ADDRESS($AK$3,$AK$4)))/DSUM(Forespørgsel1[#All],""&$L$4&"",$N$4:INDIRECT(ADDRESS($AK$3,$AK$4))))))),""),"") ->  | I50: =IF($AB$1=45,IFERROR(IF(ISTEXT($B50)=TRUE,DSUM(Forespørgsel1[#All],""&LEFT($C50,LEN($C50)-$A50)&"",$N$10:INDIRECT(ADDRESS($AK$5,$AK$4)))/DSUM(Forespørgsel1[#All],""&$B50&"",$N$10:INDIRECT(ADDRESS($AK$5,$AK$4))),IF($B50=0,DAVERAGE(Forespørgsel1[#All],""&LEFT($C50,LEN($C50)-$A50)&"",$N$10:INDIRECT(ADDRESS($AK$5,$AK$4))),IF($B50=1,DSUM(Forespørgsel1[#All],""&LEFT($C50,LEN($C50)-$A50)&"",$N$10:INDIRECT(ADDRESS($AK$5,$AK$4)))/DSUM(Forespørgsel1[#All],""&$K$4&"",$N$10:INDIRECT(ADDRESS($AK$5,$AK$4))),IF($B50=2,DSUM(Forespørgsel1[#All],""&LEFT($C50,LEN($C50)-$A50)&"",$N$10:INDIRECT(ADDRESS($AK$5,$AK$4)))/DSUM(Forespørgsel1[#All],""&$L$4&"",$N$10:INDIRECT(ADDRESS($AK$5,$AK$4))))))),""),"") -> 
B51: Ha i alt, driftsgren | C51: Maskinstation mv. | D51: =IF($AB$1=45,Landsgennemsnit!EB51,"") ->  | E51: =IF($AB$1=45,Landsgennemsnit!EC51,"") ->  | F51: =IF($AB$1=45,Landsgennemsnit!ED51,"") ->  | G51: =IF($AB$1=45,IFERROR(IF(ISTEXT($B51)=TRUE,DSUM(Forespørgsel1[#All],""&LEFT($C51,LEN($C51)-$A51)&"",$O$4:INDIRECT(ADDRESS($AK$3,$AK$4)))/DSUM(Forespørgsel1[#All],""&$B51&"",$O$4:INDIRECT(ADDRESS($AK$3,$AK$4))),IF($B51=0,DAVERAGE(Forespørgsel1[#All],""&LEFT($C51,LEN($C51)-$A51)&"",$O$4:INDIRECT(ADDRESS($AK$3,$AK$4))),IF($B51=1,DSUM(Forespørgsel1[#All],""&LEFT($C51,LEN($C51)-$A51)&"",$O$4:INDIRECT(ADDRESS($AK$3,$AK$4)))/DSUM(Forespørgsel1[#All],""&$K$4&"",$O$4:INDIRECT(ADDRESS($AK$3,$AK$4))),DSUM(Forespørgsel1[#All],""&LEFT($C51,LEN($C51)-$A51)&"",$O$4:INDIRECT(ADDRESS($AK$3,$AK$4)))/DSUM(Forespørgsel1[#All],""&$L$4&"",$O$4:INDIRECT(ADDRESS($AK$3,$AK$4)))))),""),"") ->  | H51: =IF($AB$1=45,IFERROR(IF(ISTEXT($B51)=TRUE,DSUM(Forespørgsel1[#All],""&LEFT($C51,LEN($C51)-$A51)&"",$N$4:INDIRECT(ADDRESS($AK$3,$AK$4)))/DSUM(Forespørgsel1[#All],""&$B51&"",$N$4:INDIRECT(ADDRESS($AK$3,$AK$4))),IF($B51=0,DAVERAGE(Forespørgsel1[#All],""&LEFT($C51,LEN($C51)-$A51)&"",$N$4:INDIRECT(ADDRESS($AK$3,$AK$4))),IF($B51=1,DSUM(Forespørgsel1[#All],""&LEFT($C51,LEN($C51)-$A51)&"",$N$4:INDIRECT(ADDRESS($AK$3,$AK$4)))/DSUM(Forespørgsel1[#All],""&$K$4&"",$N$4:INDIRECT(ADDRESS($AK$3,$AK$4))),IF($B51=2,DSUM(Forespørgsel1[#All],""&LEFT($C51,LEN($C51)-$A51)&"",$N$4:INDIRECT(ADDRESS($AK$3,$AK$4)))/DSUM(Forespørgsel1[#All],""&$L$4&"",$N$4:INDIRECT(ADDRESS($AK$3,$AK$4))))))),""),"") ->  | I51: =IF($AB$1=45,IFERROR(IF(ISTEXT($B51)=TRUE,DSUM(Forespørgsel1[#All],""&LEFT($C51,LEN($C51)-$A51)&"",$N$10:INDIRECT(ADDRESS($AK$5,$AK$4)))/DSUM(Forespørgsel1[#All],""&$B51&"",$N$10:INDIRECT(ADDRESS($AK$5,$AK$4))),IF($B51=0,DAVERAGE(Forespørgsel1[#All],""&LEFT($C51,LEN($C51)-$A51)&"",$N$10:INDIRECT(ADDRESS($AK$5,$AK$4))),IF($B51=1,DSUM(Forespørgsel1[#All],""&LEFT($C51,LEN($C51)-$A51)&"",$N$10:INDIRECT(ADDRESS($AK$5,$AK$4)))/DSUM(Forespørgsel1[#All],""&$K$4&"",$N$10:INDIRECT(ADDRESS($AK$5,$AK$4))),IF($B51=2,DSUM(Forespørgsel1[#All],""&LEFT($C51,LEN($C51)-$A51)&"",$N$10:INDIRECT(ADDRESS($AK$5,$AK$4)))/DSUM(Forespørgsel1[#All],""&$L$4&"",$N$10:INDIRECT(ADDRESS($AK$5,$AK$4))))))),""),"") -> 
B52: Ha i alt, driftsgren | C52: Vedligehold | D52: =IF($AB$1=45,Landsgennemsnit!EB52,"") ->  | E52: =IF($AB$1=45,Landsgennemsnit!EC52,"") ->  | F52: =IF($AB$1=45,Landsgennemsnit!ED52,"") ->  | G52: =IF($AB$1=45,IFERROR(IF(ISTEXT($B52)=TRUE,DSUM(Forespørgsel1[#All],""&LEFT($C52,LEN($C52)-$A52)&"",$O$4:INDIRECT(ADDRESS($AK$3,$AK$4)))/DSUM(Forespørgsel1[#All],""&$B52&"",$O$4:INDIRECT(ADDRESS($AK$3,$AK$4))),IF($B52=0,DAVERAGE(Forespørgsel1[#All],""&LEFT($C52,LEN($C52)-$A52)&"",$O$4:INDIRECT(ADDRESS($AK$3,$AK$4))),IF($B52=1,DSUM(Forespørgsel1[#All],""&LEFT($C52,LEN($C52)-$A52)&"",$O$4:INDIRECT(ADDRESS($AK$3,$AK$4)))/DSUM(Forespørgsel1[#All],""&$K$4&"",$O$4:INDIRECT(ADDRESS($AK$3,$AK$4))),DSUM(Forespørgsel1[#All],""&LEFT($C52,LEN($C52)-$A52)&"",$O$4:INDIRECT(ADDRESS($AK$3,$AK$4)))/DSUM(Forespørgsel1[#All],""&$L$4&"",$O$4:INDIRECT(ADDRESS($AK$3,$AK$4)))))),""),"") ->  | H52: =IF($AB$1=45,IFERROR(IF(ISTEXT($B52)=TRUE,DSUM(Forespørgsel1[#All],""&LEFT($C52,LEN($C52)-$A52)&"",$N$4:INDIRECT(ADDRESS($AK$3,$AK$4)))/DSUM(Forespørgsel1[#All],""&$B52&"",$N$4:INDIRECT(ADDRESS($AK$3,$AK$4))),IF($B52=0,DAVERAGE(Forespørgsel1[#All],""&LEFT($C52,LEN($C52)-$A52)&"",$N$4:INDIRECT(ADDRESS($AK$3,$AK$4))),IF($B52=1,DSUM(Forespørgsel1[#All],""&LEFT($C52,LEN($C52)-$A52)&"",$N$4:INDIRECT(ADDRESS($AK$3,$AK$4)))/DSUM(Forespørgsel1[#All],""&$K$4&"",$N$4:INDIRECT(ADDRESS($AK$3,$AK$4))),IF($B52=2,DSUM(Forespørgsel1[#All],""&LEFT($C52,LEN($C52)-$A52)&"",$N$4:INDIRECT(ADDRESS($AK$3,$AK$4)))/DSUM(Forespørgsel1[#All],""&$L$4&"",$N$4:INDIRECT(ADDRESS($AK$3,$AK$4))))))),""),"") ->  | I52: =IF($AB$1=45,IFERROR(IF(ISTEXT($B52)=TRUE,DSUM(Forespørgsel1[#All],""&LEFT($C52,LEN($C52)-$A52)&"",$N$10:INDIRECT(ADDRESS($AK$5,$AK$4)))/DSUM(Forespørgsel1[#All],""&$B52&"",$N$10:INDIRECT(ADDRESS($AK$5,$AK$4))),IF($B52=0,DAVERAGE(Forespørgsel1[#All],""&LEFT($C52,LEN($C52)-$A52)&"",$N$10:INDIRECT(ADDRESS($AK$5,$AK$4))),IF($B52=1,DSUM(Forespørgsel1[#All],""&LEFT($C52,LEN($C52)-$A52)&"",$N$10:INDIRECT(ADDRESS($AK$5,$AK$4)))/DSUM(Forespørgsel1[#All],""&$K$4&"",$N$10:INDIRECT(ADDRESS($AK$5,$AK$4))),IF($B52=2,DSUM(Forespørgsel1[#All],""&LEFT($C52,LEN($C52)-$A52)&"",$N$10:INDIRECT(ADDRESS($AK$5,$AK$4)))/DSUM(Forespørgsel1[#All],""&$L$4&"",$N$10:INDIRECT(ADDRESS($AK$5,$AK$4))))))),""),"") -> 
B53: Ha i alt, driftsgren | C53: Lønomkostninger | D53: =IF($AB$1=45,Landsgennemsnit!EB53,"") ->  | E53: =IF($AB$1=45,Landsgennemsnit!EC53,"") ->  | F53: =IF($AB$1=45,Landsgennemsnit!ED53,"") ->  | G53: =IF($AB$1=45,IFERROR(IF(ISTEXT($B53)=TRUE,DSUM(Forespørgsel1[#All],""&LEFT($C53,LEN($C53)-$A53)&"",$O$4:INDIRECT(ADDRESS($AK$3,$AK$4)))/DSUM(Forespørgsel1[#All],""&$B53&"",$O$4:INDIRECT(ADDRESS($AK$3,$AK$4))),IF($B53=0,DAVERAGE(Forespørgsel1[#All],""&LEFT($C53,LEN($C53)-$A53)&"",$O$4:INDIRECT(ADDRESS($AK$3,$AK$4))),IF($B53=1,DSUM(Forespørgsel1[#All],""&LEFT($C53,LEN($C53)-$A53)&"",$O$4:INDIRECT(ADDRESS($AK$3,$AK$4)))/DSUM(Forespørgsel1[#All],""&$K$4&"",$O$4:INDIRECT(ADDRESS($AK$3,$AK$4))),DSUM(Forespørgsel1[#All],""&LEFT($C53,LEN($C53)-$A53)&"",$O$4:INDIRECT(ADDRESS($AK$3,$AK$4)))/DSUM(Forespørgsel1[#All],""&$L$4&"",$O$4:INDIRECT(ADDRESS($AK$3,$AK$4)))))),""),"") ->  | H53: =IF($AB$1=45,IFERROR(IF(ISTEXT($B53)=TRUE,DSUM(Forespørgsel1[#All],""&LEFT($C53,LEN($C53)-$A53)&"",$N$4:INDIRECT(ADDRESS($AK$3,$AK$4)))/DSUM(Forespørgsel1[#All],""&$B53&"",$N$4:INDIRECT(ADDRESS($AK$3,$AK$4))),IF($B53=0,DAVERAGE(Forespørgsel1[#All],""&LEFT($C53,LEN($C53)-$A53)&"",$N$4:INDIRECT(ADDRESS($AK$3,$AK$4))),IF($B53=1,DSUM(Forespørgsel1[#All],""&LEFT($C53,LEN($C53)-$A53)&"",$N$4:INDIRECT(ADDRESS($AK$3,$AK$4)))/DSUM(Forespørgsel1[#All],""&$K$4&"",$N$4:INDIRECT(ADDRESS($AK$3,$AK$4))),IF($B53=2,DSUM(Forespørgsel1[#All],""&LEFT($C53,LEN($C53)-$A53)&"",$N$4:INDIRECT(ADDRESS($AK$3,$AK$4)))/DSUM(Forespørgsel1[#All],""&$L$4&"",$N$4:INDIRECT(ADDRESS($AK$3,$AK$4))))))),""),"") ->  | I53: =IF($AB$1=45,IFERROR(IF(ISTEXT($B53)=TRUE,DSUM(Forespørgsel1[#All],""&LEFT($C53,LEN($C53)-$A53)&"",$N$10:INDIRECT(ADDRESS($AK$5,$AK$4)))/DSUM(Forespørgsel1[#All],""&$B53&"",$N$10:INDIRECT(ADDRESS($AK$5,$AK$4))),IF($B53=0,DAVERAGE(Forespørgsel1[#All],""&LEFT($C53,LEN($C53)-$A53)&"",$N$10:INDIRECT(ADDRESS($AK$5,$AK$4))),IF($B53=1,DSUM(Forespørgsel1[#All],""&LEFT($C53,LEN($C53)-$A53)&"",$N$10:INDIRECT(ADDRESS($AK$5,$AK$4)))/DSUM(Forespørgsel1[#All],""&$K$4&"",$N$10:INDIRECT(ADDRESS($AK$5,$AK$4))),IF($B53=2,DSUM(Forespørgsel1[#All],""&LEFT($C53,LEN($C53)-$A53)&"",$N$10:INDIRECT(ADDRESS($AK$5,$AK$4)))/DSUM(Forespørgsel1[#All],""&$L$4&"",$N$10:INDIRECT(ADDRESS($AK$5,$AK$4))))))),""),"") -> 
B54: Ha i alt, driftsgren | C54: Ejeraflønning | D54: =IF($AB$1=45,Landsgennemsnit!EB54,"") ->  | E54: =IF($AB$1=45,Landsgennemsnit!EC54,"") ->  | F54: =IF($AB$1=45,Landsgennemsnit!ED54,"") ->  | G54: =IF($AB$1=45,IFERROR(IF(ISTEXT($B54)=TRUE,DSUM(Forespørgsel1[#All],""&LEFT($C54,LEN($C54)-$A54)&"",$O$4:INDIRECT(ADDRESS($AK$3,$AK$4)))/DSUM(Forespørgsel1[#All],""&$B54&"",$O$4:INDIRECT(ADDRESS($AK$3,$AK$4))),IF($B54=0,DAVERAGE(Forespørgsel1[#All],""&LEFT($C54,LEN($C54)-$A54)&"",$O$4:INDIRECT(ADDRESS($AK$3,$AK$4))),IF($B54=1,DSUM(Forespørgsel1[#All],""&LEFT($C54,LEN($C54)-$A54)&"",$O$4:INDIRECT(ADDRESS($AK$3,$AK$4)))/DSUM(Forespørgsel1[#All],""&$K$4&"",$O$4:INDIRECT(ADDRESS($AK$3,$AK$4))),DSUM(Forespørgsel1[#All],""&LEFT($C54,LEN($C54)-$A54)&"",$O$4:INDIRECT(ADDRESS($AK$3,$AK$4)))/DSUM(Forespørgsel1[#All],""&$L$4&"",$O$4:INDIRECT(ADDRESS($AK$3,$AK$4)))))),""),"") ->  | H54: =IF($AB$1=45,IFERROR(IF(ISTEXT($B54)=TRUE,DSUM(Forespørgsel1[#All],""&LEFT($C54,LEN($C54)-$A54)&"",$N$4:INDIRECT(ADDRESS($AK$3,$AK$4)))/DSUM(Forespørgsel1[#All],""&$B54&"",$N$4:INDIRECT(ADDRESS($AK$3,$AK$4))),IF($B54=0,DAVERAGE(Forespørgsel1[#All],""&LEFT($C54,LEN($C54)-$A54)&"",$N$4:INDIRECT(ADDRESS($AK$3,$AK$4))),IF($B54=1,DSUM(Forespørgsel1[#All],""&LEFT($C54,LEN($C54)-$A54)&"",$N$4:INDIRECT(ADDRESS($AK$3,$AK$4)))/DSUM(Forespørgsel1[#All],""&$K$4&"",$N$4:INDIRECT(ADDRESS($AK$3,$AK$4))),IF($B54=2,DSUM(Forespørgsel1[#All],""&LEFT($C54,LEN($C54)-$A54)&"",$N$4:INDIRECT(ADDRESS($AK$3,$AK$4)))/DSUM(Forespørgsel1[#All],""&$L$4&"",$N$4:INDIRECT(ADDRESS($AK$3,$AK$4))))))),""),"") ->  | I54: =IF($AB$1=45,IFERROR(IF(ISTEXT($B54)=TRUE,DSUM(Forespørgsel1[#All],""&LEFT($C54,LEN($C54)-$A54)&"",$N$10:INDIRECT(ADDRESS($AK$5,$AK$4)))/DSUM(Forespørgsel1[#All],""&$B54&"",$N$10:INDIRECT(ADDRESS($AK$5,$AK$4))),IF($B54=0,DAVERAGE(Forespørgsel1[#All],""&LEFT($C54,LEN($C54)-$A54)&"",$N$10:INDIRECT(ADDRESS($AK$5,$AK$4))),IF($B54=1,DSUM(Forespørgsel1[#All],""&LEFT($C54,LEN($C54)-$A54)&"",$N$10:INDIRECT(ADDRESS($AK$5,$AK$4)))/DSUM(Forespørgsel1[#All],""&$K$4&"",$N$10:INDIRECT(ADDRESS($AK$5,$AK$4))),IF($B54=2,DSUM(Forespørgsel1[#All],""&LEFT($C54,LEN($C54)-$A54)&"",$N$10:INDIRECT(ADDRESS($AK$5,$AK$4)))/DSUM(Forespørgsel1[#All],""&$L$4&"",$N$10:INDIRECT(ADDRESS($AK$5,$AK$4))))))),""),"") -> 
A55: 2 | B55: Ha i alt, driftsgren | C55: Ejendomsskat og forsikringer | D55: =IF($AB$1=45,Landsgennemsnit!EB55,"") ->  | E55: =IF($AB$1=45,Landsgennemsnit!EC55,"") ->  | F55: =IF($AB$1=45,Landsgennemsnit!ED55,"") ->  | G55: =IF($AB$1=45,IFERROR(IF(ISTEXT($B55)=TRUE,DSUM(Forespørgsel1[#All],""&LEFT($C55,LEN($C55)-$A55)&"",$O$4:INDIRECT(ADDRESS($AK$3,$AK$4)))/DSUM(Forespørgsel1[#All],""&$B55&"",$O$4:INDIRECT(ADDRESS($AK$3,$AK$4))),IF($B55=0,DAVERAGE(Forespørgsel1[#All],""&LEFT($C55,LEN($C55)-$A55)&"",$O$4:INDIRECT(ADDRESS($AK$3,$AK$4))),IF($B55=1,DSUM(Forespørgsel1[#All],""&LEFT($C55,LEN($C55)-$A55)&"",$O$4:INDIRECT(ADDRESS($AK$3,$AK$4)))/DSUM(Forespørgsel1[#All],""&$K$4&"",$O$4:INDIRECT(ADDRESS($AK$3,$AK$4))),DSUM(Forespørgsel1[#All],""&LEFT($C55,LEN($C55)-$A55)&"",$O$4:INDIRECT(ADDRESS($AK$3,$AK$4)))/DSUM(Forespørgsel1[#All],""&$L$4&"",$O$4:INDIRECT(ADDRESS($AK$3,$AK$4)))))),""),"") ->  | H55: =IF($AB$1=45,IFERROR(IF(ISTEXT($B55)=TRUE,DSUM(Forespørgsel1[#All],""&LEFT($C55,LEN($C55)-$A55)&"",$N$4:INDIRECT(ADDRESS($AK$3,$AK$4)))/DSUM(Forespørgsel1[#All],""&$B55&"",$N$4:INDIRECT(ADDRESS($AK$3,$AK$4))),IF($B55=0,DAVERAGE(Forespørgsel1[#All],""&LEFT($C55,LEN($C55)-$A55)&"",$N$4:INDIRECT(ADDRESS($AK$3,$AK$4))),IF($B55=1,DSUM(Forespørgsel1[#All],""&LEFT($C55,LEN($C55)-$A55)&"",$N$4:INDIRECT(ADDRESS($AK$3,$AK$4)))/DSUM(Forespørgsel1[#All],""&$K$4&"",$N$4:INDIRECT(ADDRESS($AK$3,$AK$4))),IF($B55=2,DSUM(Forespørgsel1[#All],""&LEFT($C55,LEN($C55)-$A55)&"",$N$4:INDIRECT(ADDRESS($AK$3,$AK$4)))/DSUM(Forespørgsel1[#All],""&$L$4&"",$N$4:INDIRECT(ADDRESS($AK$3,$AK$4))))))),""),"") ->  | I55: =IF($AB$1=45,IFERROR(IF(ISTEXT($B55)=TRUE,DSUM(Forespørgsel1[#All],""&LEFT($C55,LEN($C55)-$A55)&"",$N$10:INDIRECT(ADDRESS($AK$5,$AK$4)))/DSUM(Forespørgsel1[#All],""&$B55&"",$N$10:INDIRECT(ADDRESS($AK$5,$AK$4))),IF($B55=0,DAVERAGE(Forespørgsel1[#All],""&LEFT($C55,LEN($C55)-$A55)&"",$N$10:INDIRECT(ADDRESS($AK$5,$AK$4))),IF($B55=1,DSUM(Forespørgsel1[#All],""&LEFT($C55,LEN($C55)-$A55)&"",$N$10:INDIRECT(ADDRESS($AK$5,$AK$4)))/DSUM(Forespørgsel1[#All],""&$K$4&"",$N$10:INDIRECT(ADDRESS($AK$5,$AK$4))),IF($B55=2,DSUM(Forespørgsel1[#All],""&LEFT($C55,LEN($C55)-$A55)&"",$N$10:INDIRECT(ADDRESS($AK$5,$AK$4)))/DSUM(Forespørgsel1[#All],""&$L$4&"",$N$10:INDIRECT(ADDRESS($AK$5,$AK$4))))))),""),"") -> 
B56: Ha i alt, driftsgren | C56: Diverse kapacitetsomkostninger | D56: =IF($AB$1=45,Landsgennemsnit!EB56,"") ->  | E56: =IF($AB$1=45,Landsgennemsnit!EC56,"") ->  | F56: =IF($AB$1=45,Landsgennemsnit!ED56,"") ->  | G56: =IF($AB$1=45,IFERROR(IF(ISTEXT($B56)=TRUE,DSUM(Forespørgsel1[#All],""&LEFT($C56,LEN($C56)-$A56)&"",$O$4:INDIRECT(ADDRESS($AK$3,$AK$4)))/DSUM(Forespørgsel1[#All],""&$B56&"",$O$4:INDIRECT(ADDRESS($AK$3,$AK$4))),IF($B56=0,DAVERAGE(Forespørgsel1[#All],""&LEFT($C56,LEN($C56)-$A56)&"",$O$4:INDIRECT(ADDRESS($AK$3,$AK$4))),IF($B56=1,DSUM(Forespørgsel1[#All],""&LEFT($C56,LEN($C56)-$A56)&"",$O$4:INDIRECT(ADDRESS($AK$3,$AK$4)))/DSUM(Forespørgsel1[#All],""&$K$4&"",$O$4:INDIRECT(ADDRESS($AK$3,$AK$4))),DSUM(Forespørgsel1[#All],""&LEFT($C56,LEN($C56)-$A56)&"",$O$4:INDIRECT(ADDRESS($AK$3,$AK$4)))/DSUM(Forespørgsel1[#All],""&$L$4&"",$O$4:INDIRECT(ADDRESS($AK$3,$AK$4)))))),""),"") ->  | H56: =IF($AB$1=45,IFERROR(IF(ISTEXT($B56)=TRUE,DSUM(Forespørgsel1[#All],""&LEFT($C56,LEN($C56)-$A56)&"",$N$4:INDIRECT(ADDRESS($AK$3,$AK$4)))/DSUM(Forespørgsel1[#All],""&$B56&"",$N$4:INDIRECT(ADDRESS($AK$3,$AK$4))),IF($B56=0,DAVERAGE(Forespørgsel1[#All],""&LEFT($C56,LEN($C56)-$A56)&"",$N$4:INDIRECT(ADDRESS($AK$3,$AK$4))),IF($B56=1,DSUM(Forespørgsel1[#All],""&LEFT($C56,LEN($C56)-$A56)&"",$N$4:INDIRECT(ADDRESS($AK$3,$AK$4)))/DSUM(Forespørgsel1[#All],""&$K$4&"",$N$4:INDIRECT(ADDRESS($AK$3,$AK$4))),IF($B56=2,DSUM(Forespørgsel1[#All],""&LEFT($C56,LEN($C56)-$A56)&"",$N$4:INDIRECT(ADDRESS($AK$3,$AK$4)))/DSUM(Forespørgsel1[#All],""&$L$4&"",$N$4:INDIRECT(ADDRESS($AK$3,$AK$4))))))),""),"") ->  | I56: =IF($AB$1=45,IFERROR(IF(ISTEXT($B56)=TRUE,DSUM(Forespørgsel1[#All],""&LEFT($C56,LEN($C56)-$A56)&"",$N$10:INDIRECT(ADDRESS($AK$5,$AK$4)))/DSUM(Forespørgsel1[#All],""&$B56&"",$N$10:INDIRECT(ADDRESS($AK$5,$AK$4))),IF($B56=0,DAVERAGE(Forespørgsel1[#All],""&LEFT($C56,LEN($C56)-$A56)&"",$N$10:INDIRECT(ADDRESS($AK$5,$AK$4))),IF($B56=1,DSUM(Forespørgsel1[#All],""&LEFT($C56,LEN($C56)-$A56)&"",$N$10:INDIRECT(ADDRESS($AK$5,$AK$4)))/DSUM(Forespørgsel1[#All],""&$K$4&"",$N$10:INDIRECT(ADDRESS($AK$5,$AK$4))),IF($B56=2,DSUM(Forespørgsel1[#All],""&LEFT($C56,LEN($C56)-$A56)&"",$N$10:INDIRECT(ADDRESS($AK$5,$AK$4)))/DSUM(Forespørgsel1[#All],""&$L$4&"",$N$10:INDIRECT(ADDRESS($AK$5,$AK$4))))))),""),"") -> 
B57: Ha i alt, driftsgren | C57: kapacitetsomkostninger i alt | D57: =IF($AB$1=45,Landsgennemsnit!EB57,"") ->  | E57: =IF($AB$1=45,Landsgennemsnit!EC57,"") ->  | F57: =IF($AB$1=45,Landsgennemsnit!ED57,"") ->  | G57: =IF($AB$1=45,IFERROR(IF(ISTEXT($B57)=TRUE,DSUM(Forespørgsel1[#All],""&LEFT($C57,LEN($C57)-$A57)&"",$O$4:INDIRECT(ADDRESS($AK$3,$AK$4)))/DSUM(Forespørgsel1[#All],""&$B57&"",$O$4:INDIRECT(ADDRESS($AK$3,$AK$4))),IF($B57=0,DAVERAGE(Forespørgsel1[#All],""&LEFT($C57,LEN($C57)-$A57)&"",$O$4:INDIRECT(ADDRESS($AK$3,$AK$4))),IF($B57=1,DSUM(Forespørgsel1[#All],""&LEFT($C57,LEN($C57)-$A57)&"",$O$4:INDIRECT(ADDRESS($AK$3,$AK$4)))/DSUM(Forespørgsel1[#All],""&$K$4&"",$O$4:INDIRECT(ADDRESS($AK$3,$AK$4))),DSUM(Forespørgsel1[#All],""&LEFT($C57,LEN($C57)-$A57)&"",$O$4:INDIRECT(ADDRESS($AK$3,$AK$4)))/DSUM(Forespørgsel1[#All],""&$L$4&"",$O$4:INDIRECT(ADDRESS($AK$3,$AK$4)))))),""),"") ->  | H57: =IF($AB$1=45,IFERROR(IF(ISTEXT($B57)=TRUE,DSUM(Forespørgsel1[#All],""&LEFT($C57,LEN($C57)-$A57)&"",$N$4:INDIRECT(ADDRESS($AK$3,$AK$4)))/DSUM(Forespørgsel1[#All],""&$B57&"",$N$4:INDIRECT(ADDRESS($AK$3,$AK$4))),IF($B57=0,DAVERAGE(Forespørgsel1[#All],""&LEFT($C57,LEN($C57)-$A57)&"",$N$4:INDIRECT(ADDRESS($AK$3,$AK$4))),IF($B57=1,DSUM(Forespørgsel1[#All],""&LEFT($C57,LEN($C57)-$A57)&"",$N$4:INDIRECT(ADDRESS($AK$3,$AK$4)))/DSUM(Forespørgsel1[#All],""&$K$4&"",$N$4:INDIRECT(ADDRESS($AK$3,$AK$4))),IF($B57=2,DSUM(Forespørgsel1[#All],""&LEFT($C57,LEN($C57)-$A57)&"",$N$4:INDIRECT(ADDRESS($AK$3,$AK$4)))/DSUM(Forespørgsel1[#All],""&$L$4&"",$N$4:INDIRECT(ADDRESS($AK$3,$AK$4))))))),""),"") ->  | I57: =IF($AB$1=45,IFERROR(IF(ISTEXT($B57)=TRUE,DSUM(Forespørgsel1[#All],""&LEFT($C57,LEN($C57)-$A57)&"",$N$10:INDIRECT(ADDRESS($AK$5,$AK$4)))/DSUM(Forespørgsel1[#All],""&$B57&"",$N$10:INDIRECT(ADDRESS($AK$5,$AK$4))),IF($B57=0,DAVERAGE(Forespørgsel1[#All],""&LEFT($C57,LEN($C57)-$A57)&"",$N$10:INDIRECT(ADDRESS($AK$5,$AK$4))),IF($B57=1,DSUM(Forespørgsel1[#All],""&LEFT($C57,LEN($C57)-$A57)&"",$N$10:INDIRECT(ADDRESS($AK$5,$AK$4)))/DSUM(Forespørgsel1[#All],""&$K$4&"",$N$10:INDIRECT(ADDRESS($AK$5,$AK$4))),IF($B57=2,DSUM(Forespørgsel1[#All],""&LEFT($C57,LEN($C57)-$A57)&"",$N$10:INDIRECT(ADDRESS($AK$5,$AK$4)))/DSUM(Forespørgsel1[#All],""&$L$4&"",$N$10:INDIRECT(ADDRESS($AK$5,$AK$4))))))),""),"") -> 
D58: =IF($AB$1=45,Landsgennemsnit!EB58,"") ->  | E58: =IF($AB$1=45,Landsgennemsnit!EC58,"") ->  | F58: =IF($AB$1=45,Landsgennemsnit!ED58,"") ->  | G58: =IF($AB$1=45,IFERROR(IF(ISTEXT($B58)=TRUE,DSUM(Forespørgsel1[#All],""&LEFT($C58,LEN($C58)-$A58)&"",$O$4:INDIRECT(ADDRESS($AK$3,$AK$4)))/DSUM(Forespørgsel1[#All],""&$B58&"",$O$4:INDIRECT(ADDRESS($AK$3,$AK$4))),IF($B58=0,DAVERAGE(Forespørgsel1[#All],""&LEFT($C58,LEN($C58)-$A58)&"",$O$4:INDIRECT(ADDRESS($AK$3,$AK$4))),IF($B58=1,DSUM(Forespørgsel1[#All],""&LEFT($C58,LEN($C58)-$A58)&"",$O$4:INDIRECT(ADDRESS($AK$3,$AK$4)))/DSUM(Forespørgsel1[#All],""&$K$4&"",$O$4:INDIRECT(ADDRESS($AK$3,$AK$4))),DSUM(Forespørgsel1[#All],""&LEFT($C58,LEN($C58)-$A58)&"",$O$4:INDIRECT(ADDRESS($AK$3,$AK$4)))/DSUM(Forespørgsel1[#All],""&$L$4&"",$O$4:INDIRECT(ADDRESS($AK$3,$AK$4)))))),""),"") ->  | H58: =IF($AB$1=45,IFERROR(IF(ISTEXT($B58)=TRUE,DSUM(Forespørgsel1[#All],""&LEFT($C58,LEN($C58)-$A58)&"",$N$4:INDIRECT(ADDRESS($AK$3,$AK$4)))/DSUM(Forespørgsel1[#All],""&$B58&"",$N$4:INDIRECT(ADDRESS($AK$3,$AK$4))),IF($B58=0,DAVERAGE(Forespørgsel1[#All],""&LEFT($C58,LEN($C58)-$A58)&"",$N$4:INDIRECT(ADDRESS($AK$3,$AK$4))),IF($B58=1,DSUM(Forespørgsel1[#All],""&LEFT($C58,LEN($C58)-$A58)&"",$N$4:INDIRECT(ADDRESS($AK$3,$AK$4)))/DSUM(Forespørgsel1[#All],""&$K$4&"",$N$4:INDIRECT(ADDRESS($AK$3,$AK$4))),IF($B58=2,DSUM(Forespørgsel1[#All],""&LEFT($C58,LEN($C58)-$A58)&"",$N$4:INDIRECT(ADDRESS($AK$3,$AK$4)))/DSUM(Forespørgsel1[#All],""&$L$4&"",$N$4:INDIRECT(ADDRESS($AK$3,$AK$4))))))),""),"") ->  | I58: =IF($AB$1=45,IFERROR(IF(ISTEXT($B58)=TRUE,DSUM(Forespørgsel1[#All],""&LEFT($C58,LEN($C58)-$A58)&"",$N$10:INDIRECT(ADDRESS($AK$5,$AK$4)))/DSUM(Forespørgsel1[#All],""&$B58&"",$N$10:INDIRECT(ADDRESS($AK$5,$AK$4))),IF($B58=0,DAVERAGE(Forespørgsel1[#All],""&LEFT($C58,LEN($C58)-$A58)&"",$N$10:INDIRECT(ADDRESS($AK$5,$AK$4))),IF($B58=1,DSUM(Forespørgsel1[#All],""&LEFT($C58,LEN($C58)-$A58)&"",$N$10:INDIRECT(ADDRESS($AK$5,$AK$4)))/DSUM(Forespørgsel1[#All],""&$K$4&"",$N$10:INDIRECT(ADDRESS($AK$5,$AK$4))),IF($B58=2,DSUM(Forespørgsel1[#All],""&LEFT($C58,LEN($C58)-$A58)&"",$N$10:INDIRECT(ADDRESS($AK$5,$AK$4)))/DSUM(Forespørgsel1[#All],""&$L$4&"",$N$10:INDIRECT(ADDRESS($AK$5,$AK$4))))))),""),"") -> 
B59: Ha i alt, driftsgren | C59: Afskrivning bygninger og grundforbedring | D59: =IF($AB$1=45,Landsgennemsnit!EB59,"") ->  | E59: =IF($AB$1=45,Landsgennemsnit!EC59,"") ->  | F59: =IF($AB$1=45,Landsgennemsnit!ED59,"") ->  | G59: =IF($AB$1=45,IFERROR(IF(ISTEXT($B59)=TRUE,DSUM(Forespørgsel1[#All],""&LEFT($C59,LEN($C59)-$A59)&"",$O$4:INDIRECT(ADDRESS($AK$3,$AK$4)))/DSUM(Forespørgsel1[#All],""&$B59&"",$O$4:INDIRECT(ADDRESS($AK$3,$AK$4))),IF($B59=0,DAVERAGE(Forespørgsel1[#All],""&LEFT($C59,LEN($C59)-$A59)&"",$O$4:INDIRECT(ADDRESS($AK$3,$AK$4))),IF($B59=1,DSUM(Forespørgsel1[#All],""&LEFT($C59,LEN($C59)-$A59)&"",$O$4:INDIRECT(ADDRESS($AK$3,$AK$4)))/DSUM(Forespørgsel1[#All],""&$K$4&"",$O$4:INDIRECT(ADDRESS($AK$3,$AK$4))),DSUM(Forespørgsel1[#All],""&LEFT($C59,LEN($C59)-$A59)&"",$O$4:INDIRECT(ADDRESS($AK$3,$AK$4)))/DSUM(Forespørgsel1[#All],""&$L$4&"",$O$4:INDIRECT(ADDRESS($AK$3,$AK$4)))))),""),"") ->  | H59: =IF($AB$1=45,IFERROR(IF(ISTEXT($B59)=TRUE,DSUM(Forespørgsel1[#All],""&LEFT($C59,LEN($C59)-$A59)&"",$N$4:INDIRECT(ADDRESS($AK$3,$AK$4)))/DSUM(Forespørgsel1[#All],""&$B59&"",$N$4:INDIRECT(ADDRESS($AK$3,$AK$4))),IF($B59=0,DAVERAGE(Forespørgsel1[#All],""&LEFT($C59,LEN($C59)-$A59)&"",$N$4:INDIRECT(ADDRESS($AK$3,$AK$4))),IF($B59=1,DSUM(Forespørgsel1[#All],""&LEFT($C59,LEN($C59)-$A59)&"",$N$4:INDIRECT(ADDRESS($AK$3,$AK$4)))/DSUM(Forespørgsel1[#All],""&$K$4&"",$N$4:INDIRECT(ADDRESS($AK$3,$AK$4))),IF($B59=2,DSUM(Forespørgsel1[#All],""&LEFT($C59,LEN($C59)-$A59)&"",$N$4:INDIRECT(ADDRESS($AK$3,$AK$4)))/DSUM(Forespørgsel1[#All],""&$L$4&"",$N$4:INDIRECT(ADDRESS($AK$3,$AK$4))))))),""),"") ->  | I59: =IF($AB$1=45,IFERROR(IF(ISTEXT($B59)=TRUE,DSUM(Forespørgsel1[#All],""&LEFT($C59,LEN($C59)-$A59)&"",$N$10:INDIRECT(ADDRESS($AK$5,$AK$4)))/DSUM(Forespørgsel1[#All],""&$B59&"",$N$10:INDIRECT(ADDRESS($AK$5,$AK$4))),IF($B59=0,DAVERAGE(Forespørgsel1[#All],""&LEFT($C59,LEN($C59)-$A59)&"",$N$10:INDIRECT(ADDRESS($AK$5,$AK$4))),IF($B59=1,DSUM(Forespørgsel1[#All],""&LEFT($C59,LEN($C59)-$A59)&"",$N$10:INDIRECT(ADDRESS($AK$5,$AK$4)))/DSUM(Forespørgsel1[#All],""&$K$4&"",$N$10:INDIRECT(ADDRESS($AK$5,$AK$4))),IF($B59=2,DSUM(Forespørgsel1[#All],""&LEFT($C59,LEN($C59)-$A59)&"",$N$10:INDIRECT(ADDRESS($AK$5,$AK$4)))/DSUM(Forespørgsel1[#All],""&$L$4&"",$N$10:INDIRECT(ADDRESS($AK$5,$AK$4))))))),""),"") -> 
B60: Ha i alt, driftsgren | C60: Afskrivning, markinventar | D60: =IF($AB$1=45,Landsgennemsnit!EB60,"") ->  | E60: =IF($AB$1=45,Landsgennemsnit!EC60,"") ->  | F60: =IF($AB$1=45,Landsgennemsnit!ED60,"") ->  | G60: =IF($AB$1=45,IFERROR(IF(ISTEXT($B60)=TRUE,DSUM(Forespørgsel1[#All],""&LEFT($C60,LEN($C60)-$A60)&"",$O$4:INDIRECT(ADDRESS($AK$3,$AK$4)))/DSUM(Forespørgsel1[#All],""&$B60&"",$O$4:INDIRECT(ADDRESS($AK$3,$AK$4))),IF($B60=0,DAVERAGE(Forespørgsel1[#All],""&LEFT($C60,LEN($C60)-$A60)&"",$O$4:INDIRECT(ADDRESS($AK$3,$AK$4))),IF($B60=1,DSUM(Forespørgsel1[#All],""&LEFT($C60,LEN($C60)-$A60)&"",$O$4:INDIRECT(ADDRESS($AK$3,$AK$4)))/DSUM(Forespørgsel1[#All],""&$K$4&"",$O$4:INDIRECT(ADDRESS($AK$3,$AK$4))),DSUM(Forespørgsel1[#All],""&LEFT($C60,LEN($C60)-$A60)&"",$O$4:INDIRECT(ADDRESS($AK$3,$AK$4)))/DSUM(Forespørgsel1[#All],""&$L$4&"",$O$4:INDIRECT(ADDRESS($AK$3,$AK$4)))))),""),"") ->  | H60: =IF($AB$1=45,IFERROR(IF(ISTEXT($B60)=TRUE,DSUM(Forespørgsel1[#All],""&LEFT($C60,LEN($C60)-$A60)&"",$N$4:INDIRECT(ADDRESS($AK$3,$AK$4)))/DSUM(Forespørgsel1[#All],""&$B60&"",$N$4:INDIRECT(ADDRESS($AK$3,$AK$4))),IF($B60=0,DAVERAGE(Forespørgsel1[#All],""&LEFT($C60,LEN($C60)-$A60)&"",$N$4:INDIRECT(ADDRESS($AK$3,$AK$4))),IF($B60=1,DSUM(Forespørgsel1[#All],""&LEFT($C60,LEN($C60)-$A60)&"",$N$4:INDIRECT(ADDRESS($AK$3,$AK$4)))/DSUM(Forespørgsel1[#All],""&$K$4&"",$N$4:INDIRECT(ADDRESS($AK$3,$AK$4))),IF($B60=2,DSUM(Forespørgsel1[#All],""&LEFT($C60,LEN($C60)-$A60)&"",$N$4:INDIRECT(ADDRESS($AK$3,$AK$4)))/DSUM(Forespørgsel1[#All],""&$L$4&"",$N$4:INDIRECT(ADDRESS($AK$3,$AK$4))))))),""),"") ->  | I60: =IF($AB$1=45,IFERROR(IF(ISTEXT($B60)=TRUE,DSUM(Forespørgsel1[#All],""&LEFT($C60,LEN($C60)-$A60)&"",$N$10:INDIRECT(ADDRESS($AK$5,$AK$4)))/DSUM(Forespørgsel1[#All],""&$B60&"",$N$10:INDIRECT(ADDRESS($AK$5,$AK$4))),IF($B60=0,DAVERAGE(Forespørgsel1[#All],""&LEFT($C60,LEN($C60)-$A60)&"",$N$10:INDIRECT(ADDRESS($AK$5,$AK$4))),IF($B60=1,DSUM(Forespørgsel1[#All],""&LEFT($C60,LEN($C60)-$A60)&"",$N$10:INDIRECT(ADDRESS($AK$5,$AK$4)))/DSUM(Forespørgsel1[#All],""&$K$4&"",$N$10:INDIRECT(ADDRESS($AK$5,$AK$4))),IF($B60=2,DSUM(Forespørgsel1[#All],""&LEFT($C60,LEN($C60)-$A60)&"",$N$10:INDIRECT(ADDRESS($AK$5,$AK$4)))/DSUM(Forespørgsel1[#All],""&$L$4&"",$N$10:INDIRECT(ADDRESS($AK$5,$AK$4))))))),""),"") -> 
B61: Ha i alt, driftsgren | C61: Afkoblet EU-støtte | D61: =IF($AB$1=45,Landsgennemsnit!EB61,"") ->  | E61: =IF($AB$1=45,Landsgennemsnit!EC61,"") ->  | F61: =IF($AB$1=45,Landsgennemsnit!ED61,"") ->  | G61: =IF($AB$1=45,IFERROR(IF(ISTEXT($B61)=TRUE,DSUM(Forespørgsel1[#All],""&LEFT($C61,LEN($C61)-$A61)&"",$O$4:INDIRECT(ADDRESS($AK$3,$AK$4)))/DSUM(Forespørgsel1[#All],""&$B61&"",$O$4:INDIRECT(ADDRESS($AK$3,$AK$4))),IF($B61=0,DAVERAGE(Forespørgsel1[#All],""&LEFT($C61,LEN($C61)-$A61)&"",$O$4:INDIRECT(ADDRESS($AK$3,$AK$4))),IF($B61=1,DSUM(Forespørgsel1[#All],""&LEFT($C61,LEN($C61)-$A61)&"",$O$4:INDIRECT(ADDRESS($AK$3,$AK$4)))/DSUM(Forespørgsel1[#All],""&$K$4&"",$O$4:INDIRECT(ADDRESS($AK$3,$AK$4))),DSUM(Forespørgsel1[#All],""&LEFT($C61,LEN($C61)-$A61)&"",$O$4:INDIRECT(ADDRESS($AK$3,$AK$4)))/DSUM(Forespørgsel1[#All],""&$L$4&"",$O$4:INDIRECT(ADDRESS($AK$3,$AK$4)))))),""),"") ->  | H61: =IF($AB$1=45,IFERROR(IF(ISTEXT($B61)=TRUE,DSUM(Forespørgsel1[#All],""&LEFT($C61,LEN($C61)-$A61)&"",$N$4:INDIRECT(ADDRESS($AK$3,$AK$4)))/DSUM(Forespørgsel1[#All],""&$B61&"",$N$4:INDIRECT(ADDRESS($AK$3,$AK$4))),IF($B61=0,DAVERAGE(Forespørgsel1[#All],""&LEFT($C61,LEN($C61)-$A61)&"",$N$4:INDIRECT(ADDRESS($AK$3,$AK$4))),IF($B61=1,DSUM(Forespørgsel1[#All],""&LEFT($C61,LEN($C61)-$A61)&"",$N$4:INDIRECT(ADDRESS($AK$3,$AK$4)))/DSUM(Forespørgsel1[#All],""&$K$4&"",$N$4:INDIRECT(ADDRESS($AK$3,$AK$4))),IF($B61=2,DSUM(Forespørgsel1[#All],""&LEFT($C61,LEN($C61)-$A61)&"",$N$4:INDIRECT(ADDRESS($AK$3,$AK$4)))/DSUM(Forespørgsel1[#All],""&$L$4&"",$N$4:INDIRECT(ADDRESS($AK$3,$AK$4))))))),""),"") ->  | I61: =IF($AB$1=45,IFERROR(IF(ISTEXT($B61)=TRUE,DSUM(Forespørgsel1[#All],""&LEFT($C61,LEN($C61)-$A61)&"",$N$10:INDIRECT(ADDRESS($AK$5,$AK$4)))/DSUM(Forespørgsel1[#All],""&$B61&"",$N$10:INDIRECT(ADDRESS($AK$5,$AK$4))),IF($B61=0,DAVERAGE(Forespørgsel1[#All],""&LEFT($C61,LEN($C61)-$A61)&"",$N$10:INDIRECT(ADDRESS($AK$5,$AK$4))),IF($B61=1,DSUM(Forespørgsel1[#All],""&LEFT($C61,LEN($C61)-$A61)&"",$N$10:INDIRECT(ADDRESS($AK$5,$AK$4)))/DSUM(Forespørgsel1[#All],""&$K$4&"",$N$10:INDIRECT(ADDRESS($AK$5,$AK$4))),IF($B61=2,DSUM(Forespørgsel1[#All],""&LEFT($C61,LEN($C61)-$A61)&"",$N$10:INDIRECT(ADDRESS($AK$5,$AK$4)))/DSUM(Forespørgsel1[#All],""&$L$4&"",$N$10:INDIRECT(ADDRESS($AK$5,$AK$4))))))),""),"") -> 
B62: Ha i alt, driftsgren | C62: Renteomk. af bundet kapital | D62: =IF($AB$1=45,Landsgennemsnit!EB62,"") ->  | E62: =IF($AB$1=45,Landsgennemsnit!EC62,"") ->  | F62: =IF($AB$1=45,Landsgennemsnit!ED62,"") ->  | G62: =IF($AB$1=45,IFERROR(IF(ISTEXT($B62)=TRUE,DSUM(Forespørgsel1[#All],""&LEFT($C62,LEN($C62)-$A62)&"",$O$4:INDIRECT(ADDRESS($AK$3,$AK$4)))/DSUM(Forespørgsel1[#All],""&$B62&"",$O$4:INDIRECT(ADDRESS($AK$3,$AK$4))),IF($B62=0,DAVERAGE(Forespørgsel1[#All],""&LEFT($C62,LEN($C62)-$A62)&"",$O$4:INDIRECT(ADDRESS($AK$3,$AK$4))),IF($B62=1,DSUM(Forespørgsel1[#All],""&LEFT($C62,LEN($C62)-$A62)&"",$O$4:INDIRECT(ADDRESS($AK$3,$AK$4)))/DSUM(Forespørgsel1[#All],""&$K$4&"",$O$4:INDIRECT(ADDRESS($AK$3,$AK$4))),DSUM(Forespørgsel1[#All],""&LEFT($C62,LEN($C62)-$A62)&"",$O$4:INDIRECT(ADDRESS($AK$3,$AK$4)))/DSUM(Forespørgsel1[#All],""&$L$4&"",$O$4:INDIRECT(ADDRESS($AK$3,$AK$4)))))),""),"") ->  | H62: =IF($AB$1=45,IFERROR(IF(ISTEXT($B62)=TRUE,DSUM(Forespørgsel1[#All],""&LEFT($C62,LEN($C62)-$A62)&"",$N$4:INDIRECT(ADDRESS($AK$3,$AK$4)))/DSUM(Forespørgsel1[#All],""&$B62&"",$N$4:INDIRECT(ADDRESS($AK$3,$AK$4))),IF($B62=0,DAVERAGE(Forespørgsel1[#All],""&LEFT($C62,LEN($C62)-$A62)&"",$N$4:INDIRECT(ADDRESS($AK$3,$AK$4))),IF($B62=1,DSUM(Forespørgsel1[#All],""&LEFT($C62,LEN($C62)-$A62)&"",$N$4:INDIRECT(ADDRESS($AK$3,$AK$4)))/DSUM(Forespørgsel1[#All],""&$K$4&"",$N$4:INDIRECT(ADDRESS($AK$3,$AK$4))),IF($B62=2,DSUM(Forespørgsel1[#All],""&LEFT($C62,LEN($C62)-$A62)&"",$N$4:INDIRECT(ADDRESS($AK$3,$AK$4)))/DSUM(Forespørgsel1[#All],""&$L$4&"",$N$4:INDIRECT(ADDRESS($AK$3,$AK$4))))))),""),"") ->  | I62: =IF($AB$1=45,IFERROR(IF(ISTEXT($B62)=TRUE,DSUM(Forespørgsel1[#All],""&LEFT($C62,LEN($C62)-$A62)&"",$N$10:INDIRECT(ADDRESS($AK$5,$AK$4)))/DSUM(Forespørgsel1[#All],""&$B62&"",$N$10:INDIRECT(ADDRESS($AK$5,$AK$4))),IF($B62=0,DAVERAGE(Forespørgsel1[#All],""&LEFT($C62,LEN($C62)-$A62)&"",$N$10:INDIRECT(ADDRESS($AK$5,$AK$4))),IF($B62=1,DSUM(Forespørgsel1[#All],""&LEFT($C62,LEN($C62)-$A62)&"",$N$10:INDIRECT(ADDRESS($AK$5,$AK$4)))/DSUM(Forespørgsel1[#All],""&$K$4&"",$N$10:INDIRECT(ADDRESS($AK$5,$AK$4))),IF($B62=2,DSUM(Forespørgsel1[#All],""&LEFT($C62,LEN($C62)-$A62)&"",$N$10:INDIRECT(ADDRESS($AK$5,$AK$4)))/DSUM(Forespørgsel1[#All],""&$L$4&"",$N$10:INDIRECT(ADDRESS($AK$5,$AK$4))))))),""),"") -> 
B63: Ha i alt, driftsgren | C63: Forpagtning | D63: =IF($AB$1=45,Landsgennemsnit!EB63,"") ->  | E63: =IF($AB$1=45,Landsgennemsnit!EC63,"") ->  | F63: =IF($AB$1=45,Landsgennemsnit!ED63,"") ->  | G63: =IF($AB$1=45,IFERROR(IF(ISTEXT($B63)=TRUE,DSUM(Forespørgsel1[#All],""&LEFT($C63,LEN($C63)-$A63)&"",$O$4:INDIRECT(ADDRESS($AK$3,$AK$4)))/DSUM(Forespørgsel1[#All],""&$B63&"",$O$4:INDIRECT(ADDRESS($AK$3,$AK$4))),IF($B63=0,DAVERAGE(Forespørgsel1[#All],""&LEFT($C63,LEN($C63)-$A63)&"",$O$4:INDIRECT(ADDRESS($AK$3,$AK$4))),IF($B63=1,DSUM(Forespørgsel1[#All],""&LEFT($C63,LEN($C63)-$A63)&"",$O$4:INDIRECT(ADDRESS($AK$3,$AK$4)))/DSUM(Forespørgsel1[#All],""&$K$4&"",$O$4:INDIRECT(ADDRESS($AK$3,$AK$4))),DSUM(Forespørgsel1[#All],""&LEFT($C63,LEN($C63)-$A63)&"",$O$4:INDIRECT(ADDRESS($AK$3,$AK$4)))/DSUM(Forespørgsel1[#All],""&$L$4&"",$O$4:INDIRECT(ADDRESS($AK$3,$AK$4)))))),""),"") ->  | H63: =IF($AB$1=45,IFERROR(IF(ISTEXT($B63)=TRUE,DSUM(Forespørgsel1[#All],""&LEFT($C63,LEN($C63)-$A63)&"",$N$4:INDIRECT(ADDRESS($AK$3,$AK$4)))/DSUM(Forespørgsel1[#All],""&$B63&"",$N$4:INDIRECT(ADDRESS($AK$3,$AK$4))),IF($B63=0,DAVERAGE(Forespørgsel1[#All],""&LEFT($C63,LEN($C63)-$A63)&"",$N$4:INDIRECT(ADDRESS($AK$3,$AK$4))),IF($B63=1,DSUM(Forespørgsel1[#All],""&LEFT($C63,LEN($C63)-$A63)&"",$N$4:INDIRECT(ADDRESS($AK$3,$AK$4)))/DSUM(Forespørgsel1[#All],""&$K$4&"",$N$4:INDIRECT(ADDRESS($AK$3,$AK$4))),IF($B63=2,DSUM(Forespørgsel1[#All],""&LEFT($C63,LEN($C63)-$A63)&"",$N$4:INDIRECT(ADDRESS($AK$3,$AK$4)))/DSUM(Forespørgsel1[#All],""&$L$4&"",$N$4:INDIRECT(ADDRESS($AK$3,$AK$4))))))),""),"") ->  | I63: =IF($AB$1=45,IFERROR(IF(ISTEXT($B63)=TRUE,DSUM(Forespørgsel1[#All],""&LEFT($C63,LEN($C63)-$A63)&"",$N$10:INDIRECT(ADDRESS($AK$5,$AK$4)))/DSUM(Forespørgsel1[#All],""&$B63&"",$N$10:INDIRECT(ADDRESS($AK$5,$AK$4))),IF($B63=0,DAVERAGE(Forespørgsel1[#All],""&LEFT($C63,LEN($C63)-$A63)&"",$N$10:INDIRECT(ADDRESS($AK$5,$AK$4))),IF($B63=1,DSUM(Forespørgsel1[#All],""&LEFT($C63,LEN($C63)-$A63)&"",$N$10:INDIRECT(ADDRESS($AK$5,$AK$4)))/DSUM(Forespørgsel1[#All],""&$K$4&"",$N$10:INDIRECT(ADDRESS($AK$5,$AK$4))),IF($B63=2,DSUM(Forespørgsel1[#All],""&LEFT($C63,LEN($C63)-$A63)&"",$N$10:INDIRECT(ADDRESS($AK$5,$AK$4)))/DSUM(Forespørgsel1[#All],""&$L$4&"",$N$10:INDIRECT(ADDRESS($AK$5,$AK$4))))))),""),"") -> 
B64: Ha i alt, driftsgren | C64: Diverse kapitalomkostninger | D64: =IF($AB$1=45,Landsgennemsnit!EB64,"") ->  | E64: =IF($AB$1=45,Landsgennemsnit!EC64,"") ->  | F64: =IF($AB$1=45,Landsgennemsnit!ED64,"") ->  | G64: =IF($AB$1=45,IFERROR(IF(ISTEXT($B64)=TRUE,DSUM(Forespørgsel1[#All],""&LEFT($C64,LEN($C64)-$A64)&"",$O$4:INDIRECT(ADDRESS($AK$3,$AK$4)))/DSUM(Forespørgsel1[#All],""&$B64&"",$O$4:INDIRECT(ADDRESS($AK$3,$AK$4))),IF($B64=0,DAVERAGE(Forespørgsel1[#All],""&LEFT($C64,LEN($C64)-$A64)&"",$O$4:INDIRECT(ADDRESS($AK$3,$AK$4))),IF($B64=1,DSUM(Forespørgsel1[#All],""&LEFT($C64,LEN($C64)-$A64)&"",$O$4:INDIRECT(ADDRESS($AK$3,$AK$4)))/DSUM(Forespørgsel1[#All],""&$K$4&"",$O$4:INDIRECT(ADDRESS($AK$3,$AK$4))),DSUM(Forespørgsel1[#All],""&LEFT($C64,LEN($C64)-$A64)&"",$O$4:INDIRECT(ADDRESS($AK$3,$AK$4)))/DSUM(Forespørgsel1[#All],""&$L$4&"",$O$4:INDIRECT(ADDRESS($AK$3,$AK$4)))))),""),"") ->  | H64: =IF($AB$1=45,IFERROR(IF(ISTEXT($B64)=TRUE,DSUM(Forespørgsel1[#All],""&LEFT($C64,LEN($C64)-$A64)&"",$N$4:INDIRECT(ADDRESS($AK$3,$AK$4)))/DSUM(Forespørgsel1[#All],""&$B64&"",$N$4:INDIRECT(ADDRESS($AK$3,$AK$4))),IF($B64=0,DAVERAGE(Forespørgsel1[#All],""&LEFT($C64,LEN($C64)-$A64)&"",$N$4:INDIRECT(ADDRESS($AK$3,$AK$4))),IF($B64=1,DSUM(Forespørgsel1[#All],""&LEFT($C64,LEN($C64)-$A64)&"",$N$4:INDIRECT(ADDRESS($AK$3,$AK$4)))/DSUM(Forespørgsel1[#All],""&$K$4&"",$N$4:INDIRECT(ADDRESS($AK$3,$AK$4))),IF($B64=2,DSUM(Forespørgsel1[#All],""&LEFT($C64,LEN($C64)-$A64)&"",$N$4:INDIRECT(ADDRESS($AK$3,$AK$4)))/DSUM(Forespørgsel1[#All],""&$L$4&"",$N$4:INDIRECT(ADDRESS($AK$3,$AK$4))))))),""),"") ->  | I64: =IF($AB$1=45,IFERROR(IF(ISTEXT($B64)=TRUE,DSUM(Forespørgsel1[#All],""&LEFT($C64,LEN($C64)-$A64)&"",$N$10:INDIRECT(ADDRESS($AK$5,$AK$4)))/DSUM(Forespørgsel1[#All],""&$B64&"",$N$10:INDIRECT(ADDRESS($AK$5,$AK$4))),IF($B64=0,DAVERAGE(Forespørgsel1[#All],""&LEFT($C64,LEN($C64)-$A64)&"",$N$10:INDIRECT(ADDRESS($AK$5,$AK$4))),IF($B64=1,DSUM(Forespørgsel1[#All],""&LEFT($C64,LEN($C64)-$A64)&"",$N$10:INDIRECT(ADDRESS($AK$5,$AK$4)))/DSUM(Forespørgsel1[#All],""&$K$4&"",$N$10:INDIRECT(ADDRESS($AK$5,$AK$4))),IF($B64=2,DSUM(Forespørgsel1[#All],""&LEFT($C64,LEN($C64)-$A64)&"",$N$10:INDIRECT(ADDRESS($AK$5,$AK$4)))/DSUM(Forespørgsel1[#All],""&$L$4&"",$N$10:INDIRECT(ADDRESS($AK$5,$AK$4))))))),""),"") -> 
B65: Ha i alt, driftsgren | C65: Kapitalomkostninger i alt | D65: =IF($AB$1=45,Landsgennemsnit!EB65,"") ->  | E65: =IF($AB$1=45,Landsgennemsnit!EC65,"") ->  | F65: =IF($AB$1=45,Landsgennemsnit!ED65,"") ->  | G65: =IF($AB$1=45,IFERROR(IF(ISTEXT($B65)=TRUE,DSUM(Forespørgsel1[#All],""&LEFT($C65,LEN($C65)-$A65)&"",$O$4:INDIRECT(ADDRESS($AK$3,$AK$4)))/DSUM(Forespørgsel1[#All],""&$B65&"",$O$4:INDIRECT(ADDRESS($AK$3,$AK$4))),IF($B65=0,DAVERAGE(Forespørgsel1[#All],""&LEFT($C65,LEN($C65)-$A65)&"",$O$4:INDIRECT(ADDRESS($AK$3,$AK$4))),IF($B65=1,DSUM(Forespørgsel1[#All],""&LEFT($C65,LEN($C65)-$A65)&"",$O$4:INDIRECT(ADDRESS($AK$3,$AK$4)))/DSUM(Forespørgsel1[#All],""&$K$4&"",$O$4:INDIRECT(ADDRESS($AK$3,$AK$4))),DSUM(Forespørgsel1[#All],""&LEFT($C65,LEN($C65)-$A65)&"",$O$4:INDIRECT(ADDRESS($AK$3,$AK$4)))/DSUM(Forespørgsel1[#All],""&$L$4&"",$O$4:INDIRECT(ADDRESS($AK$3,$AK$4)))))),""),"") ->  | H65: =IF($AB$1=45,IFERROR(IF(ISTEXT($B65)=TRUE,DSUM(Forespørgsel1[#All],""&LEFT($C65,LEN($C65)-$A65)&"",$N$4:INDIRECT(ADDRESS($AK$3,$AK$4)))/DSUM(Forespørgsel1[#All],""&$B65&"",$N$4:INDIRECT(ADDRESS($AK$3,$AK$4))),IF($B65=0,DAVERAGE(Forespørgsel1[#All],""&LEFT($C65,LEN($C65)-$A65)&"",$N$4:INDIRECT(ADDRESS($AK$3,$AK$4))),IF($B65=1,DSUM(Forespørgsel1[#All],""&LEFT($C65,LEN($C65)-$A65)&"",$N$4:INDIRECT(ADDRESS($AK$3,$AK$4)))/DSUM(Forespørgsel1[#All],""&$K$4&"",$N$4:INDIRECT(ADDRESS($AK$3,$AK$4))),IF($B65=2,DSUM(Forespørgsel1[#All],""&LEFT($C65,LEN($C65)-$A65)&"",$N$4:INDIRECT(ADDRESS($AK$3,$AK$4)))/DSUM(Forespørgsel1[#All],""&$L$4&"",$N$4:INDIRECT(ADDRESS($AK$3,$AK$4))))))),""),"") ->  | I65: =IF($AB$1=45,IFERROR(IF(ISTEXT($B65)=TRUE,DSUM(Forespørgsel1[#All],""&LEFT($C65,LEN($C65)-$A65)&"",$N$10:INDIRECT(ADDRESS($AK$5,$AK$4)))/DSUM(Forespørgsel1[#All],""&$B65&"",$N$10:INDIRECT(ADDRESS($AK$5,$AK$4))),IF($B65=0,DAVERAGE(Forespørgsel1[#All],""&LEFT($C65,LEN($C65)-$A65)&"",$N$10:INDIRECT(ADDRESS($AK$5,$AK$4))),IF($B65=1,DSUM(Forespørgsel1[#All],""&LEFT($C65,LEN($C65)-$A65)&"",$N$10:INDIRECT(ADDRESS($AK$5,$AK$4)))/DSUM(Forespørgsel1[#All],""&$K$4&"",$N$10:INDIRECT(ADDRESS($AK$5,$AK$4))),IF($B65=2,DSUM(Forespørgsel1[#All],""&LEFT($C65,LEN($C65)-$A65)&"",$N$10:INDIRECT(ADDRESS($AK$5,$AK$4)))/DSUM(Forespørgsel1[#All],""&$L$4&"",$N$10:INDIRECT(ADDRESS($AK$5,$AK$4))))))),""),"") -> 
D66: =IF($AB$1=45,Landsgennemsnit!EB66,"") ->  | E66: =IF($AB$1=45,Landsgennemsnit!EC66,"") ->  | F66: =IF($AB$1=45,Landsgennemsnit!ED66,"") ->  | G66: =IF($AB$1=45,IFERROR(IF(ISTEXT($B66)=TRUE,DSUM(Forespørgsel1[#All],""&LEFT($C66,LEN($C66)-$A66)&"",$O$4:INDIRECT(ADDRESS($AK$3,$AK$4)))/DSUM(Forespørgsel1[#All],""&$B66&"",$O$4:INDIRECT(ADDRESS($AK$3,$AK$4))),IF($B66=0,DAVERAGE(Forespørgsel1[#All],""&LEFT($C66,LEN($C66)-$A66)&"",$O$4:INDIRECT(ADDRESS($AK$3,$AK$4))),IF($B66=1,DSUM(Forespørgsel1[#All],""&LEFT($C66,LEN($C66)-$A66)&"",$O$4:INDIRECT(ADDRESS($AK$3,$AK$4)))/DSUM(Forespørgsel1[#All],""&$K$4&"",$O$4:INDIRECT(ADDRESS($AK$3,$AK$4))),DSUM(Forespørgsel1[#All],""&LEFT($C66,LEN($C66)-$A66)&"",$O$4:INDIRECT(ADDRESS($AK$3,$AK$4)))/DSUM(Forespørgsel1[#All],""&$L$4&"",$O$4:INDIRECT(ADDRESS($AK$3,$AK$4)))))),""),"") ->  | H66: =IF($AB$1=45,IFERROR(IF(ISTEXT($B66)=TRUE,DSUM(Forespørgsel1[#All],""&LEFT($C66,LEN($C66)-$A66)&"",$N$4:INDIRECT(ADDRESS($AK$3,$AK$4)))/DSUM(Forespørgsel1[#All],""&$B66&"",$N$4:INDIRECT(ADDRESS($AK$3,$AK$4))),IF($B66=0,DAVERAGE(Forespørgsel1[#All],""&LEFT($C66,LEN($C66)-$A66)&"",$N$4:INDIRECT(ADDRESS($AK$3,$AK$4))),IF($B66=1,DSUM(Forespørgsel1[#All],""&LEFT($C66,LEN($C66)-$A66)&"",$N$4:INDIRECT(ADDRESS($AK$3,$AK$4)))/DSUM(Forespørgsel1[#All],""&$K$4&"",$N$4:INDIRECT(ADDRESS($AK$3,$AK$4))),IF($B66=2,DSUM(Forespørgsel1[#All],""&LEFT($C66,LEN($C66)-$A66)&"",$N$4:INDIRECT(ADDRESS($AK$3,$AK$4)))/DSUM(Forespørgsel1[#All],""&$L$4&"",$N$4:INDIRECT(ADDRESS($AK$3,$AK$4))))))),""),"") ->  | I66: =IF($AB$1=45,IFERROR(IF(ISTEXT($B66)=TRUE,DSUM(Forespørgsel1[#All],""&LEFT($C66,LEN($C66)-$A66)&"",$N$10:INDIRECT(ADDRESS($AK$5,$AK$4)))/DSUM(Forespørgsel1[#All],""&$B66&"",$N$10:INDIRECT(ADDRESS($AK$5,$AK$4))),IF($B66=0,DAVERAGE(Forespørgsel1[#All],""&LEFT($C66,LEN($C66)-$A66)&"",$N$10:INDIRECT(ADDRESS($AK$5,$AK$4))),IF($B66=1,DSUM(Forespørgsel1[#All],""&LEFT($C66,LEN($C66)-$A66)&"",$N$10:INDIRECT(ADDRESS($AK$5,$AK$4)))/DSUM(Forespørgsel1[#All],""&$K$4&"",$N$10:INDIRECT(ADDRESS($AK$5,$AK$4))),IF($B66=2,DSUM(Forespørgsel1[#All],""&LEFT($C66,LEN($C66)-$A66)&"",$N$10:INDIRECT(ADDRESS($AK$5,$AK$4)))/DSUM(Forespørgsel1[#All],""&$L$4&"",$N$10:INDIRECT(ADDRESS($AK$5,$AK$4))))))),""),"") -> 
B67: Ha i alt, driftsgren | C67: Resultat, driftsgren | D67: =IF($AB$1=45,Landsgennemsnit!EB67,"") ->  | E67: =IF($AB$1=45,Landsgennemsnit!EC67,"") ->  | F67: =IF($AB$1=45,Landsgennemsnit!ED67,"") ->  | G67: =IF($AB$1=45,IFERROR(IF(ISTEXT($B67)=TRUE,DSUM(Forespørgsel1[#All],""&LEFT($C67,LEN($C67)-$A67)&"",$O$4:INDIRECT(ADDRESS($AK$3,$AK$4)))/DSUM(Forespørgsel1[#All],""&$B67&"",$O$4:INDIRECT(ADDRESS($AK$3,$AK$4))),IF($B67=0,DAVERAGE(Forespørgsel1[#All],""&LEFT($C67,LEN($C67)-$A67)&"",$O$4:INDIRECT(ADDRESS($AK$3,$AK$4))),IF($B67=1,DSUM(Forespørgsel1[#All],""&LEFT($C67,LEN($C67)-$A67)&"",$O$4:INDIRECT(ADDRESS($AK$3,$AK$4)))/DSUM(Forespørgsel1[#All],""&$K$4&"",$O$4:INDIRECT(ADDRESS($AK$3,$AK$4))),DSUM(Forespørgsel1[#All],""&LEFT($C67,LEN($C67)-$A67)&"",$O$4:INDIRECT(ADDRESS($AK$3,$AK$4)))/DSUM(Forespørgsel1[#All],""&$L$4&"",$O$4:INDIRECT(ADDRESS($AK$3,$AK$4)))))),""),"") ->  | H67: =IF($AB$1=45,IFERROR(IF(ISTEXT($B67)=TRUE,DSUM(Forespørgsel1[#All],""&LEFT($C67,LEN($C67)-$A67)&"",$N$4:INDIRECT(ADDRESS($AK$3,$AK$4)))/DSUM(Forespørgsel1[#All],""&$B67&"",$N$4:INDIRECT(ADDRESS($AK$3,$AK$4))),IF($B67=0,DAVERAGE(Forespørgsel1[#All],""&LEFT($C67,LEN($C67)-$A67)&"",$N$4:INDIRECT(ADDRESS($AK$3,$AK$4))),IF($B67=1,DSUM(Forespørgsel1[#All],""&LEFT($C67,LEN($C67)-$A67)&"",$N$4:INDIRECT(ADDRESS($AK$3,$AK$4)))/DSUM(Forespørgsel1[#All],""&$K$4&"",$N$4:INDIRECT(ADDRESS($AK$3,$AK$4))),IF($B67=2,DSUM(Forespørgsel1[#All],""&LEFT($C67,LEN($C67)-$A67)&"",$N$4:INDIRECT(ADDRESS($AK$3,$AK$4)))/DSUM(Forespørgsel1[#All],""&$L$4&"",$N$4:INDIRECT(ADDRESS($AK$3,$AK$4))))))),""),"") ->  | I67: =IF($AB$1=45,IFERROR(IF(ISTEXT($B67)=TRUE,DSUM(Forespørgsel1[#All],""&LEFT($C67,LEN($C67)-$A67)&"",$N$10:INDIRECT(ADDRESS($AK$5,$AK$4)))/DSUM(Forespørgsel1[#All],""&$B67&"",$N$10:INDIRECT(ADDRESS($AK$5,$AK$4))),IF($B67=0,DAVERAGE(Forespørgsel1[#All],""&LEFT($C67,LEN($C67)-$A67)&"",$N$10:INDIRECT(ADDRESS($AK$5,$AK$4))),IF($B67=1,DSUM(Forespørgsel1[#All],""&LEFT($C67,LEN($C67)-$A67)&"",$N$10:INDIRECT(ADDRESS($AK$5,$AK$4)))/DSUM(Forespørgsel1[#All],""&$K$4&"",$N$10:INDIRECT(ADDRESS($AK$5,$AK$4))),IF($B67=2,DSUM(Forespørgsel1[#All],""&LEFT($C67,LEN($C67)-$A67)&"",$N$10:INDIRECT(ADDRESS($AK$5,$AK$4)))/DSUM(Forespørgsel1[#All],""&$L$4&"",$N$10:INDIRECT(ADDRESS($AK$5,$AK$4))))))),""),"") -> 
D68: =IF($AB$1=45,Landsgennemsnit!EB68,"") ->  | E68: =IF($AB$1=45,Landsgennemsnit!EC68,"") ->  | G68: =IF($AB$1=45,IFERROR(IF(ISTEXT($B68)=TRUE,DSUM(Forespørgsel1[#All],""&LEFT($C68,LEN($C68)-$A68)&"",$O$4:INDIRECT(ADDRESS($AK$3,$AK$4)))/DSUM(Forespørgsel1[#All],""&$B68&"",$O$4:INDIRECT(ADDRESS($AK$3,$AK$4))),IF($B68=0,DAVERAGE(Forespørgsel1[#All],""&LEFT($C68,LEN($C68)-$A68)&"",$O$4:INDIRECT(ADDRESS($AK$3,$AK$4))),IF($B68=1,DSUM(Forespørgsel1[#All],""&LEFT($C68,LEN($C68)-$A68)&"",$O$4:INDIRECT(ADDRESS($AK$3,$AK$4)))/DSUM(Forespørgsel1[#All],""&$K$4&"",$O$4:INDIRECT(ADDRESS($AK$3,$AK$4))),DSUM(Forespørgsel1[#All],""&LEFT($C68,LEN($C68)-$A68)&"",$O$4:INDIRECT(ADDRESS($AK$3,$AK$4)))/DSUM(Forespørgsel1[#All],""&$L$4&"",$O$4:INDIRECT(ADDRESS($AK$3,$AK$4)))))),""),"") ->  | H68: =IF($AB$1=45,IFERROR(IF(ISTEXT($B68)=TRUE,DSUM(Forespørgsel1[#All],""&LEFT($C68,LEN($C68)-$A68)&"",$N$4:INDIRECT(ADDRESS($AK$3,$AK$4)))/DSUM(Forespørgsel1[#All],""&$B68&"",$N$4:INDIRECT(ADDRESS($AK$3,$AK$4))),IF($B68=0,DAVERAGE(Forespørgsel1[#All],""&LEFT($C68,LEN($C68)-$A68)&"",$N$4:INDIRECT(ADDRESS($AK$3,$AK$4))),IF($B68=1,DSUM(Forespørgsel1[#All],""&LEFT($C68,LEN($C68)-$A68)&"",$N$4:INDIRECT(ADDRESS($AK$3,$AK$4)))/DSUM(Forespørgsel1[#All],""&$K$4&"",$N$4:INDIRECT(ADDRESS($AK$3,$AK$4))),IF($B68=2,DSUM(Forespørgsel1[#All],""&LEFT($C68,LEN($C68)-$A68)&"",$N$4:INDIRECT(ADDRESS($AK$3,$AK$4)))/DSUM(Forespørgsel1[#All],""&$L$4&"",$N$4:INDIRECT(ADDRESS($AK$3,$AK$4))))))),""),"") -> 
